Workbook

Sheet Control
C2: Overwrite OUTPUTs | D2: TRUE
C3: SDG&E_EUL | D3: FALSE
C4: PGE_Quarterly | D4: TRUE
C5: InRows | D5: 1000
C6: MasterRows | D6: 1000
C7: File Suffix | D7: -1
C11: # of Files | D11: 3 | E11: NumFiles
C12: Export Directory Path
D13: FileNames
C14: Directory Path to Use for Import Files Include the "\" at the end of the string. Do not include quotation marks. e.g: D:\June 1 Folder\Spreadsheets\ | D14: Enter file names below. Maximum of 80. Do not include the directory path or quotation marks. e.g.: PG&E Mass1.xls | F14: ErrorLog
E15: NameStart

Sheet Input
B1: PG&E 10-12 Dual v1g.xls | F1: Program Budget ($) | Q1: Import file format 4
F2: a. Administrative Costs | G2: =StartYr -> 2010 | H2: =G2+1 -> 2011 | I2: =H2+1 -> 2012 | J2: NPV | N2: Nominal | O2: Nominal | P2: Nominal
B3: Proposer General Information | F3: a.i. Overhead and G&A | J3: =NPV(Calcs!$C$3,Input!H3:I3)+G3 -> 0 | K3: d. Incentives and Rebates ($) | N3: =StartYr -> 2010 | O3: =N3+1 -> 2011 | P3: =O3+1 -> 2012 | Q3: NPV
B4: Proposer Name | F4: a.ii. Other Admin costs | J4: =NPV(Calcs!$C$3,Input!H4:I4)+G4 -> 0 | K4: d.i. User Input Incentive (treated like admin cost) | Q4: =NPV(Calcs!$C$3,Input!O4:P4)+N4 -> 0
B5: Program Name | F5: b. Marketing/Outreach | J5: =NPV(Calcs!$C$3,Input!H5:I5)+G5 -> 0 | K5: d.ii. Rebate | N5: =SUMPRODUCT($M17:$M1016,AO$17:AO$1016) -> 0 | O5: =SUMPRODUCT($M17:$M1016,AP$17:AP$1016) -> 0 | P5: =SUMPRODUCT($M17:$M1016,AQ$17:AQ$1016) -> 0
B6: Service Territory | D6: PG&E | F6: c. Direct Implementation (non incentive) | K6: d.iii. Direct Install Labor | N6: =SUMPRODUCT($O$17:$O$1016,AO$17:AO$1016) -> 0 | O6: =SUMPRODUCT($O$17:$O$1016,AP$17:AP$1016) -> 0 | P6: =SUMPRODUCT($O$17:$O$1016,AQ$17:AQ$1016) -> 0
B7: First Year of Program Implementation | E7: 2010 | F7: c.i. Activity | J7: =NPV(Calcs!$C$3,Input!H7:I7)+G7 -> 0 | K7: d.iv. Direct Install Materials | N7: =SUMPRODUCT($P$17:$P$1016,AO$17:AO$1016) -> 0 | O7: =SUMPRODUCT($P$17:$P$1016,AP$17:AP$1016) -> 0 | P7: =SUMPRODUCT($P$17:$P$1016,AQ$17:AQ$1016) -> 0
B8: Contact Information | F8: c.ii. Installation | J8: =NPV(Calcs!$C$3,Input!H8:I8)+G8 -> 0 | K8: d.v. Upstream payments | N8: =SUMPRODUCT($N$17:$N$1016,AO$17:AO$1016) -> 0 | O8: =SUMPRODUCT($N$17:$N$1016,AP$17:AP$1016) -> 0 | P8: =SUMPRODUCT($N$17:$N$1016,AQ$17:AQ$1016) -> 0
B9: Name | F9: c.iii. Hardware & Materials | J9: =NPV(Calcs!$C$3,Input!H9:I9)+G9 -> 0 | K9: Subtotal Incentives and Rebates | N9: =SUM(N4:N8) -> 0 | O9: =SUM(O4:O8) -> 0 | P9: =SUM(P4:P8) -> 0 | Q9: =Calcs!FZ1018+Q4 -> 0
B10: Address | F10: c.iv. Rebate Processing and Inspection | J10: =NPV(Calcs!$C$3,Input!H10:I10)+G10 -> 0 | BA10: Formulas for spreading annual installations to quarters
B11: ZIP code | F11: d. Total Incentives and Rebates | G11: =N9 -> 0 | H11: =O9 -> 0 | I11: =P9 -> 0 | J11: =Q9 -> 0 | BA11: =$AO11/4 -> 0 | BB11: =$AO11/4 -> 0 | BC11: =$AO11/4 -> 0 | BD11: =$AO11/4 -> 0 | BE11: =$AP11/4 -> 0 | BF11: =$AP11/4 -> 0 | BG11: =$AP11/4 -> 0 | BH11: =$AP11/4 -> 0 | BI11: =$AQ11/4 -> 0 | BJ11: =$AQ11/4 -> 0 | BK11: =$AQ11/4 -> 0 | BL11: =$AQ11/4 -> 0 | BM11: =$AR11/4 -> 0 | BN11: =$AR11/4 -> 0 | BO11: =$AR11/4 -> 0 | BP11: =$AR11/4 -> 0 | BQ11: =$AS11/4 -> 0 | BR11: =$AS11/4 -> 0 | BS11: =$AS11/4 -> 0 | BT11: =$AS11/4 -> 0 | BU11: =$AT11/4 -> 0 | BV11: =$AT11/4 -> 0 | BW11: =$AT11/4 -> 0 | BX11: =$AT11/4 -> 0 | BY11: =$AU11/4 -> 0 | BZ11: =$AU11/4 -> 0 | CA11: =$AU11/4 -> 0 | CB11: =$AU11/4 -> 0 | CC11: =$AV11/4 -> 0 | CD11: =$AV11/4 -> 0 | CE11: =$AV11/4 -> 0 | CF11: =$AV11/4 -> 0 | CG11: =$AW11/4 -> 0 | CH11: =$AW11/4 -> 0 | CI11: =$AW11/4 -> 0 | CJ11: =$AW11/4 -> 0 | CK11: =$AX11/4 -> 0 | CL11: =$AX11/4 -> 0 | CM11: =$AX11/4 -> 0 | CN11: =$AX11/4 -> 0 | CO11: =$AY11/4 -> 0 | CP11: =$AY11/4 -> 0 | CQ11: =$AY11/4 -> 0 | CR11: =$AY11/4 -> 0
B12: Telephone | F12: e. EM&V | J12: =NPV(Calcs!$C$3,Input!H12:I12)+G12 -> 0 | K12: f. Costs recovered from other sources | Q12: =NPV(Calcs!$C$3,Input!N12:P12) -> 0
B13: Email | F13: Total | G13: =SUM(G3:G12) -> 0 | H13: =SUM(H3:H12) -> 0 | I13: =SUM(I3:I12) -> 0 | J13: =SUM(J3:J12) -> 0 | K13: Program Budget w/ Other Costs (a to f) | N13: =N12+G13 -> 0 | O13: =O12+H13 -> 0 | P13: =P12+I13 -> 0 | Q13: =J13+Q12 -> 0
D14: Market Sectors- Primary: | P14: Number of measures that have negative participant cost: | Q14: =COUNTIF(Calcs!FU17:FU1016,">0") -> 0 | S14: Excess Incentives | T14: =SUM(Calcs!FV17:FV1016) -> 0 | BA14: Quarterly Installation Schedule
B15: Program Inputs | D15: Secondary: | M15: Transfer | N15: Admin | O15: Admin | P15: Admin | Q15: Participant | Z15: Second Baseline (For savings after the RUL) | AL15: Benefits Adj Factors | AO15: Annual Installation Schedule (enter quarterly values to the right) | BA15: =StartYr -> 2010 | BE15: =BA15+1 -> 2011 | BI15: =BE15+1 -> 2012 | BM15: =BI15+1 -> 2013 | BQ15: =BM15+1 -> 2014 | BU15: =BQ15+1 -> 2015 | BY15: =BU15+1 -> 2016 | CC15: =BY15+1 -> 2017 | CG15: =CC15+1 -> 2018 | CK15: =CG15+1 -> 2019 | CO15: =CK15+1 -> 2020
B16: Measure Name | C16: DEER RunID | D16: Climate Zone | E16: Target sector | F16: Measure Electric End Use Shape | G16: CZ, Sector, Measure combination found? | H16: Expected Useful Life for New/ROB, RUL for retrofit. (yrs) | I16: Program Type (To look up Net-to-gross Ratio) | J16: Unit Definition (e.g. homes) | K16: Program Type (NEW/ROB or Early Repl(ER)) | L16: Gross Measure Cost (Incr Cost for New/ROB; Total cost for ER) ($/unit) | M16: Rebate to end use customer or its assignee ($/unit) | N16: Incentives to entities other than the end use customer or its assignee($/unit) | O16: Direct Install Labor ($/unit) | P16: Direct Install Material ($/unit) | Q16: Gross Participant Cost ($/unit) | R16: Gross Unit Annual kWh Savings (vs std/code for New/ROB; vs existing for ER) (kwh/unit) | S16: Electric Rate Schedule | T16: Demand Scaler | U16: User Entered kW Savings per unit (vs std/code for New/ROB; vs existing for ER) (kW/unit) | V16: Gross Unit Annual Gas Savings (vs std/code for New/ROB; vs existing for ER) (therm/unit) | W16: Gas Sector | X16: Gas Rate Schedule | Y16: Gas Savings Profile | Z16: Total Life. Can be left blank for single baseline measures (Yrs) | AA16: Incremental Cost (relative to standard efficiency default device) ($/unit) | AB16: Measure Cost Inflation (%/year escalation) | AC16: Early retrofit incremental kWh savings (kWh/unit) | AD16: Early retrofit incremental kW savings (kW/unit) | AE16: Early retrofit incremental Th savings (Th/unit) | AF16: Combustion Type | AG16: Effective Useful Life (years) | AH16: Net-to-Gross Ratio - kWh | AI16: Net-to-Gross Ratio - kW | AJ16: Net-to-Gross Ratio - Therms | AK16: Net-to-Gross Ratio - Costs | AL16: Installation Rate (Blank gets 100%) (IR) | AM16: Gross Realization Rate (Blank gets 100%) (GRR) | AN16: % Eligible for TOU AC adjustment | AO16: =StartYr -> 2010 | AP16: =AO16+1 -> 2011 | AQ16: 2012 | AR16: 2013 | AS16: 2014 | AT16: 2015 | AU16: 2016 | AV16: 2017 | AW16: 2018 | AX16: 2019 | AY16: 2020 | BA16: Qtr 1 | BB16: Qtr 2 | BC16: Qtr 3 | BD16: Qtr 4 | BE16: =BA16 -> Qtr 1 | BF16: =BB16 -> Qtr 2 | BG16: Qtr 3 | BH16: Qtr 4 | BI16: Qtr 1 | BJ16: Qtr 2 | BK16: Qtr 3 | BL16: Qtr 4 | BM16: Qtr 1 | BN16: Qtr 2 | BO16: Qtr 3 | BP16: Qtr 4 | BQ16: Qtr 1 | BR16: Qtr 2 | BS16: Qtr 3 | BT16: Qtr 4 | BU16: =BQ16 -> Qtr 1 | BV16: Qtr 2 | BW16: Qtr 3 | BX16: Qtr 4 | BY16: Qtr 1 | BZ16: Qtr 2 | CA16: Qtr 3 | CB16: Qtr 4 | CC16: Qtr 1 | CD16: Qtr 2 | CE16: Qtr 3 | CF16: Qtr 4 | CG16: Qtr 1 | CH16: Qtr 2 | CI16: Qtr 3 | CJ16: Qtr 4 | CK16: Qtr 1 | CL16: Qtr 2 | CM16: Qtr 3 | CN16: Qtr 4 | CO16: Qtr 1 | CP16: Qtr 2 | CQ16: Qtr 3 | CR16: Qtr 4 | CS16: Total Number of Units | CT16: Comments
A17: =$D$5 -> 0 | G17: =IF(ISBLANK(F17),"",NOT(ISERROR(Calcs!Z17*Calcs!AA17*Calcs!AB17))) ->  | Q17: =MAX(0,L17-N17-O17-P17)-M17 -> 0 | T17: =Calcs!Q17 ->  | AG17: =IF(ISERROR(OFFSET(PolicyManual!$E$4,MATCH(H17,PolicyManual!$D$4:$D$365,0)-1,0,1,1)),H17,OFFSET(PolicyManual!$E$4,MATCH(H17,PolicyManual!$D$4:$D$365,0)-1,0,1,1)) -> 0 | AH17: =IF(ISBLANK(I17),"",IF(ISNUMBER(I17),I17,OFFSET(PolicyManual!$B$4,MATCH(I17,$I$1032:$I$1060,0)-1,0,1,1))) ->  | AO17: =SUM(BA17:BD17) -> 0 | AP17: =SUM(BE17:BH17) -> 0 | AQ17: =SUM(BI17:BL17) -> 0 | AR17: =SUM(BM17:BP17) -> 0 | AS17: =SUM(BQ17:BT17) -> 0 | AT17: =SUM(BU17:BX17) -> 0 | AU17: =SUM(BY17:CB17) -> 0 | AV17: =SUM(CC17:CF17) -> 0 | AW17: =SUM(CG17:CJ17) -> 0 | AX17: =SUM(CK17:CN17) -> 0 | AY17: =SUM(CO17:CR17) -> 0 | CS17: =SUM(BA17:CR17) -> 0
A18: 0 | G18: =IF(ISBLANK(F18),"",NOT(ISERROR(Calcs!Z18*Calcs!AA18*Calcs!AB18))) ->  | Q18: =MAX(0,L18-N18-O18-P18)-M18 -> 0 | T18: =Calcs!Q18 ->  | AG18: =IF(ISERROR(OFFSET(PolicyManual!$E$4,MATCH(H18,PolicyManual!$D$4:$D$365,0)-1,0,1,1)),H18,OFFSET(PolicyManual!$E$4,MATCH(H18,PolicyManual!$D$4:$D$365,0)-1,0,1,1)) -> 0 | AH18: =IF(ISBLANK(I18),"",IF(ISNUMBER(I18),I18,OFFSET(PolicyManual!$B$4,MATCH(I18,$I$1032:$I$1060,0)-1,0,1,1))) ->  | AO18: 0 | AP18: 0 | AQ18: 0 | AR18: 0 | AS18: 0 | AT18: 0 | AU18: 0 | AV18: 0 | AW18: =SUM(CG18:CJ18) -> 0 | AX18: =SUM(CK18:CN18) -> 0 | AY18: =SUM(CO18:CR18) -> 0 | CS18: 0
A19: 0 | G19: =IF(ISBLANK(F19),"",NOT(ISERROR(Calcs!Z19*Calcs!AA19*Calcs!AB19))) ->  | Q19: 0 | T19: =Calcs!Q19 ->  | AG19: =IF(ISERROR(OFFSET(PolicyManual!$E$4,MATCH(H19,PolicyManual!$D$4:$D$365,0)-1,0,1,1)),H19,OFFSET(PolicyManual!$E$4,MATCH(H19,PolicyManual!$D$4:$D$365,0)-1,0,1,1)) -> 0 | AH19: =IF(ISBLANK(I19),"",IF(ISNUMBER(I19),I19,OFFSET(PolicyManual!$B$4,MATCH(I19,$I$1032:$I$1060,0)-1,0,1,1))) ->  | AO19: 0 | AP19: 0 | AQ19: 0 | AR19: 0 | AS19: 0 | AT19: 0 | AU19: 0 | AV19: 0 | AW19: 0 | AX19: 0 | AY19: 0 | CS19: 0
A20: 0 | G20: =IF(ISBLANK(F20),"",NOT(ISERROR(Calcs!Z20*Calcs!AA20*Calcs!AB20))) ->  | Q20: 0 | T20: =Calcs!Q20 ->  | AG20: =IF(ISERROR(OFFSET(PolicyManual!$E$4,MATCH(H20,PolicyManual!$D$4:$D$365,0)-1,0,1,1)),H20,OFFSET(PolicyManual!$E$4,MATCH(H20,PolicyManual!$D$4:$D$365,0)-1,0,1,1)) -> 0 | AH20: =IF(ISBLANK(I20),"",IF(ISNUMBER(I20),I20,OFFSET(PolicyManual!$B$4,MATCH(I20,$I$1032:$I$1060,0)-1,0,1,1))) ->  | AO20: =SUM(BA20:BD20) -> 0 | AP20: =SUM(BE20:BH20) -> 0 | AQ20: =SUM(BI20:BL20) -> 0 | AR20: =SUM(BM20:BP20) -> 0 | AS20: 0 | AT20: 0 | AU20: 0 | AV20: 0 | AW20: 0 | AX20: 0 | AY20: 0 | CS20: 0
A21: 0 | G21: =IF(ISBLANK(F21),"",NOT(ISERROR(Calcs!Z21*Calcs!AA21*Calcs!AB21))) ->  | Q21: 0 | T21: =Calcs!Q21 ->  | AG21: =IF(ISERROR(OFFSET(PolicyManual!$E$4,MATCH(H21,PolicyManual!$D$4:$D$365,0)-1,0,1,1)),H21,OFFSET(PolicyManual!$E$4,MATCH(H21,PolicyManual!$D$4:$D$365,0)-1,0,1,1)) -> 0 | AH21: =IF(ISBLANK(I21),"",IF(ISNUMBER(I21),I21,OFFSET(PolicyManual!$B$4,MATCH(I21,$I$1032:$I$1060,0)-1,0,1,1))) ->  | AO21: 0 | AP21: 0 | AQ21: 0 | AR21: 0 | AS21: 0 | AT21: 0 | AU21: 0 | AV21: 0 | AW21: 0 | AX21: 0 | AY21: 0 | CS21: 0
A22: 0 | G22: =IF(ISBLANK(F22),"",NOT(ISERROR(Calcs!Z22*Calcs!AA22*Calcs!AB22))) ->  | Q22: 0 | T22: =Calcs!Q22 ->  | AG22: =IF(ISERROR(OFFSET(PolicyManual!$E$4,MATCH(H22,PolicyManual!$D$4:$D$365,0)-1,0,1,1)),H22,OFFSET(PolicyManual!$E$4,MATCH(H22,PolicyManual!$D$4:$D$365,0)-1,0,1,1)) -> 0 | AH22: =IF(ISBLANK(I22),"",IF(ISNUMBER(I22),I22,OFFSET(PolicyManual!$B$4,MATCH(I22,$I$1032:$I$1060,0)-1,0,1,1))) ->  | AO22: 0 | AP22: 0 | AQ22: 0 | AR22: 0 | AS22: 0 | AT22: 0 | AU22: 0 | AV22: 0 | AW22: 0 | AX22: 0 | AY22: 0 | CS22: 0
A23: 0 | G23: =IF(ISBLANK(F23),"",NOT(ISERROR(Calcs!Z23*Calcs!AA23*Calcs!AB23))) ->  | Q23: 0 | T23: =Calcs!Q23 ->  | AG23: =IF(ISERROR(OFFSET(PolicyManual!$E$4,MATCH(H23,PolicyManual!$D$4:$D$365,0)-1,0,1,1)),H23,OFFSET(PolicyManual!$E$4,MATCH(H23,PolicyManual!$D$4:$D$365,0)-1,0,1,1)) -> 0 | AH23: =IF(ISBLANK(I23),"",IF(ISNUMBER(I23),I23,OFFSET(PolicyManual!$B$4,MATCH(I23,$I$1032:$I$1060,0)-1,0,1,1))) ->  | AO23: 0 | AP23: 0 | AQ23: 0 | AR23: 0 | AS23: 0 | AT23: 0 | AU23: 0 | AV23: 0 | AW23: 0 | AX23: 0 | AY23: 0 | CS23: 0
A24: 0 | G24: =IF(ISBLANK(F24),"",NOT(ISERROR(Calcs!Z24*Calcs!AA24*Calcs!AB24))) ->  | Q24: 0 | T24: =Calcs!Q24 ->  | AG24: =IF(ISERROR(OFFSET(PolicyManual!$E$4,MATCH(H24,PolicyManual!$D$4:$D$365,0)-1,0,1,1)),H24,OFFSET(PolicyManual!$E$4,MATCH(H24,PolicyManual!$D$4:$D$365,0)-1,0,1,1)) -> 0 | AH24: =IF(ISBLANK(I24),"",IF(ISNUMBER(I24),I24,OFFSET(PolicyManual!$B$4,MATCH(I24,$I$1032:$I$1060,0)-1,0,1,1))) ->  | AO24: 0 | AP24: 0 | AQ24: 0 | AR24: 0 | AS24: 0 | AT24: 0 | AU24: 0 | AV24: 0 | AW24: 0 | AX24: 0 | AY24: 0 | CS24: 0
A25: 0 | G25: =IF(ISBLANK(F25),"",NOT(ISERROR(Calcs!Z25*Calcs!AA25*Calcs!AB25))) ->  | Q25: 0 | T25: =Calcs!Q25 ->  | AG25: =IF(ISERROR(OFFSET(PolicyManual!$E$4,MATCH(H25,PolicyManual!$D$4:$D$365,0)-1,0,1,1)),H25,OFFSET(PolicyManual!$E$4,MATCH(H25,PolicyManual!$D$4:$D$365,0)-1,0,1,1)) -> 0 | AH25: =IF(ISBLANK(I25),"",IF(ISNUMBER(I25),I25,OFFSET(PolicyManual!$B$4,MATCH(I25,$I$1032:$I$1060,0)-1,0,1,1))) ->  | AO25: =SUM(BA25:BD25) -> 0 | AP25: =SUM(BE25:BH25) -> 0 | AQ25: =SUM(BI25:BL25) -> 0 | AR25: =SUM(BM25:BP25) -> 0 | AS25: =SUM(BQ25:BT25) -> 0 | AT25: =SUM(BU25:BX25) -> 0 | AU25: =SUM(BY25:CB25) -> 0 | AV25: =SUM(CC25:CF25) -> 0 | AW25: 0 | AX25: 0 | AY25: 0 | CS25: =SUM(BA25:CR25) -> 0
A26: 0 | G26: =IF(ISBLANK(F26),"",NOT(ISERROR(Calcs!Z26*Calcs!AA26*Calcs!AB26))) ->  | Q26: 0 | T26: =Calcs!Q26 ->  | AG26: =IF(ISERROR(OFFSET(PolicyManual!$E$4,MATCH(H26,PolicyManual!$D$4:$D$365,0)-1,0,1,1)),H26,OFFSET(PolicyManual!$E$4,MATCH(H26,PolicyManual!$D$4:$D$365,0)-1,0,1,1)) -> 0 | AH26: =IF(ISBLANK(I26),"",IF(ISNUMBER(I26),I26,OFFSET(PolicyManual!$B$4,MATCH(I26,$I$1032:$I$1060,0)-1,0,1,1))) ->  | AO26: 0 | AP26: 0 | AQ26: 0 | AR26: 0 | AS26: 0 | AT26: 0 | AU26: 0 | AV26: 0 | AW26: 0 | AX26: 0 | AY26: 0 | CS26: 0
A27: 0 | G27: =IF(ISBLANK(F27),"",NOT(ISERROR(Calcs!Z27*Calcs!AA27*Calcs!AB27))) ->  | Q27: 0 | T27: =Calcs!Q27 ->  | AG27: =IF(ISERROR(OFFSET(PolicyManual!$E$4,MATCH(H27,PolicyManual!$D$4:$D$365,0)-1,0,1,1)),H27,OFFSET(PolicyManual!$E$4,MATCH(H27,PolicyManual!$D$4:$D$365,0)-1,0,1,1)) -> 0 | AH27: =IF(ISBLANK(I27),"",IF(ISNUMBER(I27),I27,OFFSET(PolicyManual!$B$4,MATCH(I27,$I$1032:$I$1060,0)-1,0,1,1))) ->  | AO27: 0 | AP27: 0 | AQ27: 0 | AR27: 0 | AS27: 0 | AT27: 0 | AU27: 0 | AV27: 0 | AW27: 0 | AX27: 0 | AY27: 0 | CS27: 0
A28: 0 | G28: =IF(ISBLANK(F28),"",NOT(ISERROR(Calcs!Z28*Calcs!AA28*Calcs!AB28))) ->  | Q28: 0 | T28: =Calcs!Q28 ->  | AG28: =IF(ISERROR(OFFSET(PolicyManual!$E$4,MATCH(H28,PolicyManual!$D$4:$D$365,0)-1,0,1,1)),H28,OFFSET(PolicyManual!$E$4,MATCH(H28,PolicyManual!$D$4:$D$365,0)-1,0,1,1)) -> 0 | AH28: =IF(ISBLANK(I28),"",IF(ISNUMBER(I28),I28,OFFSET(PolicyManual!$B$4,MATCH(I28,$I$1032:$I$1060,0)-1,0,1,1))) ->  | AO28: 0 | AP28: 0 | AQ28: 0 | AR28: 0 | AS28: 0 | AT28: 0 | AU28: 0 | AV28: 0 | AW28: 0 | AX28: 0 | AY28: 0 | CS28: 0
A29: 0 | G29: =IF(ISBLANK(F29),"",NOT(ISERROR(Calcs!Z29*Calcs!AA29*Calcs!AB29))) ->  | Q29: 0 | T29: =Calcs!Q29 ->  | AG29: =IF(ISERROR(OFFSET(PolicyManual!$E$4,MATCH(H29,PolicyManual!$D$4:$D$365,0)-1,0,1,1)),H29,OFFSET(PolicyManual!$E$4,MATCH(H29,PolicyManual!$D$4:$D$365,0)-1,0,1,1)) -> 0 | AH29: =IF(ISBLANK(I29),"",IF(ISNUMBER(I29),I29,OFFSET(PolicyManual!$B$4,MATCH(I29,$I$1032:$I$1060,0)-1,0,1,1))) ->  | AO29: 0 | AP29: 0 | AQ29: 0 | AR29: 0 | AS29: 0 | AT29: 0 | AU29: 0 | AV29: 0 | AW29: 0 | AX29: 0 | AY29: 0 | CS29: 0
A30: 0 | G30: =IF(ISBLANK(F30),"",NOT(ISERROR(Calcs!Z30*Calcs!AA30*Calcs!AB30))) ->  | Q30: 0 | T30: =Calcs!Q30 ->  | AG30: =IF(ISERROR(OFFSET(PolicyManual!$E$4,MATCH(H30,PolicyManual!$D$4:$D$365,0)-1,0,1,1)),H30,OFFSET(PolicyManual!$E$4,MATCH(H30,PolicyManual!$D$4:$D$365,0)-1,0,1,1)) -> 0 | AH30: =IF(ISBLANK(I30),"",IF(ISNUMBER(I30),I30,OFFSET(PolicyManual!$B$4,MATCH(I30,$I$1032:$I$1060,0)-1,0,1,1))) ->  | AO30: 0 | AP30: 0 | AQ30: 0 | AR30: 0 | AS30: 0 | AT30: 0 | AU30: 0 | AV30: 0 | AW30: 0 | AX30: 0 | AY30: 0 | CS30: 0
A31: 0 | G31: =IF(ISBLANK(F31),"",NOT(ISERROR(Calcs!Z31*Calcs!AA31*Calcs!AB31))) ->  | Q31: 0 | T31: =Calcs!Q31 ->  | AG31: =IF(ISERROR(OFFSET(PolicyManual!$E$4,MATCH(H31,PolicyManual!$D$4:$D$365,0)-1,0,1,1)),H31,OFFSET(PolicyManual!$E$4,MATCH(H31,PolicyManual!$D$4:$D$365,0)-1,0,1,1)) -> 0 | AH31: =IF(ISBLANK(I31),"",IF(ISNUMBER(I31),I31,OFFSET(PolicyManual!$B$4,MATCH(I31,$I$1032:$I$1060,0)-1,0,1,1))) ->  | AO31: 0 | AP31: 0 | AQ31: 0 | AR31: 0 | AS31: 0 | AT31: 0 | AU31: 0 | AV31: 0 | AW31: 0 | AX31: 0 | AY31: 0 | CS31: 0
... 38 more rows

Sheet Output
B1: Program Summary | D1: Nominal | G1: Present Value | K1: Avoided Cost Version
B2: Proposer Name | D2: =Input!D4 -> 0 | K2: =CostE!B1 -> 2010-05-04
B3: Program Name | D3: =Input!D5 -> 0 | K3: =CostE!B2 -> 2010-08-16
B4: Total Program Budget ($) | D4: =SUM(Input!N13:P13) -> 0 | G4: =Input!Q13 -> 0 | K4: Base Year
K5: =CostE!G3 -> 2010
B6: Net Participant Cost ($) | G6: =Calcs!GC1018 -> 0 | K6: =Input!B1 -> PG&E 10-12 Dual v1g.xls
B8: Program Impacts | M8: Program Impacts (Gross)
C9: Annual Net kWh | D9: Lifecycle Net kWh | E9: Annual Net Therms | F9: Lifecycle Net Therms | G9: Net Jul-Sept Pk (kW) | H9: Net Dec-Feb Pk (kW) | J9: User Entered kW | N9: Annual Gross kWh | O9: Lifecycle Gross kWh | P9: Annual Gross Therms | Q9: Lifecycle Gross Therms | R9: User Entered kW
B10: =StartYr &"-"&StartYr+2 -> 2010-2012 | C10: =SUM(C67:C69) -> 0 | D10: 0 | E10: 0 | F10: 0 | G10: 0 | H10: 0 | J10: =SUM(J67:J69) -> 0 | M10: =B10 -> 2010-2012 | N10: =SUM(N67:N69) -> 0 | O10: =SUM(O67:O69) -> 0 | P10: =SUM(P67:P69) -> 0 | Q10: =SUM(Q67:Q69) -> 0 | R10: =SUM(R67:R69) -> 0
B11: =StartYr+3&"-"&StartYr+6 -> 2013-2016 | C11: =SUM(C70:C73) -> 0 | D11: =SUM(D70:D73) -> 0 | E11: =SUM(E70:E73) -> 0 | F11: 0 | G11: 0 | H11: 0 | J11: 0 | M11: =B11 -> 2013-2016 | N11: =SUM(N70:N73) -> 0 | O11: =SUM(O70:O73) -> 0 | P11: =SUM(P70:P73) -> 0 | Q11: =SUM(Q70:Q73) -> 0 | R11: =SUM(R70:R73) -> 0
B12: =StartYr+7&"-"&StartYr +10 -> 2017-2020 | C12: =SUM(C74:C77) -> 0 | D12: =SUM(D74:D77) -> 0 | E12: =SUM(E74:E77) -> 0 | F12: 0 | G12: 0 | H12: 0 | J12: 0 | M12: =B12 -> 2017-2020 | N12: =SUM(N74:N77) -> 0 | O12: =SUM(O74:O77) -> 0 | P12: =SUM(P74:P77) -> 0 | Q12: =SUM(Q74:Q77) -> 0 | R12: =SUM(R74:R77) -> 0
B14: Cost Effectiveness (Lifecycle Present Value Dollars)
D15: Benefits | G15: Benefit - Cost
C16: Cost | D16: Electric | E16: Gas | F16: Incentives | G16: NPV | H16: B/C Ratio | I16: Notes
B17: Program TRC ($) | C17: =G4+G6 -> 0 | D17: =Calcs!DY1018 -> 0 | E17: =Calcs!DZ1018 -> 0 | F17: NA | G17: =SUM(D17:E17)-C17 -> 0 | H17: =SUM(D17:E17)/C17 ->  | I17: *1
B18: Program PAC ($) | C18: =G4 -> 0 | D18: =D17 -> 0 | E18: =E17 -> 0 | F18: NA | G18: =SUM(D18:F18)-C18 -> 0 | H18: =SUM(D18:F18)/C18 ->  | I18: *1,2
B19: Program RIM ($) | C19: =SUM(Calcs!EY1018:FT1018)+G4 -> 0 | D19: =D17 -> 0 | E19: =E17 -> 0 | F19: NA | G19: =D19+E19-C19 -> 0 | H19: =(D19+E19)/C19 ->  | I19: *1
B20: *1 B/C Ratio is an approximation because any supply cost increases are treated as negative benefits rather than as a cost as in the Standard Practice Manual
B21: *2 PAC benefits include environmental costs. This is to be consistent with the TRC benefits, but is not strictly consistent with the Standard Practice Manual.
B23: ="Levelized Cost and Benefit (All Measures Installed through "&B47&")" -> Levelized Cost and Benefit (All Measures Installed through 2020)
C24: Discounted Savings | G24: Benefit - Cost
C25: kWh | D25: Therms | E25: Cost | F25: Benefits | G25: NPV
B26: TRC ($/kWh ) | C26: =Calcs!GF1018 -> 0 | E26: =F26-G26 ->  | F26: =D17/C26 ->  | G26: =Calcs!GO1018 -> 
B27: PAC ($/kWh) | C27: =C26 -> 0 | E27: =F27-G27 ->  | F27: =D18/C27 ->  | G27: =Calcs!GS1018 -> 
B28: RIM ($/kWh) | C28: =C26 -> 0 | E28: =C19*D19/SUM(D19:E19)/C28 ->  | F28: =D19/C28 ->  | G28: =F28-E28 -> 
B30: TRC ($/therm) | D30: =Calcs!GG1018 -> 0 | E30: =F30-G30 ->  | F30: =E17/D30 ->  | G30: =Calcs!GP1018 -> 
B31: PAC ($/therm) | D31: =D30 -> 0 | E31: =F31-G31 ->  | F31: =E18/D31 ->  | G31: =Calcs!GT1018 -> 
... 36 more rows

Sheet Output by Measure
A11: =Input!D4 -> 0
A12: =Input!D5 -> 0
A13: =Input!D6 -> PG&E | J13: Levelized Benefits less Costs (TRC) | N13: Levelized Benefits less Costs (PAC) | R13: Benefit Cost Ratios
A14: Net Impacts by Measure | J14: No Allocated Admin | L14: w/ Allocated Admin | N14: No Allocated Admin | P14: w/ Allocated Admin | R14: No Allocated Admin | T14: w/ Allocated Admin
B15: Wtd Avg Net Avg Jul-Sep (kW) | C15: Wtd Avg Net Dec-Feb Pk (kW) | E15: Wtd Avg Net User Entered kW | F15: Wtd Avg Annual kWh adj for Net to gross | G15: Wtd Avg Lifecycle kWh (Annual * Measure Life) | H15: Wtd Avg Annual Therms | I15: Wtd Avg Lifecycle Therms | J15: Electric ($/kWh) | K15: Gas ($/Th) | L15: Electric ($/kWh) | M15: Gas ($/Th) | N15: Electric ($/kWh) | O15: Gas ($/Th) | P15: Electric ($/kWh) | Q15: Gas ($/Th) | R15: TRC | S15: PAC | T15: TRC | U15: PAC
A16: Total or Average | B16: =SUM(B17:B1016) -> 0 | C16: 0 | E16: 0 | F16: 0 | G16: 0 | H16: 0 | I16: 0 | J16: =Calcs!GM1018 ->  | K16: =Calcs!GN1018 ->  | L16: =Calcs!GO1018 ->  | M16: =Calcs!GP1018 ->  | N16: =Calcs!GQ1018 ->  | O16: =Calcs!GR1018 ->  | P16: =Calcs!GS1018 ->  | Q16: =Calcs!GT1018 -> 
A17: =Input!B17 -> 0 | B17: =Calcs!HC17 -> 0 | C17: =Calcs!HD17 -> 0 | E17: =Calcs!HF17 -> 0 | F17: =Calcs!GY17 -> 0 | G17: =Calcs!GZ17 -> 0 | H17: =Calcs!HA17 -> 0 | I17: =Calcs!HB17 -> 0 | J17: =Calcs!GM17 -> 0 | K17: =Calcs!GN17 -> 0 | L17: =Calcs!GO17 -> 0 | M17: =Calcs!GP17 -> 0 | N17: =Calcs!GQ17 -> 0 | O17: =Calcs!GR17 -> 0 | P17: =Calcs!GS17 -> 0 | Q17: =Calcs!GT17 -> 0 | R17: =IF(ISERROR(Calcs!GU17),0,Calcs!GU17) -> 0 | S17: =IF(ISERROR(Calcs!GV17),0,Calcs!GV17) -> 0 | T17: =IF(ISERROR(Calcs!GW17),0,Calcs!GW17) -> 0 | U17: =IF(ISERROR(Calcs!GX17),0,Calcs!GX17) -> 0
A18: =Input!B18 -> 0 | B18: =Calcs!HC18 -> 0 | C18: =Calcs!HD18 -> 0 | E18: =Calcs!HF18 -> 0 | F18: =Calcs!GY18 -> 0 | G18: =Calcs!GZ18 -> 0 | H18: =Calcs!HA18 -> 0 | I18: =Calcs!HB18 -> 0 | J18: =Calcs!GM18 -> 0 | K18: =Calcs!GN18 -> 0 | L18: =Calcs!GO18 -> 0 | M18: =Calcs!GP18 -> 0 | N18: =Calcs!GQ18 -> 0 | O18: =Calcs!GR18 -> 0 | P18: =Calcs!GS18 -> 0 | Q18: =Calcs!GT18 -> 0 | R18: =IF(ISERROR(Calcs!GU18),0,Calcs!GU18) -> 0 | S18: =IF(ISERROR(Calcs!GV18),0,Calcs!GV18) -> 0 | T18: =IF(ISERROR(Calcs!GW18),0,Calcs!GW18) -> 0 | U18: =IF(ISERROR(Calcs!GX18),0,Calcs!GX18) -> 0
A19: =Input!B19 -> 0 | B19: =Calcs!HC19 -> 0 | C19: =Calcs!HD19 -> 0 | E19: =Calcs!HF19 -> 0 | F19: =Calcs!GY19 -> 0 | G19: =Calcs!GZ19 -> 0 | H19: =Calcs!HA19 -> 0 | I19: =Calcs!HB19 -> 0 | J19: =Calcs!GM19 -> 0 | K19: =Calcs!GN19 -> 0 | L19: =Calcs!GO19 -> 0 | M19: =Calcs!GP19 -> 0 | N19: =Calcs!GQ19 -> 0 | O19: =Calcs!GR19 -> 0 | P19: =Calcs!GS19 -> 0 | Q19: =Calcs!GT19 -> 0 | R19: =IF(ISERROR(Calcs!GU19),0,Calcs!GU19) -> 0 | S19: =IF(ISERROR(Calcs!GV19),0,Calcs!GV19) -> 0 | T19: =IF(ISERROR(Calcs!GW19),0,Calcs!GW19) -> 0 | U19: =IF(ISERROR(Calcs!GX19),0,Calcs!GX19) -> 0
A20: =Input!B20 -> 0 | B20: =Calcs!HC20 -> 0 | C20: =Calcs!HD20 -> 0 | E20: =Calcs!HF20 -> 0 | F20: =Calcs!GY20 -> 0 | G20: =Calcs!GZ20 -> 0 | H20: =Calcs!HA20 -> 0 | I20: =Calcs!HB20 -> 0 | J20: =Calcs!GM20 -> 0 | K20: =Calcs!GN20 -> 0 | L20: =Calcs!GO20 -> 0 | M20: =Calcs!GP20 -> 0 | N20: =Calcs!GQ20 -> 0 | O20: =Calcs!GR20 -> 0 | P20: =Calcs!GS20 -> 0 | Q20: =Calcs!GT20 -> 0 | R20: =IF(ISERROR(Calcs!GU20),0,Calcs!GU20) -> 0 | S20: =IF(ISERROR(Calcs!GV20),0,Calcs!GV20) -> 0 | T20: =IF(ISERROR(Calcs!GW20),0,Calcs!GW20) -> 0 | U20: =IF(ISERROR(Calcs!GX20),0,Calcs!GX20) -> 0
A21: =Input!B21 -> 0 | B21: =Calcs!HC21 -> 0 | C21: =Calcs!HD21 -> 0 | E21: =Calcs!HF21 -> 0 | F21: =Calcs!GY21 -> 0 | G21: =Calcs!GZ21 -> 0 | H21: =Calcs!HA21 -> 0 | I21: =Calcs!HB21 -> 0 | J21: =Calcs!GM21 -> 0 | K21: =Calcs!GN21 -> 0 | L21: =Calcs!GO21 -> 0 | M21: =Calcs!GP21 -> 0 | N21: =Calcs!GQ21 -> 0 | O21: =Calcs!GR21 -> 0 | P21: =Calcs!GS21 -> 0 | Q21: =Calcs!GT21 -> 0 | R21: =IF(ISERROR(Calcs!GU21),0,Calcs!GU21) -> 0 | S21: =IF(ISERROR(Calcs!GV21),0,Calcs!GV21) -> 0 | T21: =IF(ISERROR(Calcs!GW21),0,Calcs!GW21) -> 0 | U21: =IF(ISERROR(Calcs!GX21),0,Calcs!GX21) -> 0
A22: =Input!B22 -> 0 | B22: =Calcs!HC22 -> 0 | C22: =Calcs!HD22 -> 0 | E22: =Calcs!HF22 -> 0 | F22: =Calcs!GY22 -> 0 | G22: =Calcs!GZ22 -> 0 | H22: =Calcs!HA22 -> 0 | I22: =Calcs!HB22 -> 0 | J22: =Calcs!GM22 -> 0 | K22: =Calcs!GN22 -> 0 | L22: =Calcs!GO22 -> 0 | M22: =Calcs!GP22 -> 0 | N22: =Calcs!GQ22 -> 0 | O22: =Calcs!GR22 -> 0 | P22: =Calcs!GS22 -> 0 | Q22: =Calcs!GT22 -> 0 | R22: =IF(ISERROR(Calcs!GU22),0,Calcs!GU22) -> 0 | S22: =IF(ISERROR(Calcs!GV22),0,Calcs!GV22) -> 0 | T22: =IF(ISERROR(Calcs!GW22),0,Calcs!GW22) -> 0 | U22: =IF(ISERROR(Calcs!GX22),0,Calcs!GX22) -> 0
A23: =Input!B23 -> 0 | B23: =Calcs!HC23 -> 0 | C23: =Calcs!HD23 -> 0 | E23: =Calcs!HF23 -> 0 | F23: =Calcs!GY23 -> 0 | G23: =Calcs!GZ23 -> 0 | H23: =Calcs!HA23 -> 0 | I23: =Calcs!HB23 -> 0 | J23: =Calcs!GM23 -> 0 | K23: =Calcs!GN23 -> 0 | L23: =Calcs!GO23 -> 0 | M23: =Calcs!GP23 -> 0 | N23: =Calcs!GQ23 -> 0 | O23: =Calcs!GR23 -> 0 | P23: =Calcs!GS23 -> 0 | Q23: =Calcs!GT23 -> 0 | R23: =IF(ISERROR(Calcs!GU23),0,Calcs!GU23) -> 0 | S23: =IF(ISERROR(Calcs!GV23),0,Calcs!GV23) -> 0 | T23: =IF(ISERROR(Calcs!GW23),0,Calcs!GW23) -> 0 | U23: =IF(ISERROR(Calcs!GX23),0,Calcs!GX23) -> 0
A24: =Input!B24 -> 0 | B24: =Calcs!HC24 -> 0 | C24: =Calcs!HD24 -> 0 | E24: =Calcs!HF24 -> 0 | F24: =Calcs!GY24 -> 0 | G24: =Calcs!GZ24 -> 0 | H24: =Calcs!HA24 -> 0 | I24: =Calcs!HB24 -> 0 | J24: =Calcs!GM24 -> 0 | K24: =Calcs!GN24 -> 0 | L24: =Calcs!GO24 -> 0 | M24: =Calcs!GP24 -> 0 | N24: =Calcs!GQ24 -> 0 | O24: =Calcs!GR24 -> 0 | P24: =Calcs!GS24 -> 0 | Q24: =Calcs!GT24 -> 0 | R24: =IF(ISERROR(Calcs!GU24),0,Calcs!GU24) -> 0 | S24: =IF(ISERROR(Calcs!GV24),0,Calcs!GV24) -> 0 | T24: =IF(ISERROR(Calcs!GW24),0,Calcs!GW24) -> 0 | U24: =IF(ISERROR(Calcs!GX24),0,Calcs!GX24) -> 0
A25: =Input!B25 -> 0 | B25: =Calcs!HC25 -> 0 | C25: =Calcs!HD25 -> 0 | E25: =Calcs!HF25 -> 0 | F25: =Calcs!GY25 -> 0 | G25: =Calcs!GZ25 -> 0 | H25: =Calcs!HA25 -> 0 | I25: =Calcs!HB25 -> 0 | J25: =Calcs!GM25 -> 0 | K25: =Calcs!GN25 -> 0 | L25: =Calcs!GO25 -> 0 | M25: =Calcs!GP25 -> 0 | N25: =Calcs!GQ25 -> 0 | O25: =Calcs!GR25 -> 0 | P25: =Calcs!GS25 -> 0 | Q25: =Calcs!GT25 -> 0 | R25: =IF(ISERROR(Calcs!GU25),0,Calcs!GU25) -> 0 | S25: =IF(ISERROR(Calcs!GV25),0,Calcs!GV25) -> 0 | T25: =IF(ISERROR(Calcs!GW25),0,Calcs!GW25) -> 0 | U25: =IF(ISERROR(Calcs!GX25),0,Calcs!GX25) -> 0
A26: =Input!B26 -> 0 | B26: =Calcs!HC26 -> 0 | C26: =Calcs!HD26 -> 0 | E26: =Calcs!HF26 -> 0 | F26: =Calcs!GY26 -> 0 | G26: =Calcs!GZ26 -> 0 | H26: =Calcs!HA26 -> 0 | I26: =Calcs!HB26 -> 0 | J26: =Calcs!GM26 -> 0 | K26: =Calcs!GN26 -> 0 | L26: =Calcs!GO26 -> 0 | M26: =Calcs!GP26 -> 0 | N26: =Calcs!GQ26 -> 0 | O26: =Calcs!GR26 -> 0 | P26: =Calcs!GS26 -> 0 | Q26: =Calcs!GT26 -> 0 | R26: =IF(ISERROR(Calcs!GU26),0,Calcs!GU26) -> 0 | S26: =IF(ISERROR(Calcs!GV26),0,Calcs!GV26) -> 0 | T26: =IF(ISERROR(Calcs!GW26),0,Calcs!GW26) -> 0 | U26: =IF(ISERROR(Calcs!GX26),0,Calcs!GX26) -> 0
A27: =Input!B27 -> 0 | B27: =Calcs!HC27 -> 0 | C27: =Calcs!HD27 -> 0 | E27: =Calcs!HF27 -> 0 | F27: =Calcs!GY27 -> 0 | G27: =Calcs!GZ27 -> 0 | H27: =Calcs!HA27 -> 0 | I27: =Calcs!HB27 -> 0 | J27: =Calcs!GM27 -> 0 | K27: =Calcs!GN27 -> 0 | L27: =Calcs!GO27 -> 0 | M27: =Calcs!GP27 -> 0 | N27: =Calcs!GQ27 -> 0 | O27: =Calcs!GR27 -> 0 | P27: =Calcs!GS27 -> 0 | Q27: =Calcs!GT27 -> 0 | R27: =IF(ISERROR(Calcs!GU27),0,Calcs!GU27) -> 0 | S27: =IF(ISERROR(Calcs!GV27),0,Calcs!GV27) -> 0 | T27: =IF(ISERROR(Calcs!GW27),0,Calcs!GW27) -> 0 | U27: =IF(ISERROR(Calcs!GX27),0,Calcs!GX27) -> 0
A28: =Input!B28 -> 0 | B28: =Calcs!HC28 -> 0 | C28: =Calcs!HD28 -> 0 | E28: =Calcs!HF28 -> 0 | F28: =Calcs!GY28 -> 0 | G28: =Calcs!GZ28 -> 0 | H28: =Calcs!HA28 -> 0 | I28: =Calcs!HB28 -> 0 | J28: =Calcs!GM28 -> 0 | K28: =Calcs!GN28 -> 0 | L28: =Calcs!GO28 -> 0 | M28: =Calcs!GP28 -> 0 | N28: =Calcs!GQ28 -> 0 | O28: =Calcs!GR28 -> 0 | P28: =Calcs!GS28 -> 0 | Q28: =Calcs!GT28 -> 0 | R28: =IF(ISERROR(Calcs!GU28),0,Calcs!GU28) -> 0 | S28: =IF(ISERROR(Calcs!GV28),0,Calcs!GV28) -> 0 | T28: =IF(ISERROR(Calcs!GW28),0,Calcs!GW28) -> 0 | U28: =IF(ISERROR(Calcs!GX28),0,Calcs!GX28) -> 0
A29: =Input!B29 -> 0 | B29: =Calcs!HC29 -> 0 | C29: =Calcs!HD29 -> 0 | E29: =Calcs!HF29 -> 0 | F29: =Calcs!GY29 -> 0 | G29: =Calcs!GZ29 -> 0 | H29: =Calcs!HA29 -> 0 | I29: =Calcs!HB29 -> 0 | J29: =Calcs!GM29 -> 0 | K29: =Calcs!GN29 -> 0 | L29: =Calcs!GO29 -> 0 | M29: =Calcs!GP29 -> 0 | N29: =Calcs!GQ29 -> 0 | O29: =Calcs!GR29 -> 0 | P29: =Calcs!GS29 -> 0 | Q29: =Calcs!GT29 -> 0 | R29: =IF(ISERROR(Calcs!GU29),0,Calcs!GU29) -> 0 | S29: =IF(ISERROR(Calcs!GV29),0,Calcs!GV29) -> 0 | T29: =IF(ISERROR(Calcs!GW29),0,Calcs!GW29) -> 0 | U29: =IF(ISERROR(Calcs!GX29),0,Calcs!GX29) -> 0
A30: =Input!B30 -> 0 | B30: =Calcs!HC30 -> 0 | C30: =Calcs!HD30 -> 0 | E30: =Calcs!HF30 -> 0 | F30: =Calcs!GY30 -> 0 | G30: =Calcs!GZ30 -> 0 | H30: =Calcs!HA30 -> 0 | I30: =Calcs!HB30 -> 0 | J30: =Calcs!GM30 -> 0 | K30: =Calcs!GN30 -> 0 | L30: =Calcs!GO30 -> 0 | M30: =Calcs!GP30 -> 0 | N30: =Calcs!GQ30 -> 0 | O30: =Calcs!GR30 -> 0 | P30: =Calcs!GS30 -> 0 | Q30: =Calcs!GT30 -> 0 | R30: =IF(ISERROR(Calcs!GU30),0,Calcs!GU30) -> 0 | S30: =IF(ISERROR(Calcs!GV30),0,Calcs!GV30) -> 0 | T30: =IF(ISERROR(Calcs!GW30),0,Calcs!GW30) -> 0 | U30: =IF(ISERROR(Calcs!GX30),0,Calcs!GX30) -> 0
A31: =Input!B31 -> 0 | B31: =Calcs!HC31 -> 0 | C31: =Calcs!HD31 -> 0 | E31: =Calcs!HF31 -> 0 | F31: =Calcs!GY31 -> 0 | G31: =Calcs!GZ31 -> 0 | H31: =Calcs!HA31 -> 0 | I31: =Calcs!HB31 -> 0 | J31: =Calcs!GM31 -> 0 | K31: =Calcs!GN31 -> 0 | L31: =Calcs!GO31 -> 0 | M31: =Calcs!GP31 -> 0 | N31: =Calcs!GQ31 -> 0 | O31: =Calcs!GR31 -> 0 | P31: =Calcs!GS31 -> 0 | Q31: =Calcs!GT31 -> 0 | R31: =IF(ISERROR(Calcs!GU31),0,Calcs!GU31) -> 0 | S31: =IF(ISERROR(Calcs!GV31),0,Calcs!GV31) -> 0 | T31: =IF(ISERROR(Calcs!GW31),0,Calcs!GW31) -> 0 | U31: =IF(ISERROR(Calcs!GX31),0,Calcs!GX31) -> 0
... 38 more rows

Sheet Calcs
A2: Avoided Cost Version | C2: 2010-05-05 | E2: Valid AC Shapes for Correction Factor
A3: Annual Discount Rate | C3: 0.0879 | E3: 26 = Res. Central Air Conditioning
A4: Start period Offset Years | C4: =StartYr-CostE!G3 -> 0 | D4: SkipYrs | E4: 22 = Res. Ht. Pump Cooling
A5: First Col Label for Impacts: | C5: Load Impacts | E5: 23 = Res. Ele. & Ht. Pump Heating
A6: CEC Factor (MW/GWh) | C6: 0.217 | E6: 29 = Res. New Const. Cooling
A7: Max Number of Measures | C7: =ROWS(R17:R1016) -> 1000 | D7: MaxMeasures | E7: 33 = Res. Insul. Cen. A/C
E8: 35 = Res. Ceil. Insul. HP Cooling | AC8: Periods per Year | AE8: 4 | AF8: Periods
A9: TOU Correction Factors | E9: 37 = Res. Wall Insul. HP Cooling | AC9: Period Discount Rate | AE9: =$C$3/AE8 -> 0.021975 | AF9: Disc | AM9: =AM17/AM18 -> 
A10: Residential | C10: 1 | E10: 39 = Res. Flr. Insul. HP Cooling
A11: Non-Res | C11: 1 | E11: 45 = Res. Dir. Assist. Evap. Cooler
E12: 3 = Commercial HVAC
AD14: EUL and RUL | AM14: Generation Value (Gross Nominal NPV per measure) for measures implemented at the end of the quarter | CE14: TD Gross Nominal NPV Savings per Measure (installed at the end of the quarter ) | EC14: NPV bill reduction per measure. For units implemented in each year | FX14: Total Present Value Costs (Gross & Net) | GD14: Discounted Values for levelization | GJ14: Admin Cost | GL14: TRC Net Benefit | GM14: Levelized Net Benefits (TRC Test) | GQ14: Levelized Net Benefits (PAC Test) | GU14: Benefit Cost Ratios | HC14: Total Program Impacts | HG14: Annual Emission Rates
AD15: Initial Term | AG15: Second Baseline Term | AM15: Qtr 1 | AN15: Qtr 2 | AO15: Qtr 3 | AP15: Qtr 4 | AQ15: =AM15 -> Qtr 1 | AR15: Qtr 2 | AS15: Qtr 3 | AT15: Qtr 4 | AU15: Qtr 1 | AV15: Qtr 2 | AW15: Qtr 3 | AX15: Qtr 4 | AY15: Qtr 1 | AZ15: Qtr 2 | BA15: Qtr 3 | BB15: Qtr 4 | BC15: Qtr 1 | BD15: Qtr 2 | BE15: Qtr 3 | BF15: Qtr 4 | BG15: Qtr 1 | BH15: Qtr 2 | BI15: Qtr 3 | BJ15: Qtr 4 | BK15: =BG15 -> Qtr 1 | BL15: Qtr 2 | BM15: Qtr 3 | BN15: Qtr 4 | BO15: Qtr 1 | BP15: Qtr 2 | BQ15: Qtr 3 | BR15: Qtr 4 | BS15: Qtr 1 | BT15: Qtr 2 | BU15: Qtr 3 | BV15: Qtr 4 | BW15: Qtr 1 | BX15: Qtr 2 | BY15: Qtr 3 | BZ15: Qtr 4 | CA15: Qtr 1 | CB15: Qtr 2 | CC15: Qtr 3 | CD15: Qtr 4 | CE15: Qtr 1 | CF15: Qtr 2 | CG15: Qtr 3 | CH15: Qtr 4 | CI15: =CE15 -> Qtr 1 | CJ15: Qtr 2 | CK15: Qtr 3 | CL15: Qtr 4 | CM15: Qtr 1 | CN15: Qtr 2 | CO15: Qtr 3 | CP15: Qtr 4 | CQ15: Qtr 1 | CR15: Qtr 2 | CS15: Qtr 3 | CT15: Qtr 4 | CU15: Qtr 1 | CV15: Qtr 2 | CW15: Qtr 3 | CX15: Qtr 4 | CY15: Qtr 1 | CZ15: Qtr 2 | DA15: Qtr 3 | DB15: Qtr 4 | DC15: =CY15 -> Qtr 1 | DD15: Qtr 2 | DE15: Qtr 3 | DF15: Qtr 4 | DG15: Qtr 1 | DH15: Qtr 2 | DI15: Qtr 3 | DJ15: Qtr 4 | DK15: Qtr 1 | DL15: Qtr 2 | DM15: Qtr 3 | DN15: Qtr 4 | DO15: Qtr 1 | DP15: Qtr 2 | DQ15: Qtr 3 | DR15: Qtr 4 | DS15: Qtr 1 | DT15: Qtr 2 | DU15: Qtr 3 | DV15: Qtr 4 | DW15: Lifecycle NPV | EC15: Electric (EOY) per Measure (unadjusted for IR and GRR) | EN15: Gas (EOY) Savings per Measure (unadjusted for IR and GRR) | EY15: NPV Electric Bill Reductions - Net | FJ15: NPV Gas Bill Reductions - Net | GJ15: Alloc factors | GL15: with Admin Costs | GM15: Without Admin Costs | GO15: With Admin Costs | GQ15: Without Admin Costs | GS15: With Admin Costs | GU15: Without Admin Costs | GW15: With Admin Costs | GY15: Wtd Avg based on RUL and EUL | HC15: (all years of implementation) | HG15: Electric (per annual kWh) | HJ15: Gss Reduction (per therm)
A16: Measure Name | B16: Climate Zone | C16: Target sector | D16: Measure End use | E16: First Baseline Measure Life | F16: Full EUL | G16: Net-to-gross Ratio: kWh | H16: =Input!AI16 -> Net-to-Gross Ratio - kW | I16: =Input!AJ16 -> Net-to-Gross Ratio - Therms | J16: =Input!AK16 -> Net-to-Gross Ratio - Costs | L16: IR and GRR Factor | M16: Gross Unit Electricity Saving (kwh) | N16: Gross Unit Elec Savings (2nd baseline) (kWh) | O16: Gross WtdAvg kWh Savings per unit | P16: Electricity Wtd Avg Factor | Q16: Demand scaler type | R16: Demand Scaler - Initial | S16: Demand Scaler - Second | T16: Demand Scaler - Weighted | U16: CEC Peak Savings (NTG Adj) (kW) | V16: Gen lookup string | W16: TD Lookup String | X16: Load Impact lookup String | Y16: Gen Row based on CZ | Z16: Gen row to Use | AA16: TD Row to Use | AB16: Impact row to use | AC16: Elec Rate Row to Use | AD16: Remaining useful Life (RUL, Yrs) | AE16: Full Quarters | AF16: Fractional Quarter | AG16: Fill in Fractional Quarter | AH16: Full Quarters | AI16: Residual Fractional Quarter | AJ16: TOU Correction Factor (add to 1.0) | AK16: Valid End Use | AL16: TOU Correction Factor adder to Use | AM16: =StartYr -> 2010 | AN16: =AM16 -> 2010 | AO16: =AN16 -> 2010 | AP16: =AO16 -> 2010 | AQ16: =AM16+1 -> 2011 | AR16: 2011 | AS16: 2011 | AT16: 2011 | AU16: 2012 | AV16: 2012 | AW16: 2012 | AX16: 2012 | AY16: 2013 | AZ16: 2013 | BA16: 2013 | BB16: 2013 | BC16: 2014 | BD16: 2014 | BE16: 2014 | BF16: 2014 | BG16: 2015 | BH16: 2015 | BI16: 2015 | BJ16: 2015 | BK16: =BG16+1 -> 2016 | BL16: 2016 | BM16: 2016 | BN16: 2016 | BO16: 2017 | BP16: 2017 | BQ16: 2017 | BR16: 2017 | BS16: 2018 | BT16: 2018 | BU16: 2018 | BV16: 2018 | BW16: 2019 | BX16: 2019 | BY16: 2019 | BZ16: 2019 | CA16: 2020 | CB16: 2020 | CC16: 2020 | CD16: 2020 | CE16: =AM16 -> 2010 | CF16: 2010 | CG16: 2010 | CH16: 2010 | CI16: 2011 | CJ16: 2011 | CK16: 2011 | CL16: 2011 | CM16: 2012 | CN16: 2012 | CO16: 2012 | CP16: 2012 | CQ16: 2013 | CR16: 2013 | CS16: 2013 | CT16: 2013 | CU16: 2014 | CV16: 2014 | CW16: 2014 | CX16: 2014 | CY16: 2015 | CZ16: 2015 | DA16: 2015 | DB16: 2015 | DC16: =BK16 -> 2016 | DD16: 2016 | DE16: 2016 | DF16: 2016 | DG16: 2017 | DH16: 2017 | DI16: 2017 | DJ16: 2017 | DK16: 2018 | DL16: 2018 | DM16: 2018 | DN16: 2018 | DO16: 2019 | DP16: 2019 | DQ16: 2019 | DR16: 2019 | DS16: 2020 | DT16: 2020 | DU16: 2020 | DV16: 2020 | DW16: Electric Gross NPV Benefits ($) | DX16: Gas Gross NPV Benefits ($) | DY16: Electric Net NPV Benefits ($) | DZ16: Gas Net NPV Benefits ($) | EA16: Electric Rate (Use 1 if missing) | EB16: Gas Rate | EC16: =StartYr -> 2010 | ED16: =EC16+1 -> 2011 | EE16: 2012 | EF16: 2013 | EG16: 2014 | EH16: 2015 | EI16: 2016 | EJ16: 2017 | EK16: 2018 | EL16: 2019 | EM16: 2020 | EN16: =EC16 -> 2010 | EO16: 2011 | EP16: 2012 | EQ16: 2013 | ER16: 2014 | ES16: 2015 | ET16: 2016 | EU16: 2017 | EV16: 2018 | EW16: 2019 | EX16: 2020 | EY16: 2010 | EZ16: 2011 | FA16: 2012 | FB16: 2013 | FC16: 2014 | FD16: 2015 | FE16: 2016 | FF16: 2017 | FG16: 2018 | FH16: 2019 | FI16: 2020 | FJ16: 2010 | FK16: 2011 | FL16: 2012 | FM16: 2013 | FN16: 2014 | FO16: 2015 | FP16: 2016 | FQ16: 2017 | FR16: 2018 | FS16: 2019 | FT16: 2020 | FU16: Inc to others and DI in excess of Measure Cost ($/Measure) | FV16: Excess Incentives to others and DI PV ($) | FX16: Total Rebates PV ($) | FY16: Total Incentives to Others and DI PV ($) | FZ16: Total Rebates and Incentives PV ($) | GA16: Gross measure Cost PV ($) | GB16: Gross Participant Cost adjusted for excess Incent & DI PV, but no Market Effects($) | GC16: Net Participant Cost PV ($) | GD16: Gross Discounted kWh reduction (kWh) | GE16: Gross Discounted Therms reduction (th) | GF16: Net Discounted kWh reduction (kWh) | GG16: Net Discounted Therms reduction (th) | GH16: Positive Electric Net NPV Benefits ($) | GI16: Positive Gas Net NPV Benefits ($) | GJ16: Elec Allocation - E vs G Benefits | GK16: Measure Allocation - Total Benefits | GL16: TRC Lifecycle Net Benefit ($) | GM16: Levelized Net Benefit Electric - No Admin ($/kWh) | GN16: Levelized Net Benefits - Gas - No Admin ($/Therm) | GO16: Levelized Net Benefit Electric - With Admin ($/kWh) | GP16: Levelized Net Benefits - Gas - With Admin ($/Therm) | GQ16: Leveilzed Net Benefit Electric - No Admin ($/kWh) | GR16: Levelized Net Benefits - Gas - No Admin ($/Therm) | GS16: Levelized Net Benefit Electric - With Admin ($/kWh) | GT16: Levelized Net Benefits - Gas - With Admin ($/Therm) | GU16: TRC B/C Ratio | GV16: PAC B/C | GW16: TRC B/C Ratio | GX16: PAC B/C | GY16: Net Wtd Average Annual kWh | GZ16: Net Wtd Avg Lifecycle kWh | HA16: Net Wtd Avg Annual Therms | HB16: Net Wtd Avg Lifecycle Therms | HC16: Wtd Net Jul-Sept kW | HD16: Wtd Net Dec-Feb kW | HE16: Wtd Net CEC kW | HF16: Wtd Net User Entered kW Impacts | HG16: C02 | HH16: NOX | HI16: PM 10 | HJ16: CO2 | HK16: NOX | HL16: CPUC-defined End Use
A17: =Input!B17 -> 0 | B17: =Input!D17 -> 0 | C17: =TRIM(Input!E17) ->  | D17: =TRIM(Input!F17) ->  | E17: =IF(ISNUMBER(Input!AG17),Input!AG17,1) -> 0 | F17: =MAX(E17,Input!Z17) -> 0 | G17: =IF(ISNUMBER(Input!AH17),Input!AH17,1) -> 1 | H17: =IF(ISNUMBER(Input!AI17),Input!AI17,$G17) -> 1 | I17: =IF(ISNUMBER(Input!AJ17),Input!AJ17,$G17) -> 1 | J17: =IF(AND(ISNUMBER(Input!AK17),Input!AK17<>0),Input!AK17,IF(Input!V17=0,G17,IF(Input!R17=0,I17,IF(Input!R17*0.03412>Input!V17,G17,I17)))) -> 1 | L17: =IF(ISBLANK(Input!AL17),100%,Input!AL17)*IF(ISBLANK(Input!AM17),100%,Input!AM17) -> 1 | M17: =Input!R17 -> 0 | N17: =Input!AC17 -> 0 | O17: =IF($F17<>0,($M17*$E17+N17*($F17-$E17))/$F17,0) -> 0 | P17: =IF(M17<>0,O17/M17,1) -> 1 | Q17: =OFFSET(CostE!$F$5,Calcs!AB17-1,0) ->  | R17: =IF(ISNUMBER(IF(Q17="kW",Input!U17,Input!R17)),IF(Q17="kW",Input!U17,Input!R17),0) -> 0 | S17: =IF(ISNUMBER(IF(Q17="kW",Input!AD17,N17)),IF(Q17="kW",Input!AD17,N17),0) -> 0 | T17: =IF(F17<>0,(R17*E17+S17*(F17-E17))/F17,0) -> 0 | U17: =M17*H17*$C$6/1000 -> 0 | V17: ="Gen:"&C17&":"&$D17&":"&B17 -> Gen:::0 | W17: ="TD:"&C17&":"&$D17&":"&$B17 -> TD:::0 | X17: ="Load:"&C17&":"&$D17&":"&B17 -> Load:::0 | Y17: =MATCH(V17,CostE!$E$5:$E$1329,0) ->  | Z17: =IF(ISERROR(Y17),MATCH("Gen:"&C17&":"&D17&":All",CostE!$E$5:$E$1329,0),Y17) ->  | AA17: =MATCH(W17,CostE!$E$5:$E$1329,0) ->  | AB17: =IF(ISERROR(Y17),MATCH("Load:"&C17&":"&$D17&":NA",CostE!$E$5:$E$1329,0),MATCH(X17,CostE!$E$5:$E$1329,0)) ->  | AC17: =MATCH(Input!S17,Rates!$A$4:$A$9,0) ->  | AD17: =IF(Input!Z17>Input!AG17,Input!AG17,0) -> 0 | AE17: =TRUNC(E17*Periods) -> 0 | AF17: =E17*Periods-AE17 -> 0 | AG17: =IF(AND(F17>E17,AF17>0),MAX(0,1-AF17),0) -> 0 | AH17: =MAX(0,TRUNC(Input!Z17*Periods-(AE17+AF17+AG17))) -> 0 | AI17: =MAX(0,Input!Z17*Periods-AH17-AF17-AE17-AG17) -> 0 | AJ17: =IF(OR(Input!E17="Residential",Input!E17="Res_New_Construction"), $C$10,$C$11)-1 -> 0 | AK17: =SUM(IF($E$3:$E$12=Input!F17,1,0))=1 -> FALSE | AL17: =AJ17*AK17*Input!AN17 -> 0 | AM17: =(IF($AE17>0,NPV(Disc,OFFSET(CostE!G$5,$Z17-1,SkipYrs*Periods+1,1,$AE17)),0)+OFFSET(CostE!G$5,$Z17-1,SkipYrs*Periods+1+$AE17)*$AF17*(1/(1+Disc)^($AE17+1)))*$M17*(1+$AL17) + (OFFSET(CostE!G$5,$Z17-1,SkipYrs*Periods+1+$AE17)*$AG17*(1/(1+Disc)^($AE17+1))+ IF($AH17>0,NPV(Disc,OFFSET(CostE!G$5,$Z17-1,SkipYrs*Periods+ROUND($AE17+$AF17+$AG17,0)+1,1,$AH17)),0)*(1/(1+Disc)^($AE17+$AF17+$AG17))+ OFFSET(CostE!G$5,$Z17-1,SkipYrs*Periods+ROUND($AE17+$AF17+$AG17+$AH17,0)+1)*$AI17*(1/(1+Disc)^(ROUND($AE17+$AH17+$AF17+$AG17,0)+1)))*Input!$AC17*(1+$AL17) ->  | AN17: =(IF($AE17>0,NPV(Disc,OFFSET(CostE!H$5,$Z17-1,SkipYrs*Periods+1,1,$AE17)),0)+OFFSET(CostE!H$5,$Z17-1,SkipYrs*Periods+1+$AE17)*$AF17*(1/(1+Disc)^($AE17+1)))*$M17*(1+$AL17) + (OFFSET(CostE!H$5,$Z17-1,SkipYrs*Periods+1+$AE17)*$AG17*(1/(1+Disc)^($AE17+1))+ IF($AH17>0,NPV(Disc,OFFSET(CostE!H$5,$Z17-1,SkipYrs*Periods+ROUND($AE17+$AF17+$AG17,0)+1,1,$AH17)),0)*(1/(1+Disc)^($AE17+$AF17+$AG17))+ OFFSET(CostE!H$5,$Z17-1,SkipYrs*Periods+ROUND($AE17+$AF17+$AG17+$AH17,0)+1)*$AI17*(1/(1+Disc)^(ROUND($AE17+$AH17+$AF17+$AG17,0)+1)))*Input!$AC17*(1+$AL17) ->  | AO17: =(IF($AE17>0,NPV(Disc,OFFSET(CostE!I$5,$Z17-1,SkipYrs*Periods+1,1,$AE17)),0)+OFFSET(CostE!I$5,$Z17-1,SkipYrs*Periods+1+$AE17)*$AF17*(1/(1+Disc)^($AE17+1)))*$M17*(1+$AL17) + (OFFSET(CostE!I$5,$Z17-1,SkipYrs*Periods+1+$AE17)*$AG17*(1/(1+Disc)^($AE17+1))+ IF($AH17>0,NPV(Disc,OFFSET(CostE!I$5,$Z17-1,SkipYrs*Periods+ROUND($AE17+$AF17+$AG17,0)+1,1,$AH17)),0)*(1/(1+Disc)^($AE17+$AF17+$AG17))+ OFFSET(CostE!I$5,$Z17-1,SkipYrs*Periods+ROUND($AE17+$AF17+$AG17+$AH17,0)+1)*$AI17*(1/(1+Disc)^(ROUND($AE17+$AH17+$AF17+$AG17,0)+1)))*Input!$AC17*(1+$AL17) ->  | AP17: =(IF($AE17>0,NPV(Disc,OFFSET(CostE!J$5,$Z17-1,SkipYrs*Periods+1,1,$AE17)),0)+OFFSET(CostE!J$5,$Z17-1,SkipYrs*Periods+1+$AE17)*$AF17*(1/(1+Disc)^($AE17+1)))*$M17*(1+$AL17) + (OFFSET(CostE!J$5,$Z17-1,SkipYrs*Periods+1+$AE17)*$AG17*(1/(1+Disc)^($AE17+1))+ IF($AH17>0,NPV(Disc,OFFSET(CostE!J$5,$Z17-1,SkipYrs*Periods+ROUND($AE17+$AF17+$AG17,0)+1,1,$AH17)),0)*(1/(1+Disc)^($AE17+$AF17+$AG17))+ OFFSET(CostE!J$5,$Z17-1,SkipYrs*Periods+ROUND($AE17+$AF17+$AG17+$AH17,0)+1)*$AI17*(1/(1+Disc)^(ROUND($AE17+$AH17+$AF17+$AG17,0)+1)))*Input!$AC17*(1+$AL17) ->  | AQ17: =(IF($AE17>0,NPV(Disc,OFFSET(CostE!K$5,$Z17-1,SkipYrs*Periods+1,1,$AE17)),0)+OFFSET(CostE!K$5,$Z17-1,SkipYrs*Periods+1+$AE17)*$AF17*(1/(1+Disc)^($AE17+1)))*$M17*(1+$AL17) + (OFFSET(CostE!K$5,$Z17-1,SkipYrs*Periods+1+$AE17)*$AG17*(1/(1+Disc)^($AE17+1))+ IF($AH17>0,NPV(Disc,OFFSET(CostE!K$5,$Z17-1,SkipYrs*Periods+ROUND($AE17+$AF17+$AG17,0)+1,1,$AH17)),0)*(1/(1+Disc)^($AE17+$AF17+$AG17))+ OFFSET(CostE!K$5,$Z17-1,SkipYrs*Periods+ROUND($AE17+$AF17+$AG17+$AH17,0)+1)*$AI17*(1/(1+Disc)^(ROUND($AE17+$AH17+$AF17+$AG17,0)+1)))*Input!$AC17*(1+$AL17) ->  | AR17: =(IF($AE17>0,NPV(Disc,OFFSET(CostE!L$5,$Z17-1,SkipYrs*Periods+1,1,$AE17)),0)+OFFSET(CostE!L$5,$Z17-1,SkipYrs*Periods+1+$AE17)*$AF17*(1/(1+Disc)^($AE17+1)))*$M17*(1+$AL17) + (OFFSET(CostE!L$5,$Z17-1,SkipYrs*Periods+1+$AE17)*$AG17*(1/(1+Disc)^($AE17+1))+ IF($AH17>0,NPV(Disc,OFFSET(CostE!L$5,$Z17-1,SkipYrs*Periods+ROUND($AE17+$AF17+$AG17,0)+1,1,$AH17)),0)*(1/(1+Disc)^($AE17+$AF17+$AG17))+ OFFSET(CostE!L$5,$Z17-1,SkipYrs*Periods+ROUND($AE17+$AF17+$AG17+$AH17,0)+1)*$AI17*(1/(1+Disc)^(ROUND($AE17+$AH17+$AF17+$AG17,0)+1)))*Input!$AC17*(1+$AL17) ->  | AS17: =(IF($AE17>0,NPV(Disc,OFFSET(CostE!M$5,$Z17-1,SkipYrs*Periods+1,1,$AE17)),0)+OFFSET(CostE!M$5,$Z17-1,SkipYrs*Periods+1+$AE17)*$AF17*(1/(1+Disc)^($AE17+1)))*$M17*(1+$AL17) + (OFFSET(CostE!M$5,$Z17-1,SkipYrs*Periods+1+$AE17)*$AG17*(1/(1+Disc)^($AE17+1))+ IF($AH17>0,NPV(Disc,OFFSET(CostE!M$5,$Z17-1,SkipYrs*Periods+ROUND($AE17+$AF17+$AG17,0)+1,1,$AH17)),0)*(1/(1+Disc)^($AE17+$AF17+$AG17))+ OFFSET(CostE!M$5,$Z17-1,SkipYrs*Periods+ROUND($AE17+$AF17+$AG17+$AH17,0)+1)*$AI17*(1/(1+Disc)^(ROUND($AE17+$AH17+$AF17+$AG17,0)+1)))*Input!$AC17*(1+$AL17) ->  | AT17: =(IF($AE17>0,NPV(Disc,OFFSET(CostE!N$5,$Z17-1,SkipYrs*Periods+1,1,$AE17)),0)+OFFSET(CostE!N$5,$Z17-1,SkipYrs*Periods+1+$AE17)*$AF17*(1/(1+Disc)^($AE17+1)))*$M17*(1+$AL17) + (OFFSET(CostE!N$5,$Z17-1,SkipYrs*Periods+1+$AE17)*$AG17*(1/(1+Disc)^($AE17+1))+ IF($AH17>0,NPV(Disc,OFFSET(CostE!N$5,$Z17-1,SkipYrs*Periods+ROUND($AE17+$AF17+$AG17,0)+1,1,$AH17)),0)*(1/(1+Disc)^($AE17+$AF17+$AG17))+ OFFSET(CostE!N$5,$Z17-1,SkipYrs*Periods+ROUND($AE17+$AF17+$AG17+$AH17,0)+1)*$AI17*(1/(1+Disc)^(ROUND($AE17+$AH17+$AF17+$AG17,0)+1)))*Input!$AC17*(1+$AL17) ->  | AU17: =(IF($AE17>0,NPV(Disc,OFFSET(CostE!O$5,$Z17-1,SkipYrs*Periods+1,1,$AE17)),0)+OFFSET(CostE!O$5,$Z17-1,SkipYrs*Periods+1+$AE17)*$AF17*(1/(1+Disc)^($AE17+1)))*$M17*(1+$AL17) + (OFFSET(CostE!O$5,$Z17-1,SkipYrs*Periods+1+$AE17)*$AG17*(1/(1+Disc)^($AE17+1))+ IF($AH17>0,NPV(Disc,OFFSET(CostE!O$5,$Z17-1,SkipYrs*Periods+ROUND($AE17+$AF17+$AG17,0)+1,1,$AH17)),0)*(1/(1+Disc)^($AE17+$AF17+$AG17))+ OFFSET(CostE!O$5,$Z17-1,SkipYrs*Periods+ROUND($AE17+$AF17+$AG17+$AH17,0)+1)*$AI17*(1/(1+Disc)^(ROUND($AE17+$AH17+$AF17+$AG17,0)+1)))*Input!$AC17*(1+$AL17) ->  | AV17: =(IF($AE17>0,NPV(Disc,OFFSET(CostE!P$5,$Z17-1,SkipYrs*Periods+1,1,$AE17)),0)+OFFSET(CostE!P$5,$Z17-1,SkipYrs*Periods+1+$AE17)*$AF17*(1/(1+Disc)^($AE17+1)))*$M17*(1+$AL17) + (OFFSET(CostE!P$5,$Z17-1,SkipYrs*Periods+1+$AE17)*$AG17*(1/(1+Disc)^($AE17+1))+ IF($AH17>0,NPV(Disc,OFFSET(CostE!P$5,$Z17-1,SkipYrs*Periods+ROUND($AE17+$AF17+$AG17,0)+1,1,$AH17)),0)*(1/(1+Disc)^($AE17+$AF17+$AG17))+ OFFSET(CostE!P$5,$Z17-1,SkipYrs*Periods+ROUND($AE17+$AF17+$AG17+$AH17,0)+1)*$AI17*(1/(1+Disc)^(ROUND($AE17+$AH17+$AF17+$AG17,0)+1)))*Input!$AC17*(1+$AL17) ->  | AW17: =(IF($AE17>0,NPV(Disc,OFFSET(CostE!Q$5,$Z17-1,SkipYrs*Periods+1,1,$AE17)),0)+OFFSET(CostE!Q$5,$Z17-1,SkipYrs*Periods+1+$AE17)*$AF17*(1/(1+Disc)^($AE17+1)))*$M17*(1+$AL17) + (OFFSET(CostE!Q$5,$Z17-1,SkipYrs*Periods+1+$AE17)*$AG17*(1/(1+Disc)^($AE17+1))+ IF($AH17>0,NPV(Disc,OFFSET(CostE!Q$5,$Z17-1,SkipYrs*Periods+ROUND($AE17+$AF17+$AG17,0)+1,1,$AH17)),0)*(1/(1+Disc)^($AE17+$AF17+$AG17))+ OFFSET(CostE!Q$5,$Z17-1,SkipYrs*Periods+ROUND($AE17+$AF17+$AG17+$AH17,0)+1)*$AI17*(1/(1+Disc)^(ROUND($AE17+$AH17+$AF17+$AG17,0)+1)))*Input!$AC17*(1+$AL17) ->  | AX17: =(IF($AE17>0,NPV(Disc,OFFSET(CostE!R$5,$Z17-1,SkipYrs*Periods+1,1,$AE17)),0)+OFFSET(CostE!R$5,$Z17-1,SkipYrs*Periods+1+$AE17)*$AF17*(1/(1+Disc)^($AE17+1)))*$M17*(1+$AL17) + (OFFSET(CostE!R$5,$Z17-1,SkipYrs*Periods+1+$AE17)*$AG17*(1/(1+Disc)^($AE17+1))+ IF($AH17>0,NPV(Disc,OFFSET(CostE!R$5,$Z17-1,SkipYrs*Periods+ROUND($AE17+$AF17+$AG17,0)+1,1,$AH17)),0)*(1/(1+Disc)^($AE17+$AF17+$AG17))+ OFFSET(CostE!R$5,$Z17-1,SkipYrs*Periods+ROUND($AE17+$AF17+$AG17+$AH17,0)+1)*$AI17*(1/(1+Disc)^(ROUND($AE17+$AH17+$AF17+$AG17,0)+1)))*Input!$AC17*(1+$AL17) ->  | AY17: =(IF($AE17>0,NPV(Disc,OFFSET(CostE!S$5,$Z17-1,SkipYrs*Periods+1,1,$AE17)),0)+OFFSET(CostE!S$5,$Z17-1,SkipYrs*Periods+1+$AE17)*$AF17*(1/(1+Disc)^($AE17+1)))*$M17*(1+$AL17) + (OFFSET(CostE!S$5,$Z17-1,SkipYrs*Periods+1+$AE17)*$AG17*(1/(1+Disc)^($AE17+1))+ IF($AH17>0,NPV(Disc,OFFSET(CostE!S$5,$Z17-1,SkipYrs*Periods+ROUND($AE17+$AF17+$AG17,0)+1,1,$AH17)),0)*(1/(1+Disc)^($AE17+$AF17+$AG17))+ OFFSET(CostE!S$5,$Z17-1,SkipYrs*Periods+ROUND($AE17+$AF17+$AG17+$AH17,0)+1)*$AI17*(1/(1+Disc)^(ROUND($AE17+$AH17+$AF17+$AG17,0)+1)))*Input!$AC17*(1+$AL17) ->  | AZ17: =(IF($AE17>0,NPV(Disc,OFFSET(CostE!T$5,$Z17-1,SkipYrs*Periods+1,1,$AE17)),0)+OFFSET(CostE!T$5,$Z17-1,SkipYrs*Periods+1+$AE17)*$AF17*(1/(1+Disc)^($AE17+1)))*$M17*(1+$AL17) + (OFFSET(CostE!T$5,$Z17-1,SkipYrs*Periods+1+$AE17)*$AG17*(1/(1+Disc)^($AE17+1))+ IF($AH17>0,NPV(Disc,OFFSET(CostE!T$5,$Z17-1,SkipYrs*Periods+ROUND($AE17+$AF17+$AG17,0)+1,1,$AH17)),0)*(1/(1+Disc)^($AE17+$AF17+$AG17))+ OFFSET(CostE!T$5,$Z17-1,SkipYrs*Periods+ROUND($AE17+$AF17+$AG17+$AH17,0)+1)*$AI17*(1/(1+Disc)^(ROUND($AE17+$AH17+$AF17+$AG17,0)+1)))*Input!$AC17*(1+$AL17) ->  | BA17: =(IF($AE17>0,NPV(Disc,OFFSET(CostE!U$5,$Z17-1,SkipYrs*Periods+1,1,$AE17)),0)+OFFSET(CostE!U$5,$Z17-1,SkipYrs*Periods+1+$AE17)*$AF17*(1/(1+Disc)^($AE17+1)))*$M17*(1+$AL17) + (OFFSET(CostE!U$5,$Z17-1,SkipYrs*Periods+1+$AE17)*$AG17*(1/(1+Disc)^($AE17+1))+ IF($AH17>0,NPV(Disc,OFFSET(CostE!U$5,$Z17-1,SkipYrs*Periods+ROUND($AE17+$AF17+$AG17,0)+1,1,$AH17)),0)*(1/(1+Disc)^($AE17+$AF17+$AG17))+ OFFSET(CostE!U$5,$Z17-1,SkipYrs*Periods+ROUND($AE17+$AF17+$AG17+$AH17,0)+1)*$AI17*(1/(1+Disc)^(ROUND($AE17+$AH17+$AF17+$AG17,0)+1)))*Input!$AC17*(1+$AL17) ->  | BB17: =(IF($AE17>0,NPV(Disc,OFFSET(CostE!V$5,$Z17-1,SkipYrs*Periods+1,1,$AE17)),0)+OFFSET(CostE!V$5,$Z17-1,SkipYrs*Periods+1+$AE17)*$AF17*(1/(1+Disc)^($AE17+1)))*$M17*(1+$AL17) + (OFFSET(CostE!V$5,$Z17-1,SkipYrs*Periods+1+$AE17)*$AG17*(1/(1+Disc)^($AE17+1))+ IF($AH17>0,NPV(Disc,OFFSET(CostE!V$5,$Z17-1,SkipYrs*Periods+ROUND($AE17+$AF17+$AG17,0)+1,1,$AH17)),0)*(1/(1+Disc)^($AE17+$AF17+$AG17))+ OFFSET(CostE!V$5,$Z17-1,SkipYrs*Periods+ROUND($AE17+$AF17+$AG17+$AH17,0)+1)*$AI17*(1/(1+Disc)^(ROUND($AE17+$AH17+$AF17+$AG17,0)+1)))*Input!$AC17*(1+$AL17) ->  | BC17: =(IF($AE17>0,NPV(Disc,OFFSET(CostE!W$5,$Z17-1,SkipYrs*Periods+1,1,$AE17)),0)+OFFSET(CostE!W$5,$Z17-1,SkipYrs*Periods+1+$AE17)*$AF17*(1/(1+Disc)^($AE17+1)))*$M17*(1+$AL17) + (OFFSET(CostE!W$5,$Z17-1,SkipYrs*Periods+1+$AE17)*$AG17*(1/(1+Disc)^($AE17+1))+ IF($AH17>0,NPV(Disc,OFFSET(CostE!W$5,$Z17-1,SkipYrs*Periods+ROUND($AE17+$AF17+$AG17,0)+1,1,$AH17)),0)*(1/(1+Disc)^($AE17+$AF17+$AG17))+ OFFSET(CostE!W$5,$Z17-1,SkipYrs*Periods+ROUND($AE17+$AF17+$AG17+$AH17,0)+1)*$AI17*(1/(1+Disc)^(ROUND($AE17+$AH17+$AF17+$AG17,0)+1)))*Input!$AC17*(1+$AL17) ->  | BD17: =(IF($AE17>0,NPV(Disc,OFFSET(CostE!X$5,$Z17-1,SkipYrs*Periods+1,1,$AE17)),0)+OFFSET(CostE!X$5,$Z17-1,SkipYrs*Periods+1+$AE17)*$AF17*(1/(1+Disc)^($AE17+1)))*$M17*(1+$AL17) + (OFFSET(CostE!X$5,$Z17-1,SkipYrs*Periods+1+$AE17)*$AG17*(1/(1+Disc)^($AE17+1))+ IF($AH17>0,NPV(Disc,OFFSET(CostE!X$5,$Z17-1,SkipYrs*Periods+ROUND($AE17+$AF17+$AG17,0)+1,1,$AH17)),0)*(1/(1+Disc)^($AE17+$AF17+$AG17))+ OFFSET(CostE!X$5,$Z17-1,SkipYrs*Periods+ROUND($AE17+$AF17+$AG17+$AH17,0)+1)*$AI17*(1/(1+Disc)^(ROUND($AE17+$AH17+$AF17+$AG17,0)+1)))*Input!$AC17*(1+$AL17) ->  | BE17: =(IF($AE17>0,NPV(Disc,OFFSET(CostE!Y$5,$Z17-1,SkipYrs*Periods+1,1,$AE17)),0)+OFFSET(CostE!Y$5,$Z17-1,SkipYrs*Periods+1+$AE17)*$AF17*(1/(1+Disc)^($AE17+1)))*$M17*(1+$AL17) + (OFFSET(CostE!Y$5,$Z17-1,SkipYrs*Periods+1+$AE17)*$AG17*(1/(1+Disc)^($AE17+1))+ IF($AH17>0,NPV(Disc,OFFSET(CostE!Y$5,$Z17-1,SkipYrs*Periods+ROUND($AE17+$AF17+$AG17,0)+1,1,$AH17)),0)*(1/(1+Disc)^($AE17+$AF17+$AG17))+ OFFSET(CostE!Y$5,$Z17-1,SkipYrs*Periods+ROUND($AE17+$AF17+$AG17+$AH17,0)+1)*$AI17*(1/(1+Disc)^(ROUND($AE17+$AH17+$AF17+$AG17,0)+1)))*Input!$AC17*(1+$AL17) ->  | BF17: =(IF($AE17>0,NPV(Disc,OFFSET(CostE!Z$5,$Z17-1,SkipYrs*Periods+1,1,$AE17)),0)+OFFSET(CostE!Z$5,$Z17-1,SkipYrs*Periods+1+$AE17)*$AF17*(1/(1+Disc)^($AE17+1)))*$M17*(1+$AL17) + (OFFSET(CostE!Z$5,$Z17-1,SkipYrs*Periods+1+$AE17)*$AG17*(1/(1+Disc)^($AE17+1))+ IF($AH17>0,NPV(Disc,OFFSET(CostE!Z$5,$Z17-1,SkipYrs*Periods+ROUND($AE17+$AF17+$AG17,0)+1,1,$AH17)),0)*(1/(1+Disc)^($AE17+$AF17+$AG17))+ OFFSET(CostE!Z$5,$Z17-1,SkipYrs*Periods+ROUND($AE17+$AF17+$AG17+$AH17,0)+1)*$AI17*(1/(1+Disc)^(ROUND($AE17+$AH17+$AF17+$AG17,0)+1)))*Input!$AC17*(1+$AL17) ->  | BG17: =(IF($AE17>0,NPV(Disc,OFFSET(CostE!AA$5,$Z17-1,SkipYrs*Periods+1,1,$AE17)),0)+OFFSET(CostE!AA$5,$Z17-1,SkipYrs*Periods+1+$AE17)*$AF17*(1/(1+Disc)^($AE17+1)))*$M17*(1+$AL17) + (OFFSET(CostE!AA$5,$Z17-1,SkipYrs*Periods+1+$AE17)*$AG17*(1/(1+Disc)^($AE17+1))+ IF($AH17>0,NPV(Disc,OFFSET(CostE!AA$5,$Z17-1,SkipYrs*Periods+ROUND($AE17+$AF17+$AG17,0)+1,1,$AH17)),0)*(1/(1+Disc)^($AE17+$AF17+$AG17))+ OFFSET(CostE!AA$5,$Z17-1,SkipYrs*Periods+ROUND($AE17+$AF17+$AG17+$AH17,0)+1)*$AI17*(1/(1+Disc)^(ROUND($AE17+$AH17+$AF17+$AG17,0)+1)))*Input!$AC17*(1+$AL17) ->  | BH17: =(IF($AE17>0,NPV(Disc,OFFSET(CostE!AB$5,$Z17-1,SkipYrs*Periods+1,1,$AE17)),0)+OFFSET(CostE!AB$5,$Z17-1,SkipYrs*Periods+1+$AE17)*$AF17*(1/(1+Disc)^($AE17+1)))*$M17*(1+$AL17) + (OFFSET(CostE!AB$5,$Z17-1,SkipYrs*Periods+1+$AE17)*$AG17*(1/(1+Disc)^($AE17+1))+ IF($AH17>0,NPV(Disc,OFFSET(CostE!AB$5,$Z17-1,SkipYrs*Periods+ROUND($AE17+$AF17+$AG17,0)+1,1,$AH17)),0)*(1/(1+Disc)^($AE17+$AF17+$AG17))+ OFFSET(CostE!AB$5,$Z17-1,SkipYrs*Periods+ROUND($AE17+$AF17+$AG17+$AH17,0)+1)*$AI17*(1/(1+Disc)^(ROUND($AE17+$AH17+$AF17+$AG17,0)+1)))*Input!$AC17*(1+$AL17) ->  | BI17: =(IF($AE17>0,NPV(Disc,OFFSET(CostE!AC$5,$Z17-1,SkipYrs*Periods+1,1,$AE17)),0)+OFFSET(CostE!AC$5,$Z17-1,SkipYrs*Periods+1+$AE17)*$AF17*(1/(1+Disc)^($AE17+1)))*$M17*(1+$AL17) + (OFFSET(CostE!AC$5,$Z17-1,SkipYrs*Periods+1+$AE17)*$AG17*(1/(1+Disc)^($AE17+1))+ IF($AH17>0,NPV(Disc,OFFSET(CostE!AC$5,$Z17-1,SkipYrs*Periods+ROUND($AE17+$AF17+$AG17,0)+1,1,$AH17)),0)*(1/(1+Disc)^($AE17+$AF17+$AG17))+ OFFSET(CostE!AC$5,$Z17-1,SkipYrs*Periods+ROUND($AE17+$AF17+$AG17+$AH17,0)+1)*$AI17*(1/(1+Disc)^(ROUND($AE17+$AH17+$AF17+$AG17,0)+1)))*Input!$AC17*(1+$AL17) ->  | BJ17: =(IF($AE17>0,NPV(Disc,OFFSET(CostE!AD$5,$Z17-1,SkipYrs*Periods+1,1,$AE17)),0)+OFFSET(CostE!AD$5,$Z17-1,SkipYrs*Periods+1+$AE17)*$AF17*(1/(1+Disc)^($AE17+1)))*$M17*(1+$AL17) + (OFFSET(CostE!AD$5,$Z17-1,SkipYrs*Periods+1+$AE17)*$AG17*(1/(1+Disc)^($AE17+1))+ IF($AH17>0,NPV(Disc,OFFSET(CostE!AD$5,$Z17-1,SkipYrs*Periods+ROUND($AE17+$AF17+$AG17,0)+1,1,$AH17)),0)*(1/(1+Disc)^($AE17+$AF17+$AG17))+ OFFSET(CostE!AD$5,$Z17-1,SkipYrs*Periods+ROUND($AE17+$AF17+$AG17+$AH17,0)+1)*$AI17*(1/(1+Disc)^(ROUND($AE17+$AH17+$AF17+$AG17,0)+1)))*Input!$AC17*(1+$AL17) ->  | BK17: =(IF($AE17>0,NPV(Disc,OFFSET(CostE!AE$5,$Z17-1,SkipYrs*Periods+1,1,$AE17)),0)+OFFSET(CostE!AE$5,$Z17-1,SkipYrs*Periods+1+$AE17)*$AF17*(1/(1+Disc)^($AE17+1)))*$M17*(1+$AL17) + (OFFSET(CostE!AE$5,$Z17-1,SkipYrs*Periods+1+$AE17)*$AG17*(1/(1+Disc)^($AE17+1))+ IF($AH17>0,NPV(Disc,OFFSET(CostE!AE$5,$Z17-1,SkipYrs*Periods+ROUND($AE17+$AF17+$AG17,0)+1,1,$AH17)),0)*(1/(1+Disc)^($AE17+$AF17+$AG17))+ OFFSET(CostE!AE$5,$Z17-1,SkipYrs*Periods+ROUND($AE17+$AF17+$AG17+$AH17,0)+1)*$AI17*(1/(1+Disc)^(ROUND($AE17+$AH17+$AF17+$AG17,0)+1)))*Input!$AC17*(1+$AL17) ->  | BL17: =(IF($AE17>0,NPV(Disc,OFFSET(CostE!AF$5,$Z17-1,SkipYrs*Periods+1,1,$AE17)),0)+OFFSET(CostE!AF$5,$Z17-1,SkipYrs*Periods+1+$AE17)*$AF17*(1/(1+Disc)^($AE17+1)))*$M17*(1+$AL17) + (OFFSET(CostE!AF$5,$Z17-1,SkipYrs*Periods+1+$AE17)*$AG17*(1/(1+Disc)^($AE17+1))+ IF($AH17>0,NPV(Disc,OFFSET(CostE!AF$5,$Z17-1,SkipYrs*Periods+ROUND($AE17+$AF17+$AG17,0)+1,1,$AH17)),0)*(1/(1+Disc)^($AE17+$AF17+$AG17))+ OFFSET(CostE!AF$5,$Z17-1,SkipYrs*Periods+ROUND($AE17+$AF17+$AG17+$AH17,0)+1)*$AI17*(1/(1+Disc)^(ROUND($AE17+$AH17+$AF17+$AG17,0)+1)))*Input!$AC17*(1+$AL17) ->  | BM17: =(IF($AE17>0,NPV(Disc,OFFSET(CostE!AG$5,$Z17-1,SkipYrs*Periods+1,1,$AE17)),0)+OFFSET(CostE!AG$5,$Z17-1,SkipYrs*Periods+1+$AE17)*$AF17*(1/(1+Disc)^($AE17+1)))*$M17*(1+$AL17) + (OFFSET(CostE!AG$5,$Z17-1,SkipYrs*Periods+1+$AE17)*$AG17*(1/(1+Disc)^($AE17+1))+ IF($AH17>0,NPV(Disc,OFFSET(CostE!AG$5,$Z17-1,SkipYrs*Periods+ROUND($AE17+$AF17+$AG17,0)+1,1,$AH17)),0)*(1/(1+Disc)^($AE17+$AF17+$AG17))+ OFFSET(CostE!AG$5,$Z17-1,SkipYrs*Periods+ROUND($AE17+$AF17+$AG17+$AH17,0)+1)*$AI17*(1/(1+Disc)^(ROUND($AE17+$AH17+$AF17+$AG17,0)+1)))*Input!$AC17*(1+$AL17) ->  | BN17: =(IF($AE17>0,NPV(Disc,OFFSET(CostE!AH$5,$Z17-1,SkipYrs*Periods+1,1,$AE17)),0)+OFFSET(CostE!AH$5,$Z17-1,SkipYrs*Periods+1+$AE17)*$AF17*(1/(1+Disc)^($AE17+1)))*$M17*(1+$AL17) + (OFFSET(CostE!AH$5,$Z17-1,SkipYrs*Periods+1+$AE17)*$AG17*(1/(1+Disc)^($AE17+1))+ IF($AH17>0,NPV(Disc,OFFSET(CostE!AH$5,$Z17-1,SkipYrs*Periods+ROUND($AE17+$AF17+$AG17,0)+1,1,$AH17)),0)*(1/(1+Disc)^($AE17+$AF17+$AG17))+ OFFSET(CostE!AH$5,$Z17-1,SkipYrs*Periods+ROUND($AE17+$AF17+$AG17+$AH17,0)+1)*$AI17*(1/(1+Disc)^(ROUND($AE17+$AH17+$AF17+$AG17,0)+1)))*Input!$AC17*(1+$AL17) ->  | BO17: =(IF($AE17>0,NPV(Disc,OFFSET(CostE!AI$5,$Z17-1,SkipYrs*Periods+1,1,$AE17)),0)+OFFSET(CostE!AI$5,$Z17-1,SkipYrs*Periods+1+$AE17)*$AF17*(1/(1+Disc)^($AE17+1)))*$M17*(1+$AL17) + (OFFSET(CostE!AI$5,$Z17-1,SkipYrs*Periods+1+$AE17)*$AG17*(1/(1+Disc)^($AE17+1))+ IF($AH17>0,NPV(Disc,OFFSET(CostE!AI$5,$Z17-1,SkipYrs*Periods+ROUND($AE17+$AF17+$AG17,0)+1,1,$AH17)),0)*(1/(1+Disc)^($AE17+$AF17+$AG17))+ OFFSET(CostE!AI$5,$Z17-1,SkipYrs*Periods+ROUND($AE17+$AF17+$AG17+$AH17,0)+1)*$AI17*(1/(1+Disc)^(ROUND($AE17+$AH17+$AF17+$AG17,0)+1)))*Input!$AC17*(1+$AL17) ->  | BP17: =(IF($AE17>0,NPV(Disc,OFFSET(CostE!AJ$5,$Z17-1,SkipYrs*Periods+1,1,$AE17)),0)+OFFSET(CostE!AJ$5,$Z17-1,SkipYrs*Periods+1+$AE17)*$AF17*(1/(1+Disc)^($AE17+1)))*$M17*(1+$AL17) + (OFFSET(CostE!AJ$5,$Z17-1,SkipYrs*Periods+1+$AE17)*$AG17*(1/(1+Disc)^($AE17+1))+ IF($AH17>0,NPV(Disc,OFFSET(CostE!AJ$5,$Z17-1,SkipYrs*Periods+ROUND($AE17+$AF17+$AG17,0)+1,1,$AH17)),0)*(1/(1+Disc)^($AE17+$AF17+$AG17))+ OFFSET(CostE!AJ$5,$Z17-1,SkipYrs*Periods+ROUND($AE17+$AF17+$AG17+$AH17,0)+1)*$AI17*(1/(1+Disc)^(ROUND($AE17+$AH17+$AF17+$AG17,0)+1)))*Input!$AC17*(1+$AL17) ->  | BQ17: =(IF($AE17>0,NPV(Disc,OFFSET(CostE!AK$5,$Z17-1,SkipYrs*Periods+1,1,$AE17)),0)+OFFSET(CostE!AK$5,$Z17-1,SkipYrs*Periods+1+$AE17)*$AF17*(1/(1+Disc)^($AE17+1)))*$M17*(1+$AL17) + (OFFSET(CostE!AK$5,$Z17-1,SkipYrs*Periods+1+$AE17)*$AG17*(1/(1+Disc)^($AE17+1))+ IF($AH17>0,NPV(Disc,OFFSET(CostE!AK$5,$Z17-1,SkipYrs*Periods+ROUND($AE17+$AF17+$AG17,0)+1,1,$AH17)),0)*(1/(1+Disc)^($AE17+$AF17+$AG17))+ OFFSET(CostE!AK$5,$Z17-1,SkipYrs*Periods+ROUND($AE17+$AF17+$AG17+$AH17,0)+1)*$AI17*(1/(1+Disc)^(ROUND($AE17+$AH17+$AF17+$AG17,0)+1)))*Input!$AC17*(1+$AL17) ->  | BR17: =(IF($AE17>0,NPV(Disc,OFFSET(CostE!AL$5,$Z17-1,SkipYrs*Periods+1,1,$AE17)),0)+OFFSET(CostE!AL$5,$Z17-1,SkipYrs*Periods+1+$AE17)*$AF17*(1/(1+Disc)^($AE17+1)))*$M17*(1+$AL17) + (OFFSET(CostE!AL$5,$Z17-1,SkipYrs*Periods+1+$AE17)*$AG17*(1/(1+Disc)^($AE17+1))+ IF($AH17>0,NPV(Disc,OFFSET(CostE!AL$5,$Z17-1,SkipYrs*Periods+ROUND($AE17+$AF17+$AG17,0)+1,1,$AH17)),0)*(1/(1+Disc)^($AE17+$AF17+$AG17))+ OFFSET(CostE!AL$5,$Z17-1,SkipYrs*Periods+ROUND($AE17+$AF17+$AG17+$AH17,0)+1)*$AI17*(1/(1+Disc)^(ROUND($AE17+$AH17+$AF17+$AG17,0)+1)))*Input!$AC17*(1+$AL17) ->  | BS17: =(IF($AE17>0,NPV(Disc,OFFSET(CostE!AM$5,$Z17-1,SkipYrs*Periods+1,1,$AE17)),0)+OFFSET(CostE!AM$5,$Z17-1,SkipYrs*Periods+1+$AE17)*$AF17*(1/(1+Disc)^($AE17+1)))*$M17*(1+$AL17) + (OFFSET(CostE!AM$5,$Z17-1,SkipYrs*Periods+1+$AE17)*$AG17*(1/(1+Disc)^($AE17+1))+ IF($AH17>0,NPV(Disc,OFFSET(CostE!AM$5,$Z17-1,SkipYrs*Periods+ROUND($AE17+$AF17+$AG17,0)+1,1,$AH17)),0)*(1/(1+Disc)^($AE17+$AF17+$AG17))+ OFFSET(CostE!AM$5,$Z17-1,SkipYrs*Periods+ROUND($AE17+$AF17+$AG17+$AH17,0)+1)*$AI17*(1/(1+Disc)^(ROUND($AE17+$AH17+$AF17+$AG17,0)+1)))*Input!$AC17*(1+$AL17) ->  | BT17: =(IF($AE17>0,NPV(Disc,OFFSET(CostE!AN$5,$Z17-1,SkipYrs*Periods+1,1,$AE17)),0)+OFFSET(CostE!AN$5,$Z17-1,SkipYrs*Periods+1+$AE17)*$AF17*(1/(1+Disc)^($AE17+1)))*$M17*(1+$AL17) + (OFFSET(CostE!AN$5,$Z17-1,SkipYrs*Periods+1+$AE17)*$AG17*(1/(1+Disc)^($AE17+1))+ IF($AH17>0,NPV(Disc,OFFSET(CostE!AN$5,$Z17-1,SkipYrs*Periods+ROUND($AE17+$AF17+$AG17,0)+1,1,$AH17)),0)*(1/(1+Disc)^($AE17+$AF17+$AG17))+ OFFSET(CostE!AN$5,$Z17-1,SkipYrs*Periods+ROUND($AE17+$AF17+$AG17+$AH17,0)+1)*$AI17*(1/(1+Disc)^(ROUND($AE17+$AH17+$AF17+$AG17,0)+1)))*Input!$AC17*(1+$AL17) ->  | BU17: =(IF($AE17>0,NPV(Disc,OFFSET(CostE!AO$5,$Z17-1,SkipYrs*Periods+1,1,$AE17)),0)+OFFSET(CostE!AO$5,$Z17-1,SkipYrs*Periods+1+$AE17)*$AF17*(1/(1+Disc)^($AE17+1)))*$M17*(1+$AL17) + (OFFSET(CostE!AO$5,$Z17-1,SkipYrs*Periods+1+$AE17)*$AG17*(1/(1+Disc)^($AE17+1))+ IF($AH17>0,NPV(Disc,OFFSET(CostE!AO$5,$Z17-1,SkipYrs*Periods+ROUND($AE17+$AF17+$AG17,0)+1,1,$AH17)),0)*(1/(1+Disc)^($AE17+$AF17+$AG17))+ OFFSET(CostE!AO$5,$Z17-1,SkipYrs*Periods+ROUND($AE17+$AF17+$AG17+$AH17,0)+1)*$AI17*(1/(1+Disc)^(ROUND($AE17+$AH17+$AF17+$AG17,0)+1)))*Input!$AC17*(1+$AL17) ->  | BV17: =(IF($AE17>0,NPV(Disc,OFFSET(CostE!AP$5,$Z17-1,SkipYrs*Periods+1,1,$AE17)),0)+OFFSET(CostE!AP$5,$Z17-1,SkipYrs*Periods+1+$AE17)*$AF17*(1/(1+Disc)^($AE17+1)))*$M17*(1+$AL17) + (OFFSET(CostE!AP$5,$Z17-1,SkipYrs*Periods+1+$AE17)*$AG17*(1/(1+Disc)^($AE17+1))+ IF($AH17>0,NPV(Disc,OFFSET(CostE!AP$5,$Z17-1,SkipYrs*Periods+ROUND($AE17+$AF17+$AG17,0)+1,1,$AH17)),0)*(1/(1+Disc)^($AE17+$AF17+$AG17))+ OFFSET(CostE!AP$5,$Z17-1,SkipYrs*Periods+ROUND($AE17+$AF17+$AG17+$AH17,0)+1)*$AI17*(1/(1+Disc)^(ROUND($AE17+$AH17+$AF17+$AG17,0)+1)))*Input!$AC17*(1+$AL17) ->  | BW17: =(IF($AE17>0,NPV(Disc,OFFSET(CostE!AQ$5,$Z17-1,SkipYrs*Periods+1,1,$AE17)),0)+OFFSET(CostE!AQ$5,$Z17-1,SkipYrs*Periods+1+$AE17)*$AF17*(1/(1+Disc)^($AE17+1)))*$M17*(1+$AL17) + (OFFSET(CostE!AQ$5,$Z17-1,SkipYrs*Periods+1+$AE17)*$AG17*(1/(1+Disc)^($AE17+1))+ IF($AH17>0,NPV(Disc,OFFSET(CostE!AQ$5,$Z17-1,SkipYrs*Periods+ROUND($AE17+$AF17+$AG17,0)+1,1,$AH17)),0)*(1/(1+Disc)^($AE17+$AF17+$AG17))+ OFFSET(CostE!AQ$5,$Z17-1,SkipYrs*Periods+ROUND($AE17+$AF17+$AG17+$AH17,0)+1)*$AI17*(1/(1+Disc)^(ROUND($AE17+$AH17+$AF17+$AG17,0)+1)))*Input!$AC17*(1+$AL17) ->  | BX17: =(IF($AE17>0,NPV(Disc,OFFSET(CostE!AR$5,$Z17-1,SkipYrs*Periods+1,1,$AE17)),0)+OFFSET(CostE!AR$5,$Z17-1,SkipYrs*Periods+1+$AE17)*$AF17*(1/(1+Disc)^($AE17+1)))*$M17*(1+$AL17) + (OFFSET(CostE!AR$5,$Z17-1,SkipYrs*Periods+1+$AE17)*$AG17*(1/(1+Disc)^($AE17+1))+ IF($AH17>0,NPV(Disc,OFFSET(CostE!AR$5,$Z17-1,SkipYrs*Periods+ROUND($AE17+$AF17+$AG17,0)+1,1,$AH17)),0)*(1/(1+Disc)^($AE17+$AF17+$AG17))+ OFFSET(CostE!AR$5,$Z17-1,SkipYrs*Periods+ROUND($AE17+$AF17+$AG17+$AH17,0)+1)*$AI17*(1/(1+Disc)^(ROUND($AE17+$AH17+$AF17+$AG17,0)+1)))*Input!$AC17*(1+$AL17) ->  | BY17: =(IF($AE17>0,NPV(Disc,OFFSET(CostE!AS$5,$Z17-1,SkipYrs*Periods+1,1,$AE17)),0)+OFFSET(CostE!AS$5,$Z17-1,SkipYrs*Periods+1+$AE17)*$AF17*(1/(1+Disc)^($AE17+1)))*$M17*(1+$AL17) + (OFFSET(CostE!AS$5,$Z17-1,SkipYrs*Periods+1+$AE17)*$AG17*(1/(1+Disc)^($AE17+1))+ IF($AH17>0,NPV(Disc,OFFSET(CostE!AS$5,$Z17-1,SkipYrs*Periods+ROUND($AE17+$AF17+$AG17,0)+1,1,$AH17)),0)*(1/(1+Disc)^($AE17+$AF17+$AG17))+ OFFSET(CostE!AS$5,$Z17-1,SkipYrs*Periods+ROUND($AE17+$AF17+$AG17+$AH17,0)+1)*$AI17*(1/(1+Disc)^(ROUND($AE17+$AH17+$AF17+$AG17,0)+1)))*Input!$AC17*(1+$AL17) ->  | BZ17: =(IF($AE17>0,NPV(Disc,OFFSET(CostE!AT$5,$Z17-1,SkipYrs*Periods+1,1,$AE17)),0)+OFFSET(CostE!AT$5,$Z17-1,SkipYrs*Periods+1+$AE17)*$AF17*(1/(1+Disc)^($AE17+1)))*$M17*(1+$AL17) + (OFFSET(CostE!AT$5,$Z17-1,SkipYrs*Periods+1+$AE17)*$AG17*(1/(1+Disc)^($AE17+1))+ IF($AH17>0,NPV(Disc,OFFSET(CostE!AT$5,$Z17-1,SkipYrs*Periods+ROUND($AE17+$AF17+$AG17,0)+1,1,$AH17)),0)*(1/(1+Disc)^($AE17+$AF17+$AG17))+ OFFSET(CostE!AT$5,$Z17-1,SkipYrs*Periods+ROUND($AE17+$AF17+$AG17+$AH17,0)+1)*$AI17*(1/(1+Disc)^(ROUND($AE17+$AH17+$AF17+$AG17,0)+1)))*Input!$AC17*(1+$AL17) ->  | CA17: =(IF($AE17>0,NPV(Disc,OFFSET(CostE!AU$5,$Z17-1,SkipYrs*Periods+1,1,$AE17)),0)+OFFSET(CostE!AU$5,$Z17-1,SkipYrs*Periods+1+$AE17)*$AF17*(1/(1+Disc)^($AE17+1)))*$M17*(1+$AL17) + (OFFSET(CostE!AU$5,$Z17-1,SkipYrs*Periods+1+$AE17)*$AG17*(1/(1+Disc)^($AE17+1))+ IF($AH17>0,NPV(Disc,OFFSET(CostE!AU$5,$Z17-1,SkipYrs*Periods+ROUND($AE17+$AF17+$AG17,0)+1,1,$AH17)),0)*(1/(1+Disc)^($AE17+$AF17+$AG17))+ OFFSET(CostE!AU$5,$Z17-1,SkipYrs*Periods+ROUND($AE17+$AF17+$AG17+$AH17,0)+1)*$AI17*(1/(1+Disc)^(ROUND($AE17+$AH17+$AF17+$AG17,0)+1)))*Input!$AC17*(1+$AL17) ->  | CB17: =(IF($AE17>0,NPV(Disc,OFFSET(CostE!AV$5,$Z17-1,SkipYrs*Periods+1,1,$AE17)),0)+OFFSET(CostE!AV$5,$Z17-1,SkipYrs*Periods+1+$AE17)*$AF17*(1/(1+Disc)^($AE17+1)))*$M17*(1+$AL17) + (OFFSET(CostE!AV$5,$Z17-1,SkipYrs*Periods+1+$AE17)*$AG17*(1/(1+Disc)^($AE17+1))+ IF($AH17>0,NPV(Disc,OFFSET(CostE!AV$5,$Z17-1,SkipYrs*Periods+ROUND($AE17+$AF17+$AG17,0)+1,1,$AH17)),0)*(1/(1+Disc)^($AE17+$AF17+$AG17))+ OFFSET(CostE!AV$5,$Z17-1,SkipYrs*Periods+ROUND($AE17+$AF17+$AG17+$AH17,0)+1)*$AI17*(1/(1+Disc)^(ROUND($AE17+$AH17+$AF17+$AG17,0)+1)))*Input!$AC17*(1+$AL17) ->  | CC17: =(IF($AE17>0,NPV(Disc,OFFSET(CostE!AW$5,$Z17-1,SkipYrs*Periods+1,1,$AE17)),0)+OFFSET(CostE!AW$5,$Z17-1,SkipYrs*Periods+1+$AE17)*$AF17*(1/(1+Disc)^($AE17+1)))*$M17*(1+$AL17) + (OFFSET(CostE!AW$5,$Z17-1,SkipYrs*Periods+1+$AE17)*$AG17*(1/(1+Disc)^($AE17+1))+ IF($AH17>0,NPV(Disc,OFFSET(CostE!AW$5,$Z17-1,SkipYrs*Periods+ROUND($AE17+$AF17+$AG17,0)+1,1,$AH17)),0)*(1/(1+Disc)^($AE17+$AF17+$AG17))+ OFFSET(CostE!AW$5,$Z17-1,SkipYrs*Periods+ROUND($AE17+$AF17+$AG17+$AH17,0)+1)*$AI17*(1/(1+Disc)^(ROUND($AE17+$AH17+$AF17+$AG17,0)+1)))*Input!$AC17*(1+$AL17) ->  | CD17: =(IF($AE17>0,NPV(Disc,OFFSET(CostE!AX$5,$Z17-1,SkipYrs*Periods+1,1,$AE17)),0)+OFFSET(CostE!AX$5,$Z17-1,SkipYrs*Periods+1+$AE17)*$AF17*(1/(1+Disc)^($AE17+1)))*$M17*(1+$AL17) + (OFFSET(CostE!AX$5,$Z17-1,SkipYrs*Periods+1+$AE17)*$AG17*(1/(1+Disc)^($AE17+1))+ IF($AH17>0,NPV(Disc,OFFSET(CostE!AX$5,$Z17-1,SkipYrs*Periods+ROUND($AE17+$AF17+$AG17,0)+1,1,$AH17)),0)*(1/(1+Disc)^($AE17+$AF17+$AG17))+ OFFSET(CostE!AX$5,$Z17-1,SkipYrs*Periods+ROUND($AE17+$AF17+$AG17+$AH17,0)+1)*$AI17*(1/(1+Disc)^(ROUND($AE17+$AH17+$AF17+$AG17,0)+1)))*Input!$AC17*(1+$AL17) ->  | CE17: =(IF($AE17>0,NPV(Disc,OFFSET(CostE!G$5,$AA17-1,SkipYrs*Periods+1,1,$AE17)),0)+OFFSET(CostE!G$5,$AA17-1,SkipYrs*Periods+1+$AE17)*$AF17*(1/(1+Disc)^($AE17+1)))*$R17 + (OFFSET(CostE!G$5,$AA17-1,SkipYrs*Periods+1+$AE17)*$AG17*(1/(1+Disc)^($AE17+1))+ IF($AH17>0,NPV(Disc,OFFSET(CostE!G$5,$AA17-1,SkipYrs*Periods+ROUND($AE17+$AF17+$AG17,0)+1,1,$AH17)),0)*(1/(1+Disc)^($AE17+$AF17+$AG17))+ OFFSET(CostE!G$5,$AA17-1,SkipYrs*Periods+ROUND($AE17+$AF17+$AG17+$AH17,0)+1)*$AI17*(1/(1+Disc)^(ROUND($AE17+$AH17+$AF17+$AG17,0)+1)))*$S17 ->  | CF17: =(IF($AE17>0,NPV(Disc,OFFSET(CostE!H$5,$AA17-1,SkipYrs*Periods+1,1,$AE17)),0)+OFFSET(CostE!H$5,$AA17-1,SkipYrs*Periods+1+$AE17)*$AF17*(1/(1+Disc)^($AE17+1)))*$R17 + (OFFSET(CostE!H$5,$AA17-1,SkipYrs*Periods+1+$AE17)*$AG17*(1/(1+Disc)^($AE17+1))+ IF($AH17>0,NPV(Disc,OFFSET(CostE!H$5,$AA17-1,SkipYrs*Periods+ROUND($AE17+$AF17+$AG17,0)+1,1,$AH17)),0)*(1/(1+Disc)^($AE17+$AF17+$AG17))+ OFFSET(CostE!H$5,$AA17-1,SkipYrs*Periods+ROUND($AE17+$AF17+$AG17+$AH17,0)+1)*$AI17*(1/(1+Disc)^(ROUND($AE17+$AH17+$AF17+$AG17,0)+1)))*$S17 ->  | CG17: =(IF($AE17>0,NPV(Disc,OFFSET(CostE!I$5,$AA17-1,SkipYrs*Periods+1,1,$AE17)),0)+OFFSET(CostE!I$5,$AA17-1,SkipYrs*Periods+1+$AE17)*$AF17*(1/(1+Disc)^($AE17+1)))*$R17 + (OFFSET(CostE!I$5,$AA17-1,SkipYrs*Periods+1+$AE17)*$AG17*(1/(1+Disc)^($AE17+1))+ IF($AH17>0,NPV(Disc,OFFSET(CostE!I$5,$AA17-1,SkipYrs*Periods+ROUND($AE17+$AF17+$AG17,0)+1,1,$AH17)),0)*(1/(1+Disc)^($AE17+$AF17+$AG17))+ OFFSET(CostE!I$5,$AA17-1,SkipYrs*Periods+ROUND($AE17+$AF17+$AG17+$AH17,0)+1)*$AI17*(1/(1+Disc)^(ROUND($AE17+$AH17+$AF17+$AG17,0)+1)))*$S17 ->  | CH17: =(IF($AE17>0,NPV(Disc,OFFSET(CostE!J$5,$AA17-1,SkipYrs*Periods+1,1,$AE17)),0)+OFFSET(CostE!J$5,$AA17-1,SkipYrs*Periods+1+$AE17)*$AF17*(1/(1+Disc)^($AE17+1)))*$R17 + (OFFSET(CostE!J$5,$AA17-1,SkipYrs*Periods+1+$AE17)*$AG17*(1/(1+Disc)^($AE17+1))+ IF($AH17>0,NPV(Disc,OFFSET(CostE!J$5,$AA17-1,SkipYrs*Periods+ROUND($AE17+$AF17+$AG17,0)+1,1,$AH17)),0)*(1/(1+Disc)^($AE17+$AF17+$AG17))+ OFFSET(CostE!J$5,$AA17-1,SkipYrs*Periods+ROUND($AE17+$AF17+$AG17+$AH17,0)+1)*$AI17*(1/(1+Disc)^(ROUND($AE17+$AH17+$AF17+$AG17,0)+1)))*$S17 ->  | CI17: =(IF($AE17>0,NPV(Disc,OFFSET(CostE!K$5,$AA17-1,SkipYrs*Periods+1,1,$AE17)),0)+OFFSET(CostE!K$5,$AA17-1,SkipYrs*Periods+1+$AE17)*$AF17*(1/(1+Disc)^($AE17+1)))*$R17 + (OFFSET(CostE!K$5,$AA17-1,SkipYrs*Periods+1+$AE17)*$AG17*(1/(1+Disc)^($AE17+1))+ IF($AH17>0,NPV(Disc,OFFSET(CostE!K$5,$AA17-1,SkipYrs*Periods+ROUND($AE17+$AF17+$AG17,0)+1,1,$AH17)),0)*(1/(1+Disc)^($AE17+$AF17+$AG17))+ OFFSET(CostE!K$5,$AA17-1,SkipYrs*Periods+ROUND($AE17+$AF17+$AG17+$AH17,0)+1)*$AI17*(1/(1+Disc)^(ROUND($AE17+$AH17+$AF17+$AG17,0)+1)))*$S17 ->  | CJ17: =(IF($AE17>0,NPV(Disc,OFFSET(CostE!L$5,$AA17-1,SkipYrs*Periods+1,1,$AE17)),0)+OFFSET(CostE!L$5,$AA17-1,SkipYrs*Periods+1+$AE17)*$AF17*(1/(1+Disc)^($AE17+1)))*$R17 + (OFFSET(CostE!L$5,$AA17-1,SkipYrs*Periods+1+$AE17)*$AG17*(1/(1+Disc)^($AE17+1))+ IF($AH17>0,NPV(Disc,OFFSET(CostE!L$5,$AA17-1,SkipYrs*Periods+ROUND($AE17+$AF17+$AG17,0)+1,1,$AH17)),0)*(1/(1+Disc)^($AE17+$AF17+$AG17))+ OFFSET(CostE!L$5,$AA17-1,SkipYrs*Periods+ROUND($AE17+$AF17+$AG17+$AH17,0)+1)*$AI17*(1/(1+Disc)^(ROUND($AE17+$AH17+$AF17+$AG17,0)+1)))*$S17 ->  | CK17: =(IF($AE17>0,NPV(Disc,OFFSET(CostE!M$5,$AA17-1,SkipYrs*Periods+1,1,$AE17)),0)+OFFSET(CostE!M$5,$AA17-1,SkipYrs*Periods+1+$AE17)*$AF17*(1/(1+Disc)^($AE17+1)))*$R17 + (OFFSET(CostE!M$5,$AA17-1,SkipYrs*Periods+1+$AE17)*$AG17*(1/(1+Disc)^($AE17+1))+ IF($AH17>0,NPV(Disc,OFFSET(CostE!M$5,$AA17-1,SkipYrs*Periods+ROUND($AE17+$AF17+$AG17,0)+1,1,$AH17)),0)*(1/(1+Disc)^($AE17+$AF17+$AG17))+ OFFSET(CostE!M$5,$AA17-1,SkipYrs*Periods+ROUND($AE17+$AF17+$AG17+$AH17,0)+1)*$AI17*(1/(1+Disc)^(ROUND($AE17+$AH17+$AF17+$AG17,0)+1)))*$S17 ->  | CL17: =(IF($AE17>0,NPV(Disc,OFFSET(CostE!N$5,$AA17-1,SkipYrs*Periods+1,1,$AE17)),0)+OFFSET(CostE!N$5,$AA17-1,SkipYrs*Periods+1+$AE17)*$AF17*(1/(1+Disc)^($AE17+1)))*$R17 + (OFFSET(CostE!N$5,$AA17-1,SkipYrs*Periods+1+$AE17)*$AG17*(1/(1+Disc)^($AE17+1))+ IF($AH17>0,NPV(Disc,OFFSET(CostE!N$5,$AA17-1,SkipYrs*Periods+ROUND($AE17+$AF17+$AG17,0)+1,1,$AH17)),0)*(1/(1+Disc)^($AE17+$AF17+$AG17))+ OFFSET(CostE!N$5,$AA17-1,SkipYrs*Periods+ROUND($AE17+$AF17+$AG17+$AH17,0)+1)*$AI17*(1/(1+Disc)^(ROUND($AE17+$AH17+$AF17+$AG17,0)+1)))*$S17 ->  | CM17: =(IF($AE17>0,NPV(Disc,OFFSET(CostE!O$5,$AA17-1,SkipYrs*Periods+1,1,$AE17)),0)+OFFSET(CostE!O$5,$AA17-1,SkipYrs*Periods+1+$AE17)*$AF17*(1/(1+Disc)^($AE17+1)))*$R17 + (OFFSET(CostE!O$5,$AA17-1,SkipYrs*Periods+1+$AE17)*$AG17*(1/(1+Disc)^($AE17+1))+ IF($AH17>0,NPV(Disc,OFFSET(CostE!O$5,$AA17-1,SkipYrs*Periods+ROUND($AE17+$AF17+$AG17,0)+1,1,$AH17)),0)*(1/(1+Disc)^($AE17+$AF17+$AG17))+ OFFSET(CostE!O$5,$AA17-1,SkipYrs*Periods+ROUND($AE17+$AF17+$AG17+$AH17,0)+1)*$AI17*(1/(1+Disc)^(ROUND($AE17+$AH17+$AF17+$AG17,0)+1)))*$S17 ->  | CN17: =(IF($AE17>0,NPV(Disc,OFFSET(CostE!P$5,$AA17-1,SkipYrs*Periods+1,1,$AE17)),0)+OFFSET(CostE!P$5,$AA17-1,SkipYrs*Periods+1+$AE17)*$AF17*(1/(1+Disc)^($AE17+1)))*$R17 + (OFFSET(CostE!P$5,$AA17-1,SkipYrs*Periods+1+$AE17)*$AG17*(1/(1+Disc)^($AE17+1))+ IF($AH17>0,NPV(Disc,OFFSET(CostE!P$5,$AA17-1,SkipYrs*Periods+ROUND($AE17+$AF17+$AG17,0)+1,1,$AH17)),0)*(1/(1+Disc)^($AE17+$AF17+$AG17))+ OFFSET(CostE!P$5,$AA17-1,SkipYrs*Periods+ROUND($AE17+$AF17+$AG17+$AH17,0)+1)*$AI17*(1/(1+Disc)^(ROUND($AE17+$AH17+$AF17+$AG17,0)+1)))*$S17 ->  | CO17: =(IF($AE17>0,NPV(Disc,OFFSET(CostE!Q$5,$AA17-1,SkipYrs*Periods+1,1,$AE17)),0)+OFFSET(CostE!Q$5,$AA17-1,SkipYrs*Periods+1+$AE17)*$AF17*(1/(1+Disc)^($AE17+1)))*$R17 + (OFFSET(CostE!Q$5,$AA17-1,SkipYrs*Periods+1+$AE17)*$AG17*(1/(1+Disc)^($AE17+1))+ IF($AH17>0,NPV(Disc,OFFSET(CostE!Q$5,$AA17-1,SkipYrs*Periods+ROUND($AE17+$AF17+$AG17,0)+1,1,$AH17)),0)*(1/(1+Disc)^($AE17+$AF17+$AG17))+ OFFSET(CostE!Q$5,$AA17-1,SkipYrs*Periods+ROUND($AE17+$AF17+$AG17+$AH17,0)+1)*$AI17*(1/(1+Disc)^(ROUND($AE17+$AH17+$AF17+$AG17,0)+1)))*$S17 ->  | CP17: =(IF($AE17>0,NPV(Disc,OFFSET(CostE!R$5,$AA17-1,SkipYrs*Periods+1,1,$AE17)),0)+OFFSET(CostE!R$5,$AA17-1,SkipYrs*Periods+1+$AE17)*$AF17*(1/(1+Disc)^($AE17+1)))*$R17 + (OFFSET(CostE!R$5,$AA17-1,SkipYrs*Periods+1+$AE17)*$AG17*(1/(1+Disc)^($AE17+1))+ IF($AH17>0,NPV(Disc,OFFSET(CostE!R$5,$AA17-1,SkipYrs*Periods+ROUND($AE17+$AF17+$AG17,0)+1,1,$AH17)),0)*(1/(1+Disc)^($AE17+$AF17+$AG17))+ OFFSET(CostE!R$5,$AA17-1,SkipYrs*Periods+ROUND($AE17+$AF17+$AG17+$AH17,0)+1)*$AI17*(1/(1+Disc)^(ROUND($AE17+$AH17+$AF17+$AG17,0)+1)))*$S17 ->  | CQ17: =(IF($AE17>0,NPV(Disc,OFFSET(CostE!S$5,$AA17-1,SkipYrs*Periods+1,1,$AE17)),0)+OFFSET(CostE!S$5,$AA17-1,SkipYrs*Periods+1+$AE17)*$AF17*(1/(1+Disc)^($AE17+1)))*$R17 + (OFFSET(CostE!S$5,$AA17-1,SkipYrs*Periods+1+$AE17)*$AG17*(1/(1+Disc)^($AE17+1))+ IF($AH17>0,NPV(Disc,OFFSET(CostE!S$5,$AA17-1,SkipYrs*Periods+ROUND($AE17+$AF17+$AG17,0)+1,1,$AH17)),0)*(1/(1+Disc)^($AE17+$AF17+$AG17))+ OFFSET(CostE!S$5,$AA17-1,SkipYrs*Periods+ROUND($AE17+$AF17+$AG17+$AH17,0)+1)*$AI17*(1/(1+Disc)^(ROUND($AE17+$AH17+$AF17+$AG17,0)+1)))*$S17 ->  | CR17: =(IF($AE17>0,NPV(Disc,OFFSET(CostE!T$5,$AA17-1,SkipYrs*Periods+1,1,$AE17)),0)+OFFSET(CostE!T$5,$AA17-1,SkipYrs*Periods+1+$AE17)*$AF17*(1/(1+Disc)^($AE17+1)))*$R17 + (OFFSET(CostE!T$5,$AA17-1,SkipYrs*Periods+1+$AE17)*$AG17*(1/(1+Disc)^($AE17+1))+ IF($AH17>0,NPV(Disc,OFFSET(CostE!T$5,$AA17-1,SkipYrs*Periods+ROUND($AE17+$AF17+$AG17,0)+1,1,$AH17)),0)*(1/(1+Disc)^($AE17+$AF17+$AG17))+ OFFSET(CostE!T$5,$AA17-1,SkipYrs*Periods+ROUND($AE17+$AF17+$AG17+$AH17,0)+1)*$AI17*(1/(1+Disc)^(ROUND($AE17+$AH17+$AF17+$AG17,0)+1)))*$S17 ->  | CS17: =(IF($AE17>0,NPV(Disc,OFFSET(CostE!U$5,$AA17-1,SkipYrs*Periods+1,1,$AE17)),0)+OFFSET(CostE!U$5,$AA17-1,SkipYrs*Periods+1+$AE17)*$AF17*(1/(1+Disc)^($AE17+1)))*$R17 + (OFFSET(CostE!U$5,$AA17-1,SkipYrs*Periods+1+$AE17)*$AG17*(1/(1+Disc)^($AE17+1))+ IF($AH17>0,NPV(Disc,OFFSET(CostE!U$5,$AA17-1,SkipYrs*Periods+ROUND($AE17+$AF17+$AG17,0)+1,1,$AH17)),0)*(1/(1+Disc)^($AE17+$AF17+$AG17))+ OFFSET(CostE!U$5,$AA17-1,SkipYrs*Periods+ROUND($AE17+$AF17+$AG17+$AH17,0)+1)*$AI17*(1/(1+Disc)^(ROUND($AE17+$AH17+$AF17+$AG17,0)+1)))*$S17 ->  | CT17: =(IF($AE17>0,NPV(Disc,OFFSET(CostE!V$5,$AA17-1,SkipYrs*Periods+1,1,$AE17)),0)+OFFSET(CostE!V$5,$AA17-1,SkipYrs*Periods+1+$AE17)*$AF17*(1/(1+Disc)^($AE17+1)))*$R17 + (OFFSET(CostE!V$5,$AA17-1,SkipYrs*Periods+1+$AE17)*$AG17*(1/(1+Disc)^($AE17+1))+ IF($AH17>0,NPV(Disc,OFFSET(CostE!V$5,$AA17-1,SkipYrs*Periods+ROUND($AE17+$AF17+$AG17,0)+1,1,$AH17)),0)*(1/(1+Disc)^($AE17+$AF17+$AG17))+ OFFSET(CostE!V$5,$AA17-1,SkipYrs*Periods+ROUND($AE17+$AF17+$AG17+$AH17,0)+1)*$AI17*(1/(1+Disc)^(ROUND($AE17+$AH17+$AF17+$AG17,0)+1)))*$S17 ->  | CU17: =(IF($AE17>0,NPV(Disc,OFFSET(CostE!W$5,$AA17-1,SkipYrs*Periods+1,1,$AE17)),0)+OFFSET(CostE!W$5,$AA17-1,SkipYrs*Periods+1+$AE17)*$AF17*(1/(1+Disc)^($AE17+1)))*$R17 + (OFFSET(CostE!W$5,$AA17-1,SkipYrs*Periods+1+$AE17)*$AG17*(1/(1+Disc)^($AE17+1))+ IF($AH17>0,NPV(Disc,OFFSET(CostE!W$5,$AA17-1,SkipYrs*Periods+ROUND($AE17+$AF17+$AG17,0)+1,1,$AH17)),0)*(1/(1+Disc)^($AE17+$AF17+$AG17))+ OFFSET(CostE!W$5,$AA17-1,SkipYrs*Periods+ROUND($AE17+$AF17+$AG17+$AH17,0)+1)*$AI17*(1/(1+Disc)^(ROUND($AE17+$AH17+$AF17+$AG17,0)+1)))*$S17 ->  | CV17: =(IF($AE17>0,NPV(Disc,OFFSET(CostE!X$5,$AA17-1,SkipYrs*Periods+1,1,$AE17)),0)+OFFSET(CostE!X$5,$AA17-1,SkipYrs*Periods+1+$AE17)*$AF17*(1/(1+Disc)^($AE17+1)))*$R17 + (OFFSET(CostE!X$5,$AA17-1,SkipYrs*Periods+1+$AE17)*$AG17*(1/(1+Disc)^($AE17+1))+ IF($AH17>0,NPV(Disc,OFFSET(CostE!X$5,$AA17-1,SkipYrs*Periods+ROUND($AE17+$AF17+$AG17,0)+1,1,$AH17)),0)*(1/(1+Disc)^($AE17+$AF17+$AG17))+ OFFSET(CostE!X$5,$AA17-1,SkipYrs*Periods+ROUND($AE17+$AF17+$AG17+$AH17,0)+1)*$AI17*(1/(1+Disc)^(ROUND($AE17+$AH17+$AF17+$AG17,0)+1)))*$S17 ->  | CW17: =(IF($AE17>0,NPV(Disc,OFFSET(CostE!Y$5,$AA17-1,SkipYrs*Periods+1,1,$AE17)),0)+OFFSET(CostE!Y$5,$AA17-1,SkipYrs*Periods+1+$AE17)*$AF17*(1/(1+Disc)^($AE17+1)))*$R17 + (OFFSET(CostE!Y$5,$AA17-1,SkipYrs*Periods+1+$AE17)*$AG17*(1/(1+Disc)^($AE17+1))+ IF($AH17>0,NPV(Disc,OFFSET(CostE!Y$5,$AA17-1,SkipYrs*Periods+ROUND($AE17+$AF17+$AG17,0)+1,1,$AH17)),0)*(1/(1+Disc)^($AE17+$AF17+$AG17))+ OFFSET(CostE!Y$5,$AA17-1,SkipYrs*Periods+ROUND($AE17+$AF17+$AG17+$AH17,0)+1)*$AI17*(1/(1+Disc)^(ROUND($AE17+$AH17+$AF17+$AG17,0)+1)))*$S17 ->  | CX17: =(IF($AE17>0,NPV(Disc,OFFSET(CostE!Z$5,$AA17-1,SkipYrs*Periods+1,1,$AE17)),0)+OFFSET(CostE!Z$5,$AA17-1,SkipYrs*Periods+1+$AE17)*$AF17*(1/(1+Disc)^($AE17+1)))*$R17 + (OFFSET(CostE!Z$5,$AA17-1,SkipYrs*Periods+1+$AE17)*$AG17*(1/(1+Disc)^($AE17+1))+ IF($AH17>0,NPV(Disc,OFFSET(CostE!Z$5,$AA17-1,SkipYrs*Periods+ROUND($AE17+$AF17+$AG17,0)+1,1,$AH17)),0)*(1/(1+Disc)^($AE17+$AF17+$AG17))+ OFFSET(CostE!Z$5,$AA17-1,SkipYrs*Periods+ROUND($AE17+$AF17+$AG17+$AH17,0)+1)*$AI17*(1/(1+Disc)^(ROUND($AE17+$AH17+$AF17+$AG17,0)+1)))*$S17 ->  | CY17: =(IF($AE17>0,NPV(Disc,OFFSET(CostE!AA$5,$AA17-1,SkipYrs*Periods+1,1,$AE17)),0)+OFFSET(CostE!AA$5,$AA17-1,SkipYrs*Periods+1+$AE17)*$AF17*(1/(1+Disc)^($AE17+1)))*$R17 + (OFFSET(CostE!AA$5,$AA17-1,SkipYrs*Periods+1+$AE17)*$AG17*(1/(1+Disc)^($AE17+1))+ IF($AH17>0,NPV(Disc,OFFSET(CostE!AA$5,$AA17-1,SkipYrs*Periods+ROUND($AE17+$AF17+$AG17,0)+1,1,$AH17)),0)*(1/(1+Disc)^($AE17+$AF17+$AG17))+ OFFSET(CostE!AA$5,$AA17-1,SkipYrs*Periods+ROUND($AE17+$AF17+$AG17+$AH17,0)+1)*$AI17*(1/(1+Disc)^(ROUND($AE17+$AH17+$AF17+$AG17,0)+1)))*$S17 ->  | CZ17: =(IF($AE17>0,NPV(Disc,OFFSET(CostE!AB$5,$AA17-1,SkipYrs*Periods+1,1,$AE17)),0)+OFFSET(CostE!AB$5,$AA17-1,SkipYrs*Periods+1+$AE17)*$AF17*(1/(1+Disc)^($AE17+1)))*$R17 + (OFFSET(CostE!AB$5,$AA17-1,SkipYrs*Periods+1+$AE17)*$AG17*(1/(1+Disc)^($AE17+1))+ IF($AH17>0,NPV(Disc,OFFSET(CostE!AB$5,$AA17-1,SkipYrs*Periods+ROUND($AE17+$AF17+$AG17,0)+1,1,$AH17)),0)*(1/(1+Disc)^($AE17+$AF17+$AG17))+ OFFSET(CostE!AB$5,$AA17-1,SkipYrs*Periods+ROUND($AE17+$AF17+$AG17+$AH17,0)+1)*$AI17*(1/(1+Disc)^(ROUND($AE17+$AH17+$AF17+$AG17,0)+1)))*$S17 ->  | DA17: =(IF($AE17>0,NPV(Disc,OFFSET(CostE!AC$5,$AA17-1,SkipYrs*Periods+1,1,$AE17)),0)+OFFSET(CostE!AC$5,$AA17-1,SkipYrs*Periods+1+$AE17)*$AF17*(1/(1+Disc)^($AE17+1)))*$R17 + (OFFSET(CostE!AC$5,$AA17-1,SkipYrs*Periods+1+$AE17)*$AG17*(1/(1+Disc)^($AE17+1))+ IF($AH17>0,NPV(Disc,OFFSET(CostE!AC$5,$AA17-1,SkipYrs*Periods+ROUND($AE17+$AF17+$AG17,0)+1,1,$AH17)),0)*(1/(1+Disc)^($AE17+$AF17+$AG17))+ OFFSET(CostE!AC$5,$AA17-1,SkipYrs*Periods+ROUND($AE17+$AF17+$AG17+$AH17,0)+1)*$AI17*(1/(1+Disc)^(ROUND($AE17+$AH17+$AF17+$AG17,0)+1)))*$S17 ->  | DB17: =(IF($AE17>0,NPV(Disc,OFFSET(CostE!AD$5,$AA17-1,SkipYrs*Periods+1,1,$AE17)),0)+OFFSET(CostE!AD$5,$AA17-1,SkipYrs*Periods+1+$AE17)*$AF17*(1/(1+Disc)^($AE17+1)))*$R17 + (OFFSET(CostE!AD$5,$AA17-1,SkipYrs*Periods+1+$AE17)*$AG17*(1/(1+Disc)^($AE17+1))+ IF($AH17>0,NPV(Disc,OFFSET(CostE!AD$5,$AA17-1,SkipYrs*Periods+ROUND($AE17+$AF17+$AG17,0)+1,1,$AH17)),0)*(1/(1+Disc)^($AE17+$AF17+$AG17))+ OFFSET(CostE!AD$5,$AA17-1,SkipYrs*Periods+ROUND($AE17+$AF17+$AG17+$AH17,0)+1)*$AI17*(1/(1+Disc)^(ROUND($AE17+$AH17+$AF17+$AG17,0)+1)))*$S17 ->  | DC17: =(IF($AE17>0,NPV(Disc,OFFSET(CostE!AE$5,$AA17-1,SkipYrs*Periods+1,1,$AE17)),0)+OFFSET(CostE!AE$5,$AA17-1,SkipYrs*Periods+1+$AE17)*$AF17*(1/(1+Disc)^($AE17+1)))*$R17 + (OFFSET(CostE!AE$5,$AA17-1,SkipYrs*Periods+1+$AE17)*$AG17*(1/(1+Disc)^($AE17+1))+ IF($AH17>0,NPV(Disc,OFFSET(CostE!AE$5,$AA17-1,SkipYrs*Periods+ROUND($AE17+$AF17+$AG17,0)+1,1,$AH17)),0)*(1/(1+Disc)^($AE17+$AF17+$AG17))+ OFFSET(CostE!AE$5,$AA17-1,SkipYrs*Periods+ROUND($AE17+$AF17+$AG17+$AH17,0)+1)*$AI17*(1/(1+Disc)^(ROUND($AE17+$AH17+$AF17+$AG17,0)+1)))*$S17 ->  | DD17: =(IF($AE17>0,NPV(Disc,OFFSET(CostE!AF$5,$AA17-1,SkipYrs*Periods+1,1,$AE17)),0)+OFFSET(CostE!AF$5,$AA17-1,SkipYrs*Periods+1+$AE17)*$AF17*(1/(1+Disc)^($AE17+1)))*$R17 + (OFFSET(CostE!AF$5,$AA17-1,SkipYrs*Periods+1+$AE17)*$AG17*(1/(1+Disc)^($AE17+1))+ IF($AH17>0,NPV(Disc,OFFSET(CostE!AF$5,$AA17-1,SkipYrs*Periods+ROUND($AE17+$AF17+$AG17,0)+1,1,$AH17)),0)*(1/(1+Disc)^($AE17+$AF17+$AG17))+ OFFSET(CostE!AF$5,$AA17-1,SkipYrs*Periods+ROUND($AE17+$AF17+$AG17+$AH17,0)+1)*$AI17*(1/(1+Disc)^(ROUND($AE17+$AH17+$AF17+$AG17,0)+1)))*$S17 ->  | DE17: =(IF($AE17>0,NPV(Disc,OFFSET(CostE!AG$5,$AA17-1,SkipYrs*Periods+1,1,$AE17)),0)+OFFSET(CostE!AG$5,$AA17-1,SkipYrs*Periods+1+$AE17)*$AF17*(1/(1+Disc)^($AE17+1)))*$R17 + (OFFSET(CostE!AG$5,$AA17-1,SkipYrs*Periods+1+$AE17)*$AG17*(1/(1+Disc)^($AE17+1))+ IF($AH17>0,NPV(Disc,OFFSET(CostE!AG$5,$AA17-1,SkipYrs*Periods+ROUND($AE17+$AF17+$AG17,0)+1,1,$AH17)),0)*(1/(1+Disc)^($AE17+$AF17+$AG17))+ OFFSET(CostE!AG$5,$AA17-1,SkipYrs*Periods+ROUND($AE17+$AF17+$AG17+$AH17,0)+1)*$AI17*(1/(1+Disc)^(ROUND($AE17+$AH17+$AF17+$AG17,0)+1)))*$S17 ->  | DF17: =(IF($AE17>0,NPV(Disc,OFFSET(CostE!AH$5,$AA17-1,SkipYrs*Periods+1,1,$AE17)),0)+OFFSET(CostE!AH$5,$AA17-1,SkipYrs*Periods+1+$AE17)*$AF17*(1/(1+Disc)^($AE17+1)))*$R17 + (OFFSET(CostE!AH$5,$AA17-1,SkipYrs*Periods+1+$AE17)*$AG17*(1/(1+Disc)^($AE17+1))+ IF($AH17>0,NPV(Disc,OFFSET(CostE!AH$5,$AA17-1,SkipYrs*Periods+ROUND($AE17+$AF17+$AG17,0)+1,1,$AH17)),0)*(1/(1+Disc)^($AE17+$AF17+$AG17))+ OFFSET(CostE!AH$5,$AA17-1,SkipYrs*Periods+ROUND($AE17+$AF17+$AG17+$AH17,0)+1)*$AI17*(1/(1+Disc)^(ROUND($AE17+$AH17+$AF17+$AG17,0)+1)))*$S17 ->  | DG17: =(IF($AE17>0,NPV(Disc,OFFSET(CostE!AI$5,$AA17-1,SkipYrs*Periods+1,1,$AE17)),0)+OFFSET(CostE!AI$5,$AA17-1,SkipYrs*Periods+1+$AE17)*$AF17*(1/(1+Disc)^($AE17+1)))*$R17 + (OFFSET(CostE!AI$5,$AA17-1,SkipYrs*Periods+1+$AE17)*$AG17*(1/(1+Disc)^($AE17+1))+ IF($AH17>0,NPV(Disc,OFFSET(CostE!AI$5,$AA17-1,SkipYrs*Periods+ROUND($AE17+$AF17+$AG17,0)+1,1,$AH17)),0)*(1/(1+Disc)^($AE17+$AF17+$AG17))+ OFFSET(CostE!AI$5,$AA17-1,SkipYrs*Periods+ROUND($AE17+$AF17+$AG17+$AH17,0)+1)*$AI17*(1/(1+Disc)^(ROUND($AE17+$AH17+$AF17+$AG17,0)+1)))*$S17 ->  | DH17: =(IF($AE17>0,NPV(Disc,OFFSET(CostE!AJ$5,$AA17-1,SkipYrs*Periods+1,1,$AE17)),0)+OFFSET(CostE!AJ$5,$AA17-1,SkipYrs*Periods+1+$AE17)*$AF17*(1/(1+Disc)^($AE17+1)))*$R17 + (OFFSET(CostE!AJ$5,$AA17-1,SkipYrs*Periods+1+$AE17)*$AG17*(1/(1+Disc)^($AE17+1))+ IF($AH17>0,NPV(Disc,OFFSET(CostE!AJ$5,$AA17-1,SkipYrs*Periods+ROUND($AE17+$AF17+$AG17,0)+1,1,$AH17)),0)*(1/(1+Disc)^($AE17+$AF17+$AG17))+ OFFSET(CostE!AJ$5,$AA17-1,SkipYrs*Periods+ROUND($AE17+$AF17+$AG17+$AH17,0)+1)*$AI17*(1/(1+Disc)^(ROUND($AE17+$AH17+$AF17+$AG17,0)+1)))*$S17 ->  | DI17: =(IF($AE17>0,NPV(Disc,OFFSET(CostE!AK$5,$AA17-1,SkipYrs*Periods+1,1,$AE17)),0)+OFFSET(CostE!AK$5,$AA17-1,SkipYrs*Periods+1+$AE17)*$AF17*(1/(1+Disc)^($AE17+1)))*$R17 + (OFFSET(CostE!AK$5,$AA17-1,SkipYrs*Periods+1+$AE17)*$AG17*(1/(1+Disc)^($AE17+1))+ IF($AH17>0,NPV(Disc,OFFSET(CostE!AK$5,$AA17-1,SkipYrs*Periods+ROUND($AE17+$AF17+$AG17,0)+1,1,$AH17)),0)*(1/(1+Disc)^($AE17+$AF17+$AG17))+ OFFSET(CostE!AK$5,$AA17-1,SkipYrs*Periods+ROUND($AE17+$AF17+$AG17+$AH17,0)+1)*$AI17*(1/(1+Disc)^(ROUND($AE17+$AH17+$AF17+$AG17,0)+1)))*$S17 ->  | DJ17: =(IF($AE17>0,NPV(Disc,OFFSET(CostE!AL$5,$AA17-1,SkipYrs*Periods+1,1,$AE17)),0)+OFFSET(CostE!AL$5,$AA17-1,SkipYrs*Periods+1+$AE17)*$AF17*(1/(1+Disc)^($AE17+1)))*$R17 + (OFFSET(CostE!AL$5,$AA17-1,SkipYrs*Periods+1+$AE17)*$AG17*(1/(1+Disc)^($AE17+1))+ IF($AH17>0,NPV(Disc,OFFSET(CostE!AL$5,$AA17-1,SkipYrs*Periods+ROUND($AE17+$AF17+$AG17,0)+1,1,$AH17)),0)*(1/(1+Disc)^($AE17+$AF17+$AG17))+ OFFSET(CostE!AL$5,$AA17-1,SkipYrs*Periods+ROUND($AE17+$AF17+$AG17+$AH17,0)+1)*$AI17*(1/(1+Disc)^(ROUND($AE17+$AH17+$AF17+$AG17,0)+1)))*$S17 ->  | DK17: =(IF($AE17>0,NPV(Disc,OFFSET(CostE!AM$5,$AA17-1,SkipYrs*Periods+1,1,$AE17)),0)+OFFSET(CostE!AM$5,$AA17-1,SkipYrs*Periods+1+$AE17)*$AF17*(1/(1+Disc)^($AE17+1)))*$R17 + (OFFSET(CostE!AM$5,$AA17-1,SkipYrs*Periods+1+$AE17)*$AG17*(1/(1+Disc)^($AE17+1))+ IF($AH17>0,NPV(Disc,OFFSET(CostE!AM$5,$AA17-1,SkipYrs*Periods+ROUND($AE17+$AF17+$AG17,0)+1,1,$AH17)),0)*(1/(1+Disc)^($AE17+$AF17+$AG17))+ OFFSET(CostE!AM$5,$AA17-1,SkipYrs*Periods+ROUND($AE17+$AF17+$AG17+$AH17,0)+1)*$AI17*(1/(1+Disc)^(ROUND($AE17+$AH17+$AF17+$AG17,0)+1)))*$S17 ->  | DL17: =(IF($AE17>0,NPV(Disc,OFFSET(CostE!AN$5,$AA17-1,SkipYrs*Periods+1,1,$AE17)),0)+OFFSET(CostE!AN$5,$AA17-1,SkipYrs*Periods+1+$AE17)*$AF17*(1/(1+Disc)^($AE17+1)))*$R17 + (OFFSET(CostE!AN$5,$AA17-1,SkipYrs*Periods+1+$AE17)*$AG17*(1/(1+Disc)^($AE17+1))+ IF($AH17>0,NPV(Disc,OFFSET(CostE!AN$5,$AA17-1,SkipYrs*Periods+ROUND($AE17+$AF17+$AG17,0)+1,1,$AH17)),0)*(1/(1+Disc)^($AE17+$AF17+$AG17))+ OFFSET(CostE!AN$5,$AA17-1,SkipYrs*Periods+ROUND($AE17+$AF17+$AG17+$AH17,0)+1)*$AI17*(1/(1+Disc)^(ROUND($AE17+$AH17+$AF17+$AG17,0)+1)))*$S17 ->  | DM17: =(IF($AE17>0,NPV(Disc,OFFSET(CostE!AO$5,$AA17-1,SkipYrs*Periods+1,1,$AE17)),0)+OFFSET(CostE!AO$5,$AA17-1,SkipYrs*Periods+1+$AE17)*$AF17*(1/(1+Disc)^($AE17+1)))*$R17 + (OFFSET(CostE!AO$5,$AA17-1,SkipYrs*Periods+1+$AE17)*$AG17*(1/(1+Disc)^($AE17+1))+ IF($AH17>0,NPV(Disc,OFFSET(CostE!AO$5,$AA17-1,SkipYrs*Periods+ROUND($AE17+$AF17+$AG17,0)+1,1,$AH17)),0)*(1/(1+Disc)^($AE17+$AF17+$AG17))+ OFFSET(CostE!AO$5,$AA17-1,SkipYrs*Periods+ROUND($AE17+$AF17+$AG17+$AH17,0)+1)*$AI17*(1/(1+Disc)^(ROUND($AE17+$AH17+$AF17+$AG17,0)+1)))*$S17 ->  | DN17: =(IF($AE17>0,NPV(Disc,OFFSET(CostE!AP$5,$AA17-1,SkipYrs*Periods+1,1,$AE17)),0)+OFFSET(CostE!AP$5,$AA17-1,SkipYrs*Periods+1+$AE17)*$AF17*(1/(1+Disc)^($AE17+1)))*$R17 + (OFFSET(CostE!AP$5,$AA17-1,SkipYrs*Periods+1+$AE17)*$AG17*(1/(1+Disc)^($AE17+1))+ IF($AH17>0,NPV(Disc,OFFSET(CostE!AP$5,$AA17-1,SkipYrs*Periods+ROUND($AE17+$AF17+$AG17,0)+1,1,$AH17)),0)*(1/(1+Disc)^($AE17+$AF17+$AG17))+ OFFSET(CostE!AP$5,$AA17-1,SkipYrs*Periods+ROUND($AE17+$AF17+$AG17+$AH17,0)+1)*$AI17*(1/(1+Disc)^(ROUND($AE17+$AH17+$AF17+$AG17,0)+1)))*$S17 ->  | DO17: =(IF($AE17>0,NPV(Disc,OFFSET(CostE!AQ$5,$AA17-1,SkipYrs*Periods+1,1,$AE17)),0)+OFFSET(CostE!AQ$5,$AA17-1,SkipYrs*Periods+1+$AE17)*$AF17*(1/(1+Disc)^($AE17+1)))*$R17 + (OFFSET(CostE!AQ$5,$AA17-1,SkipYrs*Periods+1+$AE17)*$AG17*(1/(1+Disc)^($AE17+1))+ IF($AH17>0,NPV(Disc,OFFSET(CostE!AQ$5,$AA17-1,SkipYrs*Periods+ROUND($AE17+$AF17+$AG17,0)+1,1,$AH17)),0)*(1/(1+Disc)^($AE17+$AF17+$AG17))+ OFFSET(CostE!AQ$5,$AA17-1,SkipYrs*Periods+ROUND($AE17+$AF17+$AG17+$AH17,0)+1)*$AI17*(1/(1+Disc)^(ROUND($AE17+$AH17+$AF17+$AG17,0)+1)))*$S17 ->  | DP17: =(IF($AE17>0,NPV(Disc,OFFSET(CostE!AR$5,$AA17-1,SkipYrs*Periods+1,1,$AE17)),0)+OFFSET(CostE!AR$5,$AA17-1,SkipYrs*Periods+1+$AE17)*$AF17*(1/(1+Disc)^($AE17+1)))*$R17 + (OFFSET(CostE!AR$5,$AA17-1,SkipYrs*Periods+1+$AE17)*$AG17*(1/(1+Disc)^($AE17+1))+ IF($AH17>0,NPV(Disc,OFFSET(CostE!AR$5,$AA17-1,SkipYrs*Periods+ROUND($AE17+$AF17+$AG17,0)+1,1,$AH17)),0)*(1/(1+Disc)^($AE17+$AF17+$AG17))+ OFFSET(CostE!AR$5,$AA17-1,SkipYrs*Periods+ROUND($AE17+$AF17+$AG17+$AH17,0)+1)*$AI17*(1/(1+Disc)^(ROUND($AE17+$AH17+$AF17+$AG17,0)+1)))*$S17 ->  | DQ17: =(IF($AE17>0,NPV(Disc,OFFSET(CostE!AS$5,$AA17-1,SkipYrs*Periods+1,1,$AE17)),0)+OFFSET(CostE!AS$5,$AA17-1,SkipYrs*Periods+1+$AE17)*$AF17*(1/(1+Disc)^($AE17+1)))*$R17 + (OFFSET(CostE!AS$5,$AA17-1,SkipYrs*Periods+1+$AE17)*$AG17*(1/(1+Disc)^($AE17+1))+ IF($AH17>0,NPV(Disc,OFFSET(CostE!AS$5,$AA17-1,SkipYrs*Periods+ROUND($AE17+$AF17+$AG17,0)+1,1,$AH17)),0)*(1/(1+Disc)^($AE17+$AF17+$AG17))+ OFFSET(CostE!AS$5,$AA17-1,SkipYrs*Periods+ROUND($AE17+$AF17+$AG17+$AH17,0)+1)*$AI17*(1/(1+Disc)^(ROUND($AE17+$AH17+$AF17+$AG17,0)+1)))*$S17 ->  | DR17: =(IF($AE17>0,NPV(Disc,OFFSET(CostE!AT$5,$AA17-1,SkipYrs*Periods+1,1,$AE17)),0)+OFFSET(CostE!AT$5,$AA17-1,SkipYrs*Periods+1+$AE17)*$AF17*(1/(1+Disc)^($AE17+1)))*$R17 + (OFFSET(CostE!AT$5,$AA17-1,SkipYrs*Periods+1+$AE17)*$AG17*(1/(1+Disc)^($AE17+1))+ IF($AH17>0,NPV(Disc,OFFSET(CostE!AT$5,$AA17-1,SkipYrs*Periods+ROUND($AE17+$AF17+$AG17,0)+1,1,$AH17)),0)*(1/(1+Disc)^($AE17+$AF17+$AG17))+ OFFSET(CostE!AT$5,$AA17-1,SkipYrs*Periods+ROUND($AE17+$AF17+$AG17+$AH17,0)+1)*$AI17*(1/(1+Disc)^(ROUND($AE17+$AH17+$AF17+$AG17,0)+1)))*$S17 ->  | DS17: =(IF($AE17>0,NPV(Disc,OFFSET(CostE!AU$5,$AA17-1,SkipYrs*Periods+1,1,$AE17)),0)+OFFSET(CostE!AU$5,$AA17-1,SkipYrs*Periods+1+$AE17)*$AF17*(1/(1+Disc)^($AE17+1)))*$R17 + (OFFSET(CostE!AU$5,$AA17-1,SkipYrs*Periods+1+$AE17)*$AG17*(1/(1+Disc)^($AE17+1))+ IF($AH17>0,NPV(Disc,OFFSET(CostE!AU$5,$AA17-1,SkipYrs*Periods+ROUND($AE17+$AF17+$AG17,0)+1,1,$AH17)),0)*(1/(1+Disc)^($AE17+$AF17+$AG17))+ OFFSET(CostE!AU$5,$AA17-1,SkipYrs*Periods+ROUND($AE17+$AF17+$AG17+$AH17,0)+1)*$AI17*(1/(1+Disc)^(ROUND($AE17+$AH17+$AF17+$AG17,0)+1)))*$S17 ->  | DT17: =(IF($AE17>0,NPV(Disc,OFFSET(CostE!AV$5,$AA17-1,SkipYrs*Periods+1,1,$AE17)),0)+OFFSET(CostE!AV$5,$AA17-1,SkipYrs*Periods+1+$AE17)*$AF17*(1/(1+Disc)^($AE17+1)))*$R17 + (OFFSET(CostE!AV$5,$AA17-1,SkipYrs*Periods+1+$AE17)*$AG17*(1/(1+Disc)^($AE17+1))+ IF($AH17>0,NPV(Disc,OFFSET(CostE!AV$5,$AA17-1,SkipYrs*Periods+ROUND($AE17+$AF17+$AG17,0)+1,1,$AH17)),0)*(1/(1+Disc)^($AE17+$AF17+$AG17))+ OFFSET(CostE!AV$5,$AA17-1,SkipYrs*Periods+ROUND($AE17+$AF17+$AG17+$AH17,0)+1)*$AI17*(1/(1+Disc)^(ROUND($AE17+$AH17+$AF17+$AG17,0)+1)))*$S17 ->  | DU17: =(IF($AE17>0,NPV(Disc,OFFSET(CostE!AW$5,$AA17-1,SkipYrs*Periods+1,1,$AE17)),0)+OFFSET(CostE!AW$5,$AA17-1,SkipYrs*Periods+1+$AE17)*$AF17*(1/(1+Disc)^($AE17+1)))*$R17 + (OFFSET(CostE!AW$5,$AA17-1,SkipYrs*Periods+1+$AE17)*$AG17*(1/(1+Disc)^($AE17+1))+ IF($AH17>0,NPV(Disc,OFFSET(CostE!AW$5,$AA17-1,SkipYrs*Periods+ROUND($AE17+$AF17+$AG17,0)+1,1,$AH17)),0)*(1/(1+Disc)^($AE17+$AF17+$AG17))+ OFFSET(CostE!AW$5,$AA17-1,SkipYrs*Periods+ROUND($AE17+$AF17+$AG17+$AH17,0)+1)*$AI17*(1/(1+Disc)^(ROUND($AE17+$AH17+$AF17+$AG17,0)+1)))*$S17 ->  | DV17: =(IF($AE17>0,NPV(Disc,OFFSET(CostE!AX$5,$AA17-1,SkipYrs*Periods+1,1,$AE17)),0)+OFFSET(CostE!AX$5,$AA17-1,SkipYrs*Periods+1+$AE17)*$AF17*(1/(1+Disc)^($AE17+1)))*$R17 + (OFFSET(CostE!AX$5,$AA17-1,SkipYrs*Periods+1+$AE17)*$AG17*(1/(1+Disc)^($AE17+1))+ IF($AH17>0,NPV(Disc,OFFSET(CostE!AX$5,$AA17-1,SkipYrs*Periods+ROUND($AE17+$AF17+$AG17,0)+1,1,$AH17)),0)*(1/(1+Disc)^($AE17+$AF17+$AG17))+ OFFSET(CostE!AX$5,$AA17-1,SkipYrs*Periods+ROUND($AE17+$AF17+$AG17+$AH17,0)+1)*$AI17*(1/(1+Disc)^(ROUND($AE17+$AH17+$AF17+$AG17,0)+1)))*$S17 ->  | DW17: =NPV(Disc,IF(ISERROR(DV17),0,Input!BA17:CR17*(AM17:CD17+CE17:DV17)))*L17 -> 0 | DX17: =NPV(Disc,GasCalcs!M17:BD17*Input!BA17:CR17)*L17 ->  | DY17: =NPV(Disc,IF(ISERROR(DV17),0,Input!BA17:CR17*(AM17:CD17*$G17+CE17:DV17*$H17)))*$L17 -> 0 | DZ17: =IF(ISERROR($I17),1,$I17)*IF(ISERROR(DX17),0,DX17) -> 0 | EA17: =IF(ISERROR(MATCH(Input!$S17,Rates!$A$4:$A$9,0)),1,MATCH(Input!$S17,Rates!$A$4:$A$9,0)) -> 1 | EB17: =MATCH(Input!$X17,Rates!$A$16:$A$18,0) ->  | EC17: =(IF($E17>=1,NPV($C$3,OFFSET(Rates!$B$4,$EA17-1,EC$16-Rates!$B$3,1,TRUNC($E17))))*(1+$C$3)+OFFSET(Rates!$B$4,$EA17-1,EC$16-Rates!$B$3+TRUNC($E17))*($E17-TRUNC($E17))*(1/(1+$C$3)^(EC$16-Rates!$B$3+TRUNC($E17))))*$M17+(IF((Input!$Z17-$E17)>=1,NPV($C$3,OFFSET(Rates!$B$4,$EA17-1,EC$16-Rates!$B$3+TRUNC($E17),1,TRUNC(Input!$Z17-$E17))))/(1+$C$3)^(TRUNC($E17)-1)+OFFSET(Rates!$B$4,$EA17-1,EC$16-Rates!$B$3+TRUNC(Input!$Z17))*(Input!$Z17-TRUNC(Input!$Z17))*(1/(1+$C$3)^(EC$16-Rates!$B$3+TRUNC(Input!$Z17))))*Input!$AC17 -> 0 | ED17: =(IF($E17>=1,NPV($C$3,OFFSET(Rates!$B$4,$EA17-1,ED$16-Rates!$B$3,1,TRUNC($E17))))*(1+$C$3)+OFFSET(Rates!$B$4,$EA17-1,ED$16-Rates!$B$3+TRUNC($E17))*($E17-TRUNC($E17))*(1/(1+$C$3)^(ED$16-Rates!$B$3+TRUNC($E17))))*$M17+(IF((Input!$Z17-$E17)>=1,NPV($C$3,OFFSET(Rates!$B$4,$EA17-1,ED$16-Rates!$B$3+TRUNC($E17),1,TRUNC(Input!$Z17-$E17))))/(1+$C$3)^(TRUNC($E17)-1)+OFFSET(Rates!$B$4,$EA17-1,ED$16-Rates!$B$3+TRUNC(Input!$Z17))*(Input!$Z17-TRUNC(Input!$Z17))*(1/(1+$C$3)^(ED$16-Rates!$B$3+TRUNC(Input!$Z17))))*Input!$AC17 -> 0 | EE17: =(IF($E17>=1,NPV($C$3,OFFSET(Rates!$B$4,$EA17-1,EE$16-Rates!$B$3,1,TRUNC($E17))))*(1+$C$3)+OFFSET(Rates!$B$4,$EA17-1,EE$16-Rates!$B$3+TRUNC($E17))*($E17-TRUNC($E17))*(1/(1+$C$3)^(EE$16-Rates!$B$3+TRUNC($E17))))*$M17+(IF((Input!$Z17-$E17)>=1,NPV($C$3,OFFSET(Rates!$B$4,$EA17-1,EE$16-Rates!$B$3+TRUNC($E17),1,TRUNC(Input!$Z17-$E17))))/(1+$C$3)^(TRUNC($E17)-1)+OFFSET(Rates!$B$4,$EA17-1,EE$16-Rates!$B$3+TRUNC(Input!$Z17))*(Input!$Z17-TRUNC(Input!$Z17))*(1/(1+$C$3)^(EE$16-Rates!$B$3+TRUNC(Input!$Z17))))*Input!$AC17 -> 0 | EF17: =(IF($E17>=1,NPV($C$3,OFFSET(Rates!$B$4,$EA17-1,EF$16-Rates!$B$3,1,TRUNC($E17))))*(1+$C$3)+OFFSET(Rates!$B$4,$EA17-1,EF$16-Rates!$B$3+TRUNC($E17))*($E17-TRUNC($E17))*(1/(1+$C$3)^(EF$16-Rates!$B$3+TRUNC($E17))))*$M17+(IF((Input!$Z17-$E17)>=1,NPV($C$3,OFFSET(Rates!$B$4,$EA17-1,EF$16-Rates!$B$3+TRUNC($E17),1,TRUNC(Input!$Z17-$E17))))/(1+$C$3)^(TRUNC($E17)-1)+OFFSET(Rates!$B$4,$EA17-1,EF$16-Rates!$B$3+TRUNC(Input!$Z17))*(Input!$Z17-TRUNC(Input!$Z17))*(1/(1+$C$3)^(EF$16-Rates!$B$3+TRUNC(Input!$Z17))))*Input!$AC17 -> 0 | EG17: =(IF($E17>=1,NPV($C$3,OFFSET(Rates!$B$4,$EA17-1,EG$16-Rates!$B$3,1,TRUNC($E17))))*(1+$C$3)+OFFSET(Rates!$B$4,$EA17-1,EG$16-Rates!$B$3+TRUNC($E17))*($E17-TRUNC($E17))*(1/(1+$C$3)^(EG$16-Rates!$B$3+TRUNC($E17))))*$M17+(IF((Input!$Z17-$E17)>=1,NPV($C$3,OFFSET(Rates!$B$4,$EA17-1,EG$16-Rates!$B$3+TRUNC($E17),1,TRUNC(Input!$Z17-$E17))))/(1+$C$3)^(TRUNC($E17)-1)+OFFSET(Rates!$B$4,$EA17-1,EG$16-Rates!$B$3+TRUNC(Input!$Z17))*(Input!$Z17-TRUNC(Input!$Z17))*(1/(1+$C$3)^(EG$16-Rates!$B$3+TRUNC(Input!$Z17))))*Input!$AC17 -> 0 | EH17: =(IF($E17>=1,NPV($C$3,OFFSET(Rates!$B$4,$EA17-1,EH$16-Rates!$B$3,1,TRUNC($E17))))*(1+$C$3)+OFFSET(Rates!$B$4,$EA17-1,EH$16-Rates!$B$3+TRUNC($E17))*($E17-TRUNC($E17))*(1/(1+$C$3)^(EH$16-Rates!$B$3+TRUNC($E17))))*$M17+(IF((Input!$Z17-$E17)>=1,NPV($C$3,OFFSET(Rates!$B$4,$EA17-1,EH$16-Rates!$B$3+TRUNC($E17),1,TRUNC(Input!$Z17-$E17))))/(1+$C$3)^(TRUNC($E17)-1)+OFFSET(Rates!$B$4,$EA17-1,EH$16-Rates!$B$3+TRUNC(Input!$Z17))*(Input!$Z17-TRUNC(Input!$Z17))*(1/(1+$C$3)^(EH$16-Rates!$B$3+TRUNC(Input!$Z17))))*Input!$AC17 -> 0 | EI17: =(IF($E17>=1,NPV($C$3,OFFSET(Rates!$B$4,$EA17-1,EI$16-Rates!$B$3,1,TRUNC($E17))))*(1+$C$3)+OFFSET(Rates!$B$4,$EA17-1,EI$16-Rates!$B$3+TRUNC($E17))*($E17-TRUNC($E17))*(1/(1+$C$3)^(EI$16-Rates!$B$3+TRUNC($E17))))*$M17+(IF((Input!$Z17-$E17)>=1,NPV($C$3,OFFSET(Rates!$B$4,$EA17-1,EI$16-Rates!$B$3+TRUNC($E17),1,TRUNC(Input!$Z17-$E17))))/(1+$C$3)^(TRUNC($E17)-1)+OFFSET(Rates!$B$4,$EA17-1,EI$16-Rates!$B$3+TRUNC(Input!$Z17))*(Input!$Z17-TRUNC(Input!$Z17))*(1/(1+$C$3)^(EI$16-Rates!$B$3+TRUNC(Input!$Z17))))*Input!$AC17 -> 0 | EJ17: =(IF($E17>=1,NPV($C$3,OFFSET(Rates!$B$4,$EA17-1,EJ$16-Rates!$B$3,1,TRUNC($E17))))*(1+$C$3)+OFFSET(Rates!$B$4,$EA17-1,EJ$16-Rates!$B$3+TRUNC($E17))*($E17-TRUNC($E17))*(1/(1+$C$3)^(EJ$16-Rates!$B$3+TRUNC($E17))))*$M17+(IF((Input!$Z17-$E17)>=1,NPV($C$3,OFFSET(Rates!$B$4,$EA17-1,EJ$16-Rates!$B$3+TRUNC($E17),1,TRUNC(Input!$Z17-$E17))))/(1+$C$3)^(TRUNC($E17)-1)+OFFSET(Rates!$B$4,$EA17-1,EJ$16-Rates!$B$3+TRUNC(Input!$Z17))*(Input!$Z17-TRUNC(Input!$Z17))*(1/(1+$C$3)^(EJ$16-Rates!$B$3+TRUNC(Input!$Z17))))*Input!$AC17 -> 0 | EK17: =(IF($E17>=1,NPV($C$3,OFFSET(Rates!$B$4,$EA17-1,EK$16-Rates!$B$3,1,TRUNC($E17))))*(1+$C$3)+OFFSET(Rates!$B$4,$EA17-1,EK$16-Rates!$B$3+TRUNC($E17))*($E17-TRUNC($E17))*(1/(1+$C$3)^(EK$16-Rates!$B$3+TRUNC($E17))))*$M17+(IF((Input!$Z17-$E17)>=1,NPV($C$3,OFFSET(Rates!$B$4,$EA17-1,EK$16-Rates!$B$3+TRUNC($E17),1,TRUNC(Input!$Z17-$E17))))/(1+$C$3)^(TRUNC($E17)-1)+OFFSET(Rates!$B$4,$EA17-1,EK$16-Rates!$B$3+TRUNC(Input!$Z17))*(Input!$Z17-TRUNC(Input!$Z17))*(1/(1+$C$3)^(EK$16-Rates!$B$3+TRUNC(Input!$Z17))))*Input!$AC17 -> 0 | EL17: =(IF($E17>=1,NPV($C$3,OFFSET(Rates!$B$4,$EA17-1,EL$16-Rates!$B$3,1,TRUNC($E17))))*(1+$C$3)+OFFSET(Rates!$B$4,$EA17-1,EL$16-Rates!$B$3+TRUNC($E17))*($E17-TRUNC($E17))*(1/(1+$C$3)^(EL$16-Rates!$B$3+TRUNC($E17))))*$M17+(IF((Input!$Z17-$E17)>=1,NPV($C$3,OFFSET(Rates!$B$4,$EA17-1,EL$16-Rates!$B$3+TRUNC($E17),1,TRUNC(Input!$Z17-$E17))))/(1+$C$3)^(TRUNC($E17)-1)+OFFSET(Rates!$B$4,$EA17-1,EL$16-Rates!$B$3+TRUNC(Input!$Z17))*(Input!$Z17-TRUNC(Input!$Z17))*(1/(1+$C$3)^(EL$16-Rates!$B$3+TRUNC(Input!$Z17))))*Input!$AC17 -> 0 | EM17: =(IF($E17>=1,NPV($C$3,OFFSET(Rates!$B$4,$EA17-1,EM$16-Rates!$B$3,1,TRUNC($E17))))*(1+$C$3)+OFFSET(Rates!$B$4,$EA17-1,EM$16-Rates!$B$3+TRUNC($E17))*($E17-TRUNC($E17))*(1/(1+$C$3)^(EM$16-Rates!$B$3+TRUNC($E17))))*$M17+(IF((Input!$Z17-$E17)>=1,NPV($C$3,OFFSET(Rates!$B$4,$EA17-1,EM$16-Rates!$B$3+TRUNC($E17),1,TRUNC(Input!$Z17-$E17))))/(1+$C$3)^(TRUNC($E17)-1)+OFFSET(Rates!$B$4,$EA17-1,EM$16-Rates!$B$3+TRUNC(Input!$Z17))*(Input!$Z17-TRUNC(Input!$Z17))*(1/(1+$C$3)^(EM$16-Rates!$B$3+TRUNC(Input!$Z17))))*Input!$AC17 -> 0 | EN17: =(IF($E17>=1,NPV($C$3,OFFSET(Rates!$B$16,$EB17-1,EN$16-Rates!$B$3,1,TRUNC($E17))))*(1+$C$3) +OFFSET(Rates!$B$16,$EB17-1,EN$16-Rates!$B$3+TRUNC($E17))*($E17-TRUNC($E17))*(1/(1+$C$3)^(EN$16-Rates!$B$3+TRUNC($E17))))*Input!$V17 + (IF((Input!$Z17-$E17)>=1,NPV($C$3,OFFSET(Rates!$B$16,$EB17-1,EN$16-Rates!$B$3+TRUNC($E17),1,TRUNC(Input!$Z17-$E17))))/(1+$C$3)^(TRUNC($E17)-1) +OFFSET(Rates!$B$16,$EB17-1,EN$16-Rates!$B$3+TRUNC(Input!$Z17))*(Input!$Z17-TRUNC(Input!$Z17))*(1/(1+$C$3)^(EN$16-Rates!$B$3+TRUNC(Input!$Z17))))*Input!$AE17 ->  | EO17: =(IF($E17>=1,NPV($C$3,OFFSET(Rates!$B$16,$EB17-1,EO$16-Rates!$B$3,1,TRUNC($E17))))*(1+$C$3) +OFFSET(Rates!$B$16,$EB17-1,EO$16-Rates!$B$3+TRUNC($E17))*($E17-TRUNC($E17))*(1/(1+$C$3)^(EO$16-Rates!$B$3+TRUNC($E17))))*Input!$V17 + (IF((Input!$Z17-$E17)>=1,NPV($C$3,OFFSET(Rates!$B$16,$EB17-1,EO$16-Rates!$B$3+TRUNC($E17),1,TRUNC(Input!$Z17-$E17))))/(1+$C$3)^(TRUNC($E17)-1) +OFFSET(Rates!$B$16,$EB17-1,EO$16-Rates!$B$3+TRUNC(Input!$Z17))*(Input!$Z17-TRUNC(Input!$Z17))*(1/(1+$C$3)^(EO$16-Rates!$B$3+TRUNC(Input!$Z17))))*Input!$AE17 ->  | EP17: =(IF($E17>=1,NPV($C$3,OFFSET(Rates!$B$16,$EB17-1,EP$16-Rates!$B$3,1,TRUNC($E17))))*(1+$C$3) +OFFSET(Rates!$B$16,$EB17-1,EP$16-Rates!$B$3+TRUNC($E17))*($E17-TRUNC($E17))*(1/(1+$C$3)^(EP$16-Rates!$B$3+TRUNC($E17))))*Input!$V17 + (IF((Input!$Z17-$E17)>=1,NPV($C$3,OFFSET(Rates!$B$16,$EB17-1,EP$16-Rates!$B$3+TRUNC($E17),1,TRUNC(Input!$Z17-$E17))))/(1+$C$3)^(TRUNC($E17)-1) +OFFSET(Rates!$B$16,$EB17-1,EP$16-Rates!$B$3+TRUNC(Input!$Z17))*(Input!$Z17-TRUNC(Input!$Z17))*(1/(1+$C$3)^(EP$16-Rates!$B$3+TRUNC(Input!$Z17))))*Input!$AE17 ->  | EQ17: =(IF($E17>=1,NPV($C$3,OFFSET(Rates!$B$16,$EB17-1,EQ$16-Rates!$B$3,1,TRUNC($E17))))*(1+$C$3) +OFFSET(Rates!$B$16,$EB17-1,EQ$16-Rates!$B$3+TRUNC($E17))*($E17-TRUNC($E17))*(1/(1+$C$3)^(EQ$16-Rates!$B$3+TRUNC($E17))))*Input!$V17 + (IF((Input!$Z17-$E17)>=1,NPV($C$3,OFFSET(Rates!$B$16,$EB17-1,EQ$16-Rates!$B$3+TRUNC($E17),1,TRUNC(Input!$Z17-$E17))))/(1+$C$3)^(TRUNC($E17)-1) +OFFSET(Rates!$B$16,$EB17-1,EQ$16-Rates!$B$3+TRUNC(Input!$Z17))*(Input!$Z17-TRUNC(Input!$Z17))*(1/(1+$C$3)^(EQ$16-Rates!$B$3+TRUNC(Input!$Z17))))*Input!$AE17 ->  | ER17: =(IF($E17>=1,NPV($C$3,OFFSET(Rates!$B$16,$EB17-1,ER$16-Rates!$B$3,1,TRUNC($E17))))*(1+$C$3) +OFFSET(Rates!$B$16,$EB17-1,ER$16-Rates!$B$3+TRUNC($E17))*($E17-TRUNC($E17))*(1/(1+$C$3)^(ER$16-Rates!$B$3+TRUNC($E17))))*Input!$V17 + (IF((Input!$Z17-$E17)>=1,NPV($C$3,OFFSET(Rates!$B$16,$EB17-1,ER$16-Rates!$B$3+TRUNC($E17),1,TRUNC(Input!$Z17-$E17))))/(1+$C$3)^(TRUNC($E17)-1) +OFFSET(Rates!$B$16,$EB17-1,ER$16-Rates!$B$3+TRUNC(Input!$Z17))*(Input!$Z17-TRUNC(Input!$Z17))*(1/(1+$C$3)^(ER$16-Rates!$B$3+TRUNC(Input!$Z17))))*Input!$AE17 ->  | ES17: =(IF($E17>=1,NPV($C$3,OFFSET(Rates!$B$16,$EB17-1,ES$16-Rates!$B$3,1,TRUNC($E17))))*(1+$C$3) +OFFSET(Rates!$B$16,$EB17-1,ES$16-Rates!$B$3+TRUNC($E17))*($E17-TRUNC($E17))*(1/(1+$C$3)^(ES$16-Rates!$B$3+TRUNC($E17))))*Input!$V17 + (IF((Input!$Z17-$E17)>=1,NPV($C$3,OFFSET(Rates!$B$16,$EB17-1,ES$16-Rates!$B$3+TRUNC($E17),1,TRUNC(Input!$Z17-$E17))))/(1+$C$3)^(TRUNC($E17)-1) +OFFSET(Rates!$B$16,$EB17-1,ES$16-Rates!$B$3+TRUNC(Input!$Z17))*(Input!$Z17-TRUNC(Input!$Z17))*(1/(1+$C$3)^(ES$16-Rates!$B$3+TRUNC(Input!$Z17))))*Input!$AE17 ->  | ET17: =(IF($E17>=1,NPV($C$3,OFFSET(Rates!$B$16,$EB17-1,ET$16-Rates!$B$3,1,TRUNC($E17))))*(1+$C$3) +OFFSET(Rates!$B$16,$EB17-1,ET$16-Rates!$B$3+TRUNC($E17))*($E17-TRUNC($E17))*(1/(1+$C$3)^(ET$16-Rates!$B$3+TRUNC($E17))))*Input!$V17 + (IF((Input!$Z17-$E17)>=1,NPV($C$3,OFFSET(Rates!$B$16,$EB17-1,ET$16-Rates!$B$3+TRUNC($E17),1,TRUNC(Input!$Z17-$E17))))/(1+$C$3)^(TRUNC($E17)-1) +OFFSET(Rates!$B$16,$EB17-1,ET$16-Rates!$B$3+TRUNC(Input!$Z17))*(Input!$Z17-TRUNC(Input!$Z17))*(1/(1+$C$3)^(ET$16-Rates!$B$3+TRUNC(Input!$Z17))))*Input!$AE17 ->  | EU17: =(IF($E17>=1,NPV($C$3,OFFSET(Rates!$B$16,$EB17-1,EU$16-Rates!$B$3,1,TRUNC($E17))))*(1+$C$3) +OFFSET(Rates!$B$16,$EB17-1,EU$16-Rates!$B$3+TRUNC($E17))*($E17-TRUNC($E17))*(1/(1+$C$3)^(EU$16-Rates!$B$3+TRUNC($E17))))*Input!$V17 + (IF((Input!$Z17-$E17)>=1,NPV($C$3,OFFSET(Rates!$B$16,$EB17-1,EU$16-Rates!$B$3+TRUNC($E17),1,TRUNC(Input!$Z17-$E17))))/(1+$C$3)^(TRUNC($E17)-1) +OFFSET(Rates!$B$16,$EB17-1,EU$16-Rates!$B$3+TRUNC(Input!$Z17))*(Input!$Z17-TRUNC(Input!$Z17))*(1/(1+$C$3)^(EU$16-Rates!$B$3+TRUNC(Input!$Z17))))*Input!$AE17 ->  | EV17: =(IF($E17>=1,NPV($C$3,OFFSET(Rates!$B$16,$EB17-1,EV$16-Rates!$B$3,1,TRUNC($E17))))*(1+$C$3) +OFFSET(Rates!$B$16,$EB17-1,EV$16-Rates!$B$3+TRUNC($E17))*($E17-TRUNC($E17))*(1/(1+$C$3)^(EV$16-Rates!$B$3+TRUNC($E17))))*Input!$V17 + (IF((Input!$Z17-$E17)>=1,NPV($C$3,OFFSET(Rates!$B$16,$EB17-1,EV$16-Rates!$B$3+TRUNC($E17),1,TRUNC(Input!$Z17-$E17))))/(1+$C$3)^(TRUNC($E17)-1) +OFFSET(Rates!$B$16,$EB17-1,EV$16-Rates!$B$3+TRUNC(Input!$Z17))*(Input!$Z17-TRUNC(Input!$Z17))*(1/(1+$C$3)^(EV$16-Rates!$B$3+TRUNC(Input!$Z17))))*Input!$AE17 ->  | EW17: =(IF($E17>=1,NPV($C$3,OFFSET(Rates!$B$16,$EB17-1,EW$16-Rates!$B$3,1,TRUNC($E17))))*(1+$C$3) +OFFSET(Rates!$B$16,$EB17-1,EW$16-Rates!$B$3+TRUNC($E17))*($E17-TRUNC($E17))*(1/(1+$C$3)^(EW$16-Rates!$B$3+TRUNC($E17))))*Input!$V17 + (IF((Input!$Z17-$E17)>=1,NPV($C$3,OFFSET(Rates!$B$16,$EB17-1,EW$16-Rates!$B$3+TRUNC($E17),1,TRUNC(Input!$Z17-$E17))))/(1+$C$3)^(TRUNC($E17)-1) +OFFSET(Rates!$B$16,$EB17-1,EW$16-Rates!$B$3+TRUNC(Input!$Z17))*(Input!$Z17-TRUNC(Input!$Z17))*(1/(1+$C$3)^(EW$16-Rates!$B$3+TRUNC(Input!$Z17))))*Input!$AE17 ->  | EX17: =(IF($E17>=1,NPV($C$3,OFFSET(Rates!$B$16,$EB17-1,EX$16-Rates!$B$3,1,TRUNC($E17))))*(1+$C$3) +OFFSET(Rates!$B$16,$EB17-1,EX$16-Rates!$B$3+TRUNC($E17))*($E17-TRUNC($E17))*(1/(1+$C$3)^(EX$16-Rates!$B$3+TRUNC($E17))))*Input!$V17 + (IF((Input!$Z17-$E17)>=1,NPV($C$3,OFFSET(Rates!$B$16,$EB17-1,EX$16-Rates!$B$3+TRUNC($E17),1,TRUNC(Input!$Z17-$E17))))/(1+$C$3)^(TRUNC($E17)-1) +OFFSET(Rates!$B$16,$EB17-1,EX$16-Rates!$B$3+TRUNC(Input!$Z17))*(Input!$Z17-TRUNC(Input!$Z17))*(1/(1+$C$3)^(EX$16-Rates!$B$3+TRUNC(Input!$Z17))))*Input!$AE17 ->  | EY17: =IF(ISERROR(EC17),0,EC17*Input!AO17*$G17*$L17) -> 0 | EZ17: =IF(ISERROR(ED17),0,ED17*Input!AP17*$G17*$L17) -> 0 | FA17: =IF(ISERROR(EE17),0,EE17*Input!AQ17*$G17*$L17) -> 0 | FB17: =IF(ISERROR(EF17),0,EF17*Input!AR17*$G17*$L17) -> 0 | FC17: =IF(ISERROR(EG17),0,EG17*Input!AS17*$G17*$L17) -> 0 | FD17: =IF(ISERROR(EH17),0,EH17*Input!AT17*$G17*$L17) -> 0 | FE17: =IF(ISERROR(EI17),0,EI17*Input!AU17*$G17*$L17) -> 0 | FF17: =IF(ISERROR(EJ17),0,EJ17*Input!AV17*$G17*$L17) -> 0 | FG17: =IF(ISERROR(EK17),0,EK17*Input!AW17*$G17*$L17) -> 0 | FH17: =IF(ISERROR(EL17),0,EL17*Input!AX17*$G17*$L17) -> 0 | FI17: =IF(ISERROR(EM17),0,EM17*Input!AY17*$G17*$L17) -> 0 | FJ17: =IF(ISERROR(EN17),0,EN17*Input!AO17*$I17*$L17) -> 0 | FK17: =IF(ISERROR(EO17),0,EO17*Input!AP17*$I17*$L17) -> 0 | FL17: =IF(ISERROR(EP17),0,EP17*Input!AQ17*$I17*$L17) -> 0 | FM17: =IF(ISERROR(EQ17),0,EQ17*Input!AR17*$I17*$L17) -> 0 | FN17: =IF(ISERROR(ER17),0,ER17*Input!AS17*$I17*$L17) -> 0 | FO17: =IF(ISERROR(ES17),0,ES17*Input!AT17*$I17*$L17) -> 0 | FP17: =IF(ISERROR(ET17),0,ET17*Input!AU17*$I17*$L17) -> 0 | FQ17: =IF(ISERROR(EU17),0,EU17*Input!AV17*$I17*$L17) -> 0 | FR17: =IF(ISERROR(EV17),0,EV17*Input!AW17*$I17*$L17) -> 0 | FS17: =IF(ISERROR(EW17),0,EW17*Input!AX17*$I17*$L17) -> 0 | FT17: =IF(ISERROR(EX17),0,EX17*Input!AY17*$I17*$L17) -> 0 | FU17: =MAX(0,SUM(Input!N17:P17)-Input!L17) -> 0 | FV17: =MAX(NPV(Disc,FU17*Input!$BA17:$CR17),FY17-GA17,0) -> 0 | FX17: =NPV(Disc,Input!M17*Input!$BA17:$CR17) -> 0 | FY17: =NPV(Disc,SUM(Input!N17:P17)*Input!$BA17:$CR17) -> 0 | FZ17: =FX17+FY17 -> 0 | GA17: =NPV(Disc,1*Input!BA17:CR17)*(Input!L17-IF(Calcs!AD17>0,(Input!L17-Input!AA17)*((1+Input!AB17/Periods)/(1+Disc))^(Calcs!AD17*Periods),0)) -> 0 | GB17: =GA17-FZ17+FV17 -> 0 | GC17: =GB17*J17 -> 0 | GD17: =(NPV(Disc,Input!$BA17:$CR17*Input!R17)*PV($C$3,$E17,-1,0,1)+ NPV(Disc,Input!$BA17:$CR17*N17)*PV($C$3,Input!$Z17-$E17,-1,0,1)/(1+Disc)^$AE17)*L17 -> 0 | GE17: =(NPV(Disc,Input!$BA17:$CR17*Input!V17)*PV($C$3,$E17,-1,0,1)+NPV(Disc,Input!$BA17:$CR17*Input!$AE17)*PV($C$3,Input!$Z17-$E17,-1,0,1)/(1+Disc)^$AE17)*L17 -> 0 | GF17: =IF(ISERROR($G17),0,GD17*$G17) -> 0 | GG17: =IF(ISERROR($I17),0,GE17*$I17) -> 0 | GH17: =MAX(0,DY17) -> 0 | GI17: =MAX(0,DZ17) -> 0 | GJ17: =IF((GH17+GI17)<>0,GH17/(GH17+GI17),0) -> 0 | GK17: =(GH17+GI17)/($GH$1018+$GI$1018) ->  | GL17: =DY17+DZ17-(FZ17+GC17)-(Input!$Q$13-Input!$J$11)*GK17 ->  | GM17: =IF(GF17<>0,(DY17-(GC17+FZ17)*GJ17)/GF17,0) -> 0 | GN17: =IF(GG17<>0,(DZ17-(GC17+FZ17)*(1-GJ17))/GG17,0) -> 0 | GO17: =IF(GF17<>0,GM17-(Input!$Q$13-Input!$J$11)*$GJ17*$GK17/GF17,0) -> 0 | GP17: =IF(GG17<>0,GN17-(Input!$Q$13-Input!$J$11)*(1-$GJ17)*$GK17/GG17,0) -> 0 | GQ17: =IF(GF17<>0,(DY17-(+$FZ17)*GJ17)/GF17,0) -> 0 | GR17: =IF(GG17<>0,(DZ17-($FZ17)*(1-GJ17))/GG17,0) -> 0 | GS17: =IF(GF17<>0,GQ17-(Input!$Q$13-Input!$J$11+Input!$Q$4)*$GJ17*$GK17/GF17,0) -> 0 | GT17: =IF(GG17<>0,GR17-(Input!$Q$13-Input!$J$11+Input!$Q$4)*(1-$GJ17)*$GK17/GG17,0) -> 0 | GU17: =(DZ17+DY17)/(GC17+FZ17) ->  | GV17: =(DZ17+DY17)/(FZ17) ->  | GW17: =(DZ17+DY17)/((GC17+FZ17)+$GK17*(Input!$Q$13-Input!$J$11)) ->  | GX17: =(DZ17+DY17)/(FZ17+$GK17*(Input!$Q$13-Input!$J$11+Input!$Q$4)) ->  | GY17: =Input!CS17*O17*$G17*$L17 -> 0 | GZ17: =GY17*MAX(Input!$Z17,$E17) -> 0 | HA17: =Input!CS17*$I17*GasCalcs!G17*$L17 -> 0 | HB17: =HA17*MAX(Input!$Z17,$E17) -> 0 | HC17: =IF(ISERROR(Loads!AY17*Input!CS17*$T17*$H17),0,Loads!AY17*Input!CS17*$T17*$H17)*$L17 -> 0 | HD17: =IF(ISERROR(Loads!AZ17*Input!CS17*$T17*$H17),0,Loads!AZ17*Input!CS17*$T17*$H17)*$L17 -> 0 | HE17: =Input!CS17*$P17*$H17*$C$6*$L17/1000 -> 0 | HF17: =IF(Calcs!F17<>0,(Input!U17*H17*$L17*E17+Input!AD17*H17*L17*(F17-E17))/F17*Input!CS17,0) -> 0 | HG17: =IF(ISERROR(OFFSET(CostE!$AQ$5,$AB17-1,0)),0,OFFSET(CostE!$AQ$5,$AB17-1,0)) -> 0 | HH17: =IF(ISERROR(OFFSET(CostE!$AR$5,$AB17-1,0)),0,OFFSET(CostE!$AR$5,$AB17-1,0)) -> 0 | HI17: =IF(ISERROR(OFFSET(CostE!$AS$5,$AB17-1,0)),0,OFFSET(CostE!$AS$5,$AB17-1,0)) -> 0 | HJ17: =IF(ISERROR(INDEX(CostG!$E$37:$E$43,GasCalcs!$L17)),0,INDEX(CostG!$E$37:$E$43,GasCalcs!$L17)) -> 0.00585 | HK17: =IF(ISERROR(INDEX(CostG!$F$37:$F$43,GasCalcs!$L17)),0,INDEX(CostG!$F$37:$F$43,GasCalcs!$L17)) -> 0.0092 | HL17: =IF(ISERROR(Z17),0,OFFSET(CostE!$F$5,Calcs!Z17-1,0)) -> 0
A18: =Input!B18 -> 0 | B18: =Input!D18 -> 0 | C18: =TRIM(Input!E18) ->  | D18: =TRIM(Input!F18) ->  | E18: =IF(ISNUMBER(Input!AG18),Input!AG18,1) -> 0 | F18: =MAX(E18,Input!Z18) -> 0 | G18: =IF(ISNUMBER(Input!AH18),Input!AH18,1) -> 1 | H18: =IF(ISNUMBER(Input!AI18),Input!AI18,$G18) -> 1 | I18: =IF(ISNUMBER(Input!AJ18),Input!AJ18,$G18) -> 1 | J18: =IF(AND(ISNUMBER(Input!AK18),Input!AK18<>0),Input!AK18,IF(Input!V18=0,G18,IF(Input!R18=0,I18,IF(Input!R18*0.03412>Input!V18,G18,I18)))) -> 1 | L18: =IF(ISBLANK(Input!AL18),100%,Input!AL18)*IF(ISBLANK(Input!AM18),100%,Input!AM18) -> 1 | M18: =Input!R18 -> 0 | N18: =Input!AC18 -> 0 | O18: =IF($F18<>0,($M18*$E18+N18*($F18-$E18))/$F18,0) -> 0 | P18: 1 | Q18: =OFFSET(CostE!$F$5,Calcs!AB18-1,0) ->  | R18: =IF(ISNUMBER(IF(Q18="kW",Input!U18,Input!R18)),IF(Q18="kW",Input!U18,Input!R18),0) -> 0 | S18: =IF(ISNUMBER(IF(Q18="kW",Input!AD18,N18)),IF(Q18="kW",Input!AD18,N18),0) -> 0 | T18: =IF(F18<>0,(R18*E18+S18*(F18-E18))/F18,0) -> 0 | U18: 0 | V18: Gen:::0 | W18: TD:::0 | X18: Load:::0 | Y18: =MATCH(V18,CostE!$E$5:$E$1329,0) ->  | Z18: =IF(ISERROR(Y18),MATCH("Gen:"&C18&":"&D18&":All",CostE!$E$5:$E$1329,0),Y18) ->  | AA18: =MATCH(W18,CostE!$E$5:$E$1329,0) ->  | AB18: =IF(ISERROR(Y18),MATCH("Load:"&C18&":"&$D18&":NA",CostE!$E$5:$E$1329,0),MATCH(X18,CostE!$E$5:$E$1329,0)) ->  | AC18: =MATCH(Input!S18,Rates!$A$4:$A$9,0) ->  | AD18: =IF(Input!Z18>Input!AG18,Input!AG18,0) -> 0 | AE18: 0 | AF18: 0 | AG18: 0 | AH18: =MAX(0,TRUNC(Input!Z18*Periods-(AE18+AF18+AG18))) -> 0 | AI18: =MAX(0,Input!Z18*Periods-AH18-AF18-AE18-AG18) -> 0 | AJ18: =IF(OR(Input!E18="Residential",Input!E18="Res_New_Construction"), $C$10,$C$11)-1 -> 0 | AK18: =SUM(IF($E$3:$E$12=Input!F18,1,0))=1 -> FALSE | AL18: =AJ18*AK18*Input!AN18 -> 0 | AM18: =(IF($AE18>0,NPV(Disc,OFFSET(CostE!G$5,$Z18-1,SkipYrs*Periods+1,1,$AE18)),0)+OFFSET(CostE!G$5,$Z18-1,SkipYrs*Periods+1+$AE18)*$AF18*(1/(1+Disc)^($AE18+1)))*$M18*(1+$AL18) + (OFFSET(CostE!G$5,$Z18-1,SkipYrs*Periods+1+$AE18)*$AG18*(1/(1+Disc)^($AE18+1))+ IF($AH18>0,NPV(Disc,OFFSET(CostE!G$5,$Z18-1,SkipYrs*Periods+ROUND($AE18+$AF18+$AG18,0)+1,1,$AH18)),0)*(1/(1+Disc)^($AE18+$AF18+$AG18))+ OFFSET(CostE!G$5,$Z18-1,SkipYrs*Periods+ROUND($AE18+$AF18+$AG18+$AH18,0)+1)*$AI18*(1/(1+Disc)^(ROUND($AE18+$AH18+$AF18+$AG18,0)+1)))*Input!$AC18*(1+$AL18) ->  | AN18: =(IF($AE18>0,NPV(Disc,OFFSET(CostE!H$5,$Z18-1,SkipYrs*Periods+1,1,$AE18)),0)+OFFSET(CostE!H$5,$Z18-1,SkipYrs*Periods+1+$AE18)*$AF18*(1/(1+Disc)^($AE18+1)))*$M18*(1+$AL18) + (OFFSET(CostE!H$5,$Z18-1,SkipYrs*Periods+1+$AE18)*$AG18*(1/(1+Disc)^($AE18+1))+ IF($AH18>0,NPV(Disc,OFFSET(CostE!H$5,$Z18-1,SkipYrs*Periods+ROUND($AE18+$AF18+$AG18,0)+1,1,$AH18)),0)*(1/(1+Disc)^($AE18+$AF18+$AG18))+ OFFSET(CostE!H$5,$Z18-1,SkipYrs*Periods+ROUND($AE18+$AF18+$AG18+$AH18,0)+1)*$AI18*(1/(1+Disc)^(ROUND($AE18+$AH18+$AF18+$AG18,0)+1)))*Input!$AC18*(1+$AL18) ->  | AO18: =(IF($AE18>0,NPV(Disc,OFFSET(CostE!I$5,$Z18-1,SkipYrs*Periods+1,1,$AE18)),0)+OFFSET(CostE!I$5,$Z18-1,SkipYrs*Periods+1+$AE18)*$AF18*(1/(1+Disc)^($AE18+1)))*$M18*(1+$AL18) + (OFFSET(CostE!I$5,$Z18-1,SkipYrs*Periods+1+$AE18)*$AG18*(1/(1+Disc)^($AE18+1))+ IF($AH18>0,NPV(Disc,OFFSET(CostE!I$5,$Z18-1,SkipYrs*Periods+ROUND($AE18+$AF18+$AG18,0)+1,1,$AH18)),0)*(1/(1+Disc)^($AE18+$AF18+$AG18))+ OFFSET(CostE!I$5,$Z18-1,SkipYrs*Periods+ROUND($AE18+$AF18+$AG18+$AH18,0)+1)*$AI18*(1/(1+Disc)^(ROUND($AE18+$AH18+$AF18+$AG18,0)+1)))*Input!$AC18*(1+$AL18) ->  | AP18: =(IF($AE18>0,NPV(Disc,OFFSET(CostE!J$5,$Z18-1,SkipYrs*Periods+1,1,$AE18)),0)+OFFSET(CostE!J$5,$Z18-1,SkipYrs*Periods+1+$AE18)*$AF18*(1/(1+Disc)^($AE18+1)))*$M18*(1+$AL18) + (OFFSET(CostE!J$5,$Z18-1,SkipYrs*Periods+1+$AE18)*$AG18*(1/(1+Disc)^($AE18+1))+ IF($AH18>0,NPV(Disc,OFFSET(CostE!J$5,$Z18-1,SkipYrs*Periods+ROUND($AE18+$AF18+$AG18,0)+1,1,$AH18)),0)*(1/(1+Disc)^($AE18+$AF18+$AG18))+ OFFSET(CostE!J$5,$Z18-1,SkipYrs*Periods+ROUND($AE18+$AF18+$AG18+$AH18,0)+1)*$AI18*(1/(1+Disc)^(ROUND($AE18+$AH18+$AF18+$AG18,0)+1)))*Input!$AC18*(1+$AL18) ->  | AQ18: =(IF($AE18>0,NPV(Disc,OFFSET(CostE!K$5,$Z18-1,SkipYrs*Periods+1,1,$AE18)),0)+OFFSET(CostE!K$5,$Z18-1,SkipYrs*Periods+1+$AE18)*$AF18*(1/(1+Disc)^($AE18+1)))*$M18*(1+$AL18) + (OFFSET(CostE!K$5,$Z18-1,SkipYrs*Periods+1+$AE18)*$AG18*(1/(1+Disc)^($AE18+1))+ IF($AH18>0,NPV(Disc,OFFSET(CostE!K$5,$Z18-1,SkipYrs*Periods+ROUND($AE18+$AF18+$AG18,0)+1,1,$AH18)),0)*(1/(1+Disc)^($AE18+$AF18+$AG18))+ OFFSET(CostE!K$5,$Z18-1,SkipYrs*Periods+ROUND($AE18+$AF18+$AG18+$AH18,0)+1)*$AI18*(1/(1+Disc)^(ROUND($AE18+$AH18+$AF18+$AG18,0)+1)))*Input!$AC18*(1+$AL18) ->  | AR18: =(IF($AE18>0,NPV(Disc,OFFSET(CostE!L$5,$Z18-1,SkipYrs*Periods+1,1,$AE18)),0)+OFFSET(CostE!L$5,$Z18-1,SkipYrs*Periods+1+$AE18)*$AF18*(1/(1+Disc)^($AE18+1)))*$M18*(1+$AL18) + (OFFSET(CostE!L$5,$Z18-1,SkipYrs*Periods+1+$AE18)*$AG18*(1/(1+Disc)^($AE18+1))+ IF($AH18>0,NPV(Disc,OFFSET(CostE!L$5,$Z18-1,SkipYrs*Periods+ROUND($AE18+$AF18+$AG18,0)+1,1,$AH18)),0)*(1/(1+Disc)^($AE18+$AF18+$AG18))+ OFFSET(CostE!L$5,$Z18-1,SkipYrs*Periods+ROUND($AE18+$AF18+$AG18+$AH18,0)+1)*$AI18*(1/(1+Disc)^(ROUND($AE18+$AH18+$AF18+$AG18,0)+1)))*Input!$AC18*(1+$AL18) ->  | AS18: =(IF($AE18>0,NPV(Disc,OFFSET(CostE!M$5,$Z18-1,SkipYrs*Periods+1,1,$AE18)),0)+OFFSET(CostE!M$5,$Z18-1,SkipYrs*Periods+1+$AE18)*$AF18*(1/(1+Disc)^($AE18+1)))*$M18*(1+$AL18) + (OFFSET(CostE!M$5,$Z18-1,SkipYrs*Periods+1+$AE18)*$AG18*(1/(1+Disc)^($AE18+1))+ IF($AH18>0,NPV(Disc,OFFSET(CostE!M$5,$Z18-1,SkipYrs*Periods+ROUND($AE18+$AF18+$AG18,0)+1,1,$AH18)),0)*(1/(1+Disc)^($AE18+$AF18+$AG18))+ OFFSET(CostE!M$5,$Z18-1,SkipYrs*Periods+ROUND($AE18+$AF18+$AG18+$AH18,0)+1)*$AI18*(1/(1+Disc)^(ROUND($AE18+$AH18+$AF18+$AG18,0)+1)))*Input!$AC18*(1+$AL18) ->  | AT18: =(IF($AE18>0,NPV(Disc,OFFSET(CostE!N$5,$Z18-1,SkipYrs*Periods+1,1,$AE18)),0)+OFFSET(CostE!N$5,$Z18-1,SkipYrs*Periods+1+$AE18)*$AF18*(1/(1+Disc)^($AE18+1)))*$M18*(1+$AL18) + (OFFSET(CostE!N$5,$Z18-1,SkipYrs*Periods+1+$AE18)*$AG18*(1/(1+Disc)^($AE18+1))+ IF($AH18>0,NPV(Disc,OFFSET(CostE!N$5,$Z18-1,SkipYrs*Periods+ROUND($AE18+$AF18+$AG18,0)+1,1,$AH18)),0)*(1/(1+Disc)^($AE18+$AF18+$AG18))+ OFFSET(CostE!N$5,$Z18-1,SkipYrs*Periods+ROUND($AE18+$AF18+$AG18+$AH18,0)+1)*$AI18*(1/(1+Disc)^(ROUND($AE18+$AH18+$AF18+$AG18,0)+1)))*Input!$AC18*(1+$AL18) ->  | AU18: =(IF($AE18>0,NPV(Disc,OFFSET(CostE!O$5,$Z18-1,SkipYrs*Periods+1,1,$AE18)),0)+OFFSET(CostE!O$5,$Z18-1,SkipYrs*Periods+1+$AE18)*$AF18*(1/(1+Disc)^($AE18+1)))*$M18*(1+$AL18) + (OFFSET(CostE!O$5,$Z18-1,SkipYrs*Periods+1+$AE18)*$AG18*(1/(1+Disc)^($AE18+1))+ IF($AH18>0,NPV(Disc,OFFSET(CostE!O$5,$Z18-1,SkipYrs*Periods+ROUND($AE18+$AF18+$AG18,0)+1,1,$AH18)),0)*(1/(1+Disc)^($AE18+$AF18+$AG18))+ OFFSET(CostE!O$5,$Z18-1,SkipYrs*Periods+ROUND($AE18+$AF18+$AG18+$AH18,0)+1)*$AI18*(1/(1+Disc)^(ROUND($AE18+$AH18+$AF18+$AG18,0)+1)))*Input!$AC18*(1+$AL18) ->  | AV18: =(IF($AE18>0,NPV(Disc,OFFSET(CostE!P$5,$Z18-1,SkipYrs*Periods+1,1,$AE18)),0)+OFFSET(CostE!P$5,$Z18-1,SkipYrs*Periods+1+$AE18)*$AF18*(1/(1+Disc)^($AE18+1)))*$M18*(1+$AL18) + (OFFSET(CostE!P$5,$Z18-1,SkipYrs*Periods+1+$AE18)*$AG18*(1/(1+Disc)^($AE18+1))+ IF($AH18>0,NPV(Disc,OFFSET(CostE!P$5,$Z18-1,SkipYrs*Periods+ROUND($AE18+$AF18+$AG18,0)+1,1,$AH18)),0)*(1/(1+Disc)^($AE18+$AF18+$AG18))+ OFFSET(CostE!P$5,$Z18-1,SkipYrs*Periods+ROUND($AE18+$AF18+$AG18+$AH18,0)+1)*$AI18*(1/(1+Disc)^(ROUND($AE18+$AH18+$AF18+$AG18,0)+1)))*Input!$AC18*(1+$AL18) ->  | AW18: =(IF($AE18>0,NPV(Disc,OFFSET(CostE!Q$5,$Z18-1,SkipYrs*Periods+1,1,$AE18)),0)+OFFSET(CostE!Q$5,$Z18-1,SkipYrs*Periods+1+$AE18)*$AF18*(1/(1+Disc)^($AE18+1)))*$M18*(1+$AL18) + (OFFSET(CostE!Q$5,$Z18-1,SkipYrs*Periods+1+$AE18)*$AG18*(1/(1+Disc)^($AE18+1))+ IF($AH18>0,NPV(Disc,OFFSET(CostE!Q$5,$Z18-1,SkipYrs*Periods+ROUND($AE18+$AF18+$AG18,0)+1,1,$AH18)),0)*(1/(1+Disc)^($AE18+$AF18+$AG18))+ OFFSET(CostE!Q$5,$Z18-1,SkipYrs*Periods+ROUND($AE18+$AF18+$AG18+$AH18,0)+1)*$AI18*(1/(1+Disc)^(ROUND($AE18+$AH18+$AF18+$AG18,0)+1)))*Input!$AC18*(1+$AL18) ->  | AX18: =(IF($AE18>0,NPV(Disc,OFFSET(CostE!R$5,$Z18-1,SkipYrs*Periods+1,1,$AE18)),0)+OFFSET(CostE!R$5,$Z18-1,SkipYrs*Periods+1+$AE18)*$AF18*(1/(1+Disc)^($AE18+1)))*$M18*(1+$AL18) + (OFFSET(CostE!R$5,$Z18-1,SkipYrs*Periods+1+$AE18)*$AG18*(1/(1+Disc)^($AE18+1))+ IF($AH18>0,NPV(Disc,OFFSET(CostE!R$5,$Z18-1,SkipYrs*Periods+ROUND($AE18+$AF18+$AG18,0)+1,1,$AH18)),0)*(1/(1+Disc)^($AE18+$AF18+$AG18))+ OFFSET(CostE!R$5,$Z18-1,SkipYrs*Periods+ROUND($AE18+$AF18+$AG18+$AH18,0)+1)*$AI18*(1/(1+Disc)^(ROUND($AE18+$AH18+$AF18+$AG18,0)+1)))*Input!$AC18*(1+$AL18) ->  | AY18: =(IF($AE18>0,NPV(Disc,OFFSET(CostE!S$5,$Z18-1,SkipYrs*Periods+1,1,$AE18)),0)+OFFSET(CostE!S$5,$Z18-1,SkipYrs*Periods+1+$AE18)*$AF18*(1/(1+Disc)^($AE18+1)))*$M18*(1+$AL18) + (OFFSET(CostE!S$5,$Z18-1,SkipYrs*Periods+1+$AE18)*$AG18*(1/(1+Disc)^($AE18+1))+ IF($AH18>0,NPV(Disc,OFFSET(CostE!S$5,$Z18-1,SkipYrs*Periods+ROUND($AE18+$AF18+$AG18,0)+1,1,$AH18)),0)*(1/(1+Disc)^($AE18+$AF18+$AG18))+ OFFSET(CostE!S$5,$Z18-1,SkipYrs*Periods+ROUND($AE18+$AF18+$AG18+$AH18,0)+1)*$AI18*(1/(1+Disc)^(ROUND($AE18+$AH18+$AF18+$AG18,0)+1)))*Input!$AC18*(1+$AL18) ->  | AZ18: =(IF($AE18>0,NPV(Disc,OFFSET(CostE!T$5,$Z18-1,SkipYrs*Periods+1,1,$AE18)),0)+OFFSET(CostE!T$5,$Z18-1,SkipYrs*Periods+1+$AE18)*$AF18*(1/(1+Disc)^($AE18+1)))*$M18*(1+$AL18) + (OFFSET(CostE!T$5,$Z18-1,SkipYrs*Periods+1+$AE18)*$AG18*(1/(1+Disc)^($AE18+1))+ IF($AH18>0,NPV(Disc,OFFSET(CostE!T$5,$Z18-1,SkipYrs*Periods+ROUND($AE18+$AF18+$AG18,0)+1,1,$AH18)),0)*(1/(1+Disc)^($AE18+$AF18+$AG18))+ OFFSET(CostE!T$5,$Z18-1,SkipYrs*Periods+ROUND($AE18+$AF18+$AG18+$AH18,0)+1)*$AI18*(1/(1+Disc)^(ROUND($AE18+$AH18+$AF18+$AG18,0)+1)))*Input!$AC18*(1+$AL18) ->  | BA18: =(IF($AE18>0,NPV(Disc,OFFSET(CostE!U$5,$Z18-1,SkipYrs*Periods+1,1,$AE18)),0)+OFFSET(CostE!U$5,$Z18-1,SkipYrs*Periods+1+$AE18)*$AF18*(1/(1+Disc)^($AE18+1)))*$M18*(1+$AL18) + (OFFSET(CostE!U$5,$Z18-1,SkipYrs*Periods+1+$AE18)*$AG18*(1/(1+Disc)^($AE18+1))+ IF($AH18>0,NPV(Disc,OFFSET(CostE!U$5,$Z18-1,SkipYrs*Periods+ROUND($AE18+$AF18+$AG18,0)+1,1,$AH18)),0)*(1/(1+Disc)^($AE18+$AF18+$AG18))+ OFFSET(CostE!U$5,$Z18-1,SkipYrs*Periods+ROUND($AE18+$AF18+$AG18+$AH18,0)+1)*$AI18*(1/(1+Disc)^(ROUND($AE18+$AH18+$AF18+$AG18,0)+1)))*Input!$AC18*(1+$AL18) ->  | BB18: =(IF($AE18>0,NPV(Disc,OFFSET(CostE!V$5,$Z18-1,SkipYrs*Periods+1,1,$AE18)),0)+OFFSET(CostE!V$5,$Z18-1,SkipYrs*Periods+1+$AE18)*$AF18*(1/(1+Disc)^($AE18+1)))*$M18*(1+$AL18) + (OFFSET(CostE!V$5,$Z18-1,SkipYrs*Periods+1+$AE18)*$AG18*(1/(1+Disc)^($AE18+1))+ IF($AH18>0,NPV(Disc,OFFSET(CostE!V$5,$Z18-1,SkipYrs*Periods+ROUND($AE18+$AF18+$AG18,0)+1,1,$AH18)),0)*(1/(1+Disc)^($AE18+$AF18+$AG18))+ OFFSET(CostE!V$5,$Z18-1,SkipYrs*Periods+ROUND($AE18+$AF18+$AG18+$AH18,0)+1)*$AI18*(1/(1+Disc)^(ROUND($AE18+$AH18+$AF18+$AG18,0)+1)))*Input!$AC18*(1+$AL18) ->  | BC18: =(IF($AE18>0,NPV(Disc,OFFSET(CostE!W$5,$Z18-1,SkipYrs*Periods+1,1,$AE18)),0)+OFFSET(CostE!W$5,$Z18-1,SkipYrs*Periods+1+$AE18)*$AF18*(1/(1+Disc)^($AE18+1)))*$M18*(1+$AL18) + (OFFSET(CostE!W$5,$Z18-1,SkipYrs*Periods+1+$AE18)*$AG18*(1/(1+Disc)^($AE18+1))+ IF($AH18>0,NPV(Disc,OFFSET(CostE!W$5,$Z18-1,SkipYrs*Periods+ROUND($AE18+$AF18+$AG18,0)+1,1,$AH18)),0)*(1/(1+Disc)^($AE18+$AF18+$AG18))+ OFFSET(CostE!W$5,$Z18-1,SkipYrs*Periods+ROUND($AE18+$AF18+$AG18+$AH18,0)+1)*$AI18*(1/(1+Disc)^(ROUND($AE18+$AH18+$AF18+$AG18,0)+1)))*Input!$AC18*(1+$AL18) ->  | BD18: =(IF($AE18>0,NPV(Disc,OFFSET(CostE!X$5,$Z18-1,SkipYrs*Periods+1,1,$AE18)),0)+OFFSET(CostE!X$5,$Z18-1,SkipYrs*Periods+1+$AE18)*$AF18*(1/(1+Disc)^($AE18+1)))*$M18*(1+$AL18) + (OFFSET(CostE!X$5,$Z18-1,SkipYrs*Periods+1+$AE18)*$AG18*(1/(1+Disc)^($AE18+1))+ IF($AH18>0,NPV(Disc,OFFSET(CostE!X$5,$Z18-1,SkipYrs*Periods+ROUND($AE18+$AF18+$AG18,0)+1,1,$AH18)),0)*(1/(1+Disc)^($AE18+$AF18+$AG18))+ OFFSET(CostE!X$5,$Z18-1,SkipYrs*Periods+ROUND($AE18+$AF18+$AG18+$AH18,0)+1)*$AI18*(1/(1+Disc)^(ROUND($AE18+$AH18+$AF18+$AG18,0)+1)))*Input!$AC18*(1+$AL18) ->  | BE18: =(IF($AE18>0,NPV(Disc,OFFSET(CostE!Y$5,$Z18-1,SkipYrs*Periods+1,1,$AE18)),0)+OFFSET(CostE!Y$5,$Z18-1,SkipYrs*Periods+1+$AE18)*$AF18*(1/(1+Disc)^($AE18+1)))*$M18*(1+$AL18) + (OFFSET(CostE!Y$5,$Z18-1,SkipYrs*Periods+1+$AE18)*$AG18*(1/(1+Disc)^($AE18+1))+ IF($AH18>0,NPV(Disc,OFFSET(CostE!Y$5,$Z18-1,SkipYrs*Periods+ROUND($AE18+$AF18+$AG18,0)+1,1,$AH18)),0)*(1/(1+Disc)^($AE18+$AF18+$AG18))+ OFFSET(CostE!Y$5,$Z18-1,SkipYrs*Periods+ROUND($AE18+$AF18+$AG18+$AH18,0)+1)*$AI18*(1/(1+Disc)^(ROUND($AE18+$AH18+$AF18+$AG18,0)+1)))*Input!$AC18*(1+$AL18) ->  | BF18: =(IF($AE18>0,NPV(Disc,OFFSET(CostE!Z$5,$Z18-1,SkipYrs*Periods+1,1,$AE18)),0)+OFFSET(CostE!Z$5,$Z18-1,SkipYrs*Periods+1+$AE18)*$AF18*(1/(1+Disc)^($AE18+1)))*$M18*(1+$AL18) + (OFFSET(CostE!Z$5,$Z18-1,SkipYrs*Periods+1+$AE18)*$AG18*(1/(1+Disc)^($AE18+1))+ IF($AH18>0,NPV(Disc,OFFSET(CostE!Z$5,$Z18-1,SkipYrs*Periods+ROUND($AE18+$AF18+$AG18,0)+1,1,$AH18)),0)*(1/(1+Disc)^($AE18+$AF18+$AG18))+ OFFSET(CostE!Z$5,$Z18-1,SkipYrs*Periods+ROUND($AE18+$AF18+$AG18+$AH18,0)+1)*$AI18*(1/(1+Disc)^(ROUND($AE18+$AH18+$AF18+$AG18,0)+1)))*Input!$AC18*(1+$AL18) ->  | BG18: =(IF($AE18>0,NPV(Disc,OFFSET(CostE!AA$5,$Z18-1,SkipYrs*Periods+1,1,$AE18)),0)+OFFSET(CostE!AA$5,$Z18-1,SkipYrs*Periods+1+$AE18)*$AF18*(1/(1+Disc)^($AE18+1)))*$M18*(1+$AL18) + (OFFSET(CostE!AA$5,$Z18-1,SkipYrs*Periods+1+$AE18)*$AG18*(1/(1+Disc)^($AE18+1))+ IF($AH18>0,NPV(Disc,OFFSET(CostE!AA$5,$Z18-1,SkipYrs*Periods+ROUND($AE18+$AF18+$AG18,0)+1,1,$AH18)),0)*(1/(1+Disc)^($AE18+$AF18+$AG18))+ OFFSET(CostE!AA$5,$Z18-1,SkipYrs*Periods+ROUND($AE18+$AF18+$AG18+$AH18,0)+1)*$AI18*(1/(1+Disc)^(ROUND($AE18+$AH18+$AF18+$AG18,0)+1)))*Input!$AC18*(1+$AL18) ->  | BH18: =(IF($AE18>0,NPV(Disc,OFFSET(CostE!AB$5,$Z18-1,SkipYrs*Periods+1,1,$AE18)),0)+OFFSET(CostE!AB$5,$Z18-1,SkipYrs*Periods+1+$AE18)*$AF18*(1/(1+Disc)^($AE18+1)))*$M18*(1+$AL18) + (OFFSET(CostE!AB$5,$Z18-1,SkipYrs*Periods+1+$AE18)*$AG18*(1/(1+Disc)^($AE18+1))+ IF($AH18>0,NPV(Disc,OFFSET(CostE!AB$5,$Z18-1,SkipYrs*Periods+ROUND($AE18+$AF18+$AG18,0)+1,1,$AH18)),0)*(1/(1+Disc)^($AE18+$AF18+$AG18))+ OFFSET(CostE!AB$5,$Z18-1,SkipYrs*Periods+ROUND($AE18+$AF18+$AG18+$AH18,0)+1)*$AI18*(1/(1+Disc)^(ROUND($AE18+$AH18+$AF18+$AG18,0)+1)))*Input!$AC18*(1+$AL18) ->  | BI18: =(IF($AE18>0,NPV(Disc,OFFSET(CostE!AC$5,$Z18-1,SkipYrs*Periods+1,1,$AE18)),0)+OFFSET(CostE!AC$5,$Z18-1,SkipYrs*Periods+1+$AE18)*$AF18*(1/(1+Disc)^($AE18+1)))*$M18*(1+$AL18) + (OFFSET(CostE!AC$5,$Z18-1,SkipYrs*Periods+1+$AE18)*$AG18*(1/(1+Disc)^($AE18+1))+ IF($AH18>0,NPV(Disc,OFFSET(CostE!AC$5,$Z18-1,SkipYrs*Periods+ROUND($AE18+$AF18+$AG18,0)+1,1,$AH18)),0)*(1/(1+Disc)^($AE18+$AF18+$AG18))+ OFFSET(CostE!AC$5,$Z18-1,SkipYrs*Periods+ROUND($AE18+$AF18+$AG18+$AH18,0)+1)*$AI18*(1/(1+Disc)^(ROUND($AE18+$AH18+$AF18+$AG18,0)+1)))*Input!$AC18*(1+$AL18) ->  | BJ18: =(IF($AE18>0,NPV(Disc,OFFSET(CostE!AD$5,$Z18-1,SkipYrs*Periods+1,1,$AE18)),0)+OFFSET(CostE!AD$5,$Z18-1,SkipYrs*Periods+1+$AE18)*$AF18*(1/(1+Disc)^($AE18+1)))*$M18*(1+$AL18) + (OFFSET(CostE!AD$5,$Z18-1,SkipYrs*Periods+1+$AE18)*$AG18*(1/(1+Disc)^($AE18+1))+ IF($AH18>0,NPV(Disc,OFFSET(CostE!AD$5,$Z18-1,SkipYrs*Periods+ROUND($AE18+$AF18+$AG18,0)+1,1,$AH18)),0)*(1/(1+Disc)^($AE18+$AF18+$AG18))+ OFFSET(CostE!AD$5,$Z18-1,SkipYrs*Periods+ROUND($AE18+$AF18+$AG18+$AH18,0)+1)*$AI18*(1/(1+Disc)^(ROUND($AE18+$AH18+$AF18+$AG18,0)+1)))*Input!$AC18*(1+$AL18) ->  | BK18: =(IF($AE18>0,NPV(Disc,OFFSET(CostE!AE$5,$Z18-1,SkipYrs*Periods+1,1,$AE18)),0)+OFFSET(CostE!AE$5,$Z18-1,SkipYrs*Periods+1+$AE18)*$AF18*(1/(1+Disc)^($AE18+1)))*$M18*(1+$AL18) + (OFFSET(CostE!AE$5,$Z18-1,SkipYrs*Periods+1+$AE18)*$AG18*(1/(1+Disc)^($AE18+1))+ IF($AH18>0,NPV(Disc,OFFSET(CostE!AE$5,$Z18-1,SkipYrs*Periods+ROUND($AE18+$AF18+$AG18,0)+1,1,$AH18)),0)*(1/(1+Disc)^($AE18+$AF18+$AG18))+ OFFSET(CostE!AE$5,$Z18-1,SkipYrs*Periods+ROUND($AE18+$AF18+$AG18+$AH18,0)+1)*$AI18*(1/(1+Disc)^(ROUND($AE18+$AH18+$AF18+$AG18,0)+1)))*Input!$AC18*(1+$AL18) ->  | BL18: =(IF($AE18>0,NPV(Disc,OFFSET(CostE!AF$5,$Z18-1,SkipYrs*Periods+1,1,$AE18)),0)+OFFSET(CostE!AF$5,$Z18-1,SkipYrs*Periods+1+$AE18)*$AF18*(1/(1+Disc)^($AE18+1)))*$M18*(1+$AL18) + (OFFSET(CostE!AF$5,$Z18-1,SkipYrs*Periods+1+$AE18)*$AG18*(1/(1+Disc)^($AE18+1))+ IF($AH18>0,NPV(Disc,OFFSET(CostE!AF$5,$Z18-1,SkipYrs*Periods+ROUND($AE18+$AF18+$AG18,0)+1,1,$AH18)),0)*(1/(1+Disc)^($AE18+$AF18+$AG18))+ OFFSET(CostE!AF$5,$Z18-1,SkipYrs*Periods+ROUND($AE18+$AF18+$AG18+$AH18,0)+1)*$AI18*(1/(1+Disc)^(ROUND($AE18+$AH18+$AF18+$AG18,0)+1)))*Input!$AC18*(1+$AL18) ->  | BM18: =(IF($AE18>0,NPV(Disc,OFFSET(CostE!AG$5,$Z18-1,SkipYrs*Periods+1,1,$AE18)),0)+OFFSET(CostE!AG$5,$Z18-1,SkipYrs*Periods+1+$AE18)*$AF18*(1/(1+Disc)^($AE18+1)))*$M18*(1+$AL18) + (OFFSET(CostE!AG$5,$Z18-1,SkipYrs*Periods+1+$AE18)*$AG18*(1/(1+Disc)^($AE18+1))+ IF($AH18>0,NPV(Disc,OFFSET(CostE!AG$5,$Z18-1,SkipYrs*Periods+ROUND($AE18+$AF18+$AG18,0)+1,1,$AH18)),0)*(1/(1+Disc)^($AE18+$AF18+$AG18))+ OFFSET(CostE!AG$5,$Z18-1,SkipYrs*Periods+ROUND($AE18+$AF18+$AG18+$AH18,0)+1)*$AI18*(1/(1+Disc)^(ROUND($AE18+$AH18+$AF18+$AG18,0)+1)))*Input!$AC18*(1+$AL18) ->  | BN18: =(IF($AE18>0,NPV(Disc,OFFSET(CostE!AH$5,$Z18-1,SkipYrs*Periods+1,1,$AE18)),0)+OFFSET(CostE!AH$5,$Z18-1,SkipYrs*Periods+1+$AE18)*$AF18*(1/(1+Disc)^($AE18+1)))*$M18*(1+$AL18) + (OFFSET(CostE!AH$5,$Z18-1,SkipYrs*Periods+1+$AE18)*$AG18*(1/(1+Disc)^($AE18+1))+ IF($AH18>0,NPV(Disc,OFFSET(CostE!AH$5,$Z18-1,SkipYrs*Periods+ROUND($AE18+$AF18+$AG18,0)+1,1,$AH18)),0)*(1/(1+Disc)^($AE18+$AF18+$AG18))+ OFFSET(CostE!AH$5,$Z18-1,SkipYrs*Periods+ROUND($AE18+$AF18+$AG18+$AH18,0)+1)*$AI18*(1/(1+Disc)^(ROUND($AE18+$AH18+$AF18+$AG18,0)+1)))*Input!$AC18*(1+$AL18) ->  | BO18: =(IF($AE18>0,NPV(Disc,OFFSET(CostE!AI$5,$Z18-1,SkipYrs*Periods+1,1,$AE18)),0)+OFFSET(CostE!AI$5,$Z18-1,SkipYrs*Periods+1+$AE18)*$AF18*(1/(1+Disc)^($AE18+1)))*$M18*(1+$AL18) + (OFFSET(CostE!AI$5,$Z18-1,SkipYrs*Periods+1+$AE18)*$AG18*(1/(1+Disc)^($AE18+1))+ IF($AH18>0,NPV(Disc,OFFSET(CostE!AI$5,$Z18-1,SkipYrs*Periods+ROUND($AE18+$AF18+$AG18,0)+1,1,$AH18)),0)*(1/(1+Disc)^($AE18+$AF18+$AG18))+ OFFSET(CostE!AI$5,$Z18-1,SkipYrs*Periods+ROUND($AE18+$AF18+$AG18+$AH18,0)+1)*$AI18*(1/(1+Disc)^(ROUND($AE18+$AH18+$AF18+$AG18,0)+1)))*Input!$AC18*(1+$AL18) ->  | BP18: =(IF($AE18>0,NPV(Disc,OFFSET(CostE!AJ$5,$Z18-1,SkipYrs*Periods+1,1,$AE18)),0)+OFFSET(CostE!AJ$5,$Z18-1,SkipYrs*Periods+1+$AE18)*$AF18*(1/(1+Disc)^($AE18+1)))*$M18*(1+$AL18) + (OFFSET(CostE!AJ$5,$Z18-1,SkipYrs*Periods+1+$AE18)*$AG18*(1/(1+Disc)^($AE18+1))+ IF($AH18>0,NPV(Disc,OFFSET(CostE!AJ$5,$Z18-1,SkipYrs*Periods+ROUND($AE18+$AF18+$AG18,0)+1,1,$AH18)),0)*(1/(1+Disc)^($AE18+$AF18+$AG18))+ OFFSET(CostE!AJ$5,$Z18-1,SkipYrs*Periods+ROUND($AE18+$AF18+$AG18+$AH18,0)+1)*$AI18*(1/(1+Disc)^(ROUND($AE18+$AH18+$AF18+$AG18,0)+1)))*Input!$AC18*(1+$AL18) ->  | BQ18: =(IF($AE18>0,NPV(Disc,OFFSET(CostE!AK$5,$Z18-1,SkipYrs*Periods+1,1,$AE18)),0)+OFFSET(CostE!AK$5,$Z18-1,SkipYrs*Periods+1+$AE18)*$AF18*(1/(1+Disc)^($AE18+1)))*$M18*(1+$AL18) + (OFFSET(CostE!AK$5,$Z18-1,SkipYrs*Periods+1+$AE18)*$AG18*(1/(1+Disc)^($AE18+1))+ IF($AH18>0,NPV(Disc,OFFSET(CostE!AK$5,$Z18-1,SkipYrs*Periods+ROUND($AE18+$AF18+$AG18,0)+1,1,$AH18)),0)*(1/(1+Disc)^($AE18+$AF18+$AG18))+ OFFSET(CostE!AK$5,$Z18-1,SkipYrs*Periods+ROUND($AE18+$AF18+$AG18+$AH18,0)+1)*$AI18*(1/(1+Disc)^(ROUND($AE18+$AH18+$AF18+$AG18,0)+1)))*Input!$AC18*(1+$AL18) ->  | BR18: =(IF($AE18>0,NPV(Disc,OFFSET(CostE!AL$5,$Z18-1,SkipYrs*Periods+1,1,$AE18)),0)+OFFSET(CostE!AL$5,$Z18-1,SkipYrs*Periods+1+$AE18)*$AF18*(1/(1+Disc)^($AE18+1)))*$M18*(1+$AL18) + (OFFSET(CostE!AL$5,$Z18-1,SkipYrs*Periods+1+$AE18)*$AG18*(1/(1+Disc)^($AE18+1))+ IF($AH18>0,NPV(Disc,OFFSET(CostE!AL$5,$Z18-1,SkipYrs*Periods+ROUND($AE18+$AF18+$AG18,0)+1,1,$AH18)),0)*(1/(1+Disc)^($AE18+$AF18+$AG18))+ OFFSET(CostE!AL$5,$Z18-1,SkipYrs*Periods+ROUND($AE18+$AF18+$AG18+$AH18,0)+1)*$AI18*(1/(1+Disc)^(ROUND($AE18+$AH18+$AF18+$AG18,0)+1)))*Input!$AC18*(1+$AL18) ->  | BS18: =(IF($AE18>0,NPV(Disc,OFFSET(CostE!AM$5,$Z18-1,SkipYrs*Periods+1,1,$AE18)),0)+OFFSET(CostE!AM$5,$Z18-1,SkipYrs*Periods+1+$AE18)*$AF18*(1/(1+Disc)^($AE18+1)))*$M18*(1+$AL18) + (OFFSET(CostE!AM$5,$Z18-1,SkipYrs*Periods+1+$AE18)*$AG18*(1/(1+Disc)^($AE18+1))+ IF($AH18>0,NPV(Disc,OFFSET(CostE!AM$5,$Z18-1,SkipYrs*Periods+ROUND($AE18+$AF18+$AG18,0)+1,1,$AH18)),0)*(1/(1+Disc)^($AE18+$AF18+$AG18))+ OFFSET(CostE!AM$5,$Z18-1,SkipYrs*Periods+ROUND($AE18+$AF18+$AG18+$AH18,0)+1)*$AI18*(1/(1+Disc)^(ROUND($AE18+$AH18+$AF18+$AG18,0)+1)))*Input!$AC18*(1+$AL18) ->  | BT18: =(IF($AE18>0,NPV(Disc,OFFSET(CostE!AN$5,$Z18-1,SkipYrs*Periods+1,1,$AE18)),0)+OFFSET(CostE!AN$5,$Z18-1,SkipYrs*Periods+1+$AE18)*$AF18*(1/(1+Disc)^($AE18+1)))*$M18*(1+$AL18) + (OFFSET(CostE!AN$5,$Z18-1,SkipYrs*Periods+1+$AE18)*$AG18*(1/(1+Disc)^($AE18+1))+ IF($AH18>0,NPV(Disc,OFFSET(CostE!AN$5,$Z18-1,SkipYrs*Periods+ROUND($AE18+$AF18+$AG18,0)+1,1,$AH18)),0)*(1/(1+Disc)^($AE18+$AF18+$AG18))+ OFFSET(CostE!AN$5,$Z18-1,SkipYrs*Periods+ROUND($AE18+$AF18+$AG18+$AH18,0)+1)*$AI18*(1/(1+Disc)^(ROUND($AE18+$AH18+$AF18+$AG18,0)+1)))*Input!$AC18*(1+$AL18) ->  | BU18: =(IF($AE18>0,NPV(Disc,OFFSET(CostE!AO$5,$Z18-1,SkipYrs*Periods+1,1,$AE18)),0)+OFFSET(CostE!AO$5,$Z18-1,SkipYrs*Periods+1+$AE18)*$AF18*(1/(1+Disc)^($AE18+1)))*$M18*(1+$AL18) + (OFFSET(CostE!AO$5,$Z18-1,SkipYrs*Periods+1+$AE18)*$AG18*(1/(1+Disc)^($AE18+1))+ IF($AH18>0,NPV(Disc,OFFSET(CostE!AO$5,$Z18-1,SkipYrs*Periods+ROUND($AE18+$AF18+$AG18,0)+1,1,$AH18)),0)*(1/(1+Disc)^($AE18+$AF18+$AG18))+ OFFSET(CostE!AO$5,$Z18-1,SkipYrs*Periods+ROUND($AE18+$AF18+$AG18+$AH18,0)+1)*$AI18*(1/(1+Disc)^(ROUND($AE18+$AH18+$AF18+$AG18,0)+1)))*Input!$AC18*(1+$AL18) ->  | BV18: =(IF($AE18>0,NPV(Disc,OFFSET(CostE!AP$5,$Z18-1,SkipYrs*Periods+1,1,$AE18)),0)+OFFSET(CostE!AP$5,$Z18-1,SkipYrs*Periods+1+$AE18)*$AF18*(1/(1+Disc)^($AE18+1)))*$M18*(1+$AL18) + (OFFSET(CostE!AP$5,$Z18-1,SkipYrs*Periods+1+$AE18)*$AG18*(1/(1+Disc)^($AE18+1))+ IF($AH18>0,NPV(Disc,OFFSET(CostE!AP$5,$Z18-1,SkipYrs*Periods+ROUND($AE18+$AF18+$AG18,0)+1,1,$AH18)),0)*(1/(1+Disc)^($AE18+$AF18+$AG18))+ OFFSET(CostE!AP$5,$Z18-1,SkipYrs*Periods+ROUND($AE18+$AF18+$AG18+$AH18,0)+1)*$AI18*(1/(1+Disc)^(ROUND($AE18+$AH18+$AF18+$AG18,0)+1)))*Input!$AC18*(1+$AL18) ->  | BW18: =(IF($AE18>0,NPV(Disc,OFFSET(CostE!AQ$5,$Z18-1,SkipYrs*Periods+1,1,$AE18)),0)+OFFSET(CostE!AQ$5,$Z18-1,SkipYrs*Periods+1+$AE18)*$AF18*(1/(1+Disc)^($AE18+1)))*$M18*(1+$AL18) + (OFFSET(CostE!AQ$5,$Z18-1,SkipYrs*Periods+1+$AE18)*$AG18*(1/(1+Disc)^($AE18+1))+ IF($AH18>0,NPV(Disc,OFFSET(CostE!AQ$5,$Z18-1,SkipYrs*Periods+ROUND($AE18+$AF18+$AG18,0)+1,1,$AH18)),0)*(1/(1+Disc)^($AE18+$AF18+$AG18))+ OFFSET(CostE!AQ$5,$Z18-1,SkipYrs*Periods+ROUND($AE18+$AF18+$AG18+$AH18,0)+1)*$AI18*(1/(1+Disc)^(ROUND($AE18+$AH18+$AF18+$AG18,0)+1)))*Input!$AC18*(1+$AL18) ->  | BX18: =(IF($AE18>0,NPV(Disc,OFFSET(CostE!AR$5,$Z18-1,SkipYrs*Periods+1,1,$AE18)),0)+OFFSET(CostE!AR$5,$Z18-1,SkipYrs*Periods+1+$AE18)*$AF18*(1/(1+Disc)^($AE18+1)))*$M18*(1+$AL18) + (OFFSET(CostE!AR$5,$Z18-1,SkipYrs*Periods+1+$AE18)*$AG18*(1/(1+Disc)^($AE18+1))+ IF($AH18>0,NPV(Disc,OFFSET(CostE!AR$5,$Z18-1,SkipYrs*Periods+ROUND($AE18+$AF18+$AG18,0)+1,1,$AH18)),0)*(1/(1+Disc)^($AE18+$AF18+$AG18))+ OFFSET(CostE!AR$5,$Z18-1,SkipYrs*Periods+ROUND($AE18+$AF18+$AG18+$AH18,0)+1)*$AI18*(1/(1+Disc)^(ROUND($AE18+$AH18+$AF18+$AG18,0)+1)))*Input!$AC18*(1+$AL18) ->  | BY18: =(IF($AE18>0,NPV(Disc,OFFSET(CostE!AS$5,$Z18-1,SkipYrs*Periods+1,1,$AE18)),0)+OFFSET(CostE!AS$5,$Z18-1,SkipYrs*Periods+1+$AE18)*$AF18*(1/(1+Disc)^($AE18+1)))*$M18*(1+$AL18) + (OFFSET(CostE!AS$5,$Z18-1,SkipYrs*Periods+1+$AE18)*$AG18*(1/(1+Disc)^($AE18+1))+ IF($AH18>0,NPV(Disc,OFFSET(CostE!AS$5,$Z18-1,SkipYrs*Periods+ROUND($AE18+$AF18+$AG18,0)+1,1,$AH18)),0)*(1/(1+Disc)^($AE18+$AF18+$AG18))+ OFFSET(CostE!AS$5,$Z18-1,SkipYrs*Periods+ROUND($AE18+$AF18+$AG18+$AH18,0)+1)*$AI18*(1/(1+Disc)^(ROUND($AE18+$AH18+$AF18+$AG18,0)+1)))*Input!$AC18*(1+$AL18) ->  | BZ18: =(IF($AE18>0,NPV(Disc,OFFSET(CostE!AT$5,$Z18-1,SkipYrs*Periods+1,1,$AE18)),0)+OFFSET(CostE!AT$5,$Z18-1,SkipYrs*Periods+1+$AE18)*$AF18*(1/(1+Disc)^($AE18+1)))*$M18*(1+$AL18) + (OFFSET(CostE!AT$5,$Z18-1,SkipYrs*Periods+1+$AE18)*$AG18*(1/(1+Disc)^($AE18+1))+ IF($AH18>0,NPV(Disc,OFFSET(CostE!AT$5,$Z18-1,SkipYrs*Periods+ROUND($AE18+$AF18+$AG18,0)+1,1,$AH18)),0)*(1/(1+Disc)^($AE18+$AF18+$AG18))+ OFFSET(CostE!AT$5,$Z18-1,SkipYrs*Periods+ROUND($AE18+$AF18+$AG18+$AH18,0)+1)*$AI18*(1/(1+Disc)^(ROUND($AE18+$AH18+$AF18+$AG18,0)+1)))*Input!$AC18*(1+$AL18) ->  | CA18: =(IF($AE18>0,NPV(Disc,OFFSET(CostE!AU$5,$Z18-1,SkipYrs*Periods+1,1,$AE18)),0)+OFFSET(CostE!AU$5,$Z18-1,SkipYrs*Periods+1+$AE18)*$AF18*(1/(1+Disc)^($AE18+1)))*$M18*(1+$AL18) + (OFFSET(CostE!AU$5,$Z18-1,SkipYrs*Periods+1+$AE18)*$AG18*(1/(1+Disc)^($AE18+1))+ IF($AH18>0,NPV(Disc,OFFSET(CostE!AU$5,$Z18-1,SkipYrs*Periods+ROUND($AE18+$AF18+$AG18,0)+1,1,$AH18)),0)*(1/(1+Disc)^($AE18+$AF18+$AG18))+ OFFSET(CostE!AU$5,$Z18-1,SkipYrs*Periods+ROUND($AE18+$AF18+$AG18+$AH18,0)+1)*$AI18*(1/(1+Disc)^(ROUND($AE18+$AH18+$AF18+$AG18,0)+1)))*Input!$AC18*(1+$AL18) ->  | CB18: =(IF($AE18>0,NPV(Disc,OFFSET(CostE!AV$5,$Z18-1,SkipYrs*Periods+1,1,$AE18)),0)+OFFSET(CostE!AV$5,$Z18-1,SkipYrs*Periods+1+$AE18)*$AF18*(1/(1+Disc)^($AE18+1)))*$M18*(1+$AL18) + (OFFSET(CostE!AV$5,$Z18-1,SkipYrs*Periods+1+$AE18)*$AG18*(1/(1+Disc)^($AE18+1))+ IF($AH18>0,NPV(Disc,OFFSET(CostE!AV$5,$Z18-1,SkipYrs*Periods+ROUND($AE18+$AF18+$AG18,0)+1,1,$AH18)),0)*(1/(1+Disc)^($AE18+$AF18+$AG18))+ OFFSET(CostE!AV$5,$Z18-1,SkipYrs*Periods+ROUND($AE18+$AF18+$AG18+$AH18,0)+1)*$AI18*(1/(1+Disc)^(ROUND($AE18+$AH18+$AF18+$AG18,0)+1)))*Input!$AC18*(1+$AL18) ->  | CC18: =(IF($AE18>0,NPV(Disc,OFFSET(CostE!AW$5,$Z18-1,SkipYrs*Periods+1,1,$AE18)),0)+OFFSET(CostE!AW$5,$Z18-1,SkipYrs*Periods+1+$AE18)*$AF18*(1/(1+Disc)^($AE18+1)))*$M18*(1+$AL18) + (OFFSET(CostE!AW$5,$Z18-1,SkipYrs*Periods+1+$AE18)*$AG18*(1/(1+Disc)^($AE18+1))+ IF($AH18>0,NPV(Disc,OFFSET(CostE!AW$5,$Z18-1,SkipYrs*Periods+ROUND($AE18+$AF18+$AG18,0)+1,1,$AH18)),0)*(1/(1+Disc)^($AE18+$AF18+$AG18))+ OFFSET(CostE!AW$5,$Z18-1,SkipYrs*Periods+ROUND($AE18+$AF18+$AG18+$AH18,0)+1)*$AI18*(1/(1+Disc)^(ROUND($AE18+$AH18+$AF18+$AG18,0)+1)))*Input!$AC18*(1+$AL18) ->  | CD18: =(IF($AE18>0,NPV(Disc,OFFSET(CostE!AX$5,$Z18-1,SkipYrs*Periods+1,1,$AE18)),0)+OFFSET(CostE!AX$5,$Z18-1,SkipYrs*Periods+1+$AE18)*$AF18*(1/(1+Disc)^($AE18+1)))*$M18*(1+$AL18) + (OFFSET(CostE!AX$5,$Z18-1,SkipYrs*Periods+1+$AE18)*$AG18*(1/(1+Disc)^($AE18+1))+ IF($AH18>0,NPV(Disc,OFFSET(CostE!AX$5,$Z18-1,SkipYrs*Periods+ROUND($AE18+$AF18+$AG18,0)+1,1,$AH18)),0)*(1/(1+Disc)^($AE18+$AF18+$AG18))+ OFFSET(CostE!AX$5,$Z18-1,SkipYrs*Periods+ROUND($AE18+$AF18+$AG18+$AH18,0)+1)*$AI18*(1/(1+Disc)^(ROUND($AE18+$AH18+$AF18+$AG18,0)+1)))*Input!$AC18*(1+$AL18) ->  | CE18: =(IF($AE18>0,NPV(Disc,OFFSET(CostE!G$5,$AA18-1,SkipYrs*Periods+1,1,$AE18)),0)+OFFSET(CostE!G$5,$AA18-1,SkipYrs*Periods+1+$AE18)*$AF18*(1/(1+Disc)^($AE18+1)))*$R18 + (OFFSET(CostE!G$5,$AA18-1,SkipYrs*Periods+1+$AE18)*$AG18*(1/(1+Disc)^($AE18+1))+ IF($AH18>0,NPV(Disc,OFFSET(CostE!G$5,$AA18-1,SkipYrs*Periods+ROUND($AE18+$AF18+$AG18,0)+1,1,$AH18)),0)*(1/(1+Disc)^($AE18+$AF18+$AG18))+ OFFSET(CostE!G$5,$AA18-1,SkipYrs*Periods+ROUND($AE18+$AF18+$AG18+$AH18,0)+1)*$AI18*(1/(1+Disc)^(ROUND($AE18+$AH18+$AF18+$AG18,0)+1)))*$S18 ->  | CF18: =(IF($AE18>0,NPV(Disc,OFFSET(CostE!H$5,$AA18-1,SkipYrs*Periods+1,1,$AE18)),0)+OFFSET(CostE!H$5,$AA18-1,SkipYrs*Periods+1+$AE18)*$AF18*(1/(1+Disc)^($AE18+1)))*$R18 + (OFFSET(CostE!H$5,$AA18-1,SkipYrs*Periods+1+$AE18)*$AG18*(1/(1+Disc)^($AE18+1))+ IF($AH18>0,NPV(Disc,OFFSET(CostE!H$5,$AA18-1,SkipYrs*Periods+ROUND($AE18+$AF18+$AG18,0)+1,1,$AH18)),0)*(1/(1+Disc)^($AE18+$AF18+$AG18))+ OFFSET(CostE!H$5,$AA18-1,SkipYrs*Periods+ROUND($AE18+$AF18+$AG18+$AH18,0)+1)*$AI18*(1/(1+Disc)^(ROUND($AE18+$AH18+$AF18+$AG18,0)+1)))*$S18 ->  | CG18: =(IF($AE18>0,NPV(Disc,OFFSET(CostE!I$5,$AA18-1,SkipYrs*Periods+1,1,$AE18)),0)+OFFSET(CostE!I$5,$AA18-1,SkipYrs*Periods+1+$AE18)*$AF18*(1/(1+Disc)^($AE18+1)))*$R18 + (OFFSET(CostE!I$5,$AA18-1,SkipYrs*Periods+1+$AE18)*$AG18*(1/(1+Disc)^($AE18+1))+ IF($AH18>0,NPV(Disc,OFFSET(CostE!I$5,$AA18-1,SkipYrs*Periods+ROUND($AE18+$AF18+$AG18,0)+1,1,$AH18)),0)*(1/(1+Disc)^($AE18+$AF18+$AG18))+ OFFSET(CostE!I$5,$AA18-1,SkipYrs*Periods+ROUND($AE18+$AF18+$AG18+$AH18,0)+1)*$AI18*(1/(1+Disc)^(ROUND($AE18+$AH18+$AF18+$AG18,0)+1)))*$S18 ->  | CH18: =(IF($AE18>0,NPV(Disc,OFFSET(CostE!J$5,$AA18-1,SkipYrs*Periods+1,1,$AE18)),0)+OFFSET(CostE!J$5,$AA18-1,SkipYrs*Periods+1+$AE18)*$AF18*(1/(1+Disc)^($AE18+1)))*$R18 + (OFFSET(CostE!J$5,$AA18-1,SkipYrs*Periods+1+$AE18)*$AG18*(1/(1+Disc)^($AE18+1))+ IF($AH18>0,NPV(Disc,OFFSET(CostE!J$5,$AA18-1,SkipYrs*Periods+ROUND($AE18+$AF18+$AG18,0)+1,1,$AH18)),0)*(1/(1+Disc)^($AE18+$AF18+$AG18))+ OFFSET(CostE!J$5,$AA18-1,SkipYrs*Periods+ROUND($AE18+$AF18+$AG18+$AH18,0)+1)*$AI18*(1/(1+Disc)^(ROUND($AE18+$AH18+$AF18+$AG18,0)+1)))*$S18 ->  | CI18: =(IF($AE18>0,NPV(Disc,OFFSET(CostE!K$5,$AA18-1,SkipYrs*Periods+1,1,$AE18)),0)+OFFSET(CostE!K$5,$AA18-1,SkipYrs*Periods+1+$AE18)*$AF18*(1/(1+Disc)^($AE18+1)))*$R18 + (OFFSET(CostE!K$5,$AA18-1,SkipYrs*Periods+1+$AE18)*$AG18*(1/(1+Disc)^($AE18+1))+ IF($AH18>0,NPV(Disc,OFFSET(CostE!K$5,$AA18-1,SkipYrs*Periods+ROUND($AE18+$AF18+$AG18,0)+1,1,$AH18)),0)*(1/(1+Disc)^($AE18+$AF18+$AG18))+ OFFSET(CostE!K$5,$AA18-1,SkipYrs*Periods+ROUND($AE18+$AF18+$AG18+$AH18,0)+1)*$AI18*(1/(1+Disc)^(ROUND($AE18+$AH18+$AF18+$AG18,0)+1)))*$S18 ->  | CJ18: =(IF($AE18>0,NPV(Disc,OFFSET(CostE!L$5,$AA18-1,SkipYrs*Periods+1,1,$AE18)),0)+OFFSET(CostE!L$5,$AA18-1,SkipYrs*Periods+1+$AE18)*$AF18*(1/(1+Disc)^($AE18+1)))*$R18 + (OFFSET(CostE!L$5,$AA18-1,SkipYrs*Periods+1+$AE18)*$AG18*(1/(1+Disc)^($AE18+1))+ IF($AH18>0,NPV(Disc,OFFSET(CostE!L$5,$AA18-1,SkipYrs*Periods+ROUND($AE18+$AF18+$AG18,0)+1,1,$AH18)),0)*(1/(1+Disc)^($AE18+$AF18+$AG18))+ OFFSET(CostE!L$5,$AA18-1,SkipYrs*Periods+ROUND($AE18+$AF18+$AG18+$AH18,0)+1)*$AI18*(1/(1+Disc)^(ROUND($AE18+$AH18+$AF18+$AG18,0)+1)))*$S18 ->  | CK18: =(IF($AE18>0,NPV(Disc,OFFSET(CostE!M$5,$AA18-1,SkipYrs*Periods+1,1,$AE18)),0)+OFFSET(CostE!M$5,$AA18-1,SkipYrs*Periods+1+$AE18)*$AF18*(1/(1+Disc)^($AE18+1)))*$R18 + (OFFSET(CostE!M$5,$AA18-1,SkipYrs*Periods+1+$AE18)*$AG18*(1/(1+Disc)^($AE18+1))+ IF($AH18>0,NPV(Disc,OFFSET(CostE!M$5,$AA18-1,SkipYrs*Periods+ROUND($AE18+$AF18+$AG18,0)+1,1,$AH18)),0)*(1/(1+Disc)^($AE18+$AF18+$AG18))+ OFFSET(CostE!M$5,$AA18-1,SkipYrs*Periods+ROUND($AE18+$AF18+$AG18+$AH18,0)+1)*$AI18*(1/(1+Disc)^(ROUND($AE18+$AH18+$AF18+$AG18,0)+1)))*$S18 ->  | CL18: =(IF($AE18>0,NPV(Disc,OFFSET(CostE!N$5,$AA18-1,SkipYrs*Periods+1,1,$AE18)),0)+OFFSET(CostE!N$5,$AA18-1,SkipYrs*Periods+1+$AE18)*$AF18*(1/(1+Disc)^($AE18+1)))*$R18 + (OFFSET(CostE!N$5,$AA18-1,SkipYrs*Periods+1+$AE18)*$AG18*(1/(1+Disc)^($AE18+1))+ IF($AH18>0,NPV(Disc,OFFSET(CostE!N$5,$AA18-1,SkipYrs*Periods+ROUND($AE18+$AF18+$AG18,0)+1,1,$AH18)),0)*(1/(1+Disc)^($AE18+$AF18+$AG18))+ OFFSET(CostE!N$5,$AA18-1,SkipYrs*Periods+ROUND($AE18+$AF18+$AG18+$AH18,0)+1)*$AI18*(1/(1+Disc)^(ROUND($AE18+$AH18+$AF18+$AG18,0)+1)))*$S18 ->  | CM18: =(IF($AE18>0,NPV(Disc,OFFSET(CostE!O$5,$AA18-1,SkipYrs*Periods+1,1,$AE18)),0)+OFFSET(CostE!O$5,$AA18-1,SkipYrs*Periods+1+$AE18)*$AF18*(1/(1+Disc)^($AE18+1)))*$R18 + (OFFSET(CostE!O$5,$AA18-1,SkipYrs*Periods+1+$AE18)*$AG18*(1/(1+Disc)^($AE18+1))+ IF($AH18>0,NPV(Disc,OFFSET(CostE!O$5,$AA18-1,SkipYrs*Periods+ROUND($AE18+$AF18+$AG18,0)+1,1,$AH18)),0)*(1/(1+Disc)^($AE18+$AF18+$AG18))+ OFFSET(CostE!O$5,$AA18-1,SkipYrs*Periods+ROUND($AE18+$AF18+$AG18+$AH18,0)+1)*$AI18*(1/(1+Disc)^(ROUND($AE18+$AH18+$AF18+$AG18,0)+1)))*$S18 ->  | CN18: =(IF($AE18>0,NPV(Disc,OFFSET(CostE!P$5,$AA18-1,SkipYrs*Periods+1,1,$AE18)),0)+OFFSET(CostE!P$5,$AA18-1,SkipYrs*Periods+1+$AE18)*$AF18*(1/(1+Disc)^($AE18+1)))*$R18 + (OFFSET(CostE!P$5,$AA18-1,SkipYrs*Periods+1+$AE18)*$AG18*(1/(1+Disc)^($AE18+1))+ IF($AH18>0,NPV(Disc,OFFSET(CostE!P$5,$AA18-1,SkipYrs*Periods+ROUND($AE18+$AF18+$AG18,0)+1,1,$AH18)),0)*(1/(1+Disc)^($AE18+$AF18+$AG18))+ OFFSET(CostE!P$5,$AA18-1,SkipYrs*Periods+ROUND($AE18+$AF18+$AG18+$AH18,0)+1)*$AI18*(1/(1+Disc)^(ROUND($AE18+$AH18+$AF18+$AG18,0)+1)))*$S18 ->  | CO18: =(IF($AE18>0,NPV(Disc,OFFSET(CostE!Q$5,$AA18-1,SkipYrs*Periods+1,1,$AE18)),0)+OFFSET(CostE!Q$5,$AA18-1,SkipYrs*Periods+1+$AE18)*$AF18*(1/(1+Disc)^($AE18+1)))*$R18 + (OFFSET(CostE!Q$5,$AA18-1,SkipYrs*Periods+1+$AE18)*$AG18*(1/(1+Disc)^($AE18+1))+ IF($AH18>0,NPV(Disc,OFFSET(CostE!Q$5,$AA18-1,SkipYrs*Periods+ROUND($AE18+$AF18+$AG18,0)+1,1,$AH18)),0)*(1/(1+Disc)^($AE18+$AF18+$AG18))+ OFFSET(CostE!Q$5,$AA18-1,SkipYrs*Periods+ROUND($AE18+$AF18+$AG18+$AH18,0)+1)*$AI18*(1/(1+Disc)^(ROUND($AE18+$AH18+$AF18+$AG18,0)+1)))*$S18 ->  | CP18: =(IF($AE18>0,NPV(Disc,OFFSET(CostE!R$5,$AA18-1,SkipYrs*Periods+1,1,$AE18)),0)+OFFSET(CostE!R$5,$AA18-1,SkipYrs*Periods+1+$AE18)*$AF18*(1/(1+Disc)^($AE18+1)))*$R18 + (OFFSET(CostE!R$5,$AA18-1,SkipYrs*Periods+1+$AE18)*$AG18*(1/(1+Disc)^($AE18+1))+ IF($AH18>0,NPV(Disc,OFFSET(CostE!R$5,$AA18-1,SkipYrs*Periods+ROUND($AE18+$AF18+$AG18,0)+1,1,$AH18)),0)*(1/(1+Disc)^($AE18+$AF18+$AG18))+ OFFSET(CostE!R$5,$AA18-1,SkipYrs*Periods+ROUND($AE18+$AF18+$AG18+$AH18,0)+1)*$AI18*(1/(1+Disc)^(ROUND($AE18+$AH18+$AF18+$AG18,0)+1)))*$S18 ->  | CQ18: =(IF($AE18>0,NPV(Disc,OFFSET(CostE!S$5,$AA18-1,SkipYrs*Periods+1,1,$AE18)),0)+OFFSET(CostE!S$5,$AA18-1,SkipYrs*Periods+1+$AE18)*$AF18*(1/(1+Disc)^($AE18+1)))*$R18 + (OFFSET(CostE!S$5,$AA18-1,SkipYrs*Periods+1+$AE18)*$AG18*(1/(1+Disc)^($AE18+1))+ IF($AH18>0,NPV(Disc,OFFSET(CostE!S$5,$AA18-1,SkipYrs*Periods+ROUND($AE18+$AF18+$AG18,0)+1,1,$AH18)),0)*(1/(1+Disc)^($AE18+$AF18+$AG18))+ OFFSET(CostE!S$5,$AA18-1,SkipYrs*Periods+ROUND($AE18+$AF18+$AG18+$AH18,0)+1)*$AI18*(1/(1+Disc)^(ROUND($AE18+$AH18+$AF18+$AG18,0)+1)))*$S18 ->  | CR18: =(IF($AE18>0,NPV(Disc,OFFSET(CostE!T$5,$AA18-1,SkipYrs*Periods+1,1,$AE18)),0)+OFFSET(CostE!T$5,$AA18-1,SkipYrs*Periods+1+$AE18)*$AF18*(1/(1+Disc)^($AE18+1)))*$R18 + (OFFSET(CostE!T$5,$AA18-1,SkipYrs*Periods+1+$AE18)*$AG18*(1/(1+Disc)^($AE18+1))+ IF($AH18>0,NPV(Disc,OFFSET(CostE!T$5,$AA18-1,SkipYrs*Periods+ROUND($AE18+$AF18+$AG18,0)+1,1,$AH18)),0)*(1/(1+Disc)^($AE18+$AF18+$AG18))+ OFFSET(CostE!T$5,$AA18-1,SkipYrs*Periods+ROUND($AE18+$AF18+$AG18+$AH18,0)+1)*$AI18*(1/(1+Disc)^(ROUND($AE18+$AH18+$AF18+$AG18,0)+1)))*$S18 ->  | CS18: =(IF($AE18>0,NPV(Disc,OFFSET(CostE!U$5,$AA18-1,SkipYrs*Periods+1,1,$AE18)),0)+OFFSET(CostE!U$5,$AA18-1,SkipYrs*Periods+1+$AE18)*$AF18*(1/(1+Disc)^($AE18+1)))*$R18 + (OFFSET(CostE!U$5,$AA18-1,SkipYrs*Periods+1+$AE18)*$AG18*(1/(1+Disc)^($AE18+1))+ IF($AH18>0,NPV(Disc,OFFSET(CostE!U$5,$AA18-1,SkipYrs*Periods+ROUND($AE18+$AF18+$AG18,0)+1,1,$AH18)),0)*(1/(1+Disc)^($AE18+$AF18+$AG18))+ OFFSET(CostE!U$5,$AA18-1,SkipYrs*Periods+ROUND($AE18+$AF18+$AG18+$AH18,0)+1)*$AI18*(1/(1+Disc)^(ROUND($AE18+$AH18+$AF18+$AG18,0)+1)))*$S18 ->  | CT18: =(IF($AE18>0,NPV(Disc,OFFSET(CostE!V$5,$AA18-1,SkipYrs*Periods+1,1,$AE18)),0)+OFFSET(CostE!V$5,$AA18-1,SkipYrs*Periods+1+$AE18)*$AF18*(1/(1+Disc)^($AE18+1)))*$R18 + (OFFSET(CostE!V$5,$AA18-1,SkipYrs*Periods+1+$AE18)*$AG18*(1/(1+Disc)^($AE18+1))+ IF($AH18>0,NPV(Disc,OFFSET(CostE!V$5,$AA18-1,SkipYrs*Periods+ROUND($AE18+$AF18+$AG18,0)+1,1,$AH18)),0)*(1/(1+Disc)^($AE18+$AF18+$AG18))+ OFFSET(CostE!V$5,$AA18-1,SkipYrs*Periods+ROUND($AE18+$AF18+$AG18+$AH18,0)+1)*$AI18*(1/(1+Disc)^(ROUND($AE18+$AH18+$AF18+$AG18,0)+1)))*$S18 ->  | CU18: =(IF($AE18>0,NPV(Disc,OFFSET(CostE!W$5,$AA18-1,SkipYrs*Periods+1,1,$AE18)),0)+OFFSET(CostE!W$5,$AA18-1,SkipYrs*Periods+1+$AE18)*$AF18*(1/(1+Disc)^($AE18+1)))*$R18 + (OFFSET(CostE!W$5,$AA18-1,SkipYrs*Periods+1+$AE18)*$AG18*(1/(1+Disc)^($AE18+1))+ IF($AH18>0,NPV(Disc,OFFSET(CostE!W$5,$AA18-1,SkipYrs*Periods+ROUND($AE18+$AF18+$AG18,0)+1,1,$AH18)),0)*(1/(1+Disc)^($AE18+$AF18+$AG18))+ OFFSET(CostE!W$5,$AA18-1,SkipYrs*Periods+ROUND($AE18+$AF18+$AG18+$AH18,0)+1)*$AI18*(1/(1+Disc)^(ROUND($AE18+$AH18+$AF18+$AG18,0)+1)))*$S18 ->  | CV18: =(IF($AE18>0,NPV(Disc,OFFSET(CostE!X$5,$AA18-1,SkipYrs*Periods+1,1,$AE18)),0)+OFFSET(CostE!X$5,$AA18-1,SkipYrs*Periods+1+$AE18)*$AF18*(1/(1+Disc)^($AE18+1)))*$R18 + (OFFSET(CostE!X$5,$AA18-1,SkipYrs*Periods+1+$AE18)*$AG18*(1/(1+Disc)^($AE18+1))+ IF($AH18>0,NPV(Disc,OFFSET(CostE!X$5,$AA18-1,SkipYrs*Periods+ROUND($AE18+$AF18+$AG18,0)+1,1,$AH18)),0)*(1/(1+Disc)^($AE18+$AF18+$AG18))+ OFFSET(CostE!X$5,$AA18-1,SkipYrs*Periods+ROUND($AE18+$AF18+$AG18+$AH18,0)+1)*$AI18*(1/(1+Disc)^(ROUND($AE18+$AH18+$AF18+$AG18,0)+1)))*$S18 ->  | CW18: =(IF($AE18>0,NPV(Disc,OFFSET(CostE!Y$5,$AA18-1,SkipYrs*Periods+1,1,$AE18)),0)+OFFSET(CostE!Y$5,$AA18-1,SkipYrs*Periods+1+$AE18)*$AF18*(1/(1+Disc)^($AE18+1)))*$R18 + (OFFSET(CostE!Y$5,$AA18-1,SkipYrs*Periods+1+$AE18)*$AG18*(1/(1+Disc)^($AE18+1))+ IF($AH18>0,NPV(Disc,OFFSET(CostE!Y$5,$AA18-1,SkipYrs*Periods+ROUND($AE18+$AF18+$AG18,0)+1,1,$AH18)),0)*(1/(1+Disc)^($AE18+$AF18+$AG18))+ OFFSET(CostE!Y$5,$AA18-1,SkipYrs*Periods+ROUND($AE18+$AF18+$AG18+$AH18,0)+1)*$AI18*(1/(1+Disc)^(ROUND($AE18+$AH18+$AF18+$AG18,0)+1)))*$S18 ->  | CX18: =(IF($AE18>0,NPV(Disc,OFFSET(CostE!Z$5,$AA18-1,SkipYrs*Periods+1,1,$AE18)),0)+OFFSET(CostE!Z$5,$AA18-1,SkipYrs*Periods+1+$AE18)*$AF18*(1/(1+Disc)^($AE18+1)))*$R18 + (OFFSET(CostE!Z$5,$AA18-1,SkipYrs*Periods+1+$AE18)*$AG18*(1/(1+Disc)^($AE18+1))+ IF($AH18>0,NPV(Disc,OFFSET(CostE!Z$5,$AA18-1,SkipYrs*Periods+ROUND($AE18+$AF18+$AG18,0)+1,1,$AH18)),0)*(1/(1+Disc)^($AE18+$AF18+$AG18))+ OFFSET(CostE!Z$5,$AA18-1,SkipYrs*Periods+ROUND($AE18+$AF18+$AG18+$AH18,0)+1)*$AI18*(1/(1+Disc)^(ROUND($AE18+$AH18+$AF18+$AG18,0)+1)))*$S18 ->  | CY18: =(IF($AE18>0,NPV(Disc,OFFSET(CostE!AA$5,$AA18-1,SkipYrs*Periods+1,1,$AE18)),0)+OFFSET(CostE!AA$5,$AA18-1,SkipYrs*Periods+1+$AE18)*$AF18*(1/(1+Disc)^($AE18+1)))*$R18 + (OFFSET(CostE!AA$5,$AA18-1,SkipYrs*Periods+1+$AE18)*$AG18*(1/(1+Disc)^($AE18+1))+ IF($AH18>0,NPV(Disc,OFFSET(CostE!AA$5,$AA18-1,SkipYrs*Periods+ROUND($AE18+$AF18+$AG18,0)+1,1,$AH18)),0)*(1/(1+Disc)^($AE18+$AF18+$AG18))+ OFFSET(CostE!AA$5,$AA18-1,SkipYrs*Periods+ROUND($AE18+$AF18+$AG18+$AH18,0)+1)*$AI18*(1/(1+Disc)^(ROUND($AE18+$AH18+$AF18+$AG18,0)+1)))*$S18 ->  | CZ18: =(IF($AE18>0,NPV(Disc,OFFSET(CostE!AB$5,$AA18-1,SkipYrs*Periods+1,1,$AE18)),0)+OFFSET(CostE!AB$5,$AA18-1,SkipYrs*Periods+1+$AE18)*$AF18*(1/(1+Disc)^($AE18+1)))*$R18 + (OFFSET(CostE!AB$5,$AA18-1,SkipYrs*Periods+1+$AE18)*$AG18*(1/(1+Disc)^($AE18+1))+ IF($AH18>0,NPV(Disc,OFFSET(CostE!AB$5,$AA18-1,SkipYrs*Periods+ROUND($AE18+$AF18+$AG18,0)+1,1,$AH18)),0)*(1/(1+Disc)^($AE18+$AF18+$AG18))+ OFFSET(CostE!AB$5,$AA18-1,SkipYrs*Periods+ROUND($AE18+$AF18+$AG18+$AH18,0)+1)*$AI18*(1/(1+Disc)^(ROUND($AE18+$AH18+$AF18+$AG18,0)+1)))*$S18 ->  | DA18: =(IF($AE18>0,NPV(Disc,OFFSET(CostE!AC$5,$AA18-1,SkipYrs*Periods+1,1,$AE18)),0)+OFFSET(CostE!AC$5,$AA18-1,SkipYrs*Periods+1+$AE18)*$AF18*(1/(1+Disc)^($AE18+1)))*$R18 + (OFFSET(CostE!AC$5,$AA18-1,SkipYrs*Periods+1+$AE18)*$AG18*(1/(1+Disc)^($AE18+1))+ IF($AH18>0,NPV(Disc,OFFSET(CostE!AC$5,$AA18-1,SkipYrs*Periods+ROUND($AE18+$AF18+$AG18,0)+1,1,$AH18)),0)*(1/(1+Disc)^($AE18+$AF18+$AG18))+ OFFSET(CostE!AC$5,$AA18-1,SkipYrs*Periods+ROUND($AE18+$AF18+$AG18+$AH18,0)+1)*$AI18*(1/(1+Disc)^(ROUND($AE18+$AH18+$AF18+$AG18,0)+1)))*$S18 ->  | DB18: =(IF($AE18>0,NPV(Disc,OFFSET(CostE!AD$5,$AA18-1,SkipYrs*Periods+1,1,$AE18)),0)+OFFSET(CostE!AD$5,$AA18-1,SkipYrs*Periods+1+$AE18)*$AF18*(1/(1+Disc)^($AE18+1)))*$R18 + (OFFSET(CostE!AD$5,$AA18-1,SkipYrs*Periods+1+$AE18)*$AG18*(1/(1+Disc)^($AE18+1))+ IF($AH18>0,NPV(Disc,OFFSET(CostE!AD$5,$AA18-1,SkipYrs*Periods+ROUND($AE18+$AF18+$AG18,0)+1,1,$AH18)),0)*(1/(1+Disc)^($AE18+$AF18+$AG18))+ OFFSET(CostE!AD$5,$AA18-1,SkipYrs*Periods+ROUND($AE18+$AF18+$AG18+$AH18,0)+1)*$AI18*(1/(1+Disc)^(ROUND($AE18+$AH18+$AF18+$AG18,0)+1)))*$S18 ->  | DC18: =(IF($AE18>0,NPV(Disc,OFFSET(CostE!AE$5,$AA18-1,SkipYrs*Periods+1,1,$AE18)),0)+OFFSET(CostE!AE$5,$AA18-1,SkipYrs*Periods+1+$AE18)*$AF18*(1/(1+Disc)^($AE18+1)))*$R18 + (OFFSET(CostE!AE$5,$AA18-1,SkipYrs*Periods+1+$AE18)*$AG18*(1/(1+Disc)^($AE18+1))+ IF($AH18>0,NPV(Disc,OFFSET(CostE!AE$5,$AA18-1,SkipYrs*Periods+ROUND($AE18+$AF18+$AG18,0)+1,1,$AH18)),0)*(1/(1+Disc)^($AE18+$AF18+$AG18))+ OFFSET(CostE!AE$5,$AA18-1,SkipYrs*Periods+ROUND($AE18+$AF18+$AG18+$AH18,0)+1)*$AI18*(1/(1+Disc)^(ROUND($AE18+$AH18+$AF18+$AG18,0)+1)))*$S18 ->  | DD18: =(IF($AE18>0,NPV(Disc,OFFSET(CostE!AF$5,$AA18-1,SkipYrs*Periods+1,1,$AE18)),0)+OFFSET(CostE!AF$5,$AA18-1,SkipYrs*Periods+1+$AE18)*$AF18*(1/(1+Disc)^($AE18+1)))*$R18 + (OFFSET(CostE!AF$5,$AA18-1,SkipYrs*Periods+1+$AE18)*$AG18*(1/(1+Disc)^($AE18+1))+ IF($AH18>0,NPV(Disc,OFFSET(CostE!AF$5,$AA18-1,SkipYrs*Periods+ROUND($AE18+$AF18+$AG18,0)+1,1,$AH18)),0)*(1/(1+Disc)^($AE18+$AF18+$AG18))+ OFFSET(CostE!AF$5,$AA18-1,SkipYrs*Periods+ROUND($AE18+$AF18+$AG18+$AH18,0)+1)*$AI18*(1/(1+Disc)^(ROUND($AE18+$AH18+$AF18+$AG18,0)+1)))*$S18 ->  | DE18: =(IF($AE18>0,NPV(Disc,OFFSET(CostE!AG$5,$AA18-1,SkipYrs*Periods+1,1,$AE18)),0)+OFFSET(CostE!AG$5,$AA18-1,SkipYrs*Periods+1+$AE18)*$AF18*(1/(1+Disc)^($AE18+1)))*$R18 + (OFFSET(CostE!AG$5,$AA18-1,SkipYrs*Periods+1+$AE18)*$AG18*(1/(1+Disc)^($AE18+1))+ IF($AH18>0,NPV(Disc,OFFSET(CostE!AG$5,$AA18-1,SkipYrs*Periods+ROUND($AE18+$AF18+$AG18,0)+1,1,$AH18)),0)*(1/(1+Disc)^($AE18+$AF18+$AG18))+ OFFSET(CostE!AG$5,$AA18-1,SkipYrs*Periods+ROUND($AE18+$AF18+$AG18+$AH18,0)+1)*$AI18*(1/(1+Disc)^(ROUND($AE18+$AH18+$AF18+$AG18,0)+1)))*$S18 ->  | DF18: =(IF($AE18>0,NPV(Disc,OFFSET(CostE!AH$5,$AA18-1,SkipYrs*Periods+1,1,$AE18)),0)+OFFSET(CostE!AH$5,$AA18-1,SkipYrs*Periods+1+$AE18)*$AF18*(1/(1+Disc)^($AE18+1)))*$R18 + (OFFSET(CostE!AH$5,$AA18-1,SkipYrs*Periods+1+$AE18)*$AG18*(1/(1+Disc)^($AE18+1))+ IF($AH18>0,NPV(Disc,OFFSET(CostE!AH$5,$AA18-1,SkipYrs*Periods+ROUND($AE18+$AF18+$AG18,0)+1,1,$AH18)),0)*(1/(1+Disc)^($AE18+$AF18+$AG18))+ OFFSET(CostE!AH$5,$AA18-1,SkipYrs*Periods+ROUND($AE18+$AF18+$AG18+$AH18,0)+1)*$AI18*(1/(1+Disc)^(ROUND($AE18+$AH18+$AF18+$AG18,0)+1)))*$S18 ->  | DG18: =(IF($AE18>0,NPV(Disc,OFFSET(CostE!AI$5,$AA18-1,SkipYrs*Periods+1,1,$AE18)),0)+OFFSET(CostE!AI$5,$AA18-1,SkipYrs*Periods+1+$AE18)*$AF18*(1/(1+Disc)^($AE18+1)))*$R18 + (OFFSET(CostE!AI$5,$AA18-1,SkipYrs*Periods+1+$AE18)*$AG18*(1/(1+Disc)^($AE18+1))+ IF($AH18>0,NPV(Disc,OFFSET(CostE!AI$5,$AA18-1,SkipYrs*Periods+ROUND($AE18+$AF18+$AG18,0)+1,1,$AH18)),0)*(1/(1+Disc)^($AE18+$AF18+$AG18))+ OFFSET(CostE!AI$5,$AA18-1,SkipYrs*Periods+ROUND($AE18+$AF18+$AG18+$AH18,0)+1)*$AI18*(1/(1+Disc)^(ROUND($AE18+$AH18+$AF18+$AG18,0)+1)))*$S18 ->  | DH18: =(IF($AE18>0,NPV(Disc,OFFSET(CostE!AJ$5,$AA18-1,SkipYrs*Periods+1,1,$AE18)),0)+OFFSET(CostE!AJ$5,$AA18-1,SkipYrs*Periods+1+$AE18)*$AF18*(1/(1+Disc)^($AE18+1)))*$R18 + (OFFSET(CostE!AJ$5,$AA18-1,SkipYrs*Periods+1+$AE18)*$AG18*(1/(1+Disc)^($AE18+1))+ IF($AH18>0,NPV(Disc,OFFSET(CostE!AJ$5,$AA18-1,SkipYrs*Periods+ROUND($AE18+$AF18+$AG18,0)+1,1,$AH18)),0)*(1/(1+Disc)^($AE18+$AF18+$AG18))+ OFFSET(CostE!AJ$5,$AA18-1,SkipYrs*Periods+ROUND($AE18+$AF18+$AG18+$AH18,0)+1)*$AI18*(1/(1+Disc)^(ROUND($AE18+$AH18+$AF18+$AG18,0)+1)))*$S18 ->  | DI18: =(IF($AE18>0,NPV(Disc,OFFSET(CostE!AK$5,$AA18-1,SkipYrs*Periods+1,1,$AE18)),0)+OFFSET(CostE!AK$5,$AA18-1,SkipYrs*Periods+1+$AE18)*$AF18*(1/(1+Disc)^($AE18+1)))*$R18 + (OFFSET(CostE!AK$5,$AA18-1,SkipYrs*Periods+1+$AE18)*$AG18*(1/(1+Disc)^($AE18+1))+ IF($AH18>0,NPV(Disc,OFFSET(CostE!AK$5,$AA18-1,SkipYrs*Periods+ROUND($AE18+$AF18+$AG18,0)+1,1,$AH18)),0)*(1/(1+Disc)^($AE18+$AF18+$AG18))+ OFFSET(CostE!AK$5,$AA18-1,SkipYrs*Periods+ROUND($AE18+$AF18+$AG18+$AH18,0)+1)*$AI18*(1/(1+Disc)^(ROUND($AE18+$AH18+$AF18+$AG18,0)+1)))*$S18 ->  | DJ18: =(IF($AE18>0,NPV(Disc,OFFSET(CostE!AL$5,$AA18-1,SkipYrs*Periods+1,1,$AE18)),0)+OFFSET(CostE!AL$5,$AA18-1,SkipYrs*Periods+1+$AE18)*$AF18*(1/(1+Disc)^($AE18+1)))*$R18 + (OFFSET(CostE!AL$5,$AA18-1,SkipYrs*Periods+1+$AE18)*$AG18*(1/(1+Disc)^($AE18+1))+ IF($AH18>0,NPV(Disc,OFFSET(CostE!AL$5,$AA18-1,SkipYrs*Periods+ROUND($AE18+$AF18+$AG18,0)+1,1,$AH18)),0)*(1/(1+Disc)^($AE18+$AF18+$AG18))+ OFFSET(CostE!AL$5,$AA18-1,SkipYrs*Periods+ROUND($AE18+$AF18+$AG18+$AH18,0)+1)*$AI18*(1/(1+Disc)^(ROUND($AE18+$AH18+$AF18+$AG18,0)+1)))*$S18 ->  | DK18: =(IF($AE18>0,NPV(Disc,OFFSET(CostE!AM$5,$AA18-1,SkipYrs*Periods+1,1,$AE18)),0)+OFFSET(CostE!AM$5,$AA18-1,SkipYrs*Periods+1+$AE18)*$AF18*(1/(1+Disc)^($AE18+1)))*$R18 + (OFFSET(CostE!AM$5,$AA18-1,SkipYrs*Periods+1+$AE18)*$AG18*(1/(1+Disc)^($AE18+1))+ IF($AH18>0,NPV(Disc,OFFSET(CostE!AM$5,$AA18-1,SkipYrs*Periods+ROUND($AE18+$AF18+$AG18,0)+1,1,$AH18)),0)*(1/(1+Disc)^($AE18+$AF18+$AG18))+ OFFSET(CostE!AM$5,$AA18-1,SkipYrs*Periods+ROUND($AE18+$AF18+$AG18+$AH18,0)+1)*$AI18*(1/(1+Disc)^(ROUND($AE18+$AH18+$AF18+$AG18,0)+1)))*$S18 ->  | DL18: =(IF($AE18>0,NPV(Disc,OFFSET(CostE!AN$5,$AA18-1,SkipYrs*Periods+1,1,$AE18)),0)+OFFSET(CostE!AN$5,$AA18-1,SkipYrs*Periods+1+$AE18)*$AF18*(1/(1+Disc)^($AE18+1)))*$R18 + (OFFSET(CostE!AN$5,$AA18-1,SkipYrs*Periods+1+$AE18)*$AG18*(1/(1+Disc)^($AE18+1))+ IF($AH18>0,NPV(Disc,OFFSET(CostE!AN$5,$AA18-1,SkipYrs*Periods+ROUND($AE18+$AF18+$AG18,0)+1,1,$AH18)),0)*(1/(1+Disc)^($AE18+$AF18+$AG18))+ OFFSET(CostE!AN$5,$AA18-1,SkipYrs*Periods+ROUND($AE18+$AF18+$AG18+$AH18,0)+1)*$AI18*(1/(1+Disc)^(ROUND($AE18+$AH18+$AF18+$AG18,0)+1)))*$S18 ->  | DM18: =(IF($AE18>0,NPV(Disc,OFFSET(CostE!AO$5,$AA18-1,SkipYrs*Periods+1,1,$AE18)),0)+OFFSET(CostE!AO$5,$AA18-1,SkipYrs*Periods+1+$AE18)*$AF18*(1/(1+Disc)^($AE18+1)))*$R18 + (OFFSET(CostE!AO$5,$AA18-1,SkipYrs*Periods+1+$AE18)*$AG18*(1/(1+Disc)^($AE18+1))+ IF($AH18>0,NPV(Disc,OFFSET(CostE!AO$5,$AA18-1,SkipYrs*Periods+ROUND($AE18+$AF18+$AG18,0)+1,1,$AH18)),0)*(1/(1+Disc)^($AE18+$AF18+$AG18))+ OFFSET(CostE!AO$5,$AA18-1,SkipYrs*Periods+ROUND($AE18+$AF18+$AG18+$AH18,0)+1)*$AI18*(1/(1+Disc)^(ROUND($AE18+$AH18+$AF18+$AG18,0)+1)))*$S18 ->  | DN18: =(IF($AE18>0,NPV(Disc,OFFSET(CostE!AP$5,$AA18-1,SkipYrs*Periods+1,1,$AE18)),0)+OFFSET(CostE!AP$5,$AA18-1,SkipYrs*Periods+1+$AE18)*$AF18*(1/(1+Disc)^($AE18+1)))*$R18 + (OFFSET(CostE!AP$5,$AA18-1,SkipYrs*Periods+1+$AE18)*$AG18*(1/(1+Disc)^($AE18+1))+ IF($AH18>0,NPV(Disc,OFFSET(CostE!AP$5,$AA18-1,SkipYrs*Periods+ROUND($AE18+$AF18+$AG18,0)+1,1,$AH18)),0)*(1/(1+Disc)^($AE18+$AF18+$AG18))+ OFFSET(CostE!AP$5,$AA18-1,SkipYrs*Periods+ROUND($AE18+$AF18+$AG18+$AH18,0)+1)*$AI18*(1/(1+Disc)^(ROUND($AE18+$AH18+$AF18+$AG18,0)+1)))*$S18 ->  | DO18: =(IF($AE18>0,NPV(Disc,OFFSET(CostE!AQ$5,$AA18-1,SkipYrs*Periods+1,1,$AE18)),0)+OFFSET(CostE!AQ$5,$AA18-1,SkipYrs*Periods+1+$AE18)*$AF18*(1/(1+Disc)^($AE18+1)))*$R18 + (OFFSET(CostE!AQ$5,$AA18-1,SkipYrs*Periods+1+$AE18)*$AG18*(1/(1+Disc)^($AE18+1))+ IF($AH18>0,NPV(Disc,OFFSET(CostE!AQ$5,$AA18-1,SkipYrs*Periods+ROUND($AE18+$AF18+$AG18,0)+1,1,$AH18)),0)*(1/(1+Disc)^($AE18+$AF18+$AG18))+ OFFSET(CostE!AQ$5,$AA18-1,SkipYrs*Periods+ROUND($AE18+$AF18+$AG18+$AH18,0)+1)*$AI18*(1/(1+Disc)^(ROUND($AE18+$AH18+$AF18+$AG18,0)+1)))*$S18 ->  | DP18: =(IF($AE18>0,NPV(Disc,OFFSET(CostE!AR$5,$AA18-1,SkipYrs*Periods+1,1,$AE18)),0)+OFFSET(CostE!AR$5,$AA18-1,SkipYrs*Periods+1+$AE18)*$AF18*(1/(1+Disc)^($AE18+1)))*$R18 + (OFFSET(CostE!AR$5,$AA18-1,SkipYrs*Periods+1+$AE18)*$AG18*(1/(1+Disc)^($AE18+1))+ IF($AH18>0,NPV(Disc,OFFSET(CostE!AR$5,$AA18-1,SkipYrs*Periods+ROUND($AE18+$AF18+$AG18,0)+1,1,$AH18)),0)*(1/(1+Disc)^($AE18+$AF18+$AG18))+ OFFSET(CostE!AR$5,$AA18-1,SkipYrs*Periods+ROUND($AE18+$AF18+$AG18+$AH18,0)+1)*$AI18*(1/(1+Disc)^(ROUND($AE18+$AH18+$AF18+$AG18,0)+1)))*$S18 ->  | DQ18: =(IF($AE18>0,NPV(Disc,OFFSET(CostE!AS$5,$AA18-1,SkipYrs*Periods+1,1,$AE18)),0)+OFFSET(CostE!AS$5,$AA18-1,SkipYrs*Periods+1+$AE18)*$AF18*(1/(1+Disc)^($AE18+1)))*$R18 + (OFFSET(CostE!AS$5,$AA18-1,SkipYrs*Periods+1+$AE18)*$AG18*(1/(1+Disc)^($AE18+1))+ IF($AH18>0,NPV(Disc,OFFSET(CostE!AS$5,$AA18-1,SkipYrs*Periods+ROUND($AE18+$AF18+$AG18,0)+1,1,$AH18)),0)*(1/(1+Disc)^($AE18+$AF18+$AG18))+ OFFSET(CostE!AS$5,$AA18-1,SkipYrs*Periods+ROUND($AE18+$AF18+$AG18+$AH18,0)+1)*$AI18*(1/(1+Disc)^(ROUND($AE18+$AH18+$AF18+$AG18,0)+1)))*$S18 ->  | DR18: =(IF($AE18>0,NPV(Disc,OFFSET(CostE!AT$5,$AA18-1,SkipYrs*Periods+1,1,$AE18)),0)+OFFSET(CostE!AT$5,$AA18-1,SkipYrs*Periods+1+$AE18)*$AF18*(1/(1+Disc)^($AE18+1)))*$R18 + (OFFSET(CostE!AT$5,$AA18-1,SkipYrs*Periods+1+$AE18)*$AG18*(1/(1+Disc)^($AE18+1))+ IF($AH18>0,NPV(Disc,OFFSET(CostE!AT$5,$AA18-1,SkipYrs*Periods+ROUND($AE18+$AF18+$AG18,0)+1,1,$AH18)),0)*(1/(1+Disc)^($AE18+$AF18+$AG18))+ OFFSET(CostE!AT$5,$AA18-1,SkipYrs*Periods+ROUND($AE18+$AF18+$AG18+$AH18,0)+1)*$AI18*(1/(1+Disc)^(ROUND($AE18+$AH18+$AF18+$AG18,0)+1)))*$S18 ->  | DS18: =(IF($AE18>0,NPV(Disc,OFFSET(CostE!AU$5,$AA18-1,SkipYrs*Periods+1,1,$AE18)),0)+OFFSET(CostE!AU$5,$AA18-1,SkipYrs*Periods+1+$AE18)*$AF18*(1/(1+Disc)^($AE18+1)))*$R18 + (OFFSET(CostE!AU$5,$AA18-1,SkipYrs*Periods+1+$AE18)*$AG18*(1/(1+Disc)^($AE18+1))+ IF($AH18>0,NPV(Disc,OFFSET(CostE!AU$5,$AA18-1,SkipYrs*Periods+ROUND($AE18+$AF18+$AG18,0)+1,1,$AH18)),0)*(1/(1+Disc)^($AE18+$AF18+$AG18))+ OFFSET(CostE!AU$5,$AA18-1,SkipYrs*Periods+ROUND($AE18+$AF18+$AG18+$AH18,0)+1)*$AI18*(1/(1+Disc)^(ROUND($AE18+$AH18+$AF18+$AG18,0)+1)))*$S18 ->  | DT18: =(IF($AE18>0,NPV(Disc,OFFSET(CostE!AV$5,$AA18-1,SkipYrs*Periods+1,1,$AE18)),0)+OFFSET(CostE!AV$5,$AA18-1,SkipYrs*Periods+1+$AE18)*$AF18*(1/(1+Disc)^($AE18+1)))*$R18 + (OFFSET(CostE!AV$5,$AA18-1,SkipYrs*Periods+1+$AE18)*$AG18*(1/(1+Disc)^($AE18+1))+ IF($AH18>0,NPV(Disc,OFFSET(CostE!AV$5,$AA18-1,SkipYrs*Periods+ROUND($AE18+$AF18+$AG18,0)+1,1,$AH18)),0)*(1/(1+Disc)^($AE18+$AF18+$AG18))+ OFFSET(CostE!AV$5,$AA18-1,SkipYrs*Periods+ROUND($AE18+$AF18+$AG18+$AH18,0)+1)*$AI18*(1/(1+Disc)^(ROUND($AE18+$AH18+$AF18+$AG18,0)+1)))*$S18 ->  | DU18: =(IF($AE18>0,NPV(Disc,OFFSET(CostE!AW$5,$AA18-1,SkipYrs*Periods+1,1,$AE18)),0)+OFFSET(CostE!AW$5,$AA18-1,SkipYrs*Periods+1+$AE18)*$AF18*(1/(1+Disc)^($AE18+1)))*$R18 + (OFFSET(CostE!AW$5,$AA18-1,SkipYrs*Periods+1+$AE18)*$AG18*(1/(1+Disc)^($AE18+1))+ IF($AH18>0,NPV(Disc,OFFSET(CostE!AW$5,$AA18-1,SkipYrs*Periods+ROUND($AE18+$AF18+$AG18,0)+1,1,$AH18)),0)*(1/(1+Disc)^($AE18+$AF18+$AG18))+ OFFSET(CostE!AW$5,$AA18-1,SkipYrs*Periods+ROUND($AE18+$AF18+$AG18+$AH18,0)+1)*$AI18*(1/(1+Disc)^(ROUND($AE18+$AH18+$AF18+$AG18,0)+1)))*$S18 ->  | DV18: =(IF($AE18>0,NPV(Disc,OFFSET(CostE!AX$5,$AA18-1,SkipYrs*Periods+1,1,$AE18)),0)+OFFSET(CostE!AX$5,$AA18-1,SkipYrs*Periods+1+$AE18)*$AF18*(1/(1+Disc)^($AE18+1)))*$R18 + (OFFSET(CostE!AX$5,$AA18-1,SkipYrs*Periods+1+$AE18)*$AG18*(1/(1+Disc)^($AE18+1))+ IF($AH18>0,NPV(Disc,OFFSET(CostE!AX$5,$AA18-1,SkipYrs*Periods+ROUND($AE18+$AF18+$AG18,0)+1,1,$AH18)),0)*(1/(1+Disc)^($AE18+$AF18+$AG18))+ OFFSET(CostE!AX$5,$AA18-1,SkipYrs*Periods+ROUND($AE18+$AF18+$AG18+$AH18,0)+1)*$AI18*(1/(1+Disc)^(ROUND($AE18+$AH18+$AF18+$AG18,0)+1)))*$S18 ->  | DW18: =NPV(Disc,IF(ISERROR(DV18),0,Input!BA18:CR18*(AM18:CD18+CE18:DV18)))*L18 -> 0 | DX18: =NPV(Disc,GasCalcs!M18:BD18*Input!BA18:CR18)*L18 ->  | DY18: =NPV(Disc,IF(ISERROR(DV18),0,Input!BA18:CR18*(AM18:CD18*$G18+CE18:DV18*$H18)))*$L18 -> 0 | DZ18: =IF(ISERROR($I18),1,$I18)*IF(ISERROR(DX18),0,DX18) -> 0 | EA18: =IF(ISERROR(MATCH(Input!$S18,Rates!$A$4:$A$9,0)),1,MATCH(Input!$S18,Rates!$A$4:$A$9,0)) -> 1 | EB18: =MATCH(Input!$X18,Rates!$A$16:$A$18,0) ->  | EC18: =(IF($E18>=1,NPV($C$3,OFFSET(Rates!$B$4,$EA18-1,EC$16-Rates!$B$3,1,TRUNC($E18))))*(1+$C$3)+OFFSET(Rates!$B$4,$EA18-1,EC$16-Rates!$B$3+TRUNC($E18))*($E18-TRUNC($E18))*(1/(1+$C$3)^(EC$16-Rates!$B$3+TRUNC($E18))))*$M18+(IF((Input!$Z18-$E18)>=1,NPV($C$3,OFFSET(Rates!$B$4,$EA18-1,EC$16-Rates!$B$3+TRUNC($E18),1,TRUNC(Input!$Z18-$E18))))/(1+$C$3)^(TRUNC($E18)-1)+OFFSET(Rates!$B$4,$EA18-1,EC$16-Rates!$B$3+TRUNC(Input!$Z18))*(Input!$Z18-TRUNC(Input!$Z18))*(1/(1+$C$3)^(EC$16-Rates!$B$3+TRUNC(Input!$Z18))))*Input!$AC18 -> 0 | ED18: =(IF($E18>=1,NPV($C$3,OFFSET(Rates!$B$4,$EA18-1,ED$16-Rates!$B$3,1,TRUNC($E18))))*(1+$C$3)+OFFSET(Rates!$B$4,$EA18-1,ED$16-Rates!$B$3+TRUNC($E18))*($E18-TRUNC($E18))*(1/(1+$C$3)^(ED$16-Rates!$B$3+TRUNC($E18))))*$M18+(IF((Input!$Z18-$E18)>=1,NPV($C$3,OFFSET(Rates!$B$4,$EA18-1,ED$16-Rates!$B$3+TRUNC($E18),1,TRUNC(Input!$Z18-$E18))))/(1+$C$3)^(TRUNC($E18)-1)+OFFSET(Rates!$B$4,$EA18-1,ED$16-Rates!$B$3+TRUNC(Input!$Z18))*(Input!$Z18-TRUNC(Input!$Z18))*(1/(1+$C$3)^(ED$16-Rates!$B$3+TRUNC(Input!$Z18))))*Input!$AC18 -> 0 | EE18: =(IF($E18>=1,NPV($C$3,OFFSET(Rates!$B$4,$EA18-1,EE$16-Rates!$B$3,1,TRUNC($E18))))*(1+$C$3)+OFFSET(Rates!$B$4,$EA18-1,EE$16-Rates!$B$3+TRUNC($E18))*($E18-TRUNC($E18))*(1/(1+$C$3)^(EE$16-Rates!$B$3+TRUNC($E18))))*$M18+(IF((Input!$Z18-$E18)>=1,NPV($C$3,OFFSET(Rates!$B$4,$EA18-1,EE$16-Rates!$B$3+TRUNC($E18),1,TRUNC(Input!$Z18-$E18))))/(1+$C$3)^(TRUNC($E18)-1)+OFFSET(Rates!$B$4,$EA18-1,EE$16-Rates!$B$3+TRUNC(Input!$Z18))*(Input!$Z18-TRUNC(Input!$Z18))*(1/(1+$C$3)^(EE$16-Rates!$B$3+TRUNC(Input!$Z18))))*Input!$AC18 -> 0 | EF18: =(IF($E18>=1,NPV($C$3,OFFSET(Rates!$B$4,$EA18-1,EF$16-Rates!$B$3,1,TRUNC($E18))))*(1+$C$3)+OFFSET(Rates!$B$4,$EA18-1,EF$16-Rates!$B$3+TRUNC($E18))*($E18-TRUNC($E18))*(1/(1+$C$3)^(EF$16-Rates!$B$3+TRUNC($E18))))*$M18+(IF((Input!$Z18-$E18)>=1,NPV($C$3,OFFSET(Rates!$B$4,$EA18-1,EF$16-Rates!$B$3+TRUNC($E18),1,TRUNC(Input!$Z18-$E18))))/(1+$C$3)^(TRUNC($E18)-1)+OFFSET(Rates!$B$4,$EA18-1,EF$16-Rates!$B$3+TRUNC(Input!$Z18))*(Input!$Z18-TRUNC(Input!$Z18))*(1/(1+$C$3)^(EF$16-Rates!$B$3+TRUNC(Input!$Z18))))*Input!$AC18 -> 0 | EG18: =(IF($E18>=1,NPV($C$3,OFFSET(Rates!$B$4,$EA18-1,EG$16-Rates!$B$3,1,TRUNC($E18))))*(1+$C$3)+OFFSET(Rates!$B$4,$EA18-1,EG$16-Rates!$B$3+TRUNC($E18))*($E18-TRUNC($E18))*(1/(1+$C$3)^(EG$16-Rates!$B$3+TRUNC($E18))))*$M18+(IF((Input!$Z18-$E18)>=1,NPV($C$3,OFFSET(Rates!$B$4,$EA18-1,EG$16-Rates!$B$3+TRUNC($E18),1,TRUNC(Input!$Z18-$E18))))/(1+$C$3)^(TRUNC($E18)-1)+OFFSET(Rates!$B$4,$EA18-1,EG$16-Rates!$B$3+TRUNC(Input!$Z18))*(Input!$Z18-TRUNC(Input!$Z18))*(1/(1+$C$3)^(EG$16-Rates!$B$3+TRUNC(Input!$Z18))))*Input!$AC18 -> 0 | EH18: =(IF($E18>=1,NPV($C$3,OFFSET(Rates!$B$4,$EA18-1,EH$16-Rates!$B$3,1,TRUNC($E18))))*(1+$C$3)+OFFSET(Rates!$B$4,$EA18-1,EH$16-Rates!$B$3+TRUNC($E18))*($E18-TRUNC($E18))*(1/(1+$C$3)^(EH$16-Rates!$B$3+TRUNC($E18))))*$M18+(IF((Input!$Z18-$E18)>=1,NPV($C$3,OFFSET(Rates!$B$4,$EA18-1,EH$16-Rates!$B$3+TRUNC($E18),1,TRUNC(Input!$Z18-$E18))))/(1+$C$3)^(TRUNC($E18)-1)+OFFSET(Rates!$B$4,$EA18-1,EH$16-Rates!$B$3+TRUNC(Input!$Z18))*(Input!$Z18-TRUNC(Input!$Z18))*(1/(1+$C$3)^(EH$16-Rates!$B$3+TRUNC(Input!$Z18))))*Input!$AC18 -> 0 | EI18: =(IF($E18>=1,NPV($C$3,OFFSET(Rates!$B$4,$EA18-1,EI$16-Rates!$B$3,1,TRUNC($E18))))*(1+$C$3)+OFFSET(Rates!$B$4,$EA18-1,EI$16-Rates!$B$3+TRUNC($E18))*($E18-TRUNC($E18))*(1/(1+$C$3)^(EI$16-Rates!$B$3+TRUNC($E18))))*$M18+(IF((Input!$Z18-$E18)>=1,NPV($C$3,OFFSET(Rates!$B$4,$EA18-1,EI$16-Rates!$B$3+TRUNC($E18),1,TRUNC(Input!$Z18-$E18))))/(1+$C$3)^(TRUNC($E18)-1)+OFFSET(Rates!$B$4,$EA18-1,EI$16-Rates!$B$3+TRUNC(Input!$Z18))*(Input!$Z18-TRUNC(Input!$Z18))*(1/(1+$C$3)^(EI$16-Rates!$B$3+TRUNC(Input!$Z18))))*Input!$AC18 -> 0 | EJ18: =(IF($E18>=1,NPV($C$3,OFFSET(Rates!$B$4,$EA18-1,EJ$16-Rates!$B$3,1,TRUNC($E18))))*(1+$C$3)+OFFSET(Rates!$B$4,$EA18-1,EJ$16-Rates!$B$3+TRUNC($E18))*($E18-TRUNC($E18))*(1/(1+$C$3)^(EJ$16-Rates!$B$3+TRUNC($E18))))*$M18+(IF((Input!$Z18-$E18)>=1,NPV($C$3,OFFSET(Rates!$B$4,$EA18-1,EJ$16-Rates!$B$3+TRUNC($E18),1,TRUNC(Input!$Z18-$E18))))/(1+$C$3)^(TRUNC($E18)-1)+OFFSET(Rates!$B$4,$EA18-1,EJ$16-Rates!$B$3+TRUNC(Input!$Z18))*(Input!$Z18-TRUNC(Input!$Z18))*(1/(1+$C$3)^(EJ$16-Rates!$B$3+TRUNC(Input!$Z18))))*Input!$AC18 -> 0 | EK18: =(IF($E18>=1,NPV($C$3,OFFSET(Rates!$B$4,$EA18-1,EK$16-Rates!$B$3,1,TRUNC($E18))))*(1+$C$3)+OFFSET(Rates!$B$4,$EA18-1,EK$16-Rates!$B$3+TRUNC($E18))*($E18-TRUNC($E18))*(1/(1+$C$3)^(EK$16-Rates!$B$3+TRUNC($E18))))*$M18+(IF((Input!$Z18-$E18)>=1,NPV($C$3,OFFSET(Rates!$B$4,$EA18-1,EK$16-Rates!$B$3+TRUNC($E18),1,TRUNC(Input!$Z18-$E18))))/(1+$C$3)^(TRUNC($E18)-1)+OFFSET(Rates!$B$4,$EA18-1,EK$16-Rates!$B$3+TRUNC(Input!$Z18))*(Input!$Z18-TRUNC(Input!$Z18))*(1/(1+$C$3)^(EK$16-Rates!$B$3+TRUNC(Input!$Z18))))*Input!$AC18 -> 0 | EL18: =(IF($E18>=1,NPV($C$3,OFFSET(Rates!$B$4,$EA18-1,EL$16-Rates!$B$3,1,TRUNC($E18))))*(1+$C$3)+OFFSET(Rates!$B$4,$EA18-1,EL$16-Rates!$B$3+TRUNC($E18))*($E18-TRUNC($E18))*(1/(1+$C$3)^(EL$16-Rates!$B$3+TRUNC($E18))))*$M18+(IF((Input!$Z18-$E18)>=1,NPV($C$3,OFFSET(Rates!$B$4,$EA18-1,EL$16-Rates!$B$3+TRUNC($E18),1,TRUNC(Input!$Z18-$E18))))/(1+$C$3)^(TRUNC($E18)-1)+OFFSET(Rates!$B$4,$EA18-1,EL$16-Rates!$B$3+TRUNC(Input!$Z18))*(Input!$Z18-TRUNC(Input!$Z18))*(1/(1+$C$3)^(EL$16-Rates!$B$3+TRUNC(Input!$Z18))))*Input!$AC18 -> 0 | EM18: =(IF($E18>=1,NPV($C$3,OFFSET(Rates!$B$4,$EA18-1,EM$16-Rates!$B$3,1,TRUNC($E18))))*(1+$C$3)+OFFSET(Rates!$B$4,$EA18-1,EM$16-Rates!$B$3+TRUNC($E18))*($E18-TRUNC($E18))*(1/(1+$C$3)^(EM$16-Rates!$B$3+TRUNC($E18))))*$M18+(IF((Input!$Z18-$E18)>=1,NPV($C$3,OFFSET(Rates!$B$4,$EA18-1,EM$16-Rates!$B$3+TRUNC($E18),1,TRUNC(Input!$Z18-$E18))))/(1+$C$3)^(TRUNC($E18)-1)+OFFSET(Rates!$B$4,$EA18-1,EM$16-Rates!$B$3+TRUNC(Input!$Z18))*(Input!$Z18-TRUNC(Input!$Z18))*(1/(1+$C$3)^(EM$16-Rates!$B$3+TRUNC(Input!$Z18))))*Input!$AC18 -> 0 | EN18: =(IF($E18>=1,NPV($C$3,OFFSET(Rates!$B$16,$EB18-1,EN$16-Rates!$B$3,1,TRUNC($E18))))*(1+$C$3) +OFFSET(Rates!$B$16,$EB18-1,EN$16-Rates!$B$3+TRUNC($E18))*($E18-TRUNC($E18))*(1/(1+$C$3)^(EN$16-Rates!$B$3+TRUNC($E18))))*Input!$V18 + (IF((Input!$Z18-$E18)>=1,NPV($C$3,OFFSET(Rates!$B$16,$EB18-1,EN$16-Rates!$B$3+TRUNC($E18),1,TRUNC(Input!$Z18-$E18))))/(1+$C$3)^(TRUNC($E18)-1) +OFFSET(Rates!$B$16,$EB18-1,EN$16-Rates!$B$3+TRUNC(Input!$Z18))*(Input!$Z18-TRUNC(Input!$Z18))*(1/(1+$C$3)^(EN$16-Rates!$B$3+TRUNC(Input!$Z18))))*Input!$AE18 ->  | EO18: =(IF($E18>=1,NPV($C$3,OFFSET(Rates!$B$16,$EB18-1,EO$16-Rates!$B$3,1,TRUNC($E18))))*(1+$C$3) +OFFSET(Rates!$B$16,$EB18-1,EO$16-Rates!$B$3+TRUNC($E18))*($E18-TRUNC($E18))*(1/(1+$C$3)^(EO$16-Rates!$B$3+TRUNC($E18))))*Input!$V18 + (IF((Input!$Z18-$E18)>=1,NPV($C$3,OFFSET(Rates!$B$16,$EB18-1,EO$16-Rates!$B$3+TRUNC($E18),1,TRUNC(Input!$Z18-$E18))))/(1+$C$3)^(TRUNC($E18)-1) +OFFSET(Rates!$B$16,$EB18-1,EO$16-Rates!$B$3+TRUNC(Input!$Z18))*(Input!$Z18-TRUNC(Input!$Z18))*(1/(1+$C$3)^(EO$16-Rates!$B$3+TRUNC(Input!$Z18))))*Input!$AE18 ->  | EP18: =(IF($E18>=1,NPV($C$3,OFFSET(Rates!$B$16,$EB18-1,EP$16-Rates!$B$3,1,TRUNC($E18))))*(1+$C$3) +OFFSET(Rates!$B$16,$EB18-1,EP$16-Rates!$B$3+TRUNC($E18))*($E18-TRUNC($E18))*(1/(1+$C$3)^(EP$16-Rates!$B$3+TRUNC($E18))))*Input!$V18 + (IF((Input!$Z18-$E18)>=1,NPV($C$3,OFFSET(Rates!$B$16,$EB18-1,EP$16-Rates!$B$3+TRUNC($E18),1,TRUNC(Input!$Z18-$E18))))/(1+$C$3)^(TRUNC($E18)-1) +OFFSET(Rates!$B$16,$EB18-1,EP$16-Rates!$B$3+TRUNC(Input!$Z18))*(Input!$Z18-TRUNC(Input!$Z18))*(1/(1+$C$3)^(EP$16-Rates!$B$3+TRUNC(Input!$Z18))))*Input!$AE18 ->  | EQ18: =(IF($E18>=1,NPV($C$3,OFFSET(Rates!$B$16,$EB18-1,EQ$16-Rates!$B$3,1,TRUNC($E18))))*(1+$C$3) +OFFSET(Rates!$B$16,$EB18-1,EQ$16-Rates!$B$3+TRUNC($E18))*($E18-TRUNC($E18))*(1/(1+$C$3)^(EQ$16-Rates!$B$3+TRUNC($E18))))*Input!$V18 + (IF((Input!$Z18-$E18)>=1,NPV($C$3,OFFSET(Rates!$B$16,$EB18-1,EQ$16-Rates!$B$3+TRUNC($E18),1,TRUNC(Input!$Z18-$E18))))/(1+$C$3)^(TRUNC($E18)-1) +OFFSET(Rates!$B$16,$EB18-1,EQ$16-Rates!$B$3+TRUNC(Input!$Z18))*(Input!$Z18-TRUNC(Input!$Z18))*(1/(1+$C$3)^(EQ$16-Rates!$B$3+TRUNC(Input!$Z18))))*Input!$AE18 ->  | ER18: =(IF($E18>=1,NPV($C$3,OFFSET(Rates!$B$16,$EB18-1,ER$16-Rates!$B$3,1,TRUNC($E18))))*(1+$C$3) +OFFSET(Rates!$B$16,$EB18-1,ER$16-Rates!$B$3+TRUNC($E18))*($E18-TRUNC($E18))*(1/(1+$C$3)^(ER$16-Rates!$B$3+TRUNC($E18))))*Input!$V18 + (IF((Input!$Z18-$E18)>=1,NPV($C$3,OFFSET(Rates!$B$16,$EB18-1,ER$16-Rates!$B$3+TRUNC($E18),1,TRUNC(Input!$Z18-$E18))))/(1+$C$3)^(TRUNC($E18)-1) +OFFSET(Rates!$B$16,$EB18-1,ER$16-Rates!$B$3+TRUNC(Input!$Z18))*(Input!$Z18-TRUNC(Input!$Z18))*(1/(1+$C$3)^(ER$16-Rates!$B$3+TRUNC(Input!$Z18))))*Input!$AE18 ->  | ES18: =(IF($E18>=1,NPV($C$3,OFFSET(Rates!$B$16,$EB18-1,ES$16-Rates!$B$3,1,TRUNC($E18))))*(1+$C$3) +OFFSET(Rates!$B$16,$EB18-1,ES$16-Rates!$B$3+TRUNC($E18))*($E18-TRUNC($E18))*(1/(1+$C$3)^(ES$16-Rates!$B$3+TRUNC($E18))))*Input!$V18 + (IF((Input!$Z18-$E18)>=1,NPV($C$3,OFFSET(Rates!$B$16,$EB18-1,ES$16-Rates!$B$3+TRUNC($E18),1,TRUNC(Input!$Z18-$E18))))/(1+$C$3)^(TRUNC($E18)-1) +OFFSET(Rates!$B$16,$EB18-1,ES$16-Rates!$B$3+TRUNC(Input!$Z18))*(Input!$Z18-TRUNC(Input!$Z18))*(1/(1+$C$3)^(ES$16-Rates!$B$3+TRUNC(Input!$Z18))))*Input!$AE18 ->  | ET18: =(IF($E18>=1,NPV($C$3,OFFSET(Rates!$B$16,$EB18-1,ET$16-Rates!$B$3,1,TRUNC($E18))))*(1+$C$3) +OFFSET(Rates!$B$16,$EB18-1,ET$16-Rates!$B$3+TRUNC($E18))*($E18-TRUNC($E18))*(1/(1+$C$3)^(ET$16-Rates!$B$3+TRUNC($E18))))*Input!$V18 + (IF((Input!$Z18-$E18)>=1,NPV($C$3,OFFSET(Rates!$B$16,$EB18-1,ET$16-Rates!$B$3+TRUNC($E18),1,TRUNC(Input!$Z18-$E18))))/(1+$C$3)^(TRUNC($E18)-1) +OFFSET(Rates!$B$16,$EB18-1,ET$16-Rates!$B$3+TRUNC(Input!$Z18))*(Input!$Z18-TRUNC(Input!$Z18))*(1/(1+$C$3)^(ET$16-Rates!$B$3+TRUNC(Input!$Z18))))*Input!$AE18 ->  | EU18: =(IF($E18>=1,NPV($C$3,OFFSET(Rates!$B$16,$EB18-1,EU$16-Rates!$B$3,1,TRUNC($E18))))*(1+$C$3) +OFFSET(Rates!$B$16,$EB18-1,EU$16-Rates!$B$3+TRUNC($E18))*($E18-TRUNC($E18))*(1/(1+$C$3)^(EU$16-Rates!$B$3+TRUNC($E18))))*Input!$V18 + (IF((Input!$Z18-$E18)>=1,NPV($C$3,OFFSET(Rates!$B$16,$EB18-1,EU$16-Rates!$B$3+TRUNC($E18),1,TRUNC(Input!$Z18-$E18))))/(1+$C$3)^(TRUNC($E18)-1) +OFFSET(Rates!$B$16,$EB18-1,EU$16-Rates!$B$3+TRUNC(Input!$Z18))*(Input!$Z18-TRUNC(Input!$Z18))*(1/(1+$C$3)^(EU$16-Rates!$B$3+TRUNC(Input!$Z18))))*Input!$AE18 ->  | EV18: =(IF($E18>=1,NPV($C$3,OFFSET(Rates!$B$16,$EB18-1,EV$16-Rates!$B$3,1,TRUNC($E18))))*(1+$C$3) +OFFSET(Rates!$B$16,$EB18-1,EV$16-Rates!$B$3+TRUNC($E18))*($E18-TRUNC($E18))*(1/(1+$C$3)^(EV$16-Rates!$B$3+TRUNC($E18))))*Input!$V18 + (IF((Input!$Z18-$E18)>=1,NPV($C$3,OFFSET(Rates!$B$16,$EB18-1,EV$16-Rates!$B$3+TRUNC($E18),1,TRUNC(Input!$Z18-$E18))))/(1+$C$3)^(TRUNC($E18)-1) +OFFSET(Rates!$B$16,$EB18-1,EV$16-Rates!$B$3+TRUNC(Input!$Z18))*(Input!$Z18-TRUNC(Input!$Z18))*(1/(1+$C$3)^(EV$16-Rates!$B$3+TRUNC(Input!$Z18))))*Input!$AE18 ->  | EW18: =(IF($E18>=1,NPV($C$3,OFFSET(Rates!$B$16,$EB18-1,EW$16-Rates!$B$3,1,TRUNC($E18))))*(1+$C$3) +OFFSET(Rates!$B$16,$EB18-1,EW$16-Rates!$B$3+TRUNC($E18))*($E18-TRUNC($E18))*(1/(1+$C$3)^(EW$16-Rates!$B$3+TRUNC($E18))))*Input!$V18 + (IF((Input!$Z18-$E18)>=1,NPV($C$3,OFFSET(Rates!$B$16,$EB18-1,EW$16-Rates!$B$3+TRUNC($E18),1,TRUNC(Input!$Z18-$E18))))/(1+$C$3)^(TRUNC($E18)-1) +OFFSET(Rates!$B$16,$EB18-1,EW$16-Rates!$B$3+TRUNC(Input!$Z18))*(Input!$Z18-TRUNC(Input!$Z18))*(1/(1+$C$3)^(EW$16-Rates!$B$3+TRUNC(Input!$Z18))))*Input!$AE18 ->  | EX18: =(IF($E18>=1,NPV($C$3,OFFSET(Rates!$B$16,$EB18-1,EX$16-Rates!$B$3,1,TRUNC($E18))))*(1+$C$3) +OFFSET(Rates!$B$16,$EB18-1,EX$16-Rates!$B$3+TRUNC($E18))*($E18-TRUNC($E18))*(1/(1+$C$3)^(EX$16-Rates!$B$3+TRUNC($E18))))*Input!$V18 + (IF((Input!$Z18-$E18)>=1,NPV($C$3,OFFSET(Rates!$B$16,$EB18-1,EX$16-Rates!$B$3+TRUNC($E18),1,TRUNC(Input!$Z18-$E18))))/(1+$C$3)^(TRUNC($E18)-1) +OFFSET(Rates!$B$16,$EB18-1,EX$16-Rates!$B$3+TRUNC(Input!$Z18))*(Input!$Z18-TRUNC(Input!$Z18))*(1/(1+$C$3)^(EX$16-Rates!$B$3+TRUNC(Input!$Z18))))*Input!$AE18 ->  | EY18: =IF(ISERROR(EC18),0,EC18*Input!AO18*$G18*$L18) -> 0 | EZ18: =IF(ISERROR(ED18),0,ED18*Input!AP18*$G18*$L18) -> 0 | FA18: =IF(ISERROR(EE18),0,EE18*Input!AQ18*$G18*$L18) -> 0 | FB18: =IF(ISERROR(EF18),0,EF18*Input!AR18*$G18*$L18) -> 0 | FC18: =IF(ISERROR(EG18),0,EG18*Input!AS18*$G18*$L18) -> 0 | FD18: =IF(ISERROR(EH18),0,EH18*Input!AT18*$G18*$L18) -> 0 | FE18: =IF(ISERROR(EI18),0,EI18*Input!AU18*$G18*$L18) -> 0 | FF18: =IF(ISERROR(EJ18),0,EJ18*Input!AV18*$G18*$L18) -> 0 | FG18: =IF(ISERROR(EK18),0,EK18*Input!AW18*$G18*$L18) -> 0 | FH18: =IF(ISERROR(EL18),0,EL18*Input!AX18*$G18*$L18) -> 0 | FI18: =IF(ISERROR(EM18),0,EM18*Input!AY18*$G18*$L18) -> 0 | FJ18: =IF(ISERROR(EN18),0,EN18*Input!AO18*$I18*$L18) -> 0 | FK18: =IF(ISERROR(EO18),0,EO18*Input!AP18*$I18*$L18) -> 0 | FL18: =IF(ISERROR(EP18),0,EP18*Input!AQ18*$I18*$L18) -> 0 | FM18: =IF(ISERROR(EQ18),0,EQ18*Input!AR18*$I18*$L18) -> 0 | FN18: =IF(ISERROR(ER18),0,ER18*Input!AS18*$I18*$L18) -> 0 | FO18: =IF(ISERROR(ES18),0,ES18*Input!AT18*$I18*$L18) -> 0 | FP18: =IF(ISERROR(ET18),0,ET18*Input!AU18*$I18*$L18) -> 0 | FQ18: =IF(ISERROR(EU18),0,EU18*Input!AV18*$I18*$L18) -> 0 | FR18: =IF(ISERROR(EV18),0,EV18*Input!AW18*$I18*$L18) -> 0 | FS18: =IF(ISERROR(EW18),0,EW18*Input!AX18*$I18*$L18) -> 0 | FT18: =IF(ISERROR(EX18),0,EX18*Input!AY18*$I18*$L18) -> 0 | FU18: =MAX(0,SUM(Input!N18:P18)-Input!L18) -> 0 | FV18: =MAX(NPV(Disc,FU18*Input!$BA18:$CR18),FY18-GA18,0) -> 0 | FX18: =NPV(Disc,Input!M18*Input!$BA18:$CR18) -> 0 | FY18: =NPV(Disc,SUM(Input!N18:P18)*Input!$BA18:$CR18) -> 0 | FZ18: =FX18+FY18 -> 0 | GA18: =NPV(Disc,1*Input!BA18:CR18)*(Input!L18-IF(Calcs!AD18>0,(Input!L18-Input!AA18)*((1+Input!AB18/Periods)/(1+Disc))^(Calcs!AD18*Periods),0)) -> 0 | GB18: =GA18-FZ18+FV18 -> 0 | GC18: =GB18*J18 -> 0 | GD18: =(NPV(Disc,Input!$BA18:$CR18*Input!R18)*PV($C$3,$E18,-1,0,1)+ NPV(Disc,Input!$BA18:$CR18*N18)*PV($C$3,Input!$Z18-$E18,-1,0,1)/(1+Disc)^$AE18)*L18 -> 0 | GE18: =(NPV(Disc,Input!$BA18:$CR18*Input!V18)*PV($C$3,$E18,-1,0,1)+NPV(Disc,Input!$BA18:$CR18*Input!$AE18)*PV($C$3,Input!$Z18-$E18,-1,0,1)/(1+Disc)^$AE18)*L18 -> 0 | GF18: =IF(ISERROR($G18),0,GD18*$G18) -> 0 | GG18: =IF(ISERROR($I18),0,GE18*$I18) -> 0 | GH18: 0 | GI18: 0 | GJ18: =IF((GH18+GI18)<>0,GH18/(GH18+GI18),0) -> 0 | GK18: =(GH18+GI18)/($GH$1018+$GI$1018) ->  | GL18: =DY18+DZ18-(FZ18+GC18)-(Input!$Q$13-Input!$J$11)*GK18 ->  | GM18: =IF(GF18<>0,(DY18-(GC18+FZ18)*GJ18)/GF18,0) -> 0 | GN18: =IF(GG18<>0,(DZ18-(GC18+FZ18)*(1-GJ18))/GG18,0) -> 0 | GO18: =IF(GF18<>0,GM18-(Input!$Q$13-Input!$J$11)*$GJ18*$GK18/GF18,0) -> 0 | GP18: =IF(GG18<>0,GN18-(Input!$Q$13-Input!$J$11)*(1-$GJ18)*$GK18/GG18,0) -> 0 | GQ18: =IF(GF18<>0,(DY18-(+$FZ18)*GJ18)/GF18,0) -> 0 | GR18: =IF(GG18<>0,(DZ18-($FZ18)*(1-GJ18))/GG18,0) -> 0 | GS18: =IF(GF18<>0,GQ18-(Input!$Q$13-Input!$J$11+Input!$Q$4)*$GJ18*$GK18/GF18,0) -> 0 | GT18: =IF(GG18<>0,GR18-(Input!$Q$13-Input!$J$11+Input!$Q$4)*(1-$GJ18)*$GK18/GG18,0) -> 0 | GU18: =(DZ18+DY18)/(GC18+FZ18) ->  | GV18: =(DZ18+DY18)/(FZ18) ->  | GW18: =(DZ18+DY18)/((GC18+FZ18)+$GK18*(Input!$Q$13-Input!$J$11)) ->  | GX18: =(DZ18+DY18)/(FZ18+$GK18*(Input!$Q$13-Input!$J$11+Input!$Q$4)) ->  | GY18: =Input!CS18*O18*$G18*$L18 -> 0 | GZ18: =GY18*MAX(Input!$Z18,$E18) -> 0 | HA18: =Input!CS18*$I18*GasCalcs!G18*$L18 -> 0 | HB18: =HA18*MAX(Input!$Z18,$E18) -> 0 | HC18: =IF(ISERROR(Loads!AY18*Input!CS18*$T18*$H18),0,Loads!AY18*Input!CS18*$T18*$H18)*$L18 -> 0 | HD18: =IF(ISERROR(Loads!AZ18*Input!CS18*$T18*$H18),0,Loads!AZ18*Input!CS18*$T18*$H18)*$L18 -> 0 | HE18: =Input!CS18*$P18*$H18*$C$6*$L18/1000 -> 0 | HF18: =IF(Calcs!F18<>0,(Input!U18*H18*$L18*E18+Input!AD18*H18*L18*(F18-E18))/F18*Input!CS18,0) -> 0 | HG18: =IF(ISERROR(OFFSET(CostE!$AQ$5,$AB18-1,0)),0,OFFSET(CostE!$AQ$5,$AB18-1,0)) -> 0 | HH18: =IF(ISERROR(OFFSET(CostE!$AR$5,$AB18-1,0)),0,OFFSET(CostE!$AR$5,$AB18-1,0)) -> 0 | HI18: =IF(ISERROR(OFFSET(CostE!$AS$5,$AB18-1,0)),0,OFFSET(CostE!$AS$5,$AB18-1,0)) -> 0 | HJ18: =IF(ISERROR(INDEX(CostG!$E$37:$E$43,GasCalcs!$L18)),0,INDEX(CostG!$E$37:$E$43,GasCalcs!$L18)) -> 0.00585 | HK18: =IF(ISERROR(INDEX(CostG!$F$37:$F$43,GasCalcs!$L18)),0,INDEX(CostG!$F$37:$F$43,GasCalcs!$L18)) -> 0.0092 | HL18: =IF(ISERROR(Z18),0,OFFSET(CostE!$F$5,Calcs!Z18-1,0)) -> 0
A19: =Input!B19 -> 0 | B19: =Input!D19 -> 0 | C19: =TRIM(Input!E19) ->  | D19: =TRIM(Input!F19) ->  | E19: =IF(ISNUMBER(Input!AG19),Input!AG19,1) -> 0 | F19: =MAX(E19,Input!Z19) -> 0 | G19: =IF(ISNUMBER(Input!AH19),Input!AH19,1) -> 1 | H19: =IF(ISNUMBER(Input!AI19),Input!AI19,$G19) -> 1 | I19: =IF(ISNUMBER(Input!AJ19),Input!AJ19,$G19) -> 1 | J19: =IF(AND(ISNUMBER(Input!AK19),Input!AK19<>0),Input!AK19,IF(Input!V19=0,G19,IF(Input!R19=0,I19,IF(Input!R19*0.03412>Input!V19,G19,I19)))) -> 1 | L19: =IF(ISBLANK(Input!AL19),100%,Input!AL19)*IF(ISBLANK(Input!AM19),100%,Input!AM19) -> 1 | M19: =Input!R19 -> 0 | N19: =Input!AC19 -> 0 | O19: 0 | P19: 1 | Q19: =OFFSET(CostE!$F$5,Calcs!AB19-1,0) ->  | R19: =IF(ISNUMBER(IF(Q19="kW",Input!U19,Input!R19)),IF(Q19="kW",Input!U19,Input!R19),0) -> 0 | S19: =IF(ISNUMBER(IF(Q19="kW",Input!AD19,N19)),IF(Q19="kW",Input!AD19,N19),0) -> 0 | T19: 0 | U19: 0 | V19: Gen:::0 | W19: TD:::0 | X19: Load:::0 | Y19: =MATCH(V19,CostE!$E$5:$E$1329,0) ->  | Z19: =IF(ISERROR(Y19),MATCH("Gen:"&C19&":"&D19&":All",CostE!$E$5:$E$1329,0),Y19) ->  | AA19: =MATCH(W19,CostE!$E$5:$E$1329,0) ->  | AB19: =IF(ISERROR(Y19),MATCH("Load:"&C19&":"&$D19&":NA",CostE!$E$5:$E$1329,0),MATCH(X19,CostE!$E$5:$E$1329,0)) ->  | AC19: =MATCH(Input!S19,Rates!$A$4:$A$9,0) ->  | AD19: =IF(Input!Z19>Input!AG19,Input!AG19,0) -> 0 | AE19: 0 | AF19: 0 | AG19: 0 | AH19: =MAX(0,TRUNC(Input!Z19*Periods-(AE19+AF19+AG19))) -> 0 | AI19: =MAX(0,Input!Z19*Periods-AH19-AF19-AE19-AG19) -> 0 | AJ19: =IF(OR(Input!E19="Residential",Input!E19="Res_New_Construction"), $C$10,$C$11)-1 -> 0 | AK19: =SUM(IF($E$3:$E$12=Input!F19,1,0))=1 -> FALSE | AL19: =AJ19*AK19*Input!AN19 -> 0 | AM19: =(IF($AE19>0,NPV(Disc,OFFSET(CostE!G$5,$Z19-1,SkipYrs*Periods+1,1,$AE19)),0)+OFFSET(CostE!G$5,$Z19-1,SkipYrs*Periods+1+$AE19)*$AF19*(1/(1+Disc)^($AE19+1)))*$M19*(1+$AL19) + (OFFSET(CostE!G$5,$Z19-1,SkipYrs*Periods+1+$AE19)*$AG19*(1/(1+Disc)^($AE19+1))+ IF($AH19>0,NPV(Disc,OFFSET(CostE!G$5,$Z19-1,SkipYrs*Periods+ROUND($AE19+$AF19+$AG19,0)+1,1,$AH19)),0)*(1/(1+Disc)^($AE19+$AF19+$AG19))+ OFFSET(CostE!G$5,$Z19-1,SkipYrs*Periods+ROUND($AE19+$AF19+$AG19+$AH19,0)+1)*$AI19*(1/(1+Disc)^(ROUND($AE19+$AH19+$AF19+$AG19,0)+1)))*Input!$AC19*(1+$AL19) ->  | AN19: =(IF($AE19>0,NPV(Disc,OFFSET(CostE!H$5,$Z19-1,SkipYrs*Periods+1,1,$AE19)),0)+OFFSET(CostE!H$5,$Z19-1,SkipYrs*Periods+1+$AE19)*$AF19*(1/(1+Disc)^($AE19+1)))*$M19*(1+$AL19) + (OFFSET(CostE!H$5,$Z19-1,SkipYrs*Periods+1+$AE19)*$AG19*(1/(1+Disc)^($AE19+1))+ IF($AH19>0,NPV(Disc,OFFSET(CostE!H$5,$Z19-1,SkipYrs*Periods+ROUND($AE19+$AF19+$AG19,0)+1,1,$AH19)),0)*(1/(1+Disc)^($AE19+$AF19+$AG19))+ OFFSET(CostE!H$5,$Z19-1,SkipYrs*Periods+ROUND($AE19+$AF19+$AG19+$AH19,0)+1)*$AI19*(1/(1+Disc)^(ROUND($AE19+$AH19+$AF19+$AG19,0)+1)))*Input!$AC19*(1+$AL19) ->  | AO19: =(IF($AE19>0,NPV(Disc,OFFSET(CostE!I$5,$Z19-1,SkipYrs*Periods+1,1,$AE19)),0)+OFFSET(CostE!I$5,$Z19-1,SkipYrs*Periods+1+$AE19)*$AF19*(1/(1+Disc)^($AE19+1)))*$M19*(1+$AL19) + (OFFSET(CostE!I$5,$Z19-1,SkipYrs*Periods+1+$AE19)*$AG19*(1/(1+Disc)^($AE19+1))+ IF($AH19>0,NPV(Disc,OFFSET(CostE!I$5,$Z19-1,SkipYrs*Periods+ROUND($AE19+$AF19+$AG19,0)+1,1,$AH19)),0)*(1/(1+Disc)^($AE19+$AF19+$AG19))+ OFFSET(CostE!I$5,$Z19-1,SkipYrs*Periods+ROUND($AE19+$AF19+$AG19+$AH19,0)+1)*$AI19*(1/(1+Disc)^(ROUND($AE19+$AH19+$AF19+$AG19,0)+1)))*Input!$AC19*(1+$AL19) ->  | AP19: =(IF($AE19>0,NPV(Disc,OFFSET(CostE!J$5,$Z19-1,SkipYrs*Periods+1,1,$AE19)),0)+OFFSET(CostE!J$5,$Z19-1,SkipYrs*Periods+1+$AE19)*$AF19*(1/(1+Disc)^($AE19+1)))*$M19*(1+$AL19) + (OFFSET(CostE!J$5,$Z19-1,SkipYrs*Periods+1+$AE19)*$AG19*(1/(1+Disc)^($AE19+1))+ IF($AH19>0,NPV(Disc,OFFSET(CostE!J$5,$Z19-1,SkipYrs*Periods+ROUND($AE19+$AF19+$AG19,0)+1,1,$AH19)),0)*(1/(1+Disc)^($AE19+$AF19+$AG19))+ OFFSET(CostE!J$5,$Z19-1,SkipYrs*Periods+ROUND($AE19+$AF19+$AG19+$AH19,0)+1)*$AI19*(1/(1+Disc)^(ROUND($AE19+$AH19+$AF19+$AG19,0)+1)))*Input!$AC19*(1+$AL19) ->  | AQ19: =(IF($AE19>0,NPV(Disc,OFFSET(CostE!K$5,$Z19-1,SkipYrs*Periods+1,1,$AE19)),0)+OFFSET(CostE!K$5,$Z19-1,SkipYrs*Periods+1+$AE19)*$AF19*(1/(1+Disc)^($AE19+1)))*$M19*(1+$AL19) + (OFFSET(CostE!K$5,$Z19-1,SkipYrs*Periods+1+$AE19)*$AG19*(1/(1+Disc)^($AE19+1))+ IF($AH19>0,NPV(Disc,OFFSET(CostE!K$5,$Z19-1,SkipYrs*Periods+ROUND($AE19+$AF19+$AG19,0)+1,1,$AH19)),0)*(1/(1+Disc)^($AE19+$AF19+$AG19))+ OFFSET(CostE!K$5,$Z19-1,SkipYrs*Periods+ROUND($AE19+$AF19+$AG19+$AH19,0)+1)*$AI19*(1/(1+Disc)^(ROUND($AE19+$AH19+$AF19+$AG19,0)+1)))*Input!$AC19*(1+$AL19) ->  | AR19: =(IF($AE19>0,NPV(Disc,OFFSET(CostE!L$5,$Z19-1,SkipYrs*Periods+1,1,$AE19)),0)+OFFSET(CostE!L$5,$Z19-1,SkipYrs*Periods+1+$AE19)*$AF19*(1/(1+Disc)^($AE19+1)))*$M19*(1+$AL19) + (OFFSET(CostE!L$5,$Z19-1,SkipYrs*Periods+1+$AE19)*$AG19*(1/(1+Disc)^($AE19+1))+ IF($AH19>0,NPV(Disc,OFFSET(CostE!L$5,$Z19-1,SkipYrs*Periods+ROUND($AE19+$AF19+$AG19,0)+1,1,$AH19)),0)*(1/(1+Disc)^($AE19+$AF19+$AG19))+ OFFSET(CostE!L$5,$Z19-1,SkipYrs*Periods+ROUND($AE19+$AF19+$AG19+$AH19,0)+1)*$AI19*(1/(1+Disc)^(ROUND($AE19+$AH19+$AF19+$AG19,0)+1)))*Input!$AC19*(1+$AL19) ->  | AS19: =(IF($AE19>0,NPV(Disc,OFFSET(CostE!M$5,$Z19-1,SkipYrs*Periods+1,1,$AE19)),0)+OFFSET(CostE!M$5,$Z19-1,SkipYrs*Periods+1+$AE19)*$AF19*(1/(1+Disc)^($AE19+1)))*$M19*(1+$AL19) + (OFFSET(CostE!M$5,$Z19-1,SkipYrs*Periods+1+$AE19)*$AG19*(1/(1+Disc)^($AE19+1))+ IF($AH19>0,NPV(Disc,OFFSET(CostE!M$5,$Z19-1,SkipYrs*Periods+ROUND($AE19+$AF19+$AG19,0)+1,1,$AH19)),0)*(1/(1+Disc)^($AE19+$AF19+$AG19))+ OFFSET(CostE!M$5,$Z19-1,SkipYrs*Periods+ROUND($AE19+$AF19+$AG19+$AH19,0)+1)*$AI19*(1/(1+Disc)^(ROUND($AE19+$AH19+$AF19+$AG19,0)+1)))*Input!$AC19*(1+$AL19) ->  | AT19: =(IF($AE19>0,NPV(Disc,OFFSET(CostE!N$5,$Z19-1,SkipYrs*Periods+1,1,$AE19)),0)+OFFSET(CostE!N$5,$Z19-1,SkipYrs*Periods+1+$AE19)*$AF19*(1/(1+Disc)^($AE19+1)))*$M19*(1+$AL19) + (OFFSET(CostE!N$5,$Z19-1,SkipYrs*Periods+1+$AE19)*$AG19*(1/(1+Disc)^($AE19+1))+ IF($AH19>0,NPV(Disc,OFFSET(CostE!N$5,$Z19-1,SkipYrs*Periods+ROUND($AE19+$AF19+$AG19,0)+1,1,$AH19)),0)*(1/(1+Disc)^($AE19+$AF19+$AG19))+ OFFSET(CostE!N$5,$Z19-1,SkipYrs*Periods+ROUND($AE19+$AF19+$AG19+$AH19,0)+1)*$AI19*(1/(1+Disc)^(ROUND($AE19+$AH19+$AF19+$AG19,0)+1)))*Input!$AC19*(1+$AL19) ->  | AU19: =(IF($AE19>0,NPV(Disc,OFFSET(CostE!O$5,$Z19-1,SkipYrs*Periods+1,1,$AE19)),0)+OFFSET(CostE!O$5,$Z19-1,SkipYrs*Periods+1+$AE19)*$AF19*(1/(1+Disc)^($AE19+1)))*$M19*(1+$AL19) + (OFFSET(CostE!O$5,$Z19-1,SkipYrs*Periods+1+$AE19)*$AG19*(1/(1+Disc)^($AE19+1))+ IF($AH19>0,NPV(Disc,OFFSET(CostE!O$5,$Z19-1,SkipYrs*Periods+ROUND($AE19+$AF19+$AG19,0)+1,1,$AH19)),0)*(1/(1+Disc)^($AE19+$AF19+$AG19))+ OFFSET(CostE!O$5,$Z19-1,SkipYrs*Periods+ROUND($AE19+$AF19+$AG19+$AH19,0)+1)*$AI19*(1/(1+Disc)^(ROUND($AE19+$AH19+$AF19+$AG19,0)+1)))*Input!$AC19*(1+$AL19) ->  | AV19: =(IF($AE19>0,NPV(Disc,OFFSET(CostE!P$5,$Z19-1,SkipYrs*Periods+1,1,$AE19)),0)+OFFSET(CostE!P$5,$Z19-1,SkipYrs*Periods+1+$AE19)*$AF19*(1/(1+Disc)^($AE19+1)))*$M19*(1+$AL19) + (OFFSET(CostE!P$5,$Z19-1,SkipYrs*Periods+1+$AE19)*$AG19*(1/(1+Disc)^($AE19+1))+ IF($AH19>0,NPV(Disc,OFFSET(CostE!P$5,$Z19-1,SkipYrs*Periods+ROUND($AE19+$AF19+$AG19,0)+1,1,$AH19)),0)*(1/(1+Disc)^($AE19+$AF19+$AG19))+ OFFSET(CostE!P$5,$Z19-1,SkipYrs*Periods+ROUND($AE19+$AF19+$AG19+$AH19,0)+1)*$AI19*(1/(1+Disc)^(ROUND($AE19+$AH19+$AF19+$AG19,0)+1)))*Input!$AC19*(1+$AL19) ->  | AW19: =(IF($AE19>0,NPV(Disc,OFFSET(CostE!Q$5,$Z19-1,SkipYrs*Periods+1,1,$AE19)),0)+OFFSET(CostE!Q$5,$Z19-1,SkipYrs*Periods+1+$AE19)*$AF19*(1/(1+Disc)^($AE19+1)))*$M19*(1+$AL19) + (OFFSET(CostE!Q$5,$Z19-1,SkipYrs*Periods+1+$AE19)*$AG19*(1/(1+Disc)^($AE19+1))+ IF($AH19>0,NPV(Disc,OFFSET(CostE!Q$5,$Z19-1,SkipYrs*Periods+ROUND($AE19+$AF19+$AG19,0)+1,1,$AH19)),0)*(1/(1+Disc)^($AE19+$AF19+$AG19))+ OFFSET(CostE!Q$5,$Z19-1,SkipYrs*Periods+ROUND($AE19+$AF19+$AG19+$AH19,0)+1)*$AI19*(1/(1+Disc)^(ROUND($AE19+$AH19+$AF19+$AG19,0)+1)))*Input!$AC19*(1+$AL19) ->  | AX19: =(IF($AE19>0,NPV(Disc,OFFSET(CostE!R$5,$Z19-1,SkipYrs*Periods+1,1,$AE19)),0)+OFFSET(CostE!R$5,$Z19-1,SkipYrs*Periods+1+$AE19)*$AF19*(1/(1+Disc)^($AE19+1)))*$M19*(1+$AL19) + (OFFSET(CostE!R$5,$Z19-1,SkipYrs*Periods+1+$AE19)*$AG19*(1/(1+Disc)^($AE19+1))+ IF($AH19>0,NPV(Disc,OFFSET(CostE!R$5,$Z19-1,SkipYrs*Periods+ROUND($AE19+$AF19+$AG19,0)+1,1,$AH19)),0)*(1/(1+Disc)^($AE19+$AF19+$AG19))+ OFFSET(CostE!R$5,$Z19-1,SkipYrs*Periods+ROUND($AE19+$AF19+$AG19+$AH19,0)+1)*$AI19*(1/(1+Disc)^(ROUND($AE19+$AH19+$AF19+$AG19,0)+1)))*Input!$AC19*(1+$AL19) ->  | AY19: =(IF($AE19>0,NPV(Disc,OFFSET(CostE!S$5,$Z19-1,SkipYrs*Periods+1,1,$AE19)),0)+OFFSET(CostE!S$5,$Z19-1,SkipYrs*Periods+1+$AE19)*$AF19*(1/(1+Disc)^($AE19+1)))*$M19*(1+$AL19) + (OFFSET(CostE!S$5,$Z19-1,SkipYrs*Periods+1+$AE19)*$AG19*(1/(1+Disc)^($AE19+1))+ IF($AH19>0,NPV(Disc,OFFSET(CostE!S$5,$Z19-1,SkipYrs*Periods+ROUND($AE19+$AF19+$AG19,0)+1,1,$AH19)),0)*(1/(1+Disc)^($AE19+$AF19+$AG19))+ OFFSET(CostE!S$5,$Z19-1,SkipYrs*Periods+ROUND($AE19+$AF19+$AG19+$AH19,0)+1)*$AI19*(1/(1+Disc)^(ROUND($AE19+$AH19+$AF19+$AG19,0)+1)))*Input!$AC19*(1+$AL19) ->  | AZ19: =(IF($AE19>0,NPV(Disc,OFFSET(CostE!T$5,$Z19-1,SkipYrs*Periods+1,1,$AE19)),0)+OFFSET(CostE!T$5,$Z19-1,SkipYrs*Periods+1+$AE19)*$AF19*(1/(1+Disc)^($AE19+1)))*$M19*(1+$AL19) + (OFFSET(CostE!T$5,$Z19-1,SkipYrs*Periods+1+$AE19)*$AG19*(1/(1+Disc)^($AE19+1))+ IF($AH19>0,NPV(Disc,OFFSET(CostE!T$5,$Z19-1,SkipYrs*Periods+ROUND($AE19+$AF19+$AG19,0)+1,1,$AH19)),0)*(1/(1+Disc)^($AE19+$AF19+$AG19))+ OFFSET(CostE!T$5,$Z19-1,SkipYrs*Periods+ROUND($AE19+$AF19+$AG19+$AH19,0)+1)*$AI19*(1/(1+Disc)^(ROUND($AE19+$AH19+$AF19+$AG19,0)+1)))*Input!$AC19*(1+$AL19) ->  | BA19: =(IF($AE19>0,NPV(Disc,OFFSET(CostE!U$5,$Z19-1,SkipYrs*Periods+1,1,$AE19)),0)+OFFSET(CostE!U$5,$Z19-1,SkipYrs*Periods+1+$AE19)*$AF19*(1/(1+Disc)^($AE19+1)))*$M19*(1+$AL19) + (OFFSET(CostE!U$5,$Z19-1,SkipYrs*Periods+1+$AE19)*$AG19*(1/(1+Disc)^($AE19+1))+ IF($AH19>0,NPV(Disc,OFFSET(CostE!U$5,$Z19-1,SkipYrs*Periods+ROUND($AE19+$AF19+$AG19,0)+1,1,$AH19)),0)*(1/(1+Disc)^($AE19+$AF19+$AG19))+ OFFSET(CostE!U$5,$Z19-1,SkipYrs*Periods+ROUND($AE19+$AF19+$AG19+$AH19,0)+1)*$AI19*(1/(1+Disc)^(ROUND($AE19+$AH19+$AF19+$AG19,0)+1)))*Input!$AC19*(1+$AL19) ->  | BB19: =(IF($AE19>0,NPV(Disc,OFFSET(CostE!V$5,$Z19-1,SkipYrs*Periods+1,1,$AE19)),0)+OFFSET(CostE!V$5,$Z19-1,SkipYrs*Periods+1+$AE19)*$AF19*(1/(1+Disc)^($AE19+1)))*$M19*(1+$AL19) + (OFFSET(CostE!V$5,$Z19-1,SkipYrs*Periods+1+$AE19)*$AG19*(1/(1+Disc)^($AE19+1))+ IF($AH19>0,NPV(Disc,OFFSET(CostE!V$5,$Z19-1,SkipYrs*Periods+ROUND($AE19+$AF19+$AG19,0)+1,1,$AH19)),0)*(1/(1+Disc)^($AE19+$AF19+$AG19))+ OFFSET(CostE!V$5,$Z19-1,SkipYrs*Periods+ROUND($AE19+$AF19+$AG19+$AH19,0)+1)*$AI19*(1/(1+Disc)^(ROUND($AE19+$AH19+$AF19+$AG19,0)+1)))*Input!$AC19*(1+$AL19) ->  | BC19: =(IF($AE19>0,NPV(Disc,OFFSET(CostE!W$5,$Z19-1,SkipYrs*Periods+1,1,$AE19)),0)+OFFSET(CostE!W$5,$Z19-1,SkipYrs*Periods+1+$AE19)*$AF19*(1/(1+Disc)^($AE19+1)))*$M19*(1+$AL19) + (OFFSET(CostE!W$5,$Z19-1,SkipYrs*Periods+1+$AE19)*$AG19*(1/(1+Disc)^($AE19+1))+ IF($AH19>0,NPV(Disc,OFFSET(CostE!W$5,$Z19-1,SkipYrs*Periods+ROUND($AE19+$AF19+$AG19,0)+1,1,$AH19)),0)*(1/(1+Disc)^($AE19+$AF19+$AG19))+ OFFSET(CostE!W$5,$Z19-1,SkipYrs*Periods+ROUND($AE19+$AF19+$AG19+$AH19,0)+1)*$AI19*(1/(1+Disc)^(ROUND($AE19+$AH19+$AF19+$AG19,0)+1)))*Input!$AC19*(1+$AL19) ->  | BD19: =(IF($AE19>0,NPV(Disc,OFFSET(CostE!X$5,$Z19-1,SkipYrs*Periods+1,1,$AE19)),0)+OFFSET(CostE!X$5,$Z19-1,SkipYrs*Periods+1+$AE19)*$AF19*(1/(1+Disc)^($AE19+1)))*$M19*(1+$AL19) + (OFFSET(CostE!X$5,$Z19-1,SkipYrs*Periods+1+$AE19)*$AG19*(1/(1+Disc)^($AE19+1))+ IF($AH19>0,NPV(Disc,OFFSET(CostE!X$5,$Z19-1,SkipYrs*Periods+ROUND($AE19+$AF19+$AG19,0)+1,1,$AH19)),0)*(1/(1+Disc)^($AE19+$AF19+$AG19))+ OFFSET(CostE!X$5,$Z19-1,SkipYrs*Periods+ROUND($AE19+$AF19+$AG19+$AH19,0)+1)*$AI19*(1/(1+Disc)^(ROUND($AE19+$AH19+$AF19+$AG19,0)+1)))*Input!$AC19*(1+$AL19) ->  | BE19: =(IF($AE19>0,NPV(Disc,OFFSET(CostE!Y$5,$Z19-1,SkipYrs*Periods+1,1,$AE19)),0)+OFFSET(CostE!Y$5,$Z19-1,SkipYrs*Periods+1+$AE19)*$AF19*(1/(1+Disc)^($AE19+1)))*$M19*(1+$AL19) + (OFFSET(CostE!Y$5,$Z19-1,SkipYrs*Periods+1+$AE19)*$AG19*(1/(1+Disc)^($AE19+1))+ IF($AH19>0,NPV(Disc,OFFSET(CostE!Y$5,$Z19-1,SkipYrs*Periods+ROUND($AE19+$AF19+$AG19,0)+1,1,$AH19)),0)*(1/(1+Disc)^($AE19+$AF19+$AG19))+ OFFSET(CostE!Y$5,$Z19-1,SkipYrs*Periods+ROUND($AE19+$AF19+$AG19+$AH19,0)+1)*$AI19*(1/(1+Disc)^(ROUND($AE19+$AH19+$AF19+$AG19,0)+1)))*Input!$AC19*(1+$AL19) ->  | BF19: =(IF($AE19>0,NPV(Disc,OFFSET(CostE!Z$5,$Z19-1,SkipYrs*Periods+1,1,$AE19)),0)+OFFSET(CostE!Z$5,$Z19-1,SkipYrs*Periods+1+$AE19)*$AF19*(1/(1+Disc)^($AE19+1)))*$M19*(1+$AL19) + (OFFSET(CostE!Z$5,$Z19-1,SkipYrs*Periods+1+$AE19)*$AG19*(1/(1+Disc)^($AE19+1))+ IF($AH19>0,NPV(Disc,OFFSET(CostE!Z$5,$Z19-1,SkipYrs*Periods+ROUND($AE19+$AF19+$AG19,0)+1,1,$AH19)),0)*(1/(1+Disc)^($AE19+$AF19+$AG19))+ OFFSET(CostE!Z$5,$Z19-1,SkipYrs*Periods+ROUND($AE19+$AF19+$AG19+$AH19,0)+1)*$AI19*(1/(1+Disc)^(ROUND($AE19+$AH19+$AF19+$AG19,0)+1)))*Input!$AC19*(1+$AL19) ->  | BG19: =(IF($AE19>0,NPV(Disc,OFFSET(CostE!AA$5,$Z19-1,SkipYrs*Periods+1,1,$AE19)),0)+OFFSET(CostE!AA$5,$Z19-1,SkipYrs*Periods+1+$AE19)*$AF19*(1/(1+Disc)^($AE19+1)))*$M19*(1+$AL19) + (OFFSET(CostE!AA$5,$Z19-1,SkipYrs*Periods+1+$AE19)*$AG19*(1/(1+Disc)^($AE19+1))+ IF($AH19>0,NPV(Disc,OFFSET(CostE!AA$5,$Z19-1,SkipYrs*Periods+ROUND($AE19+$AF19+$AG19,0)+1,1,$AH19)),0)*(1/(1+Disc)^($AE19+$AF19+$AG19))+ OFFSET(CostE!AA$5,$Z19-1,SkipYrs*Periods+ROUND($AE19+$AF19+$AG19+$AH19,0)+1)*$AI19*(1/(1+Disc)^(ROUND($AE19+$AH19+$AF19+$AG19,0)+1)))*Input!$AC19*(1+$AL19) ->  | BH19: =(IF($AE19>0,NPV(Disc,OFFSET(CostE!AB$5,$Z19-1,SkipYrs*Periods+1,1,$AE19)),0)+OFFSET(CostE!AB$5,$Z19-1,SkipYrs*Periods+1+$AE19)*$AF19*(1/(1+Disc)^($AE19+1)))*$M19*(1+$AL19) + (OFFSET(CostE!AB$5,$Z19-1,SkipYrs*Periods+1+$AE19)*$AG19*(1/(1+Disc)^($AE19+1))+ IF($AH19>0,NPV(Disc,OFFSET(CostE!AB$5,$Z19-1,SkipYrs*Periods+ROUND($AE19+$AF19+$AG19,0)+1,1,$AH19)),0)*(1/(1+Disc)^($AE19+$AF19+$AG19))+ OFFSET(CostE!AB$5,$Z19-1,SkipYrs*Periods+ROUND($AE19+$AF19+$AG19+$AH19,0)+1)*$AI19*(1/(1+Disc)^(ROUND($AE19+$AH19+$AF19+$AG19,0)+1)))*Input!$AC19*(1+$AL19) ->  | BI19: =(IF($AE19>0,NPV(Disc,OFFSET(CostE!AC$5,$Z19-1,SkipYrs*Periods+1,1,$AE19)),0)+OFFSET(CostE!AC$5,$Z19-1,SkipYrs*Periods+1+$AE19)*$AF19*(1/(1+Disc)^($AE19+1)))*$M19*(1+$AL19) + (OFFSET(CostE!AC$5,$Z19-1,SkipYrs*Periods+1+$AE19)*$AG19*(1/(1+Disc)^($AE19+1))+ IF($AH19>0,NPV(Disc,OFFSET(CostE!AC$5,$Z19-1,SkipYrs*Periods+ROUND($AE19+$AF19+$AG19,0)+1,1,$AH19)),0)*(1/(1+Disc)^($AE19+$AF19+$AG19))+ OFFSET(CostE!AC$5,$Z19-1,SkipYrs*Periods+ROUND($AE19+$AF19+$AG19+$AH19,0)+1)*$AI19*(1/(1+Disc)^(ROUND($AE19+$AH19+$AF19+$AG19,0)+1)))*Input!$AC19*(1+$AL19) ->  | BJ19: =(IF($AE19>0,NPV(Disc,OFFSET(CostE!AD$5,$Z19-1,SkipYrs*Periods+1,1,$AE19)),0)+OFFSET(CostE!AD$5,$Z19-1,SkipYrs*Periods+1+$AE19)*$AF19*(1/(1+Disc)^($AE19+1)))*$M19*(1+$AL19) + (OFFSET(CostE!AD$5,$Z19-1,SkipYrs*Periods+1+$AE19)*$AG19*(1/(1+Disc)^($AE19+1))+ IF($AH19>0,NPV(Disc,OFFSET(CostE!AD$5,$Z19-1,SkipYrs*Periods+ROUND($AE19+$AF19+$AG19,0)+1,1,$AH19)),0)*(1/(1+Disc)^($AE19+$AF19+$AG19))+ OFFSET(CostE!AD$5,$Z19-1,SkipYrs*Periods+ROUND($AE19+$AF19+$AG19+$AH19,0)+1)*$AI19*(1/(1+Disc)^(ROUND($AE19+$AH19+$AF19+$AG19,0)+1)))*Input!$AC19*(1+$AL19) ->  | BK19: =(IF($AE19>0,NPV(Disc,OFFSET(CostE!AE$5,$Z19-1,SkipYrs*Periods+1,1,$AE19)),0)+OFFSET(CostE!AE$5,$Z19-1,SkipYrs*Periods+1+$AE19)*$AF19*(1/(1+Disc)^($AE19+1)))*$M19*(1+$AL19) + (OFFSET(CostE!AE$5,$Z19-1,SkipYrs*Periods+1+$AE19)*$AG19*(1/(1+Disc)^($AE19+1))+ IF($AH19>0,NPV(Disc,OFFSET(CostE!AE$5,$Z19-1,SkipYrs*Periods+ROUND($AE19+$AF19+$AG19,0)+1,1,$AH19)),0)*(1/(1+Disc)^($AE19+$AF19+$AG19))+ OFFSET(CostE!AE$5,$Z19-1,SkipYrs*Periods+ROUND($AE19+$AF19+$AG19+$AH19,0)+1)*$AI19*(1/(1+Disc)^(ROUND($AE19+$AH19+$AF19+$AG19,0)+1)))*Input!$AC19*(1+$AL19) ->  | BL19: =(IF($AE19>0,NPV(Disc,OFFSET(CostE!AF$5,$Z19-1,SkipYrs*Periods+1,1,$AE19)),0)+OFFSET(CostE!AF$5,$Z19-1,SkipYrs*Periods+1+$AE19)*$AF19*(1/(1+Disc)^($AE19+1)))*$M19*(1+$AL19) + (OFFSET(CostE!AF$5,$Z19-1,SkipYrs*Periods+1+$AE19)*$AG19*(1/(1+Disc)^($AE19+1))+ IF($AH19>0,NPV(Disc,OFFSET(CostE!AF$5,$Z19-1,SkipYrs*Periods+ROUND($AE19+$AF19+$AG19,0)+1,1,$AH19)),0)*(1/(1+Disc)^($AE19+$AF19+$AG19))+ OFFSET(CostE!AF$5,$Z19-1,SkipYrs*Periods+ROUND($AE19+$AF19+$AG19+$AH19,0)+1)*$AI19*(1/(1+Disc)^(ROUND($AE19+$AH19+$AF19+$AG19,0)+1)))*Input!$AC19*(1+$AL19) ->  | BM19: =(IF($AE19>0,NPV(Disc,OFFSET(CostE!AG$5,$Z19-1,SkipYrs*Periods+1,1,$AE19)),0)+OFFSET(CostE!AG$5,$Z19-1,SkipYrs*Periods+1+$AE19)*$AF19*(1/(1+Disc)^($AE19+1)))*$M19*(1+$AL19) + (OFFSET(CostE!AG$5,$Z19-1,SkipYrs*Periods+1+$AE19)*$AG19*(1/(1+Disc)^($AE19+1))+ IF($AH19>0,NPV(Disc,OFFSET(CostE!AG$5,$Z19-1,SkipYrs*Periods+ROUND($AE19+$AF19+$AG19,0)+1,1,$AH19)),0)*(1/(1+Disc)^($AE19+$AF19+$AG19))+ OFFSET(CostE!AG$5,$Z19-1,SkipYrs*Periods+ROUND($AE19+$AF19+$AG19+$AH19,0)+1)*$AI19*(1/(1+Disc)^(ROUND($AE19+$AH19+$AF19+$AG19,0)+1)))*Input!$AC19*(1+$AL19) ->  | BN19: =(IF($AE19>0,NPV(Disc,OFFSET(CostE!AH$5,$Z19-1,SkipYrs*Periods+1,1,$AE19)),0)+OFFSET(CostE!AH$5,$Z19-1,SkipYrs*Periods+1+$AE19)*$AF19*(1/(1+Disc)^($AE19+1)))*$M19*(1+$AL19) + (OFFSET(CostE!AH$5,$Z19-1,SkipYrs*Periods+1+$AE19)*$AG19*(1/(1+Disc)^($AE19+1))+ IF($AH19>0,NPV(Disc,OFFSET(CostE!AH$5,$Z19-1,SkipYrs*Periods+ROUND($AE19+$AF19+$AG19,0)+1,1,$AH19)),0)*(1/(1+Disc)^($AE19+$AF19+$AG19))+ OFFSET(CostE!AH$5,$Z19-1,SkipYrs*Periods+ROUND($AE19+$AF19+$AG19+$AH19,0)+1)*$AI19*(1/(1+Disc)^(ROUND($AE19+$AH19+$AF19+$AG19,0)+1)))*Input!$AC19*(1+$AL19) ->  | BO19: =(IF($AE19>0,NPV(Disc,OFFSET(CostE!AI$5,$Z19-1,SkipYrs*Periods+1,1,$AE19)),0)+OFFSET(CostE!AI$5,$Z19-1,SkipYrs*Periods+1+$AE19)*$AF19*(1/(1+Disc)^($AE19+1)))*$M19*(1+$AL19) + (OFFSET(CostE!AI$5,$Z19-1,SkipYrs*Periods+1+$AE19)*$AG19*(1/(1+Disc)^($AE19+1))+ IF($AH19>0,NPV(Disc,OFFSET(CostE!AI$5,$Z19-1,SkipYrs*Periods+ROUND($AE19+$AF19+$AG19,0)+1,1,$AH19)),0)*(1/(1+Disc)^($AE19+$AF19+$AG19))+ OFFSET(CostE!AI$5,$Z19-1,SkipYrs*Periods+ROUND($AE19+$AF19+$AG19+$AH19,0)+1)*$AI19*(1/(1+Disc)^(ROUND($AE19+$AH19+$AF19+$AG19,0)+1)))*Input!$AC19*(1+$AL19) ->  | BP19: =(IF($AE19>0,NPV(Disc,OFFSET(CostE!AJ$5,$Z19-1,SkipYrs*Periods+1,1,$AE19)),0)+OFFSET(CostE!AJ$5,$Z19-1,SkipYrs*Periods+1+$AE19)*$AF19*(1/(1+Disc)^($AE19+1)))*$M19*(1+$AL19) + (OFFSET(CostE!AJ$5,$Z19-1,SkipYrs*Periods+1+$AE19)*$AG19*(1/(1+Disc)^($AE19+1))+ IF($AH19>0,NPV(Disc,OFFSET(CostE!AJ$5,$Z19-1,SkipYrs*Periods+ROUND($AE19+$AF19+$AG19,0)+1,1,$AH19)),0)*(1/(1+Disc)^($AE19+$AF19+$AG19))+ OFFSET(CostE!AJ$5,$Z19-1,SkipYrs*Periods+ROUND($AE19+$AF19+$AG19+$AH19,0)+1)*$AI19*(1/(1+Disc)^(ROUND($AE19+$AH19+$AF19+$AG19,0)+1)))*Input!$AC19*(1+$AL19) ->  | BQ19: =(IF($AE19>0,NPV(Disc,OFFSET(CostE!AK$5,$Z19-1,SkipYrs*Periods+1,1,$AE19)),0)+OFFSET(CostE!AK$5,$Z19-1,SkipYrs*Periods+1+$AE19)*$AF19*(1/(1+Disc)^($AE19+1)))*$M19*(1+$AL19) + (OFFSET(CostE!AK$5,$Z19-1,SkipYrs*Periods+1+$AE19)*$AG19*(1/(1+Disc)^($AE19+1))+ IF($AH19>0,NPV(Disc,OFFSET(CostE!AK$5,$Z19-1,SkipYrs*Periods+ROUND($AE19+$AF19+$AG19,0)+1,1,$AH19)),0)*(1/(1+Disc)^($AE19+$AF19+$AG19))+ OFFSET(CostE!AK$5,$Z19-1,SkipYrs*Periods+ROUND($AE19+$AF19+$AG19+$AH19,0)+1)*$AI19*(1/(1+Disc)^(ROUND($AE19+$AH19+$AF19+$AG19,0)+1)))*Input!$AC19*(1+$AL19) ->  | BR19: =(IF($AE19>0,NPV(Disc,OFFSET(CostE!AL$5,$Z19-1,SkipYrs*Periods+1,1,$AE19)),0)+OFFSET(CostE!AL$5,$Z19-1,SkipYrs*Periods+1+$AE19)*$AF19*(1/(1+Disc)^($AE19+1)))*$M19*(1+$AL19) + (OFFSET(CostE!AL$5,$Z19-1,SkipYrs*Periods+1+$AE19)*$AG19*(1/(1+Disc)^($AE19+1))+ IF($AH19>0,NPV(Disc,OFFSET(CostE!AL$5,$Z19-1,SkipYrs*Periods+ROUND($AE19+$AF19+$AG19,0)+1,1,$AH19)),0)*(1/(1+Disc)^($AE19+$AF19+$AG19))+ OFFSET(CostE!AL$5,$Z19-1,SkipYrs*Periods+ROUND($AE19+$AF19+$AG19+$AH19,0)+1)*$AI19*(1/(1+Disc)^(ROUND($AE19+$AH19+$AF19+$AG19,0)+1)))*Input!$AC19*(1+$AL19) ->  | BS19: =(IF($AE19>0,NPV(Disc,OFFSET(CostE!AM$5,$Z19-1,SkipYrs*Periods+1,1,$AE19)),0)+OFFSET(CostE!AM$5,$Z19-1,SkipYrs*Periods+1+$AE19)*$AF19*(1/(1+Disc)^($AE19+1)))*$M19*(1+$AL19) + (OFFSET(CostE!AM$5,$Z19-1,SkipYrs*Periods+1+$AE19)*$AG19*(1/(1+Disc)^($AE19+1))+ IF($AH19>0,NPV(Disc,OFFSET(CostE!AM$5,$Z19-1,SkipYrs*Periods+ROUND($AE19+$AF19+$AG19,0)+1,1,$AH19)),0)*(1/(1+Disc)^($AE19+$AF19+$AG19))+ OFFSET(CostE!AM$5,$Z19-1,SkipYrs*Periods+ROUND($AE19+$AF19+$AG19+$AH19,0)+1)*$AI19*(1/(1+Disc)^(ROUND($AE19+$AH19+$AF19+$AG19,0)+1)))*Input!$AC19*(1+$AL19) ->  | BT19: =(IF($AE19>0,NPV(Disc,OFFSET(CostE!AN$5,$Z19-1,SkipYrs*Periods+1,1,$AE19)),0)+OFFSET(CostE!AN$5,$Z19-1,SkipYrs*Periods+1+$AE19)*$AF19*(1/(1+Disc)^($AE19+1)))*$M19*(1+$AL19) + (OFFSET(CostE!AN$5,$Z19-1,SkipYrs*Periods+1+$AE19)*$AG19*(1/(1+Disc)^($AE19+1))+ IF($AH19>0,NPV(Disc,OFFSET(CostE!AN$5,$Z19-1,SkipYrs*Periods+ROUND($AE19+$AF19+$AG19,0)+1,1,$AH19)),0)*(1/(1+Disc)^($AE19+$AF19+$AG19))+ OFFSET(CostE!AN$5,$Z19-1,SkipYrs*Periods+ROUND($AE19+$AF19+$AG19+$AH19,0)+1)*$AI19*(1/(1+Disc)^(ROUND($AE19+$AH19+$AF19+$AG19,0)+1)))*Input!$AC19*(1+$AL19) ->  | BU19: =(IF($AE19>0,NPV(Disc,OFFSET(CostE!AO$5,$Z19-1,SkipYrs*Periods+1,1,$AE19)),0)+OFFSET(CostE!AO$5,$Z19-1,SkipYrs*Periods+1+$AE19)*$AF19*(1/(1+Disc)^($AE19+1)))*$M19*(1+$AL19) + (OFFSET(CostE!AO$5,$Z19-1,SkipYrs*Periods+1+$AE19)*$AG19*(1/(1+Disc)^($AE19+1))+ IF($AH19>0,NPV(Disc,OFFSET(CostE!AO$5,$Z19-1,SkipYrs*Periods+ROUND($AE19+$AF19+$AG19,0)+1,1,$AH19)),0)*(1/(1+Disc)^($AE19+$AF19+$AG19))+ OFFSET(CostE!AO$5,$Z19-1,SkipYrs*Periods+ROUND($AE19+$AF19+$AG19+$AH19,0)+1)*$AI19*(1/(1+Disc)^(ROUND($AE19+$AH19+$AF19+$AG19,0)+1)))*Input!$AC19*(1+$AL19) ->  | BV19: =(IF($AE19>0,NPV(Disc,OFFSET(CostE!AP$5,$Z19-1,SkipYrs*Periods+1,1,$AE19)),0)+OFFSET(CostE!AP$5,$Z19-1,SkipYrs*Periods+1+$AE19)*$AF19*(1/(1+Disc)^($AE19+1)))*$M19*(1+$AL19) + (OFFSET(CostE!AP$5,$Z19-1,SkipYrs*Periods+1+$AE19)*$AG19*(1/(1+Disc)^($AE19+1))+ IF($AH19>0,NPV(Disc,OFFSET(CostE!AP$5,$Z19-1,SkipYrs*Periods+ROUND($AE19+$AF19+$AG19,0)+1,1,$AH19)),0)*(1/(1+Disc)^($AE19+$AF19+$AG19))+ OFFSET(CostE!AP$5,$Z19-1,SkipYrs*Periods+ROUND($AE19+$AF19+$AG19+$AH19,0)+1)*$AI19*(1/(1+Disc)^(ROUND($AE19+$AH19+$AF19+$AG19,0)+1)))*Input!$AC19*(1+$AL19) ->  | BW19: =(IF($AE19>0,NPV(Disc,OFFSET(CostE!AQ$5,$Z19-1,SkipYrs*Periods+1,1,$AE19)),0)+OFFSET(CostE!AQ$5,$Z19-1,SkipYrs*Periods+1+$AE19)*$AF19*(1/(1+Disc)^($AE19+1)))*$M19*(1+$AL19) + (OFFSET(CostE!AQ$5,$Z19-1,SkipYrs*Periods+1+$AE19)*$AG19*(1/(1+Disc)^($AE19+1))+ IF($AH19>0,NPV(Disc,OFFSET(CostE!AQ$5,$Z19-1,SkipYrs*Periods+ROUND($AE19+$AF19+$AG19,0)+1,1,$AH19)),0)*(1/(1+Disc)^($AE19+$AF19+$AG19))+ OFFSET(CostE!AQ$5,$Z19-1,SkipYrs*Periods+ROUND($AE19+$AF19+$AG19+$AH19,0)+1)*$AI19*(1/(1+Disc)^(ROUND($AE19+$AH19+$AF19+$AG19,0)+1)))*Input!$AC19*(1+$AL19) ->  | BX19: =(IF($AE19>0,NPV(Disc,OFFSET(CostE!AR$5,$Z19-1,SkipYrs*Periods+1,1,$AE19)),0)+OFFSET(CostE!AR$5,$Z19-1,SkipYrs*Periods+1+$AE19)*$AF19*(1/(1+Disc)^($AE19+1)))*$M19*(1+$AL19) + (OFFSET(CostE!AR$5,$Z19-1,SkipYrs*Periods+1+$AE19)*$AG19*(1/(1+Disc)^($AE19+1))+ IF($AH19>0,NPV(Disc,OFFSET(CostE!AR$5,$Z19-1,SkipYrs*Periods+ROUND($AE19+$AF19+$AG19,0)+1,1,$AH19)),0)*(1/(1+Disc)^($AE19+$AF19+$AG19))+ OFFSET(CostE!AR$5,$Z19-1,SkipYrs*Periods+ROUND($AE19+$AF19+$AG19+$AH19,0)+1)*$AI19*(1/(1+Disc)^(ROUND($AE19+$AH19+$AF19+$AG19,0)+1)))*Input!$AC19*(1+$AL19) ->  | BY19: =(IF($AE19>0,NPV(Disc,OFFSET(CostE!AS$5,$Z19-1,SkipYrs*Periods+1,1,$AE19)),0)+OFFSET(CostE!AS$5,$Z19-1,SkipYrs*Periods+1+$AE19)*$AF19*(1/(1+Disc)^($AE19+1)))*$M19*(1+$AL19) + (OFFSET(CostE!AS$5,$Z19-1,SkipYrs*Periods+1+$AE19)*$AG19*(1/(1+Disc)^($AE19+1))+ IF($AH19>0,NPV(Disc,OFFSET(CostE!AS$5,$Z19-1,SkipYrs*Periods+ROUND($AE19+$AF19+$AG19,0)+1,1,$AH19)),0)*(1/(1+Disc)^($AE19+$AF19+$AG19))+ OFFSET(CostE!AS$5,$Z19-1,SkipYrs*Periods+ROUND($AE19+$AF19+$AG19+$AH19,0)+1)*$AI19*(1/(1+Disc)^(ROUND($AE19+$AH19+$AF19+$AG19,0)+1)))*Input!$AC19*(1+$AL19) ->  | BZ19: =(IF($AE19>0,NPV(Disc,OFFSET(CostE!AT$5,$Z19-1,SkipYrs*Periods+1,1,$AE19)),0)+OFFSET(CostE!AT$5,$Z19-1,SkipYrs*Periods+1+$AE19)*$AF19*(1/(1+Disc)^($AE19+1)))*$M19*(1+$AL19) + (OFFSET(CostE!AT$5,$Z19-1,SkipYrs*Periods+1+$AE19)*$AG19*(1/(1+Disc)^($AE19+1))+ IF($AH19>0,NPV(Disc,OFFSET(CostE!AT$5,$Z19-1,SkipYrs*Periods+ROUND($AE19+$AF19+$AG19,0)+1,1,$AH19)),0)*(1/(1+Disc)^($AE19+$AF19+$AG19))+ OFFSET(CostE!AT$5,$Z19-1,SkipYrs*Periods+ROUND($AE19+$AF19+$AG19+$AH19,0)+1)*$AI19*(1/(1+Disc)^(ROUND($AE19+$AH19+$AF19+$AG19,0)+1)))*Input!$AC19*(1+$AL19) ->  | CA19: =(IF($AE19>0,NPV(Disc,OFFSET(CostE!AU$5,$Z19-1,SkipYrs*Periods+1,1,$AE19)),0)+OFFSET(CostE!AU$5,$Z19-1,SkipYrs*Periods+1+$AE19)*$AF19*(1/(1+Disc)^($AE19+1)))*$M19*(1+$AL19) + (OFFSET(CostE!AU$5,$Z19-1,SkipYrs*Periods+1+$AE19)*$AG19*(1/(1+Disc)^($AE19+1))+ IF($AH19>0,NPV(Disc,OFFSET(CostE!AU$5,$Z19-1,SkipYrs*Periods+ROUND($AE19+$AF19+$AG19,0)+1,1,$AH19)),0)*(1/(1+Disc)^($AE19+$AF19+$AG19))+ OFFSET(CostE!AU$5,$Z19-1,SkipYrs*Periods+ROUND($AE19+$AF19+$AG19+$AH19,0)+1)*$AI19*(1/(1+Disc)^(ROUND($AE19+$AH19+$AF19+$AG19,0)+1)))*Input!$AC19*(1+$AL19) ->  | CB19: =(IF($AE19>0,NPV(Disc,OFFSET(CostE!AV$5,$Z19-1,SkipYrs*Periods+1,1,$AE19)),0)+OFFSET(CostE!AV$5,$Z19-1,SkipYrs*Periods+1+$AE19)*$AF19*(1/(1+Disc)^($AE19+1)))*$M19*(1+$AL19) + (OFFSET(CostE!AV$5,$Z19-1,SkipYrs*Periods+1+$AE19)*$AG19*(1/(1+Disc)^($AE19+1))+ IF($AH19>0,NPV(Disc,OFFSET(CostE!AV$5,$Z19-1,SkipYrs*Periods+ROUND($AE19+$AF19+$AG19,0)+1,1,$AH19)),0)*(1/(1+Disc)^($AE19+$AF19+$AG19))+ OFFSET(CostE!AV$5,$Z19-1,SkipYrs*Periods+ROUND($AE19+$AF19+$AG19+$AH19,0)+1)*$AI19*(1/(1+Disc)^(ROUND($AE19+$AH19+$AF19+$AG19,0)+1)))*Input!$AC19*(1+$AL19) ->  | CC19: =(IF($AE19>0,NPV(Disc,OFFSET(CostE!AW$5,$Z19-1,SkipYrs*Periods+1,1,$AE19)),0)+OFFSET(CostE!AW$5,$Z19-1,SkipYrs*Periods+1+$AE19)*$AF19*(1/(1+Disc)^($AE19+1)))*$M19*(1+$AL19) + (OFFSET(CostE!AW$5,$Z19-1,SkipYrs*Periods+1+$AE19)*$AG19*(1/(1+Disc)^($AE19+1))+ IF($AH19>0,NPV(Disc,OFFSET(CostE!AW$5,$Z19-1,SkipYrs*Periods+ROUND($AE19+$AF19+$AG19,0)+1,1,$AH19)),0)*(1/(1+Disc)^($AE19+$AF19+$AG19))+ OFFSET(CostE!AW$5,$Z19-1,SkipYrs*Periods+ROUND($AE19+$AF19+$AG19+$AH19,0)+1)*$AI19*(1/(1+Disc)^(ROUND($AE19+$AH19+$AF19+$AG19,0)+1)))*Input!$AC19*(1+$AL19) ->  | CD19: =(IF($AE19>0,NPV(Disc,OFFSET(CostE!AX$5,$Z19-1,SkipYrs*Periods+1,1,$AE19)),0)+OFFSET(CostE!AX$5,$Z19-1,SkipYrs*Periods+1+$AE19)*$AF19*(1/(1+Disc)^($AE19+1)))*$M19*(1+$AL19) + (OFFSET(CostE!AX$5,$Z19-1,SkipYrs*Periods+1+$AE19)*$AG19*(1/(1+Disc)^($AE19+1))+ IF($AH19>0,NPV(Disc,OFFSET(CostE!AX$5,$Z19-1,SkipYrs*Periods+ROUND($AE19+$AF19+$AG19,0)+1,1,$AH19)),0)*(1/(1+Disc)^($AE19+$AF19+$AG19))+ OFFSET(CostE!AX$5,$Z19-1,SkipYrs*Periods+ROUND($AE19+$AF19+$AG19+$AH19,0)+1)*$AI19*(1/(1+Disc)^(ROUND($AE19+$AH19+$AF19+$AG19,0)+1)))*Input!$AC19*(1+$AL19) ->  | CE19: =(IF($AE19>0,NPV(Disc,OFFSET(CostE!G$5,$AA19-1,SkipYrs*Periods+1,1,$AE19)),0)+OFFSET(CostE!G$5,$AA19-1,SkipYrs*Periods+1+$AE19)*$AF19*(1/(1+Disc)^($AE19+1)))*$R19 + (OFFSET(CostE!G$5,$AA19-1,SkipYrs*Periods+1+$AE19)*$AG19*(1/(1+Disc)^($AE19+1))+ IF($AH19>0,NPV(Disc,OFFSET(CostE!G$5,$AA19-1,SkipYrs*Periods+ROUND($AE19+$AF19+$AG19,0)+1,1,$AH19)),0)*(1/(1+Disc)^($AE19+$AF19+$AG19))+ OFFSET(CostE!G$5,$AA19-1,SkipYrs*Periods+ROUND($AE19+$AF19+$AG19+$AH19,0)+1)*$AI19*(1/(1+Disc)^(ROUND($AE19+$AH19+$AF19+$AG19,0)+1)))*$S19 ->  | CF19: =(IF($AE19>0,NPV(Disc,OFFSET(CostE!H$5,$AA19-1,SkipYrs*Periods+1,1,$AE19)),0)+OFFSET(CostE!H$5,$AA19-1,SkipYrs*Periods+1+$AE19)*$AF19*(1/(1+Disc)^($AE19+1)))*$R19 + (OFFSET(CostE!H$5,$AA19-1,SkipYrs*Periods+1+$AE19)*$AG19*(1/(1+Disc)^($AE19+1))+ IF($AH19>0,NPV(Disc,OFFSET(CostE!H$5,$AA19-1,SkipYrs*Periods+ROUND($AE19+$AF19+$AG19,0)+1,1,$AH19)),0)*(1/(1+Disc)^($AE19+$AF19+$AG19))+ OFFSET(CostE!H$5,$AA19-1,SkipYrs*Periods+ROUND($AE19+$AF19+$AG19+$AH19,0)+1)*$AI19*(1/(1+Disc)^(ROUND($AE19+$AH19+$AF19+$AG19,0)+1)))*$S19 ->  | CG19: =(IF($AE19>0,NPV(Disc,OFFSET(CostE!I$5,$AA19-1,SkipYrs*Periods+1,1,$AE19)),0)+OFFSET(CostE!I$5,$AA19-1,SkipYrs*Periods+1+$AE19)*$AF19*(1/(1+Disc)^($AE19+1)))*$R19 + (OFFSET(CostE!I$5,$AA19-1,SkipYrs*Periods+1+$AE19)*$AG19*(1/(1+Disc)^($AE19+1))+ IF($AH19>0,NPV(Disc,OFFSET(CostE!I$5,$AA19-1,SkipYrs*Periods+ROUND($AE19+$AF19+$AG19,0)+1,1,$AH19)),0)*(1/(1+Disc)^($AE19+$AF19+$AG19))+ OFFSET(CostE!I$5,$AA19-1,SkipYrs*Periods+ROUND($AE19+$AF19+$AG19+$AH19,0)+1)*$AI19*(1/(1+Disc)^(ROUND($AE19+$AH19+$AF19+$AG19,0)+1)))*$S19 ->  | CH19: =(IF($AE19>0,NPV(Disc,OFFSET(CostE!J$5,$AA19-1,SkipYrs*Periods+1,1,$AE19)),0)+OFFSET(CostE!J$5,$AA19-1,SkipYrs*Periods+1+$AE19)*$AF19*(1/(1+Disc)^($AE19+1)))*$R19 + (OFFSET(CostE!J$5,$AA19-1,SkipYrs*Periods+1+$AE19)*$AG19*(1/(1+Disc)^($AE19+1))+ IF($AH19>0,NPV(Disc,OFFSET(CostE!J$5,$AA19-1,SkipYrs*Periods+ROUND($AE19+$AF19+$AG19,0)+1,1,$AH19)),0)*(1/(1+Disc)^($AE19+$AF19+$AG19))+ OFFSET(CostE!J$5,$AA19-1,SkipYrs*Periods+ROUND($AE19+$AF19+$AG19+$AH19,0)+1)*$AI19*(1/(1+Disc)^(ROUND($AE19+$AH19+$AF19+$AG19,0)+1)))*$S19 ->  | CI19: =(IF($AE19>0,NPV(Disc,OFFSET(CostE!K$5,$AA19-1,SkipYrs*Periods+1,1,$AE19)),0)+OFFSET(CostE!K$5,$AA19-1,SkipYrs*Periods+1+$AE19)*$AF19*(1/(1+Disc)^($AE19+1)))*$R19 + (OFFSET(CostE!K$5,$AA19-1,SkipYrs*Periods+1+$AE19)*$AG19*(1/(1+Disc)^($AE19+1))+ IF($AH19>0,NPV(Disc,OFFSET(CostE!K$5,$AA19-1,SkipYrs*Periods+ROUND($AE19+$AF19+$AG19,0)+1,1,$AH19)),0)*(1/(1+Disc)^($AE19+$AF19+$AG19))+ OFFSET(CostE!K$5,$AA19-1,SkipYrs*Periods+ROUND($AE19+$AF19+$AG19+$AH19,0)+1)*$AI19*(1/(1+Disc)^(ROUND($AE19+$AH19+$AF19+$AG19,0)+1)))*$S19 ->  | CJ19: =(IF($AE19>0,NPV(Disc,OFFSET(CostE!L$5,$AA19-1,SkipYrs*Periods+1,1,$AE19)),0)+OFFSET(CostE!L$5,$AA19-1,SkipYrs*Periods+1+$AE19)*$AF19*(1/(1+Disc)^($AE19+1)))*$R19 + (OFFSET(CostE!L$5,$AA19-1,SkipYrs*Periods+1+$AE19)*$AG19*(1/(1+Disc)^($AE19+1))+ IF($AH19>0,NPV(Disc,OFFSET(CostE!L$5,$AA19-1,SkipYrs*Periods+ROUND($AE19+$AF19+$AG19,0)+1,1,$AH19)),0)*(1/(1+Disc)^($AE19+$AF19+$AG19))+ OFFSET(CostE!L$5,$AA19-1,SkipYrs*Periods+ROUND($AE19+$AF19+$AG19+$AH19,0)+1)*$AI19*(1/(1+Disc)^(ROUND($AE19+$AH19+$AF19+$AG19,0)+1)))*$S19 ->  | CK19: =(IF($AE19>0,NPV(Disc,OFFSET(CostE!M$5,$AA19-1,SkipYrs*Periods+1,1,$AE19)),0)+OFFSET(CostE!M$5,$AA19-1,SkipYrs*Periods+1+$AE19)*$AF19*(1/(1+Disc)^($AE19+1)))*$R19 + (OFFSET(CostE!M$5,$AA19-1,SkipYrs*Periods+1+$AE19)*$AG19*(1/(1+Disc)^($AE19+1))+ IF($AH19>0,NPV(Disc,OFFSET(CostE!M$5,$AA19-1,SkipYrs*Periods+ROUND($AE19+$AF19+$AG19,0)+1,1,$AH19)),0)*(1/(1+Disc)^($AE19+$AF19+$AG19))+ OFFSET(CostE!M$5,$AA19-1,SkipYrs*Periods+ROUND($AE19+$AF19+$AG19+$AH19,0)+1)*$AI19*(1/(1+Disc)^(ROUND($AE19+$AH19+$AF19+$AG19,0)+1)))*$S19 ->  | CL19: =(IF($AE19>0,NPV(Disc,OFFSET(CostE!N$5,$AA19-1,SkipYrs*Periods+1,1,$AE19)),0)+OFFSET(CostE!N$5,$AA19-1,SkipYrs*Periods+1+$AE19)*$AF19*(1/(1+Disc)^($AE19+1)))*$R19 + (OFFSET(CostE!N$5,$AA19-1,SkipYrs*Periods+1+$AE19)*$AG19*(1/(1+Disc)^($AE19+1))+ IF($AH19>0,NPV(Disc,OFFSET(CostE!N$5,$AA19-1,SkipYrs*Periods+ROUND($AE19+$AF19+$AG19,0)+1,1,$AH19)),0)*(1/(1+Disc)^($AE19+$AF19+$AG19))+ OFFSET(CostE!N$5,$AA19-1,SkipYrs*Periods+ROUND($AE19+$AF19+$AG19+$AH19,0)+1)*$AI19*(1/(1+Disc)^(ROUND($AE19+$AH19+$AF19+$AG19,0)+1)))*$S19 ->  | CM19: =(IF($AE19>0,NPV(Disc,OFFSET(CostE!O$5,$AA19-1,SkipYrs*Periods+1,1,$AE19)),0)+OFFSET(CostE!O$5,$AA19-1,SkipYrs*Periods+1+$AE19)*$AF19*(1/(1+Disc)^($AE19+1)))*$R19 + (OFFSET(CostE!O$5,$AA19-1,SkipYrs*Periods+1+$AE19)*$AG19*(1/(1+Disc)^($AE19+1))+ IF($AH19>0,NPV(Disc,OFFSET(CostE!O$5,$AA19-1,SkipYrs*Periods+ROUND($AE19+$AF19+$AG19,0)+1,1,$AH19)),0)*(1/(1+Disc)^($AE19+$AF19+$AG19))+ OFFSET(CostE!O$5,$AA19-1,SkipYrs*Periods+ROUND($AE19+$AF19+$AG19+$AH19,0)+1)*$AI19*(1/(1+Disc)^(ROUND($AE19+$AH19+$AF19+$AG19,0)+1)))*$S19 ->  | CN19: =(IF($AE19>0,NPV(Disc,OFFSET(CostE!P$5,$AA19-1,SkipYrs*Periods+1,1,$AE19)),0)+OFFSET(CostE!P$5,$AA19-1,SkipYrs*Periods+1+$AE19)*$AF19*(1/(1+Disc)^($AE19+1)))*$R19 + (OFFSET(CostE!P$5,$AA19-1,SkipYrs*Periods+1+$AE19)*$AG19*(1/(1+Disc)^($AE19+1))+ IF($AH19>0,NPV(Disc,OFFSET(CostE!P$5,$AA19-1,SkipYrs*Periods+ROUND($AE19+$AF19+$AG19,0)+1,1,$AH19)),0)*(1/(1+Disc)^($AE19+$AF19+$AG19))+ OFFSET(CostE!P$5,$AA19-1,SkipYrs*Periods+ROUND($AE19+$AF19+$AG19+$AH19,0)+1)*$AI19*(1/(1+Disc)^(ROUND($AE19+$AH19+$AF19+$AG19,0)+1)))*$S19 ->  | CO19: =(IF($AE19>0,NPV(Disc,OFFSET(CostE!Q$5,$AA19-1,SkipYrs*Periods+1,1,$AE19)),0)+OFFSET(CostE!Q$5,$AA19-1,SkipYrs*Periods+1+$AE19)*$AF19*(1/(1+Disc)^($AE19+1)))*$R19 + (OFFSET(CostE!Q$5,$AA19-1,SkipYrs*Periods+1+$AE19)*$AG19*(1/(1+Disc)^($AE19+1))+ IF($AH19>0,NPV(Disc,OFFSET(CostE!Q$5,$AA19-1,SkipYrs*Periods+ROUND($AE19+$AF19+$AG19,0)+1,1,$AH19)),0)*(1/(1+Disc)^($AE19+$AF19+$AG19))+ OFFSET(CostE!Q$5,$AA19-1,SkipYrs*Periods+ROUND($AE19+$AF19+$AG19+$AH19,0)+1)*$AI19*(1/(1+Disc)^(ROUND($AE19+$AH19+$AF19+$AG19,0)+1)))*$S19 ->  | CP19: =(IF($AE19>0,NPV(Disc,OFFSET(CostE!R$5,$AA19-1,SkipYrs*Periods+1,1,$AE19)),0)+OFFSET(CostE!R$5,$AA19-1,SkipYrs*Periods+1+$AE19)*$AF19*(1/(1+Disc)^($AE19+1)))*$R19 + (OFFSET(CostE!R$5,$AA19-1,SkipYrs*Periods+1+$AE19)*$AG19*(1/(1+Disc)^($AE19+1))+ IF($AH19>0,NPV(Disc,OFFSET(CostE!R$5,$AA19-1,SkipYrs*Periods+ROUND($AE19+$AF19+$AG19,0)+1,1,$AH19)),0)*(1/(1+Disc)^($AE19+$AF19+$AG19))+ OFFSET(CostE!R$5,$AA19-1,SkipYrs*Periods+ROUND($AE19+$AF19+$AG19+$AH19,0)+1)*$AI19*(1/(1+Disc)^(ROUND($AE19+$AH19+$AF19+$AG19,0)+1)))*$S19 ->  | CQ19: =(IF($AE19>0,NPV(Disc,OFFSET(CostE!S$5,$AA19-1,SkipYrs*Periods+1,1,$AE19)),0)+OFFSET(CostE!S$5,$AA19-1,SkipYrs*Periods+1+$AE19)*$AF19*(1/(1+Disc)^($AE19+1)))*$R19 + (OFFSET(CostE!S$5,$AA19-1,SkipYrs*Periods+1+$AE19)*$AG19*(1/(1+Disc)^($AE19+1))+ IF($AH19>0,NPV(Disc,OFFSET(CostE!S$5,$AA19-1,SkipYrs*Periods+ROUND($AE19+$AF19+$AG19,0)+1,1,$AH19)),0)*(1/(1+Disc)^($AE19+$AF19+$AG19))+ OFFSET(CostE!S$5,$AA19-1,SkipYrs*Periods+ROUND($AE19+$AF19+$AG19+$AH19,0)+1)*$AI19*(1/(1+Disc)^(ROUND($AE19+$AH19+$AF19+$AG19,0)+1)))*$S19 ->  | CR19: =(IF($AE19>0,NPV(Disc,OFFSET(CostE!T$5,$AA19-1,SkipYrs*Periods+1,1,$AE19)),0)+OFFSET(CostE!T$5,$AA19-1,SkipYrs*Periods+1+$AE19)*$AF19*(1/(1+Disc)^($AE19+1)))*$R19 + (OFFSET(CostE!T$5,$AA19-1,SkipYrs*Periods+1+$AE19)*$AG19*(1/(1+Disc)^($AE19+1))+ IF($AH19>0,NPV(Disc,OFFSET(CostE!T$5,$AA19-1,SkipYrs*Periods+ROUND($AE19+$AF19+$AG19,0)+1,1,$AH19)),0)*(1/(1+Disc)^($AE19+$AF19+$AG19))+ OFFSET(CostE!T$5,$AA19-1,SkipYrs*Periods+ROUND($AE19+$AF19+$AG19+$AH19,0)+1)*$AI19*(1/(1+Disc)^(ROUND($AE19+$AH19+$AF19+$AG19,0)+1)))*$S19 ->  | CS19: =(IF($AE19>0,NPV(Disc,OFFSET(CostE!U$5,$AA19-1,SkipYrs*Periods+1,1,$AE19)),0)+OFFSET(CostE!U$5,$AA19-1,SkipYrs*Periods+1+$AE19)*$AF19*(1/(1+Disc)^($AE19+1)))*$R19 + (OFFSET(CostE!U$5,$AA19-1,SkipYrs*Periods+1+$AE19)*$AG19*(1/(1+Disc)^($AE19+1))+ IF($AH19>0,NPV(Disc,OFFSET(CostE!U$5,$AA19-1,SkipYrs*Periods+ROUND($AE19+$AF19+$AG19,0)+1,1,$AH19)),0)*(1/(1+Disc)^($AE19+$AF19+$AG19))+ OFFSET(CostE!U$5,$AA19-1,SkipYrs*Periods+ROUND($AE19+$AF19+$AG19+$AH19,0)+1)*$AI19*(1/(1+Disc)^(ROUND($AE19+$AH19+$AF19+$AG19,0)+1)))*$S19 ->  | CT19: =(IF($AE19>0,NPV(Disc,OFFSET(CostE!V$5,$AA19-1,SkipYrs*Periods+1,1,$AE19)),0)+OFFSET(CostE!V$5,$AA19-1,SkipYrs*Periods+1+$AE19)*$AF19*(1/(1+Disc)^($AE19+1)))*$R19 + (OFFSET(CostE!V$5,$AA19-1,SkipYrs*Periods+1+$AE19)*$AG19*(1/(1+Disc)^($AE19+1))+ IF($AH19>0,NPV(Disc,OFFSET(CostE!V$5,$AA19-1,SkipYrs*Periods+ROUND($AE19+$AF19+$AG19,0)+1,1,$AH19)),0)*(1/(1+Disc)^($AE19+$AF19+$AG19))+ OFFSET(CostE!V$5,$AA19-1,SkipYrs*Periods+ROUND($AE19+$AF19+$AG19+$AH19,0)+1)*$AI19*(1/(1+Disc)^(ROUND($AE19+$AH19+$AF19+$AG19,0)+1)))*$S19 ->  | CU19: =(IF($AE19>0,NPV(Disc,OFFSET(CostE!W$5,$AA19-1,SkipYrs*Periods+1,1,$AE19)),0)+OFFSET(CostE!W$5,$AA19-1,SkipYrs*Periods+1+$AE19)*$AF19*(1/(1+Disc)^($AE19+1)))*$R19 + (OFFSET(CostE!W$5,$AA19-1,SkipYrs*Periods+1+$AE19)*$AG19*(1/(1+Disc)^($AE19+1))+ IF($AH19>0,NPV(Disc,OFFSET(CostE!W$5,$AA19-1,SkipYrs*Periods+ROUND($AE19+$AF19+$AG19,0)+1,1,$AH19)),0)*(1/(1+Disc)^($AE19+$AF19+$AG19))+ OFFSET(CostE!W$5,$AA19-1,SkipYrs*Periods+ROUND($AE19+$AF19+$AG19+$AH19,0)+1)*$AI19*(1/(1+Disc)^(ROUND($AE19+$AH19+$AF19+$AG19,0)+1)))*$S19 ->  | CV19: =(IF($AE19>0,NPV(Disc,OFFSET(CostE!X$5,$AA19-1,SkipYrs*Periods+1,1,$AE19)),0)+OFFSET(CostE!X$5,$AA19-1,SkipYrs*Periods+1+$AE19)*$AF19*(1/(1+Disc)^($AE19+1)))*$R19 + (OFFSET(CostE!X$5,$AA19-1,SkipYrs*Periods+1+$AE19)*$AG19*(1/(1+Disc)^($AE19+1))+ IF($AH19>0,NPV(Disc,OFFSET(CostE!X$5,$AA19-1,SkipYrs*Periods+ROUND($AE19+$AF19+$AG19,0)+1,1,$AH19)),0)*(1/(1+Disc)^($AE19+$AF19+$AG19))+ OFFSET(CostE!X$5,$AA19-1,SkipYrs*Periods+ROUND($AE19+$AF19+$AG19+$AH19,0)+1)*$AI19*(1/(1+Disc)^(ROUND($AE19+$AH19+$AF19+$AG19,0)+1)))*$S19 ->  | CW19: =(IF($AE19>0,NPV(Disc,OFFSET(CostE!Y$5,$AA19-1,SkipYrs*Periods+1,1,$AE19)),0)+OFFSET(CostE!Y$5,$AA19-1,SkipYrs*Periods+1+$AE19)*$AF19*(1/(1+Disc)^($AE19+1)))*$R19 + (OFFSET(CostE!Y$5,$AA19-1,SkipYrs*Periods+1+$AE19)*$AG19*(1/(1+Disc)^($AE19+1))+ IF($AH19>0,NPV(Disc,OFFSET(CostE!Y$5,$AA19-1,SkipYrs*Periods+ROUND($AE19+$AF19+$AG19,0)+1,1,$AH19)),0)*(1/(1+Disc)^($AE19+$AF19+$AG19))+ OFFSET(CostE!Y$5,$AA19-1,SkipYrs*Periods+ROUND($AE19+$AF19+$AG19+$AH19,0)+1)*$AI19*(1/(1+Disc)^(ROUND($AE19+$AH19+$AF19+$AG19,0)+1)))*$S19 ->  | CX19: =(IF($AE19>0,NPV(Disc,OFFSET(CostE!Z$5,$AA19-1,SkipYrs*Periods+1,1,$AE19)),0)+OFFSET(CostE!Z$5,$AA19-1,SkipYrs*Periods+1+$AE19)*$AF19*(1/(1+Disc)^($AE19+1)))*$R19 + (OFFSET(CostE!Z$5,$AA19-1,SkipYrs*Periods+1+$AE19)*$AG19*(1/(1+Disc)^($AE19+1))+ IF($AH19>0,NPV(Disc,OFFSET(CostE!Z$5,$AA19-1,SkipYrs*Periods+ROUND($AE19+$AF19+$AG19,0)+1,1,$AH19)),0)*(1/(1+Disc)^($AE19+$AF19+$AG19))+ OFFSET(CostE!Z$5,$AA19-1,SkipYrs*Periods+ROUND($AE19+$AF19+$AG19+$AH19,0)+1)*$AI19*(1/(1+Disc)^(ROUND($AE19+$AH19+$AF19+$AG19,0)+1)))*$S19 ->  | CY19: =(IF($AE19>0,NPV(Disc,OFFSET(CostE!AA$5,$AA19-1,SkipYrs*Periods+1,1,$AE19)),0)+OFFSET(CostE!AA$5,$AA19-1,SkipYrs*Periods+1+$AE19)*$AF19*(1/(1+Disc)^($AE19+1)))*$R19 + (OFFSET(CostE!AA$5,$AA19-1,SkipYrs*Periods+1+$AE19)*$AG19*(1/(1+Disc)^($AE19+1))+ IF($AH19>0,NPV(Disc,OFFSET(CostE!AA$5,$AA19-1,SkipYrs*Periods+ROUND($AE19+$AF19+$AG19,0)+1,1,$AH19)),0)*(1/(1+Disc)^($AE19+$AF19+$AG19))+ OFFSET(CostE!AA$5,$AA19-1,SkipYrs*Periods+ROUND($AE19+$AF19+$AG19+$AH19,0)+1)*$AI19*(1/(1+Disc)^(ROUND($AE19+$AH19+$AF19+$AG19,0)+1)))*$S19 ->  | CZ19: =(IF($AE19>0,NPV(Disc,OFFSET(CostE!AB$5,$AA19-1,SkipYrs*Periods+1,1,$AE19)),0)+OFFSET(CostE!AB$5,$AA19-1,SkipYrs*Periods+1+$AE19)*$AF19*(1/(1+Disc)^($AE19+1)))*$R19 + (OFFSET(CostE!AB$5,$AA19-1,SkipYrs*Periods+1+$AE19)*$AG19*(1/(1+Disc)^($AE19+1))+ IF($AH19>0,NPV(Disc,OFFSET(CostE!AB$5,$AA19-1,SkipYrs*Periods+ROUND($AE19+$AF19+$AG19,0)+1,1,$AH19)),0)*(1/(1+Disc)^($AE19+$AF19+$AG19))+ OFFSET(CostE!AB$5,$AA19-1,SkipYrs*Periods+ROUND($AE19+$AF19+$AG19+$AH19,0)+1)*$AI19*(1/(1+Disc)^(ROUND($AE19+$AH19+$AF19+$AG19,0)+1)))*$S19 ->  | DA19: =(IF($AE19>0,NPV(Disc,OFFSET(CostE!AC$5,$AA19-1,SkipYrs*Periods+1,1,$AE19)),0)+OFFSET(CostE!AC$5,$AA19-1,SkipYrs*Periods+1+$AE19)*$AF19*(1/(1+Disc)^($AE19+1)))*$R19 + (OFFSET(CostE!AC$5,$AA19-1,SkipYrs*Periods+1+$AE19)*$AG19*(1/(1+Disc)^($AE19+1))+ IF($AH19>0,NPV(Disc,OFFSET(CostE!AC$5,$AA19-1,SkipYrs*Periods+ROUND($AE19+$AF19+$AG19,0)+1,1,$AH19)),0)*(1/(1+Disc)^($AE19+$AF19+$AG19))+ OFFSET(CostE!AC$5,$AA19-1,SkipYrs*Periods+ROUND($AE19+$AF19+$AG19+$AH19,0)+1)*$AI19*(1/(1+Disc)^(ROUND($AE19+$AH19+$AF19+$AG19,0)+1)))*$S19 ->  | DB19: =(IF($AE19>0,NPV(Disc,OFFSET(CostE!AD$5,$AA19-1,SkipYrs*Periods+1,1,$AE19)),0)+OFFSET(CostE!AD$5,$AA19-1,SkipYrs*Periods+1+$AE19)*$AF19*(1/(1+Disc)^($AE19+1)))*$R19 + (OFFSET(CostE!AD$5,$AA19-1,SkipYrs*Periods+1+$AE19)*$AG19*(1/(1+Disc)^($AE19+1))+ IF($AH19>0,NPV(Disc,OFFSET(CostE!AD$5,$AA19-1,SkipYrs*Periods+ROUND($AE19+$AF19+$AG19,0)+1,1,$AH19)),0)*(1/(1+Disc)^($AE19+$AF19+$AG19))+ OFFSET(CostE!AD$5,$AA19-1,SkipYrs*Periods+ROUND($AE19+$AF19+$AG19+$AH19,0)+1)*$AI19*(1/(1+Disc)^(ROUND($AE19+$AH19+$AF19+$AG19,0)+1)))*$S19 ->  | DC19: =(IF($AE19>0,NPV(Disc,OFFSET(CostE!AE$5,$AA19-1,SkipYrs*Periods+1,1,$AE19)),0)+OFFSET(CostE!AE$5,$AA19-1,SkipYrs*Periods+1+$AE19)*$AF19*(1/(1+Disc)^($AE19+1)))*$R19 + (OFFSET(CostE!AE$5,$AA19-1,SkipYrs*Periods+1+$AE19)*$AG19*(1/(1+Disc)^($AE19+1))+ IF($AH19>0,NPV(Disc,OFFSET(CostE!AE$5,$AA19-1,SkipYrs*Periods+ROUND($AE19+$AF19+$AG19,0)+1,1,$AH19)),0)*(1/(1+Disc)^($AE19+$AF19+$AG19))+ OFFSET(CostE!AE$5,$AA19-1,SkipYrs*Periods+ROUND($AE19+$AF19+$AG19+$AH19,0)+1)*$AI19*(1/(1+Disc)^(ROUND($AE19+$AH19+$AF19+$AG19,0)+1)))*$S19 ->  | DD19: =(IF($AE19>0,NPV(Disc,OFFSET(CostE!AF$5,$AA19-1,SkipYrs*Periods+1,1,$AE19)),0)+OFFSET(CostE!AF$5,$AA19-1,SkipYrs*Periods+1+$AE19)*$AF19*(1/(1+Disc)^($AE19+1)))*$R19 + (OFFSET(CostE!AF$5,$AA19-1,SkipYrs*Periods+1+$AE19)*$AG19*(1/(1+Disc)^($AE19+1))+ IF($AH19>0,NPV(Disc,OFFSET(CostE!AF$5,$AA19-1,SkipYrs*Periods+ROUND($AE19+$AF19+$AG19,0)+1,1,$AH19)),0)*(1/(1+Disc)^($AE19+$AF19+$AG19))+ OFFSET(CostE!AF$5,$AA19-1,SkipYrs*Periods+ROUND($AE19+$AF19+$AG19+$AH19,0)+1)*$AI19*(1/(1+Disc)^(ROUND($AE19+$AH19+$AF19+$AG19,0)+1)))*$S19 ->  | DE19: =(IF($AE19>0,NPV(Disc,OFFSET(CostE!AG$5,$AA19-1,SkipYrs*Periods+1,1,$AE19)),0)+OFFSET(CostE!AG$5,$AA19-1,SkipYrs*Periods+1+$AE19)*$AF19*(1/(1+Disc)^($AE19+1)))*$R19 + (OFFSET(CostE!AG$5,$AA19-1,SkipYrs*Periods+1+$AE19)*$AG19*(1/(1+Disc)^($AE19+1))+ IF($AH19>0,NPV(Disc,OFFSET(CostE!AG$5,$AA19-1,SkipYrs*Periods+ROUND($AE19+$AF19+$AG19,0)+1,1,$AH19)),0)*(1/(1+Disc)^($AE19+$AF19+$AG19))+ OFFSET(CostE!AG$5,$AA19-1,SkipYrs*Periods+ROUND($AE19+$AF19+$AG19+$AH19,0)+1)*$AI19*(1/(1+Disc)^(ROUND($AE19+$AH19+$AF19+$AG19,0)+1)))*$S19 ->  | DF19: =(IF($AE19>0,NPV(Disc,OFFSET(CostE!AH$5,$AA19-1,SkipYrs*Periods+1,1,$AE19)),0)+OFFSET(CostE!AH$5,$AA19-1,SkipYrs*Periods+1+$AE19)*$AF19*(1/(1+Disc)^($AE19+1)))*$R19 + (OFFSET(CostE!AH$5,$AA19-1,SkipYrs*Periods+1+$AE19)*$AG19*(1/(1+Disc)^($AE19+1))+ IF($AH19>0,NPV(Disc,OFFSET(CostE!AH$5,$AA19-1,SkipYrs*Periods+ROUND($AE19+$AF19+$AG19,0)+1,1,$AH19)),0)*(1/(1+Disc)^($AE19+$AF19+$AG19))+ OFFSET(CostE!AH$5,$AA19-1,SkipYrs*Periods+ROUND($AE19+$AF19+$AG19+$AH19,0)+1)*$AI19*(1/(1+Disc)^(ROUND($AE19+$AH19+$AF19+$AG19,0)+1)))*$S19 ->  | DG19: =(IF($AE19>0,NPV(Disc,OFFSET(CostE!AI$5,$AA19-1,SkipYrs*Periods+1,1,$AE19)),0)+OFFSET(CostE!AI$5,$AA19-1,SkipYrs*Periods+1+$AE19)*$AF19*(1/(1+Disc)^($AE19+1)))*$R19 + (OFFSET(CostE!AI$5,$AA19-1,SkipYrs*Periods+1+$AE19)*$AG19*(1/(1+Disc)^($AE19+1))+ IF($AH19>0,NPV(Disc,OFFSET(CostE!AI$5,$AA19-1,SkipYrs*Periods+ROUND($AE19+$AF19+$AG19,0)+1,1,$AH19)),0)*(1/(1+Disc)^($AE19+$AF19+$AG19))+ OFFSET(CostE!AI$5,$AA19-1,SkipYrs*Periods+ROUND($AE19+$AF19+$AG19+$AH19,0)+1)*$AI19*(1/(1+Disc)^(ROUND($AE19+$AH19+$AF19+$AG19,0)+1)))*$S19 ->  | DH19: =(IF($AE19>0,NPV(Disc,OFFSET(CostE!AJ$5,$AA19-1,SkipYrs*Periods+1,1,$AE19)),0)+OFFSET(CostE!AJ$5,$AA19-1,SkipYrs*Periods+1+$AE19)*$AF19*(1/(1+Disc)^($AE19+1)))*$R19 + (OFFSET(CostE!AJ$5,$AA19-1,SkipYrs*Periods+1+$AE19)*$AG19*(1/(1+Disc)^($AE19+1))+ IF($AH19>0,NPV(Disc,OFFSET(CostE!AJ$5,$AA19-1,SkipYrs*Periods+ROUND($AE19+$AF19+$AG19,0)+1,1,$AH19)),0)*(1/(1+Disc)^($AE19+$AF19+$AG19))+ OFFSET(CostE!AJ$5,$AA19-1,SkipYrs*Periods+ROUND($AE19+$AF19+$AG19+$AH19,0)+1)*$AI19*(1/(1+Disc)^(ROUND($AE19+$AH19+$AF19+$AG19,0)+1)))*$S19 ->  | DI19: =(IF($AE19>0,NPV(Disc,OFFSET(CostE!AK$5,$AA19-1,SkipYrs*Periods+1,1,$AE19)),0)+OFFSET(CostE!AK$5,$AA19-1,SkipYrs*Periods+1+$AE19)*$AF19*(1/(1+Disc)^($AE19+1)))*$R19 + (OFFSET(CostE!AK$5,$AA19-1,SkipYrs*Periods+1+$AE19)*$AG19*(1/(1+Disc)^($AE19+1))+ IF($AH19>0,NPV(Disc,OFFSET(CostE!AK$5,$AA19-1,SkipYrs*Periods+ROUND($AE19+$AF19+$AG19,0)+1,1,$AH19)),0)*(1/(1+Disc)^($AE19+$AF19+$AG19))+ OFFSET(CostE!AK$5,$AA19-1,SkipYrs*Periods+ROUND($AE19+$AF19+$AG19+$AH19,0)+1)*$AI19*(1/(1+Disc)^(ROUND($AE19+$AH19+$AF19+$AG19,0)+1)))*$S19 ->  | DJ19: =(IF($AE19>0,NPV(Disc,OFFSET(CostE!AL$5,$AA19-1,SkipYrs*Periods+1,1,$AE19)),0)+OFFSET(CostE!AL$5,$AA19-1,SkipYrs*Periods+1+$AE19)*$AF19*(1/(1+Disc)^($AE19+1)))*$R19 + (OFFSET(CostE!AL$5,$AA19-1,SkipYrs*Periods+1+$AE19)*$AG19*(1/(1+Disc)^($AE19+1))+ IF($AH19>0,NPV(Disc,OFFSET(CostE!AL$5,$AA19-1,SkipYrs*Periods+ROUND($AE19+$AF19+$AG19,0)+1,1,$AH19)),0)*(1/(1+Disc)^($AE19+$AF19+$AG19))+ OFFSET(CostE!AL$5,$AA19-1,SkipYrs*Periods+ROUND($AE19+$AF19+$AG19+$AH19,0)+1)*$AI19*(1/(1+Disc)^(ROUND($AE19+$AH19+$AF19+$AG19,0)+1)))*$S19 ->  | DK19: =(IF($AE19>0,NPV(Disc,OFFSET(CostE!AM$5,$AA19-1,SkipYrs*Periods+1,1,$AE19)),0)+OFFSET(CostE!AM$5,$AA19-1,SkipYrs*Periods+1+$AE19)*$AF19*(1/(1+Disc)^($AE19+1)))*$R19 + (OFFSET(CostE!AM$5,$AA19-1,SkipYrs*Periods+1+$AE19)*$AG19*(1/(1+Disc)^($AE19+1))+ IF($AH19>0,NPV(Disc,OFFSET(CostE!AM$5,$AA19-1,SkipYrs*Periods+ROUND($AE19+$AF19+$AG19,0)+1,1,$AH19)),0)*(1/(1+Disc)^($AE19+$AF19+$AG19))+ OFFSET(CostE!AM$5,$AA19-1,SkipYrs*Periods+ROUND($AE19+$AF19+$AG19+$AH19,0)+1)*$AI19*(1/(1+Disc)^(ROUND($AE19+$AH19+$AF19+$AG19,0)+1)))*$S19 ->  | DL19: =(IF($AE19>0,NPV(Disc,OFFSET(CostE!AN$5,$AA19-1,SkipYrs*Periods+1,1,$AE19)),0)+OFFSET(CostE!AN$5,$AA19-1,SkipYrs*Periods+1+$AE19)*$AF19*(1/(1+Disc)^($AE19+1)))*$R19 + (OFFSET(CostE!AN$5,$AA19-1,SkipYrs*Periods+1+$AE19)*$AG19*(1/(1+Disc)^($AE19+1))+ IF($AH19>0,NPV(Disc,OFFSET(CostE!AN$5,$AA19-1,SkipYrs*Periods+ROUND($AE19+$AF19+$AG19,0)+1,1,$AH19)),0)*(1/(1+Disc)^($AE19+$AF19+$AG19))+ OFFSET(CostE!AN$5,$AA19-1,SkipYrs*Periods+ROUND($AE19+$AF19+$AG19+$AH19,0)+1)*$AI19*(1/(1+Disc)^(ROUND($AE19+$AH19+$AF19+$AG19,0)+1)))*$S19 ->  | DM19: =(IF($AE19>0,NPV(Disc,OFFSET(CostE!AO$5,$AA19-1,SkipYrs*Periods+1,1,$AE19)),0)+OFFSET(CostE!AO$5,$AA19-1,SkipYrs*Periods+1+$AE19)*$AF19*(1/(1+Disc)^($AE19+1)))*$R19 + (OFFSET(CostE!AO$5,$AA19-1,SkipYrs*Periods+1+$AE19)*$AG19*(1/(1+Disc)^($AE19+1))+ IF($AH19>0,NPV(Disc,OFFSET(CostE!AO$5,$AA19-1,SkipYrs*Periods+ROUND($AE19+$AF19+$AG19,0)+1,1,$AH19)),0)*(1/(1+Disc)^($AE19+$AF19+$AG19))+ OFFSET(CostE!AO$5,$AA19-1,SkipYrs*Periods+ROUND($AE19+$AF19+$AG19+$AH19,0)+1)*$AI19*(1/(1+Disc)^(ROUND($AE19+$AH19+$AF19+$AG19,0)+1)))*$S19 ->  | DN19: =(IF($AE19>0,NPV(Disc,OFFSET(CostE!AP$5,$AA19-1,SkipYrs*Periods+1,1,$AE19)),0)+OFFSET(CostE!AP$5,$AA19-1,SkipYrs*Periods+1+$AE19)*$AF19*(1/(1+Disc)^($AE19+1)))*$R19 + (OFFSET(CostE!AP$5,$AA19-1,SkipYrs*Periods+1+$AE19)*$AG19*(1/(1+Disc)^($AE19+1))+ IF($AH19>0,NPV(Disc,OFFSET(CostE!AP$5,$AA19-1,SkipYrs*Periods+ROUND($AE19+$AF19+$AG19,0)+1,1,$AH19)),0)*(1/(1+Disc)^($AE19+$AF19+$AG19))+ OFFSET(CostE!AP$5,$AA19-1,SkipYrs*Periods+ROUND($AE19+$AF19+$AG19+$AH19,0)+1)*$AI19*(1/(1+Disc)^(ROUND($AE19+$AH19+$AF19+$AG19,0)+1)))*$S19 ->  | DO19: =(IF($AE19>0,NPV(Disc,OFFSET(CostE!AQ$5,$AA19-1,SkipYrs*Periods+1,1,$AE19)),0)+OFFSET(CostE!AQ$5,$AA19-1,SkipYrs*Periods+1+$AE19)*$AF19*(1/(1+Disc)^($AE19+1)))*$R19 + (OFFSET(CostE!AQ$5,$AA19-1,SkipYrs*Periods+1+$AE19)*$AG19*(1/(1+Disc)^($AE19+1))+ IF($AH19>0,NPV(Disc,OFFSET(CostE!AQ$5,$AA19-1,SkipYrs*Periods+ROUND($AE19+$AF19+$AG19,0)+1,1,$AH19)),0)*(1/(1+Disc)^($AE19+$AF19+$AG19))+ OFFSET(CostE!AQ$5,$AA19-1,SkipYrs*Periods+ROUND($AE19+$AF19+$AG19+$AH19,0)+1)*$AI19*(1/(1+Disc)^(ROUND($AE19+$AH19+$AF19+$AG19,0)+1)))*$S19 ->  | DP19: =(IF($AE19>0,NPV(Disc,OFFSET(CostE!AR$5,$AA19-1,SkipYrs*Periods+1,1,$AE19)),0)+OFFSET(CostE!AR$5,$AA19-1,SkipYrs*Periods+1+$AE19)*$AF19*(1/(1+Disc)^($AE19+1)))*$R19 + (OFFSET(CostE!AR$5,$AA19-1,SkipYrs*Periods+1+$AE19)*$AG19*(1/(1+Disc)^($AE19+1))+ IF($AH19>0,NPV(Disc,OFFSET(CostE!AR$5,$AA19-1,SkipYrs*Periods+ROUND($AE19+$AF19+$AG19,0)+1,1,$AH19)),0)*(1/(1+Disc)^($AE19+$AF19+$AG19))+ OFFSET(CostE!AR$5,$AA19-1,SkipYrs*Periods+ROUND($AE19+$AF19+$AG19+$AH19,0)+1)*$AI19*(1/(1+Disc)^(ROUND($AE19+$AH19+$AF19+$AG19,0)+1)))*$S19 ->  | DQ19: =(IF($AE19>0,NPV(Disc,OFFSET(CostE!AS$5,$AA19-1,SkipYrs*Periods+1,1,$AE19)),0)+OFFSET(CostE!AS$5,$AA19-1,SkipYrs*Periods+1+$AE19)*$AF19*(1/(1+Disc)^($AE19+1)))*$R19 + (OFFSET(CostE!AS$5,$AA19-1,SkipYrs*Periods+1+$AE19)*$AG19*(1/(1+Disc)^($AE19+1))+ IF($AH19>0,NPV(Disc,OFFSET(CostE!AS$5,$AA19-1,SkipYrs*Periods+ROUND($AE19+$AF19+$AG19,0)+1,1,$AH19)),0)*(1/(1+Disc)^($AE19+$AF19+$AG19))+ OFFSET(CostE!AS$5,$AA19-1,SkipYrs*Periods+ROUND($AE19+$AF19+$AG19+$AH19,0)+1)*$AI19*(1/(1+Disc)^(ROUND($AE19+$AH19+$AF19+$AG19,0)+1)))*$S19 ->  | DR19: =(IF($AE19>0,NPV(Disc,OFFSET(CostE!AT$5,$AA19-1,SkipYrs*Periods+1,1,$AE19)),0)+OFFSET(CostE!AT$5,$AA19-1,SkipYrs*Periods+1+$AE19)*$AF19*(1/(1+Disc)^($AE19+1)))*$R19 + (OFFSET(CostE!AT$5,$AA19-1,SkipYrs*Periods+1+$AE19)*$AG19*(1/(1+Disc)^($AE19+1))+ IF($AH19>0,NPV(Disc,OFFSET(CostE!AT$5,$AA19-1,SkipYrs*Periods+ROUND($AE19+$AF19+$AG19,0)+1,1,$AH19)),0)*(1/(1+Disc)^($AE19+$AF19+$AG19))+ OFFSET(CostE!AT$5,$AA19-1,SkipYrs*Periods+ROUND($AE19+$AF19+$AG19+$AH19,0)+1)*$AI19*(1/(1+Disc)^(ROUND($AE19+$AH19+$AF19+$AG19,0)+1)))*$S19 ->  | DS19: =(IF($AE19>0,NPV(Disc,OFFSET(CostE!AU$5,$AA19-1,SkipYrs*Periods+1,1,$AE19)),0)+OFFSET(CostE!AU$5,$AA19-1,SkipYrs*Periods+1+$AE19)*$AF19*(1/(1+Disc)^($AE19+1)))*$R19 + (OFFSET(CostE!AU$5,$AA19-1,SkipYrs*Periods+1+$AE19)*$AG19*(1/(1+Disc)^($AE19+1))+ IF($AH19>0,NPV(Disc,OFFSET(CostE!AU$5,$AA19-1,SkipYrs*Periods+ROUND($AE19+$AF19+$AG19,0)+1,1,$AH19)),0)*(1/(1+Disc)^($AE19+$AF19+$AG19))+ OFFSET(CostE!AU$5,$AA19-1,SkipYrs*Periods+ROUND($AE19+$AF19+$AG19+$AH19,0)+1)*$AI19*(1/(1+Disc)^(ROUND($AE19+$AH19+$AF19+$AG19,0)+1)))*$S19 ->  | DT19: =(IF($AE19>0,NPV(Disc,OFFSET(CostE!AV$5,$AA19-1,SkipYrs*Periods+1,1,$AE19)),0)+OFFSET(CostE!AV$5,$AA19-1,SkipYrs*Periods+1+$AE19)*$AF19*(1/(1+Disc)^($AE19+1)))*$R19 + (OFFSET(CostE!AV$5,$AA19-1,SkipYrs*Periods+1+$AE19)*$AG19*(1/(1+Disc)^($AE19+1))+ IF($AH19>0,NPV(Disc,OFFSET(CostE!AV$5,$AA19-1,SkipYrs*Periods+ROUND($AE19+$AF19+$AG19,0)+1,1,$AH19)),0)*(1/(1+Disc)^($AE19+$AF19+$AG19))+ OFFSET(CostE!AV$5,$AA19-1,SkipYrs*Periods+ROUND($AE19+$AF19+$AG19+$AH19,0)+1)*$AI19*(1/(1+Disc)^(ROUND($AE19+$AH19+$AF19+$AG19,0)+1)))*$S19 ->  | DU19: =(IF($AE19>0,NPV(Disc,OFFSET(CostE!AW$5,$AA19-1,SkipYrs*Periods+1,1,$AE19)),0)+OFFSET(CostE!AW$5,$AA19-1,SkipYrs*Periods+1+$AE19)*$AF19*(1/(1+Disc)^($AE19+1)))*$R19 + (OFFSET(CostE!AW$5,$AA19-1,SkipYrs*Periods+1+$AE19)*$AG19*(1/(1+Disc)^($AE19+1))+ IF($AH19>0,NPV(Disc,OFFSET(CostE!AW$5,$AA19-1,SkipYrs*Periods+ROUND($AE19+$AF19+$AG19,0)+1,1,$AH19)),0)*(1/(1+Disc)^($AE19+$AF19+$AG19))+ OFFSET(CostE!AW$5,$AA19-1,SkipYrs*Periods+ROUND($AE19+$AF19+$AG19+$AH19,0)+1)*$AI19*(1/(1+Disc)^(ROUND($AE19+$AH19+$AF19+$AG19,0)+1)))*$S19 ->  | DV19: =(IF($AE19>0,NPV(Disc,OFFSET(CostE!AX$5,$AA19-1,SkipYrs*Periods+1,1,$AE19)),0)+OFFSET(CostE!AX$5,$AA19-1,SkipYrs*Periods+1+$AE19)*$AF19*(1/(1+Disc)^($AE19+1)))*$R19 + (OFFSET(CostE!AX$5,$AA19-1,SkipYrs*Periods+1+$AE19)*$AG19*(1/(1+Disc)^($AE19+1))+ IF($AH19>0,NPV(Disc,OFFSET(CostE!AX$5,$AA19-1,SkipYrs*Periods+ROUND($AE19+$AF19+$AG19,0)+1,1,$AH19)),0)*(1/(1+Disc)^($AE19+$AF19+$AG19))+ OFFSET(CostE!AX$5,$AA19-1,SkipYrs*Periods+ROUND($AE19+$AF19+$AG19+$AH19,0)+1)*$AI19*(1/(1+Disc)^(ROUND($AE19+$AH19+$AF19+$AG19,0)+1)))*$S19 ->  | DW19: =NPV(Disc,IF(ISERROR(DV19),0,Input!BA19:CR19*(AM19:CD19+CE19:DV19)))*L19 -> 0 | DX19: =NPV(Disc,GasCalcs!M19:BD19*Input!BA19:CR19)*L19 ->  | DY19: =NPV(Disc,IF(ISERROR(DV19),0,Input!BA19:CR19*(AM19:CD19*$G19+CE19:DV19*$H19)))*$L19 -> 0 | DZ19: 0 | EA19: =IF(ISERROR(MATCH(Input!$S19,Rates!$A$4:$A$9,0)),1,MATCH(Input!$S19,Rates!$A$4:$A$9,0)) -> 1 | EB19: =MATCH(Input!$X19,Rates!$A$16:$A$18,0) ->  | EC19: =(IF($E19>=1,NPV($C$3,OFFSET(Rates!$B$4,$EA19-1,EC$16-Rates!$B$3,1,TRUNC($E19))))*(1+$C$3)+OFFSET(Rates!$B$4,$EA19-1,EC$16-Rates!$B$3+TRUNC($E19))*($E19-TRUNC($E19))*(1/(1+$C$3)^(EC$16-Rates!$B$3+TRUNC($E19))))*$M19+(IF((Input!$Z19-$E19)>=1,NPV($C$3,OFFSET(Rates!$B$4,$EA19-1,EC$16-Rates!$B$3+TRUNC($E19),1,TRUNC(Input!$Z19-$E19))))/(1+$C$3)^(TRUNC($E19)-1)+OFFSET(Rates!$B$4,$EA19-1,EC$16-Rates!$B$3+TRUNC(Input!$Z19))*(Input!$Z19-TRUNC(Input!$Z19))*(1/(1+$C$3)^(EC$16-Rates!$B$3+TRUNC(Input!$Z19))))*Input!$AC19 -> 0 | ED19: =(IF($E19>=1,NPV($C$3,OFFSET(Rates!$B$4,$EA19-1,ED$16-Rates!$B$3,1,TRUNC($E19))))*(1+$C$3)+OFFSET(Rates!$B$4,$EA19-1,ED$16-Rates!$B$3+TRUNC($E19))*($E19-TRUNC($E19))*(1/(1+$C$3)^(ED$16-Rates!$B$3+TRUNC($E19))))*$M19+(IF((Input!$Z19-$E19)>=1,NPV($C$3,OFFSET(Rates!$B$4,$EA19-1,ED$16-Rates!$B$3+TRUNC($E19),1,TRUNC(Input!$Z19-$E19))))/(1+$C$3)^(TRUNC($E19)-1)+OFFSET(Rates!$B$4,$EA19-1,ED$16-Rates!$B$3+TRUNC(Input!$Z19))*(Input!$Z19-TRUNC(Input!$Z19))*(1/(1+$C$3)^(ED$16-Rates!$B$3+TRUNC(Input!$Z19))))*Input!$AC19 -> 0 | EE19: =(IF($E19>=1,NPV($C$3,OFFSET(Rates!$B$4,$EA19-1,EE$16-Rates!$B$3,1,TRUNC($E19))))*(1+$C$3)+OFFSET(Rates!$B$4,$EA19-1,EE$16-Rates!$B$3+TRUNC($E19))*($E19-TRUNC($E19))*(1/(1+$C$3)^(EE$16-Rates!$B$3+TRUNC($E19))))*$M19+(IF((Input!$Z19-$E19)>=1,NPV($C$3,OFFSET(Rates!$B$4,$EA19-1,EE$16-Rates!$B$3+TRUNC($E19),1,TRUNC(Input!$Z19-$E19))))/(1+$C$3)^(TRUNC($E19)-1)+OFFSET(Rates!$B$4,$EA19-1,EE$16-Rates!$B$3+TRUNC(Input!$Z19))*(Input!$Z19-TRUNC(Input!$Z19))*(1/(1+$C$3)^(EE$16-Rates!$B$3+TRUNC(Input!$Z19))))*Input!$AC19 -> 0 | EF19: =(IF($E19>=1,NPV($C$3,OFFSET(Rates!$B$4,$EA19-1,EF$16-Rates!$B$3,1,TRUNC($E19))))*(1+$C$3)+OFFSET(Rates!$B$4,$EA19-1,EF$16-Rates!$B$3+TRUNC($E19))*($E19-TRUNC($E19))*(1/(1+$C$3)^(EF$16-Rates!$B$3+TRUNC($E19))))*$M19+(IF((Input!$Z19-$E19)>=1,NPV($C$3,OFFSET(Rates!$B$4,$EA19-1,EF$16-Rates!$B$3+TRUNC($E19),1,TRUNC(Input!$Z19-$E19))))/(1+$C$3)^(TRUNC($E19)-1)+OFFSET(Rates!$B$4,$EA19-1,EF$16-Rates!$B$3+TRUNC(Input!$Z19))*(Input!$Z19-TRUNC(Input!$Z19))*(1/(1+$C$3)^(EF$16-Rates!$B$3+TRUNC(Input!$Z19))))*Input!$AC19 -> 0 | EG19: =(IF($E19>=1,NPV($C$3,OFFSET(Rates!$B$4,$EA19-1,EG$16-Rates!$B$3,1,TRUNC($E19))))*(1+$C$3)+OFFSET(Rates!$B$4,$EA19-1,EG$16-Rates!$B$3+TRUNC($E19))*($E19-TRUNC($E19))*(1/(1+$C$3)^(EG$16-Rates!$B$3+TRUNC($E19))))*$M19+(IF((Input!$Z19-$E19)>=1,NPV($C$3,OFFSET(Rates!$B$4,$EA19-1,EG$16-Rates!$B$3+TRUNC($E19),1,TRUNC(Input!$Z19-$E19))))/(1+$C$3)^(TRUNC($E19)-1)+OFFSET(Rates!$B$4,$EA19-1,EG$16-Rates!$B$3+TRUNC(Input!$Z19))*(Input!$Z19-TRUNC(Input!$Z19))*(1/(1+$C$3)^(EG$16-Rates!$B$3+TRUNC(Input!$Z19))))*Input!$AC19 -> 0 | EH19: =(IF($E19>=1,NPV($C$3,OFFSET(Rates!$B$4,$EA19-1,EH$16-Rates!$B$3,1,TRUNC($E19))))*(1+$C$3)+OFFSET(Rates!$B$4,$EA19-1,EH$16-Rates!$B$3+TRUNC($E19))*($E19-TRUNC($E19))*(1/(1+$C$3)^(EH$16-Rates!$B$3+TRUNC($E19))))*$M19+(IF((Input!$Z19-$E19)>=1,NPV($C$3,OFFSET(Rates!$B$4,$EA19-1,EH$16-Rates!$B$3+TRUNC($E19),1,TRUNC(Input!$Z19-$E19))))/(1+$C$3)^(TRUNC($E19)-1)+OFFSET(Rates!$B$4,$EA19-1,EH$16-Rates!$B$3+TRUNC(Input!$Z19))*(Input!$Z19-TRUNC(Input!$Z19))*(1/(1+$C$3)^(EH$16-Rates!$B$3+TRUNC(Input!$Z19))))*Input!$AC19 -> 0 | EI19: =(IF($E19>=1,NPV($C$3,OFFSET(Rates!$B$4,$EA19-1,EI$16-Rates!$B$3,1,TRUNC($E19))))*(1+$C$3)+OFFSET(Rates!$B$4,$EA19-1,EI$16-Rates!$B$3+TRUNC($E19))*($E19-TRUNC($E19))*(1/(1+$C$3)^(EI$16-Rates!$B$3+TRUNC($E19))))*$M19+(IF((Input!$Z19-$E19)>=1,NPV($C$3,OFFSET(Rates!$B$4,$EA19-1,EI$16-Rates!$B$3+TRUNC($E19),1,TRUNC(Input!$Z19-$E19))))/(1+$C$3)^(TRUNC($E19)-1)+OFFSET(Rates!$B$4,$EA19-1,EI$16-Rates!$B$3+TRUNC(Input!$Z19))*(Input!$Z19-TRUNC(Input!$Z19))*(1/(1+$C$3)^(EI$16-Rates!$B$3+TRUNC(Input!$Z19))))*Input!$AC19 -> 0 | EJ19: =(IF($E19>=1,NPV($C$3,OFFSET(Rates!$B$4,$EA19-1,EJ$16-Rates!$B$3,1,TRUNC($E19))))*(1+$C$3)+OFFSET(Rates!$B$4,$EA19-1,EJ$16-Rates!$B$3+TRUNC($E19))*($E19-TRUNC($E19))*(1/(1+$C$3)^(EJ$16-Rates!$B$3+TRUNC($E19))))*$M19+(IF((Input!$Z19-$E19)>=1,NPV($C$3,OFFSET(Rates!$B$4,$EA19-1,EJ$16-Rates!$B$3+TRUNC($E19),1,TRUNC(Input!$Z19-$E19))))/(1+$C$3)^(TRUNC($E19)-1)+OFFSET(Rates!$B$4,$EA19-1,EJ$16-Rates!$B$3+TRUNC(Input!$Z19))*(Input!$Z19-TRUNC(Input!$Z19))*(1/(1+$C$3)^(EJ$16-Rates!$B$3+TRUNC(Input!$Z19))))*Input!$AC19 -> 0 | EK19: =(IF($E19>=1,NPV($C$3,OFFSET(Rates!$B$4,$EA19-1,EK$16-Rates!$B$3,1,TRUNC($E19))))*(1+$C$3)+OFFSET(Rates!$B$4,$EA19-1,EK$16-Rates!$B$3+TRUNC($E19))*($E19-TRUNC($E19))*(1/(1+$C$3)^(EK$16-Rates!$B$3+TRUNC($E19))))*$M19+(IF((Input!$Z19-$E19)>=1,NPV($C$3,OFFSET(Rates!$B$4,$EA19-1,EK$16-Rates!$B$3+TRUNC($E19),1,TRUNC(Input!$Z19-$E19))))/(1+$C$3)^(TRUNC($E19)-1)+OFFSET(Rates!$B$4,$EA19-1,EK$16-Rates!$B$3+TRUNC(Input!$Z19))*(Input!$Z19-TRUNC(Input!$Z19))*(1/(1+$C$3)^(EK$16-Rates!$B$3+TRUNC(Input!$Z19))))*Input!$AC19 -> 0 | EL19: =(IF($E19>=1,NPV($C$3,OFFSET(Rates!$B$4,$EA19-1,EL$16-Rates!$B$3,1,TRUNC($E19))))*(1+$C$3)+OFFSET(Rates!$B$4,$EA19-1,EL$16-Rates!$B$3+TRUNC($E19))*($E19-TRUNC($E19))*(1/(1+$C$3)^(EL$16-Rates!$B$3+TRUNC($E19))))*$M19+(IF((Input!$Z19-$E19)>=1,NPV($C$3,OFFSET(Rates!$B$4,$EA19-1,EL$16-Rates!$B$3+TRUNC($E19),1,TRUNC(Input!$Z19-$E19))))/(1+$C$3)^(TRUNC($E19)-1)+OFFSET(Rates!$B$4,$EA19-1,EL$16-Rates!$B$3+TRUNC(Input!$Z19))*(Input!$Z19-TRUNC(Input!$Z19))*(1/(1+$C$3)^(EL$16-Rates!$B$3+TRUNC(Input!$Z19))))*Input!$AC19 -> 0 | EM19: =(IF($E19>=1,NPV($C$3,OFFSET(Rates!$B$4,$EA19-1,EM$16-Rates!$B$3,1,TRUNC($E19))))*(1+$C$3)+OFFSET(Rates!$B$4,$EA19-1,EM$16-Rates!$B$3+TRUNC($E19))*($E19-TRUNC($E19))*(1/(1+$C$3)^(EM$16-Rates!$B$3+TRUNC($E19))))*$M19+(IF((Input!$Z19-$E19)>=1,NPV($C$3,OFFSET(Rates!$B$4,$EA19-1,EM$16-Rates!$B$3+TRUNC($E19),1,TRUNC(Input!$Z19-$E19))))/(1+$C$3)^(TRUNC($E19)-1)+OFFSET(Rates!$B$4,$EA19-1,EM$16-Rates!$B$3+TRUNC(Input!$Z19))*(Input!$Z19-TRUNC(Input!$Z19))*(1/(1+$C$3)^(EM$16-Rates!$B$3+TRUNC(Input!$Z19))))*Input!$AC19 -> 0 | EN19: =(IF($E19>=1,NPV($C$3,OFFSET(Rates!$B$16,$EB19-1,EN$16-Rates!$B$3,1,TRUNC($E19))))*(1+$C$3) +OFFSET(Rates!$B$16,$EB19-1,EN$16-Rates!$B$3+TRUNC($E19))*($E19-TRUNC($E19))*(1/(1+$C$3)^(EN$16-Rates!$B$3+TRUNC($E19))))*Input!$V19 + (IF((Input!$Z19-$E19)>=1,NPV($C$3,OFFSET(Rates!$B$16,$EB19-1,EN$16-Rates!$B$3+TRUNC($E19),1,TRUNC(Input!$Z19-$E19))))/(1+$C$3)^(TRUNC($E19)-1) +OFFSET(Rates!$B$16,$EB19-1,EN$16-Rates!$B$3+TRUNC(Input!$Z19))*(Input!$Z19-TRUNC(Input!$Z19))*(1/(1+$C$3)^(EN$16-Rates!$B$3+TRUNC(Input!$Z19))))*Input!$AE19 ->  | EO19: =(IF($E19>=1,NPV($C$3,OFFSET(Rates!$B$16,$EB19-1,EO$16-Rates!$B$3,1,TRUNC($E19))))*(1+$C$3) +OFFSET(Rates!$B$16,$EB19-1,EO$16-Rates!$B$3+TRUNC($E19))*($E19-TRUNC($E19))*(1/(1+$C$3)^(EO$16-Rates!$B$3+TRUNC($E19))))*Input!$V19 + (IF((Input!$Z19-$E19)>=1,NPV($C$3,OFFSET(Rates!$B$16,$EB19-1,EO$16-Rates!$B$3+TRUNC($E19),1,TRUNC(Input!$Z19-$E19))))/(1+$C$3)^(TRUNC($E19)-1) +OFFSET(Rates!$B$16,$EB19-1,EO$16-Rates!$B$3+TRUNC(Input!$Z19))*(Input!$Z19-TRUNC(Input!$Z19))*(1/(1+$C$3)^(EO$16-Rates!$B$3+TRUNC(Input!$Z19))))*Input!$AE19 ->  | EP19: =(IF($E19>=1,NPV($C$3,OFFSET(Rates!$B$16,$EB19-1,EP$16-Rates!$B$3,1,TRUNC($E19))))*(1+$C$3) +OFFSET(Rates!$B$16,$EB19-1,EP$16-Rates!$B$3+TRUNC($E19))*($E19-TRUNC($E19))*(1/(1+$C$3)^(EP$16-Rates!$B$3+TRUNC($E19))))*Input!$V19 + (IF((Input!$Z19-$E19)>=1,NPV($C$3,OFFSET(Rates!$B$16,$EB19-1,EP$16-Rates!$B$3+TRUNC($E19),1,TRUNC(Input!$Z19-$E19))))/(1+$C$3)^(TRUNC($E19)-1) +OFFSET(Rates!$B$16,$EB19-1,EP$16-Rates!$B$3+TRUNC(Input!$Z19))*(Input!$Z19-TRUNC(Input!$Z19))*(1/(1+$C$3)^(EP$16-Rates!$B$3+TRUNC(Input!$Z19))))*Input!$AE19 ->  | EQ19: =(IF($E19>=1,NPV($C$3,OFFSET(Rates!$B$16,$EB19-1,EQ$16-Rates!$B$3,1,TRUNC($E19))))*(1+$C$3) +OFFSET(Rates!$B$16,$EB19-1,EQ$16-Rates!$B$3+TRUNC($E19))*($E19-TRUNC($E19))*(1/(1+$C$3)^(EQ$16-Rates!$B$3+TRUNC($E19))))*Input!$V19 + (IF((Input!$Z19-$E19)>=1,NPV($C$3,OFFSET(Rates!$B$16,$EB19-1,EQ$16-Rates!$B$3+TRUNC($E19),1,TRUNC(Input!$Z19-$E19))))/(1+$C$3)^(TRUNC($E19)-1) +OFFSET(Rates!$B$16,$EB19-1,EQ$16-Rates!$B$3+TRUNC(Input!$Z19))*(Input!$Z19-TRUNC(Input!$Z19))*(1/(1+$C$3)^(EQ$16-Rates!$B$3+TRUNC(Input!$Z19))))*Input!$AE19 ->  | ER19: =(IF($E19>=1,NPV($C$3,OFFSET(Rates!$B$16,$EB19-1,ER$16-Rates!$B$3,1,TRUNC($E19))))*(1+$C$3) +OFFSET(Rates!$B$16,$EB19-1,ER$16-Rates!$B$3+TRUNC($E19))*($E19-TRUNC($E19))*(1/(1+$C$3)^(ER$16-Rates!$B$3+TRUNC($E19))))*Input!$V19 + (IF((Input!$Z19-$E19)>=1,NPV($C$3,OFFSET(Rates!$B$16,$EB19-1,ER$16-Rates!$B$3+TRUNC($E19),1,TRUNC(Input!$Z19-$E19))))/(1+$C$3)^(TRUNC($E19)-1) +OFFSET(Rates!$B$16,$EB19-1,ER$16-Rates!$B$3+TRUNC(Input!$Z19))*(Input!$Z19-TRUNC(Input!$Z19))*(1/(1+$C$3)^(ER$16-Rates!$B$3+TRUNC(Input!$Z19))))*Input!$AE19 ->  | ES19: =(IF($E19>=1,NPV($C$3,OFFSET(Rates!$B$16,$EB19-1,ES$16-Rates!$B$3,1,TRUNC($E19))))*(1+$C$3) +OFFSET(Rates!$B$16,$EB19-1,ES$16-Rates!$B$3+TRUNC($E19))*($E19-TRUNC($E19))*(1/(1+$C$3)^(ES$16-Rates!$B$3+TRUNC($E19))))*Input!$V19 + (IF((Input!$Z19-$E19)>=1,NPV($C$3,OFFSET(Rates!$B$16,$EB19-1,ES$16-Rates!$B$3+TRUNC($E19),1,TRUNC(Input!$Z19-$E19))))/(1+$C$3)^(TRUNC($E19)-1) +OFFSET(Rates!$B$16,$EB19-1,ES$16-Rates!$B$3+TRUNC(Input!$Z19))*(Input!$Z19-TRUNC(Input!$Z19))*(1/(1+$C$3)^(ES$16-Rates!$B$3+TRUNC(Input!$Z19))))*Input!$AE19 ->  | ET19: =(IF($E19>=1,NPV($C$3,OFFSET(Rates!$B$16,$EB19-1,ET$16-Rates!$B$3,1,TRUNC($E19))))*(1+$C$3) +OFFSET(Rates!$B$16,$EB19-1,ET$16-Rates!$B$3+TRUNC($E19))*($E19-TRUNC($E19))*(1/(1+$C$3)^(ET$16-Rates!$B$3+TRUNC($E19))))*Input!$V19 + (IF((Input!$Z19-$E19)>=1,NPV($C$3,OFFSET(Rates!$B$16,$EB19-1,ET$16-Rates!$B$3+TRUNC($E19),1,TRUNC(Input!$Z19-$E19))))/(1+$C$3)^(TRUNC($E19)-1) +OFFSET(Rates!$B$16,$EB19-1,ET$16-Rates!$B$3+TRUNC(Input!$Z19))*(Input!$Z19-TRUNC(Input!$Z19))*(1/(1+$C$3)^(ET$16-Rates!$B$3+TRUNC(Input!$Z19))))*Input!$AE19 ->  | EU19: =(IF($E19>=1,NPV($C$3,OFFSET(Rates!$B$16,$EB19-1,EU$16-Rates!$B$3,1,TRUNC($E19))))*(1+$C$3) +OFFSET(Rates!$B$16,$EB19-1,EU$16-Rates!$B$3+TRUNC($E19))*($E19-TRUNC($E19))*(1/(1+$C$3)^(EU$16-Rates!$B$3+TRUNC($E19))))*Input!$V19 + (IF((Input!$Z19-$E19)>=1,NPV($C$3,OFFSET(Rates!$B$16,$EB19-1,EU$16-Rates!$B$3+TRUNC($E19),1,TRUNC(Input!$Z19-$E19))))/(1+$C$3)^(TRUNC($E19)-1) +OFFSET(Rates!$B$16,$EB19-1,EU$16-Rates!$B$3+TRUNC(Input!$Z19))*(Input!$Z19-TRUNC(Input!$Z19))*(1/(1+$C$3)^(EU$16-Rates!$B$3+TRUNC(Input!$Z19))))*Input!$AE19 ->  | EV19: =(IF($E19>=1,NPV($C$3,OFFSET(Rates!$B$16,$EB19-1,EV$16-Rates!$B$3,1,TRUNC($E19))))*(1+$C$3) +OFFSET(Rates!$B$16,$EB19-1,EV$16-Rates!$B$3+TRUNC($E19))*($E19-TRUNC($E19))*(1/(1+$C$3)^(EV$16-Rates!$B$3+TRUNC($E19))))*Input!$V19 + (IF((Input!$Z19-$E19)>=1,NPV($C$3,OFFSET(Rates!$B$16,$EB19-1,EV$16-Rates!$B$3+TRUNC($E19),1,TRUNC(Input!$Z19-$E19))))/(1+$C$3)^(TRUNC($E19)-1) +OFFSET(Rates!$B$16,$EB19-1,EV$16-Rates!$B$3+TRUNC(Input!$Z19))*(Input!$Z19-TRUNC(Input!$Z19))*(1/(1+$C$3)^(EV$16-Rates!$B$3+TRUNC(Input!$Z19))))*Input!$AE19 ->  | EW19: =(IF($E19>=1,NPV($C$3,OFFSET(Rates!$B$16,$EB19-1,EW$16-Rates!$B$3,1,TRUNC($E19))))*(1+$C$3) +OFFSET(Rates!$B$16,$EB19-1,EW$16-Rates!$B$3+TRUNC($E19))*($E19-TRUNC($E19))*(1/(1+$C$3)^(EW$16-Rates!$B$3+TRUNC($E19))))*Input!$V19 + (IF((Input!$Z19-$E19)>=1,NPV($C$3,OFFSET(Rates!$B$16,$EB19-1,EW$16-Rates!$B$3+TRUNC($E19),1,TRUNC(Input!$Z19-$E19))))/(1+$C$3)^(TRUNC($E19)-1) +OFFSET(Rates!$B$16,$EB19-1,EW$16-Rates!$B$3+TRUNC(Input!$Z19))*(Input!$Z19-TRUNC(Input!$Z19))*(1/(1+$C$3)^(EW$16-Rates!$B$3+TRUNC(Input!$Z19))))*Input!$AE19 ->  | EX19: =(IF($E19>=1,NPV($C$3,OFFSET(Rates!$B$16,$EB19-1,EX$16-Rates!$B$3,1,TRUNC($E19))))*(1+$C$3) +OFFSET(Rates!$B$16,$EB19-1,EX$16-Rates!$B$3+TRUNC($E19))*($E19-TRUNC($E19))*(1/(1+$C$3)^(EX$16-Rates!$B$3+TRUNC($E19))))*Input!$V19 + (IF((Input!$Z19-$E19)>=1,NPV($C$3,OFFSET(Rates!$B$16,$EB19-1,EX$16-Rates!$B$3+TRUNC($E19),1,TRUNC(Input!$Z19-$E19))))/(1+$C$3)^(TRUNC($E19)-1) +OFFSET(Rates!$B$16,$EB19-1,EX$16-Rates!$B$3+TRUNC(Input!$Z19))*(Input!$Z19-TRUNC(Input!$Z19))*(1/(1+$C$3)^(EX$16-Rates!$B$3+TRUNC(Input!$Z19))))*Input!$AE19 ->  | EY19: =IF(ISERROR(EC19),0,EC19*Input!AO19*$G19*$L19) -> 0 | EZ19: =IF(ISERROR(ED19),0,ED19*Input!AP19*$G19*$L19) -> 0 | FA19: =IF(ISERROR(EE19),0,EE19*Input!AQ19*$G19*$L19) -> 0 | FB19: =IF(ISERROR(EF19),0,EF19*Input!AR19*$G19*$L19) -> 0 | FC19: =IF(ISERROR(EG19),0,EG19*Input!AS19*$G19*$L19) -> 0 | FD19: =IF(ISERROR(EH19),0,EH19*Input!AT19*$G19*$L19) -> 0 | FE19: =IF(ISERROR(EI19),0,EI19*Input!AU19*$G19*$L19) -> 0 | FF19: =IF(ISERROR(EJ19),0,EJ19*Input!AV19*$G19*$L19) -> 0 | FG19: =IF(ISERROR(EK19),0,EK19*Input!AW19*$G19*$L19) -> 0 | FH19: =IF(ISERROR(EL19),0,EL19*Input!AX19*$G19*$L19) -> 0 | FI19: =IF(ISERROR(EM19),0,EM19*Input!AY19*$G19*$L19) -> 0 | FJ19: =IF(ISERROR(EN19),0,EN19*Input!AO19*$I19*$L19) -> 0 | FK19: =IF(ISERROR(EO19),0,EO19*Input!AP19*$I19*$L19) -> 0 | FL19: =IF(ISERROR(EP19),0,EP19*Input!AQ19*$I19*$L19) -> 0 | FM19: =IF(ISERROR(EQ19),0,EQ19*Input!AR19*$I19*$L19) -> 0 | FN19: =IF(ISERROR(ER19),0,ER19*Input!AS19*$I19*$L19) -> 0 | FO19: =IF(ISERROR(ES19),0,ES19*Input!AT19*$I19*$L19) -> 0 | FP19: =IF(ISERROR(ET19),0,ET19*Input!AU19*$I19*$L19) -> 0 | FQ19: =IF(ISERROR(EU19),0,EU19*Input!AV19*$I19*$L19) -> 0 | FR19: =IF(ISERROR(EV19),0,EV19*Input!AW19*$I19*$L19) -> 0 | FS19: =IF(ISERROR(EW19),0,EW19*Input!AX19*$I19*$L19) -> 0 | FT19: =IF(ISERROR(EX19),0,EX19*Input!AY19*$I19*$L19) -> 0 | FU19: =MAX(0,SUM(Input!N19:P19)-Input!L19) -> 0 | FV19: =MAX(NPV(Disc,FU19*Input!$BA19:$CR19),FY19-GA19,0) -> 0 | FX19: =NPV(Disc,Input!M19*Input!$BA19:$CR19) -> 0 | FY19: =NPV(Disc,SUM(Input!N19:P19)*Input!$BA19:$CR19) -> 0 | FZ19: 0 | GA19: =NPV(Disc,1*Input!BA19:CR19)*(Input!L19-IF(Calcs!AD19>0,(Input!L19-Input!AA19)*((1+Input!AB19/Periods)/(1+Disc))^(Calcs!AD19*Periods),0)) -> 0 | GB19: 0 | GC19: =GB19*J19 -> 0 | GD19: =(NPV(Disc,Input!$BA19:$CR19*Input!R19)*PV($C$3,$E19,-1,0,1)+ NPV(Disc,Input!$BA19:$CR19*N19)*PV($C$3,Input!$Z19-$E19,-1,0,1)/(1+Disc)^$AE19)*L19 -> 0 | GE19: =(NPV(Disc,Input!$BA19:$CR19*Input!V19)*PV($C$3,$E19,-1,0,1)+NPV(Disc,Input!$BA19:$CR19*Input!$AE19)*PV($C$3,Input!$Z19-$E19,-1,0,1)/(1+Disc)^$AE19)*L19 -> 0 | GF19: 0 | GG19: 0 | GH19: 0 | GI19: 0 | GJ19: 0 | GL19: =DY19+DZ19-(FZ19+GC19)-(Input!$Q$13-Input!$J$11)*GK19 ->  | GM19: =IF(GF19<>0,(DY19-(GC19+FZ19)*GJ19)/GF19,0) -> 0 | GN19: =IF(GG19<>0,(DZ19-(GC19+FZ19)*(1-GJ19))/GG19,0) -> 0 | GO19: =IF(GF19<>0,GM19-(Input!$Q$13-Input!$J$11)*$GJ19*$GK19/GF19,0) -> 0 | GP19: =IF(GG19<>0,GN19-(Input!$Q$13-Input!$J$11)*(1-$GJ19)*$GK19/GG19,0) -> 0 | GQ19: =IF(GF19<>0,(DY19-(+$FZ19)*GJ19)/GF19,0) -> 0 | GR19: =IF(GG19<>0,(DZ19-($FZ19)*(1-GJ19))/GG19,0) -> 0 | GS19: =IF(GF19<>0,GQ19-(Input!$Q$13-Input!$J$11+Input!$Q$4)*$GJ19*$GK19/GF19,0) -> 0 | GT19: =IF(GG19<>0,GR19-(Input!$Q$13-Input!$J$11+Input!$Q$4)*(1-$GJ19)*$GK19/GG19,0) -> 0 | GU19: =(DZ19+DY19)/(GC19+FZ19) ->  | GV19: =(DZ19+DY19)/(FZ19) ->  | GW19: =(DZ19+DY19)/((GC19+FZ19)+$GK19*(Input!$Q$13-Input!$J$11)) ->  | GX19: =(DZ19+DY19)/(FZ19+$GK19*(Input!$Q$13-Input!$J$11+Input!$Q$4)) ->  | GY19: =Input!CS19*O19*$G19*$L19 -> 0 | GZ19: =GY19*MAX(Input!$Z19,$E19) -> 0 | HA19: =Input!CS19*$I19*GasCalcs!G19*$L19 -> 0 | HB19: =HA19*MAX(Input!$Z19,$E19) -> 0 | HC19: =IF(ISERROR(Loads!AY19*Input!CS19*$T19*$H19),0,Loads!AY19*Input!CS19*$T19*$H19)*$L19 -> 0 | HD19: =IF(ISERROR(Loads!AZ19*Input!CS19*$T19*$H19),0,Loads!AZ19*Input!CS19*$T19*$H19)*$L19 -> 0 | HE19: =Input!CS19*$P19*$H19*$C$6*$L19/1000 -> 0 | HF19: =IF(Calcs!F19<>0,(Input!U19*H19*$L19*E19+Input!AD19*H19*L19*(F19-E19))/F19*Input!CS19,0) -> 0 | HG19: =IF(ISERROR(OFFSET(CostE!$AQ$5,$AB19-1,0)),0,OFFSET(CostE!$AQ$5,$AB19-1,0)) -> 0 | HH19: =IF(ISERROR(OFFSET(CostE!$AR$5,$AB19-1,0)),0,OFFSET(CostE!$AR$5,$AB19-1,0)) -> 0 | HI19: =IF(ISERROR(OFFSET(CostE!$AS$5,$AB19-1,0)),0,OFFSET(CostE!$AS$5,$AB19-1,0)) -> 0 | HJ19: =IF(ISERROR(INDEX(CostG!$E$37:$E$43,GasCalcs!$L19)),0,INDEX(CostG!$E$37:$E$43,GasCalcs!$L19)) -> 0.00585 | HK19: =IF(ISERROR(INDEX(CostG!$F$37:$F$43,GasCalcs!$L19)),0,INDEX(CostG!$F$37:$F$43,GasCalcs!$L19)) -> 0.0092 | HL19: =IF(ISERROR(Z19),0,OFFSET(CostE!$F$5,Calcs!Z19-1,0)) -> 0
